{"text_format":"1","workbook":"xlsx","n_sheets":15,"sheets":["LISTE DEROULANTE","liste pays & continents","Region de france et departement","RHONE code postal et communes","T0 PROCESS","T1 fiche entreprise & metier","T2 fichier client-prospect","T3 RECHERCHE GGLE CONCURRENCE","T4 suivi Ecommunication","T5 Lieu de prospection ","T6 Suivi Activité","T7 Stratégie commerciale","T8 Chiffre d'affaire","T9 Besoin Mat-Mo-Cpce-Partnair","T10 annexe rue-pays-ville"],"not_rendered":{"charts":0,"images":5,"macros":1,"external_links":0,"defined_names":3,"comments":5,"pivot_tables":0},"unopened":[],"bounds":{"document_bytes":16777216,"sheet_cells":100000,"rows_first":2000,"rows_last":500,"rows_between":2000,"halvings":0,"cell_chars":16384,"cell_head_chars":4096},"cells_cut":0,"cells_raw":0,"read":"whole","date_system":"1900"}

{"sheet":"LISTE DEROULANTE","index":0,"n_rows":24,"n_cols":13,"rows_kept":24,"cut":false,"hidden":true,"merged":[]}
["T3-T8 Type de reseau","client nouveau ","fidelisation","National","Mois",null,"Reseau ",null,"réalisé avec son réseau",null,"cv /pitch",null,"fiche entreprise  regime sociale"]
[]
["Reseau personnel","oui","oui","Corse","2022-01-01",null,"Création",null,"Contact Réalisé",null,"oui",null,"Général (sécurité social, cmu)"]
["Reseau professionnel","etat prospect",null,"France","2022-02-01",null,"Activation",null,"Contact relancé",null,"non",null,"RSI (social des indépendants)"]
["Reseau Web",null,null,"Guadeloupe","2022-03-01",null,"Développement",null,null,null,"Je ne sais pas faire",null,"RSI CNAVP-(Profession libérale)"]
[null,null,null,"Guyane","2022-04-01",null,null,null,null,null,null,null,"Msa (mutualité sociale agricole)"]
[null,null,null,"Martinique","2022-05-01",null,null,null,null,null,null,null,"Autres régimes spéciaux"]
[null,null,null,"Mayotte ","2022-06-01"]
[null,null,null,"Reunion","2022-07-01"]
[null,null,null,null,"2022-08-01",null,null,null,null,null,null,null,"regime sociale"]
[null,null,null,null,"2022-09-01"]
[null,null,null,null,"2022-10-01",null,null,null,null,null,null,null,"Avec mutuelle "]
[null,null,null,null,"2022-11-01",null,null,null,null,null,null,null,"sans mutuelle "]
[null,null,null,null,"2022-12-01"]
[]
["T5Destinataire ecom","T9 chiffres d'affaires"]
[]
["fichier Clients","Produits"]
["fichier Prospects","Services"]
["Fournisseurs"]
["Adm entreprise"]
["banque"]
["compta"]
["Autres"]

{"sheet":"liste pays & continents","index":1,"n_rows":251,"n_cols":4,"rows_kept":251,"cut":false,"hidden":true,"merged":[]}
["liste de pays à l'international","Correspondance continent-pays",null,"6 continents"]
[]
["Afghanistan ","Asie",null,"Afrique"]
["Afrique du Sud ","Afrique",null,"Europe"]
["Åland (les Îles)","Europe",null,"Asie"]
["Albanie ","Europe",null,"Amerique"]
["Algérie ","Afrique",null,"Océanie"]
["Allemagne ","Europe",null,"Antartique"]
["Andorre ","Europe"]
["Angola ","Afrique"]
["Anguilla","Amérique du Nord"]
["Antarctique ","Antarctica"]
["Antigua-et-Barbuda","Amérique du Nord"]
["Arabie saoudite ","Asie"]
["Argentine ","Amérique du Sud"]
["Arménie ","Asie"]
["Aruba","Amérique du Nord"]
["Australie ","Océanie"]
["Autriche ","Europe"]
["Azerbaïdjan ","Asie"]
["Bahamas ","Amérique du Nord"]
["Bahreïn","Asie"]
["Bangladesh ","Asie"]
["Barbade ","Amérique du Nord"]
["Bélarus ","Europe"]
["Belgique ","Europe"]
["Belize ","Amérique du Nord"]
["Bénin ","Afrique"]
["Bermudes ","Amérique du Nord"]
["Bhoutan ","Asie"]
["Bolivie (État plurinational de)","Amérique du Sud"]
["Bonaire, Saint-Eustache et Saba","Amérique du Nord"]
["Bosnie-Herzégovine ","Europe"]
["Botswana ","Afrique"]
["Bouvet (l'Île)","Amérique du Sud"]
["Brésil ","Amérique du Sud"]
["Brunéi Darussalam ","Asie"]
["Bulgarie ","Europe"]
["Burkina Faso ","Afrique"]
["Burundi ","Afrique"]
["Cabo Verde","Afrique"]
["Caïmans (les Îles)","Amérique du Nord"]
["Cambodge ","Asie"]
["Cameroun ","Afrique"]
["Canada ","Amérique du Nord"]
["Chili ","Amérique du Sud"]
["Chine ","Asie"]
["Christmas (l'Île)","Océanie"]
["Chypre","Asie"]
["Cocos (les Îles) / Keeling (les Îles)","Océanie"]
["Colombie ","Amérique du Sud"]
["Comores ","Afrique"]
["Congo ","Afrique"]
["Congo (la République démocratique du)","Afrique"]
["Cook (les Îles)","Océanie"]
["Corée (la République de)","Asie"]
["Corée (la République populaire démocratique de)","Asie"]
["Costa Rica ","Amérique du Nord"]
["Côte d'Ivoire ","Afrique"]
["Croatie ","Europe"]
["Cuba","Amérique du Nord"]
["Curaçao","Amérique du Nord"]
["Danemark ","Europe"]
["Djibouti","Afrique"]
["dominicaine (la République)","Amérique du Nord"]
["Dominique ","Amérique du Nord"]
["Égypte ","Afrique"]
["El Salvador","Amérique du Nord"]
["Émirats arabes unis ","Asie"]
["Équateur ","Amérique du Sud"]
["Érythrée ","Afrique"]
["Espagne ","Europe"]
["Estonie ","Europe"]
["Eswatini ","Afrique"]
["États-Unis d'Amérique ","Amérique du Nord"]
["Éthiopie ","Afrique"]
["Falkland (les Îles) /Malouines (les Îles)","Amérique du Sud"]
["Féroé (les Îles)","Europe"]
["Fidji ","Océanie"]
["Finlande ","Europe"]
["France ","Europe"]
["Gabon ","Afrique"]
["Gambie ","Afrique"]
["Géorgie ","Asie"]
["Géorgie du Sud-et-les Îles Sandwich du Sud ","Amérique du Sud"]
["Ghana ","Afrique"]
["Gibraltar","Europe"]
["Grèce ","Europe"]
["Grenade ","Amérique du Nord"]
["Groenland ","Amérique du Nord"]
["Guadeloupe ","Amérique du Nord"]
["Guam","Océanie"]
["Guatemala ","Amérique du Nord"]
["Guernesey","Europe"]
["Guinée ","Afrique"]
["Guinée équatoriale ","Afrique"]
["Guinée-Bissau ","Afrique"]
["Guyana ","Amérique du Sud"]
["Guyane française (la)","Amérique du Sud"]
["Haïti","Amérique du Nord"]
["Heard-et-Îles MacDonald (l'Île)","Océanie"]
["Honduras ","Amérique du Nord"]
["Hong Kong","Asie"]
["Hongrie ","Europe"]
["Île de Man","Europe"]
["Îles mineures éloignées des États-Unis ","Océanie"]
["Inde ","Asie"]
["Indien (le Territoire britannique de l'océan)","Afrique"]
["Indonésie ","Asie"]
["Iran (République Islamique d')","Asie"]
["Iraq ","Asie"]
["Irlande ","Europe"]
["Islande ","Europe"]
["Israël","Asie"]
["Italie ","Europe"]
["Jamaïque ","Amérique du Nord"]
["Japon ","Asie"]
["Jersey","Europe"]
["Jordanie ","Asie"]
["Kazakhstan ","Asie"]
["Kenya ","Afrique"]
["Kirghizistan ","Asie"]
["Kiribati","Océanie"]
["Koweït ","Asie"]
["Lao (la République démocratique populaire)","Asie"]
["Lesotho ","Afrique"]
["Lettonie ","Europe"]
["Liban ","Asie"]
["Libéria ","Afrique"]
["Libye ","Afrique"]
["Liechtenstein ","Europe"]
["Lituanie ","Europe"]
["Luxembourg ","Europe"]
["Macao","Asie"]
["Macédoine du Nord ","Europe"]
["Madagascar","Afrique"]
["Malaisie ","Asie"]
["Malawi ","Afrique"]
["Maldives ","Asie"]
["Mali ","Afrique"]
["Malte","Europe"]
["Mariannes du Nord (les Îles)","Océanie"]
["Maroc ","Afrique"]
["Marshall (les Îles)","Océanie"]
["Martinique ","Amérique du Nord"]
["Maurice","Afrique"]
["Mauritanie ","Afrique"]
["Mayotte","Afrique"]
["Mexique ","Amérique du Nord"]
["Micronésie (États fédérés de)","Océanie"]
["Moldavie (la République de)","Europe"]
["Monaco","Europe"]
["Mongolie ","Asie"]
["Monténégro ","Europe"]
["Montserrat","Amérique du Nord"]
["Mozambique ","Afrique"]
["Myanmar ","Asie"]
["Namibie ","Afrique"]
["Nauru","Océanie"]
["Népal ","Asie"]
["Nicaragua ","Amérique du Nord"]
["Niger ","Afrique"]
["Nigéria ","Afrique"]
["Niue","Océanie"]
["Norfolk (l'Île)","Océanie"]
["Norvège ","Europe"]
["Nouvelle-Calédonie ","Océanie"]
["Nouvelle-Zélande ","Océanie"]
["Oman","Asie"]
["Ouganda ","Afrique"]
["Ouzbékistan ","Asie"]
["Pakistan ","Asie"]
["Palaos ","Océanie"]
["Palestine, État de","Asie"]
["Panama ","Amérique du Nord"]
["Papouasie-Nouvelle-Guinée ","Océanie"]
["Paraguay ","Amérique du Sud"]
["Pays-Bas ","Europe"]
["Pérou ","Amérique du Sud"]
["Philippines ","Asie"]
["Pitcairn","Océanie"]
["Pologne ","Europe"]
["Polynésie française ","Océanie"]
["Porto Rico","Amérique du Nord"]
["Portugal ","Europe"]
["Qatar ","Asie"]
["République arabe syrienne ","Asie"]
["République centrAfriqueine ","Afrique"]
["Réunion ","Afrique"]
["Roumanie ","Europe"]
["Royaume-Uni de Grande-Bretagne et d'Irlande du Nord ","Europe"]
["Russie (la Fédération de)","Europe"]
["Rwanda ","Afrique"]
["Sahara occidental","Afrique"]
["Saint-Barthélemy","Amérique du Nord"]
["Sainte-Hélène, Ascension et Tristan da Cunha","Afrique"]
["Sainte-Lucie","Amérique du Nord"]
["Saint-Kitts-et-Nevis","Amérique du Nord"]
["Saint-Marin","Europe"]
["Saint-Martin (partie française)","Amérique du Nord"]
["Saint-Martin (partie néerlandaise)","Amérique du Nord"]
["Saint-Pierre-et-Miquelon","Amérique du Nord"]
["Saint-Siège ","Europe"]
["Saint-Vincent-et-les Grenadines","Amérique du Nord"]
["Salomon (les Îles)","Océanie"]
["Samoa ","Océanie"]
["Samoa américaines ","Océanie"]
["Sao Tomé-et-Principe","Afrique"]
["Sénégal ","Afrique"]
["Serbie ","Europe"]
["Seychelles ","Afrique"]
["Sierra Leone ","Afrique"]
["Singapour","Asie"]
["Slovaquie ","Europe"]
["Slovénie ","Europe"]
["Somalie ","Afrique"]
["Soudan ","Afrique"]
["Soudan du Sud ","Afrique"]
["Sri Lanka","Asie"]
["Suède ","Europe"]
["Suisse ","Europe"]
["Suriname ","Amérique du Sud"]
["Svalbard et l'Île Jan Mayen ","Europe"]
["Tadjikistan ","Asie"]
["Taïwan (Province de Chine)","Asie"]
["Tanzanie (la République-Unie de)","Afrique"]
["Tchad ","Afrique"]
["Tchéquie ","Europe"]
["Terres australes françaises ","Afrique"]
["Thaïlande ","Asie"]
["Timor-Leste ","Asie"]
["Togo ","Afrique"]
["Tokelau ","Océanie"]
["Tonga ","Océanie"]
["Trinité-et-Tobago ","Amérique du Nord"]
["Tunisie ","Afrique"]
["Turkménistan ","Asie"]
["Turks-et-Caïcos (les Îles)","Amérique du Nord"]
["Turquie ","Asie"]
["Tuvalu ","Océanie"]
["Ukraine ","Europe"]
["Uruguay ","Amérique du Sud"]
["Vanuatu ","Océanie"]
["Venezuela (République bolivarienne du)","Amérique du Sud"]
["Vierges britanniques (les Îles)","Amérique du Nord"]
["Vierges des États-Unis (les Îles)","Amérique du Nord"]
["Viet Nam ","Asie"]
["Wallis-et-Futuna","Océanie"]
["Yémen ","Asie"]
["Zambie ","Afrique"]
["Zimbabwe ","Afrique"]

{"sheet":"Region de france et departement","index":2,"n_rows":103,"n_cols":11,"rows_kept":103,"cut":false,"hidden":true,"merged":[]}
["N°","Département","Chef-lieu","Région",null,null,null,null,"Région","Capitale","Départements rattachés"]
["01",null,"Bourg-en-Bresse","Auvergne-Rhône-Alpes",null,null,null,null,null,"Lyon","Ain, Allier, Ardèche, Cantal, Drôme, Isère, Loire, Haute-Loire, Puy-de-Dôme, Rhône, Savoie et Haute-Savoie"]
["02","Ain","Laon","Hauts-de-France",null,null,null,null,"Auvergne-Rhône-Alpes","Dijon","Côte-d'Or, Doubs, Jura, Nièvre, Haute-Saône, Saône-et-Loire, Yonne et Territoire de Belfort"]
["03","Aisne","Moulins","Auvergne-Rhône-Alpes",null,null,null,null,"Bourgogne-Franche-Comté","Rennes","Côtes-d'Armor, Finistère, Ille-et-Vilaine et Morbihan"]
["04","Allier","Digne","Provence-Alpes-Côte d'Azur",null,null,null,null,"Bretagne","Orléans","Cher, Eure-et-Loir, Indre, Indre-et-Loire, Loir-et-Cher et Loiret"]
["05","Alpes-de-Haute-Provence","Gap","Provence-Alpes-Côte d'Azur",null,null,null,null,"Centre-Val de Loire","Ajaccio","Corse-du-Sud et Haute-Corse"]
["06","Hautes-Alpes","Nice","Provence-Alpes-Côte d'Azur",null,null,null,null,"Corse","Strasbourg","Ardennes, Aube, Marne, Haute-Marne, Meurthe-et-Moselle, Meuse, Moselle, Bas-Rhin, Haut-Rhin et Vosges"]
["07","Alpes-Maritimes","Privas","Auvergne-Rhône-Alpes",null,null,null,null,"Grand Est","Lille","Aisne, Nord, Oise, Pas-de-Calais et Somme"]
["08","Ardèche","Charleville-Mézières","Grand Est",null,null,null,null,"Hauts-de-France","Paris","Paris, Seine-et-Marne, Yvelines, Essonne, Hauts-de-Seine, Seine-Saint-Denis, Val-de-Marne et Val-d'Oise"]
["09","Ardennes","Foix","Occitanie",null,null,null,null,"Île-de-France","Rouen","Calvados, Eure, Manche, Orne et Seine-Maritime"]
[10,"Ariège","Troyes","Grand Est",null,null,null,null,"Normandie","Bordeaux","Charente, Charente-Maritime, Corrèze, Creuse, Dordogne, Gironde, Landes, Lot-et-Garonne, Pyrénées-Atlantiques, Deux-Sèvres, Vienne et Haute-Vienne"]
[11,"Aube","Carcassonne","Occitanie",null,null,null,null,"Nouvelle-Aquitaine","Toulouse","Ariège, Aude, Aveyron, Gard, Haute-Garonne, Gers, Hérault, Lot, Lozère, Hautes-Pyrénées, Pyrénées-Orientales, Tarn et Tarn-et-Garonne"]
[12,"Aude","Rodez","Occitanie",null,null,null,null,"Occitanie","Nantes","Loire-Atlantique, Maine-et-Loire, Mayenne, Sarthe et Vendée"]
[13,"Aveyron","Marseille","Provence-Alpes-Côte d'Azur",null,null,null,null,"Pays de la Loire","Marseille","Alpes-de-Haute-Provence, Hautes-Alpes, Alpes-Maritimes, Bouches-du-Rhône, Var et Vaucluse"]
[14,"Bouches-du-Rhône","Caen","Normandie",null,null,null,null,"Provence-Alpes-Côte d'Azur"]
[15,"Calvados","Aurillac","Auvergne-Rhône-Alpes"]
[16,"Cantal","Angoulême","Nouvelle-Aquitaine"]
[17,"Charente","La Rochelle","Nouvelle-Aquitaine"]
[18,"Charente-Maritime","Bourges","Centre-Val de Loire"]
[19,"Cher","Tulle","Nouvelle-Aquitaine"]
["2A","Corrèze","Ajaccio","Corse"]
["2B","Corse-du-Sud","Bastia","Corse"]
[21,"Haute-Corse","Dijon","Bourgogne-Franche-Comté"]
[22,"Côte-d'Or","Saint-Brieuc","Bretagne"]
[23,"Côtes d'Armor","Guéret","Nouvelle-Aquitaine"]
[24,"Creuse","Périgueux","Nouvelle-Aquitaine"]
[25,"Dordogne","Besançon","Bourgogne-Franche-Comté"]
[26,"Doubs","Valence","Auvergne-Rhône-Alpes"]
[27,"Drôme","Évreux","Normandie"]
[28,"Eure","Chartres","Centre-Val de Loire"]
[29,"Eure-et-Loir","Quimper","Bretagne"]
[30,"Finistère","Nîmes","Occitanie"]
[31,"Gard","Toulouse","Occitanie"]
[32,"Haute-Garonne","Auch","Occitanie"]
[33,"Gers","Bordeaux","Nouvelle-Aquitaine"]
[34,"Gironde","Montpellier","Occitanie"]
[35,"Hérault","Rennes","Bretagne"]
[36,"Ille-et-Vilaine","Châteauroux","Centre-Val de Loire"]
[37,"Indre","Tours","Centre-Val de Loire"]
[38,"Indre-et-Loire","Grenoble","Auvergne-Rhône-Alpes"]
[39,"Isère","Lons-le-Saunier","Bourgogne-Franche-Comté"]
[40,"Jura","Mont-de-Marsan","Nouvelle-Aquitaine"]
[41,"Landes","Blois","Centre-Val de Loire"]
[42,"Loir-et-Cher","Saint-Étienne","Auvergne-Rhône-Alpes"]
[43,"Loire","Le Puy-en-Velay","Auvergne-Rhône-Alpes"]
[44,"Haute-Loire","Nantes","Pays de la Loire"]
[45,"Loire-Atlantique","Orléans","Centre-Val de Loire"]
[46,"Loiret","Cahors","Occitanie"]
[47,"Lot","Agen","Nouvelle-Aquitaine"]
[48,"Lot-et-Garonne","Mende","Occitanie"]
[49,"Lozère","Angers","Pays de la Loire"]
[50,"Maine-et-Loire","Saint-Lô","Normandie"]
[51,"Manche","Châlons-en-Champagne","Grand Est"]
[52,"Marne","Chaumont","Grand Est"]
[53,"Haute-Marne","Laval","Pays de la Loire"]
[54,"Mayenne","Nancy","Grand Est"]
[55,"Meurthe-et-Moselle","Bar-le-Duc","Grand Est"]
[56,"Meuse","Vannes","Bretagne"]
[57,"Morbihan","Metz","Grand Est"]
[58,"Moselle","Nevers","Bourgogne-Franche-Comté"]
[59,"Nièvre","Lille","Hauts-de-France"]
[60,"Nord","Beauvais","Hauts-de-France"]
[61,"Oise","Alençon","Normandie"]
[62,"Orne","Arras","Hauts-de-France"]
[63,"Pas-de-Calais","Clermont-Ferrand","Auvergne-Rhône-Alpes"]
[64,"Puy-de-Dôme","Pau","Nouvelle-Aquitaine"]
[65,"Pyrénées-Atlantiques","Tarbes","Occitanie"]
[66,"Hautes-Pyrénées","Perpignan","Occitanie"]
[67,"Pyrénées-Orientales","Strasbourg","Grand Est"]
[68,"Bas-Rhin","Colmar","Grand Est"]
[69,"Haut-Rhin","Lyon","Auvergne-Rhône-Alpes"]
[70,"Rhône","Vesoul","Bourgogne-Franche-Comté"]
[71,"Haute-Saône","Mâcon","Bourgogne-Franche-Comté"]
[72,"Saône-et-Loire","Le Mans","Pays de la Loire"]
[73,"Sarthe","Chambéry","Auvergne-Rhône-Alpes"]
[74,"Savoie","Annecy","Auvergne-Rhône-Alpes"]
[75,"Haute-Savoie","Paris","Ile-de-France"]
[76,"Paris","Rouen","Normandie"]
[77,"Seine-Maritime","Melun","Ile-de-France"]
[78,"Seine-et-Marne","Versailles","Ile-de-France"]
[79,"Yvelines","Niort","Nouvelle-Aquitaine"]
[80,"Deux-Sèvres","Amiens","Hauts-de-France"]
[81,"Somme","Albi","Occitanie"]
[82,"Tarn","Montauban","Occitanie"]
[83,"Tarn-et-Garonne","Toulon","Provence-Alpes-Côte d'Azur"]
[84,"Var","Avignon","Provence-Alpes-Côte d'Azur"]
[85,"Vaucluse","La Roche-sur-Yon","Pays de la Loire"]
[86,"Vendée","Poitiers","Nouvelle-Aquitaine"]
[87,"Vienne","Limoges","Nouvelle-Aquitaine"]
[88,"Haute-Vienne","Épinal","Grand Est"]
[89,"Vosges","Auxerre","Bourgogne-Franche-Comté"]
[90,"Yonne","Belfort","Bourgogne-Franche-Comté"]
[91,"Territoire-de-Belfort","Évry","Ile-de-France"]
[92,"Essonne","Nanterre","Ile-de-France"]
[93,"Hauts-de-Seine","Bobigny","Ile-de-France"]
[94,"Seine-Saint-Denis","Créteil","Ile-de-France"]
[95,"Val-de-Marne","Pontoise","Ile-de-France"]
[971,"Val-D'Oise","Basse-Terre","Guadeloupe"]
[972,"Guadeloupe","Fort-de-France","Martinique"]
[973,"Martinique","Cayenne","Guyane"]
[974,"Guyane","Saint-Denis","La Réunion"]
[976,"La Réunion","Dzaoudzi","Mayotte"]
[null,"Mayotte"]

{"sheet":"RHONE code postal et communes","index":3,"n_rows":342,"n_cols":3,"rows_kept":342,"cut":false,"hidden":true,"merged":[]}
[null,"code posal","Ville"]
[null,69170,"AFFOUX"]
[null,69790,"AIGUEPERSE"]
[null,69250,"ALBIGNY SUR SAONE"]
[null,69380,"ALIX"]
[null,69480,"AMBERIEUX D AZERGUES"]
[null,69550,"AMPLEPUIS"]
[null,69550,"AMPLEPUIS"]
[null,69420,"AMPUIS"]
[null,69490,"ANCY"]
[null,69480,"ANSE"]
[null,69400,"ARNAS"]
[null,69610,"AVEIZE"]
[null,69790,"AZOLETTE"]
[null,69620,"BAGNOLS"]
[null,69430,"BEAUJEU"]
[null,69430,"BEAUJEU"]
[null,69700,"BEAUVALLON"]
[null,69700,"BEAUVALLON"]
[null,69700,"BEAUVALLON"]
[null,69220,"BELLEVILLE EN BEAUJOLAIS"]
[null,69220,"BELLEVILLE EN BEAUJOLAIS"]
[null,69380,"BELMONT D AZERGUES"]
[null,69690,"BESSENAY"]
[null,69690,"BESSENAY"]
[null,69690,"BESSENAY"]
[null,69690,"BESSENAY"]
[null,69690,"BESSENAY"]
[null,69690,"BESSENAY"]
[null,69690,"BIBOST"]
[null,69690,"BIBOST"]
[null,69460,"BLACE"]
[null,69530,"BRIGNAIS"]
[null,69530,"BRIGNAIS"]
[null,69126,"BRINDAS"]
[null,69500,"BRON"]
[null,69690,"BRULLIOLES"]
[null,69690,"BRUSSIEU"]
[null,69210,"BULLY"]
[null,69270,"CAILLOUX SUR FONTAINES"]
[null,69300,"CALUIRE ET CUIRE"]
[null,69840,"CENVES"]
[null,69220,"CERCIE"]
[null,69440,"CHABANIERE"]
[null,69440,"CHABANIERE"]
[null,69440,"CHABANIERE"]
[null,69440,"CHABANIERE"]
[null,69440,"CHABANIERE"]
[null,69870,"CHAMBOST ALLIERES"]
[null,69770,"CHAMBOST LONGESSAIGNE"]
[null,69620,"CHAMELET"]
[null,69410,"CHAMPAGNE AU MONT D OR"]
[null,69970,"CHAPONNAY"]
[null,69630,"CHAPONOST"]
[null,69260,"CHARBONNIERES LES BAINS"]
[null,69220,"CHARENTAY"]
[null,69390,"CHARLY"]
[null,69380,"CHARNAY"]
[null,69380,"CHASSELAY"]
[null,69680,"CHASSIEU"]
[null,69380,"CHATILLON"]
[null,69440,"CHAUSSAN"]
[null,69440,"CHAUSSAN"]
[null,69380,"CHAZAY D AZERGUES"]
[null,69840,"CHENAS"]
[null,69430,"CHENELETTE"]
[null,69380,"CHESSY"]
[null,69210,"CHEVINAY"]
[null,69115,"CHIROUBLES"]
[null,69380,"CIVRIEUX D AZERGUES"]
[null,69870,"CLAVEISOLLES"]
[null,69640,"COGNY"]
[null,69590,"COISE"]
[null,69660,"COLLONGES AU MONT D OR"]
[null,69124,"COLOMBIER SAUGNIEU"]
[null,69124,"COLOMBIER SAUGNIEU"]
[null,69125,"COLOMBIER SAUGNIEU"]
[null,69125,"COLOMBIER SAUGNIEU"]
[null,69360,"COMMUNAY"]
[null,69420,"CONDRIEU"]
[null,69960,"CORBAS"]
[null,69220,"CORCELLES EN BEAUJOLAIS"]
[null,69470,"COURS"]
[null,69470,"COURS"]
[null,69470,"COURS"]
[null,69470,"COURS"]
[null,69690,"COURZIEU"]
[null,69270,"COUZON AU MONT D OR"]
[null,69290,"CRAPONNE"]
[null,69550,"CUBLIZE"]
[null,69250,"CURIS AU MONT D OR"]
[null,69570,"DARDILLY"]
[null,69150,"DECINES CHARPIEU"]
[null,69150,"DECINES CHARPIEU"]
[null,69640,"DENICE"]
[null,69430,"DEUX GROSNES"]
[null,69860,"DEUX GROSNES"]
[null,69860,"DEUX GROSNES"]
[null,69860,"DEUX GROSNES"]
[null,69860,"DEUX GROSNES"]
[null,69860,"DEUX GROSNES"]
[null,69860,"DEUX GROSNES"]
[null,69170,"DIEME"]
[null,69380,"DOMMARTIN"]
[null,69220,"DRACE"]
[null,69850,"DUERNE"]
[null,69700,"ECHALAS"]
[null,69700,"ECHALAS"]
[null,69130,"ECULLY"]
[null,69840,"EMERINGES"]
[null,69210,"EVEUX"]
[null,69320,"FEYZIN"]
[null,69820,"FLEURIE"]
[null,69250,"FLEURIEU SUR SAONE"]
[null,69210,"FLEURIEUX SUR L ARBRESLE"]
[null,69270,"FONTAINES ST MARTIN"]
[null,69270,"FONTAINES SUR SAONE"]
[null,69340,"FRANCHEVILLE"]
[null,69620,"FRONTENAS"]
[null,69740,"GENAS"]
[null,69730,"GENAY"]
[null,69700,"GIVORS"]
[null,69700,"GIVORS"]
[null,69400,"GLEIZE"]
[null,69870,"GRANDRIS"]
[null,69290,"GREZIEU LA VARENNE"]
[null,69610,"GREZIEU LE MARCHE"]
[null,69520,"GRIGNY"]
[null,69610,"HAUTE RIVOIRE"]
[null,69540,"IRIGNY"]
[null,69330,"JONAGE"]
[null,69330,"JONS"]
[null,69170,"JOUX"]
[null,69840,"JULIENAS"]
[null,69840,"JULLIE"]
[null,69210,"L ARBRESLE"]
[null,69590,"LA CHAPELLE SUR COISE"]
[null,69350,"LA MULATIERE"]
[null,69890,"LA TOUR DE SALVAGNY"]
[null,69640,"LACENAS"]
[null,69480,"LACHASSAGNE"]
[null,69870,"LAMURE SUR AZERGUES"]
[null,69220,"LANCIE"]
[null,69430,"LANTIGNIE"]
[null,69590,"LARAJASSE"]
[null,69590,"LARAJASSE"]
[null,69620,"LE BREUIL"]
[null,69460,"LE PERREON"]
[null,69620,"LEGNY"]
[null,69210,"LENTILLY"]
[null,69430,"LES ARDILLATS"]
[null,69380,"LES CHERES"]
[null,69420,"LES HAIES"]
[null,69610,"LES HALLES"]
[null,69170,"LES SAUVAGES"]
[null,69620,"LETRA"]
[null,69620,"LETRA"]
[null,69400,"LIMAS"]
[null,69760,"LIMONEST"]
[null,69380,"LISSIEU"]
[null,69700,"LOIRE SUR RHONE"]
[null,69420,"LONGES"]
[null,69770,"LONGESSAIGNE"]
[null,69380,"LOZANNE"]
[null,69480,"LUCENAY"]
[null,69001,"LYON"]
[null,69002,"LYON"]
[null,69003,"LYON"]
[null,69004,"LYON"]
[null,69005,"LYON"]
[null,69006,"LYON"]
[null,69007,"LYON"]
[null,69008,"LYON"]
[null,69009,"LYON"]
[null,69430,"MARCHAMPT"]
[null,69380,"MARCILLY D AZERGUES"]
[null,69480,"MARCY"]
[null,69280,"MARCY L ETOILE"]
[null,69970,"MARENNES"]
[null,69550,"MEAUX LA MONTAGNE"]
[null,69510,"MESSIMY"]
[null,69610,"MEYS"]
[null,69330,"MEYZIEU"]
[null,69390,"MILLERY"]
[null,69780,"MIONS"]
[null,69620,"MOIRE"]
[null,69700,"MONTAGNY"]
[null,69700,"MONTAGNY"]
[null,69250,"MONTANAY"]
[null,69640,"MONTMELAS ST SORLIN"]
[null,69610,"MONTROMANT"]
[null,69770,"MONTROTTIER"]
[null,69480,"MORANCE"]
[null,69480,"MORANCE"]
[null,69440,"MORNANT"]
[null,69440,"MORNANT"]
[null,69250,"NEUVILLE SUR SAONE"]
[null,69460,"ODENAS"]
[null,69530,"ORLIENAS"]
[null,69530,"ORLIENAS"]
[null,69600,"OULLINS"]
[null,69310,"PIERRE BENITE"]
[null,69250,"POLEYMIEUX AU MONT D OR"]
[null,69290,"POLLIONNAY"]
[null,69590,"POMEYS"]
[null,69480,"POMMIERS"]
[null,69400,"PORTE DES PIERRES DOREES"]
[null,69400,"PORTE DES PIERRES DOREES"]
[null,69400,"PORTE DES PIERRES DOREES"]
[null,69640,"PORTE DES PIERRES DOREES"]
[null,69870,"POULE LES ECHARMEAUX"]
[null,69870,"POULE LES ECHARMEAUX"]
[null,69790,"PROPIERES"]
[null,69330,"PUSIGNAN"]
[null,69430,"QUINCIE EN BEAUJOLAIS"]
[null,69650,"QUINCIEUX"]
[null,69650,"QUINCIEUX"]
[null,69470,"RANCHAL"]
[null,69430,"REGNIE DURETTE"]
[null,69430,"REGNIE DURETTE"]
[null,69140,"RILLIEUX LA PAPE"]
[null,69140,"RILLIEUX LA PAPE"]
[null,69440,"RIVERIE"]
[null,69640,"RIVOLET"]
[null,69640,"RIVOLET"]
[null,69270,"ROCHETAILLEE SUR SAONE"]
[null,69550,"RONNO"]
[null,69510,"RONTALON"]
[null,69210,"SAIN BEL"]
[null,69460,"SALLES ARBUISSONNAS BEAUJOLAIS"]
[null,69460,"SALLES ARBUISSONNAS BEAUJOLAIS"]
[null,69490,"SARCEY"]
[null,69580,"SATHONAY CAMP"]
[null,69580,"SATHONAY VILLAGE"]
[null,69210,"SAVIGNY"]
[null,69360,"SEREZIN DU RHONE"]
[null,69360,"SIMANDRES"]
[null,69360,"SOLAIZE"]
[null,69510,"SOUCIEU EN JARREST"]
[null,69210,"SOURCIEUX LES MINES"]
[null,69610,"SOUZY"]
[null,69440,"ST ANDRE LA COTE"]
[null,69170,"ST APPOLINAIRE"]
[null,69720,"ST BONNET DE MURE"]
[null,69790,"ST BONNET DES BRUYERES"]
[null,69870,"ST BONNET LE TRONCY"]
[null,69790,"ST CLEMENT DE VERS"]
[null,69930,"ST CLEMENT LES PLACES"]
[null,69170,"ST CLEMENT SUR VALSONNE"]
[null,69450,"ST CYR AU MONT D OR"]
[null,69870,"ST CYR LE CHATOUX"]
[null,69560,"ST CYR SUR LE RHONE"]
[null,69370,"ST DIDIER AU MONT D OR"]
[null,69430,"ST DIDIER SUR BEAUJEU"]
[null,69460,"ST ETIENNE DES OULLIERES"]
[null,69460,"ST ETIENNE LA VARENNE"]
[null,69190,"ST FONS"]
[null,69490,"ST FORGEUX"]
[null,69610,"ST GENIS L ARGENTIERE"]
[null,69230,"ST GENIS LAVAL"]
[null,69290,"ST GENIS LES OLLIERES"]
[null,69830,"ST GEORGES DE RENEINS"]
[null,69650,"ST GERMAIN AU MONT D OR"]
[null,69210,"ST GERMAIN NUELLES"]
[null,69210,"ST GERMAIN NUELLES"]
[null,69790,"ST IGNY DE VERS"]
[null,69380,"ST JEAN DES VIGNES"]
[null,69550,"ST JEAN LA BUSSIERE"]
[null,69640,"ST JULIEN"]
[null,69640,"ST JULIEN"]
[null,69690,"ST JULIEN SUR BIBOST"]
[null,69870,"ST JUST D AVRAY"]
[null,69220,"ST LAGER"]
[null,69440,"ST LAURENT D AGNY"]
[null,69440,"ST LAURENT D AGNY"]
[null,69930,"ST LAURENT DE CHAMOUSSET"]
[null,69720,"ST LAURENT DE MURE"]
[null,69170,"ST MARCEL L ECLAIRE"]
[null,69850,"ST MARTIN EN HAUT"]
[null,69850,"ST MARTIN EN HAUT"]
[null,69870,"ST NIZIER D AZERGUES"]
[null,69780,"ST PIERRE DE CHANDIEU"]
[null,69210,"ST PIERRE LA PALUD"]
[null,69800,"ST PRIEST"]
[null,69270,"ST ROMAIN AU MONT D OR"]
[null,69490,"ST ROMAIN DE POPEY"]
[null,69560,"ST ROMAIN EN GAL"]
[null,69560,"ST ROMAIN EN GAL"]
[null,69700,"ST ROMAIN EN GIER"]
[null,69360,"ST SYMPHORIEN D OZON"]
[null,69590,"ST SYMPHORIEN SUR COISE"]
[null,69620,"ST VERAND"]
[null,69240,"ST VINCENT DE REINS"]
[null,69440,"STE CATHERINE"]
[null,69440,"STE CATHERINE"]
[null,69440,"STE CATHERINE"]
[null,69560,"STE COLOMBE"]
[null,69280,"STE CONSORCE"]
[null,69610,"STE FOY L ARGENTIERE"]
[null,69110,"STE FOY LES LYON"]
[null,69620,"STE PAULE"]
[null,69440,"TALUYERS"]
[null,69440,"TALUYERS"]
[null,69220,"TAPONAS"]
[null,69170,"TARARE"]
[null,69160,"TASSIN LA DEMI LUNE"]
[null,69620,"TERNAND"]
[null,69360,"TERNAY"]
[null,69620,"THEIZE"]
[null,69240,"THIZY LES BOURGS"]
[null,69240,"THIZY LES BOURGS"]
[null,69240,"THIZY LES BOURGS"]
[null,69240,"THIZY LES BOURGS"]
[null,69240,"THIZY LES BOURGS"]
[null,69510,"THURINS"]
[null,69780,"TOUSSIEU"]
[null,69420,"TREVES"]
[null,69420,"TUPIN ET SEMONS"]
[null,69620,"VAL D OINGT"]
[null,69620,"VAL D OINGT"]
[null,69620,"VAL D OINGT"]
[null,69170,"VALSONNE"]
[null,69670,"VAUGNERAY"]
[null,69670,"VAUGNERAY"]
[null,69120,"VAULX EN VELIN"]
[null,69460,"VAUX EN BEAUJOLAIS"]
[null,69820,"VAUXRENARD"]
[null,69200,"VENISSIEUX"]
[null,69390,"VERNAISON"]
[null,69430,"VERNAY"]
[null,69640,"VILLE SUR JARNIOUX"]
[null,69770,"VILLECHENEVE"]
[null,69400,"VILLEFRANCHE SUR SAONE"]
[null,69100,"VILLEURBANNE"]
[null,69910,"VILLIE MORGON"]
[null,69490,"VINDRY SUR TURDINE"]
[null,69490,"VINDRY SUR TURDINE"]
[null,69490,"VINDRY SUR TURDINE"]
[null,69490,"VINDRY SUR TURDINE"]
[null,69390,"VOURLES"]
[null,69390,"VOURLES"]
[null,69510,"YZERON"]

{"sheet":"T0 PROCESS","index":4,"n_rows":62,"n_cols":22,"rows_kept":62,"cut":false,"hidden":true,"merged":[[4,4,4,5],[5,4,5,5],[5,0,5,1],[1,0,1,1],[0,0,0,9],[55,0,55,1],[55,4,55,5],[61,0,61,1],[22,0,22,1],[9,4,9,5],[10,4,10,5],[23,0,23,1],[22,4,22,5],[36,0,36,1],[36,4,36,5]]}
["COMMENT COMPLETER VOTRE TABLEAU DE BORD SUIVI ACTIVITE ENTREPRISE",null,null,null,null,null,null,null,null,null,null,"T0 process","T1 info","T2 fichier..","T3 fichier..","T4 rech goog","T5 Ecom","T6 lieu prospect","T7 suivi prospect","T8 Stratégie","T9 chiffr affaire","T10 Besoins"]
["11 Onglets (de T0 à T10)à découvrir par couleur et titres"]
[]
["ONGLET T1",null,null,null,"ONGLET T2"]
["\"info liste rue 69 et pay-contine\"",null,null,null,"Fiche entreprise"]
["Je recherche des noms de rues ou pays, ou continents pour identifier mes prospects, clients, identifier les villes rue, pays au niveau nationl ou international ? Ou délimiter ma zone de prospects…qui deviendront des clients…?",null,null,null,"Je complète ma fiche entreprise "]
["ONGLET T0"]
[]
[null,null,null,null,"ONGLET T3",null,null,null,null,"LIEN retour vers onglet T1 \"info\""]
[null,null,null,null,"Fichier Client-prospect"]
[null,null,null,null,"je mets à jour mon fichier!"]
[]
[]
[]
[]
[]
[]
[]
[]
[]
[]
["ONGLET T4",null,null,null,"ONGLET T5"]
["Recherche google concurrents",null,null,null,"Suivi Ecommunication"]
["J'insère une photographie identifiantle nombre de concurrents présents dans ma zone de recherche prospect/client"]
[]
[]
[]
[]
[]
[]
[]
[]
[]
[]
[]
["ONGLET T6",null,null,null,"ONGLET T7"]
["Lieu de prospection",null,null,null,"Suivi Prospection"]
[]
[]
[]
[]
[]
[]
[]
[]
[]
[]
[]
[]
[]
[]
[]
[]
[]
["ONGLET T8",null,null,null,"ONGLET T9"]
["Stratégie Commerciale",null,null,null,"Chiffre d'affaires"]
[]
[]
[]
[]
["ONGLET T8"]
["Stratégie Commerciale"]

{"sheet":"T1 fiche entreprise & metier","index":5,"n_rows":37,"n_cols":11,"rows_kept":37,"cut":false,"hidden":false,"merged":[[32,1,32,2],[32,3,32,7],[5,10,5,11],[31,1,31,2],[33,3,33,7],[19,8,33,12],[30,1,30,2],[33,1,33,2],[21,1,21,2],[22,1,22,2],[23,1,23,2],[24,1,24,2],[31,3,31,7],[21,3,21,7],[5,8,5,9],[15,3,15,7],[36,1,36,7],[36,8,36,9],[35,8,35,9],[36,10,36,12],[35,10,35,12],[3,8,3,9],[4,8,4,9],[1,10,1,12],[2,10,2,12],[3,10,3,12],[4,10,4,12],[29,1,29,2],[0,1,0,12],[19,1,19,2],[20,1,20,2],[19,3,19,7],[20,3,20,7],[15,1,15,2],[18,8,18,12],[14,1,14,2],[13,1,13,2],[4,1,4,2],[4,3,4,7],[5,1,5,2],[5,3,5,7],[1,8,1,9],[2,8,2,9],[28,1,28,2],[18,1,18,7],[10,1,10,2],[11,1,11,2],[12,1,12,2],[25,1,25,2],[27,1,27,2],[14,3,14,6],[10,3,10,7],[11,3,11,7],[1,3,1,7],[2,3,2,7],[3,3,3,7],[27,3,27,7],[8,1,8,2],[26,1,26,2],[13,3,13,7],[2,1,2,2],[3,1,3,2],[7,1,7,7],[8,3,8,7],[9,3,9,7],[9,1,9,2],[1,1,1,2],[15,8,15,10],[15,11,15,12],[7,8,7,12],[30,3,30,7],[28,3,28,7],[29,3,29,7],[22,3,22,7],[23,3,23,7],[24,3,24,7],[25,3,25,7],[26,3,26,7],[12,3,12,7],[8,8,14,12]]}
[null,"T1-FICHE ENTREPRENEUR"]
[null,"Nom ",null,null,null,null,null,null,"Prénom"]
[null,"Adresse",null,null,null,null,null,null,"Téléphone"]
[null,"Nom de votre entreprise",null,null,null,null,null,null,"Mail"]
[null,"Siret",null,null,null,null,null,null,"Date création"]
[null,"Statut juridique ",null,null,null,null,null,null,"Régime social"]
[]
[null,"Informations Entreprise",null,null,null,null,null,null,"Présentation simple Activite entreprise (Pitch)"]
[null,"Adresse physique"]
[null,"Adresse En ligne"]
[null,"Secteur  d'activité (code APE/NAF)"]
[null,"Produits"]
[null,"Services"]
[null,"Profil Clients"]
[null,"Nombre de Clients",null,null,null,null,null,{"$f":" COUNTA('T2 fichier client-prospect'!B5:B109)","v":0}]
[null,"Nom et ou cabinet chargé de la  Compta",null,null,null,null,null,null,"Pitch Oral  à jour ?"]
[]
[]
[null,"Coordonnées contact/ecom",null,null,null,null,null,null,"FICHE METIER A INSERER"]
[null,"Internet",null,"xxxxx"]
[null,"Facebook",null,"yyyy"]
[null,"Twitter",null,"xxxxx"]
[null,"Linkedin",null,"yyyy"]
[null,"Viadeo",null,"xxxxx"]
[null,"Instagram",null,"xxxxx"]
[null,"Pinterest",null,"xxxxx"]
[null,"Whatsapp",null,"xxxxx"]
[null,"Mail entreprise(pour emailing)",null,"xxxxx"]
[null,"Tel Entreprise ",null,11222]
[null,"Tel pour sms",null,111]
[null,"Tiktok",null,"xxxxxx"]
[null,"Google fiche",null,"xxxx"]
[null,"Marketplace",null,"xxxx"]
[null,"Autre préciser",null,"xxx"]
[]
[null,null,null,null,null,null,null,null,"Date",null,"Cv à jour ? (choisir dans liste déroulante)"]
[null,"Date prévisionnelle reprise activité salariale si je rencontre des difficultés de développement entreprise"]

{"sheet":"T2 fichier client-prospect","index":6,"n_rows":109,"n_cols":14,"rows_kept":109,"cut":false,"hidden":false,"merged":[[0,0,0,12],[1,0,1,13]]}
["T2: SUIVI PROSPECTS/CLIENTS\nJe détiens et mets à jour un fichier clients /prospects que je relance",null,null,null,null,null,null,null,null,null,null,null,null,"T10 Annexe ru-pays-ville"]
["Pour information : pas de numéro de tél/mail à renseigner dans ce tableau cependant vous devez impérativement avoir votre propre fichier comprenant les coordonnées de votre Prospect/clients"]
["Numéro","Nom prospect/Clients","type de reseau","Continent","International","National","Régional","départemental","Communal","Quartier","Rue","Client nouveau","Client fidèlisaton"]
["ex ","mme liza ","Reseau professionnel",null,null,"France",null,"rhône",null,null,null,"etat prospect"]
[1]
[2]
[3]
[4]
[5]
[6]
[7]
[8]
[9]
[10]
[11]
[12]
[13]
[14]
[15]
[16]
[17]
[18]
[19]
[20]
[21]
[22]
[23]
[24]
[25]
[26]
[27]
[28]
[29]
[30]
[31]
[32]
[33]
[34]
[35]
[36]
[37]
[38]
[39]
[40]
[41]
[42]
[43]
[44]
[45]
[46]
[47]
[48]
[49]
[50]
[51]
[52]
[53]
[54]
[55]
[56]
[57]
[58]
[59]
[60]
[61]
[62]
[63]
[64]
[65]
[66]
[67]
[68]
[69]
[70]
[71]
[72]
[73]
[74]
[75]
[76]
[77]
[78]
[79]
[80]
[81]
[82]
[83]
[84]
[85]
[86]
[87]
[88]
[89]
[90]
[91]
[92]
[93]
[94]
[95]
[96]
[97]
[98]
[99]
[100]
[101]
[102]
[103]
[104]
[105]

{"sheet":"T3 RECHERCHE GGLE CONCURRENCE","index":7,"n_rows":5,"n_cols":7,"rows_kept":5,"cut":false,"hidden":false,"merged":[[5,0,28,14],[4,1,4,3],[0,0,0,14],[2,6,2,14],[3,6,3,14],[4,6,4,14],[3,1,3,3],[2,1,2,3]]}
["T3- SUVI CARTE DE VOS CONCURRENTS"]
[]
["Exemple activité :","Vendeur produits bio",null,null,null,"Activité",{"$f":"_xlfn.CONCAT('T1 fiche entreprise & metier'!D11:H11)","v":""}]
["Lieu : ","Villeurbanne vendeur produits bio",null,null,null,"Lieu"]
["Nombre concurrents recensés ","85 à  villeurbanne et alentours (à 20 km) ",null,null,null,"Nombre concurrents recensés"]

{"sheet":"T4 suivi Ecommunication","index":8,"n_rows":40,"n_cols":18,"rows_kept":40,"cut":false,"hidden":false,"merged":[[0,1,0,17],[1,1,1,17],[2,1,2,17],[4,1,4,17],[3,1,3,17]]}
[null,"T4-Suivi E-COMMUNICATION"]
[null,"Pour rappel : lors des ateliers FC2E en présentiel ou distanciel / ateliers de Ecom entreprise (AeCOM)  il vous sera demandé de faire  au minimum 3 actions de ecommunication  et 5 au  maximum "]
[null,"Toutefois, nous vous rappellons qu'une communication efficace doit être quotidienne !"]
[null,{"$f":"+Tableau10[[#Headers],[mai-22]]","v":"mai-22"}]
[null,"E-communication (Inscrire le nombre de Diffusion/parution/envoi)"]
[null,"Coordonnées ecom",{"$f":"_xlfn.CONCAT('T1 fiche entreprise & metier'!D20:H20)","v":"xxxxx"},{"$f":"_xlfn.CONCAT('T1 fiche entreprise & metier'!D21:H21)","v":"yyyy"},{"$f":"_xlfn.CONCAT('T1 fiche entreprise & metier'!D22:H22)","v":"xxxxx"},{"$f":"_xlfn.CONCAT('T1 fiche entreprise & metier'!D23:H23)","v":"yyyy"},{"$f":"_xlfn.CONCAT('T1 fiche entreprise & metier'!D24:H24)","v":"xxxxx"},{"$f":"_xlfn.CONCAT('T1 fiche entreprise & metier'!D25:H25)","v":"xxxxx"},{"$f":"_xlfn.CONCAT('T1 fiche entreprise & metier'!D26:H26)","v":"xxxxx"},{"$f":"_xlfn.CONCAT('T1 fiche entreprise & metier'!D27:H27)","v":"xxxxx"},{"$f":"_xlfn.CONCAT('T1 fiche entreprise & metier'!D28:H28)","v":"xxxxx"},{"$f":"_xlfn.CONCAT('T1 fiche entreprise & metier'!D30:H30)","v":"111"},{"$f":"_xlfn.CONCAT('T1 fiche entreprise & metier'!D31:H31)","v":"xxxxxx"},{"$f":"_xlfn.CONCAT('T1 fiche entreprise & metier'!D32:H32)","v":"xxxx"},{"$f":"_xlfn.CONCAT('T1 fiche entreprise & metier'!D33:H33)","v":"xxxx"},{"$f":"_xlfn.CONCAT('T1 fiche entreprise & metier'!D34:H34)","v":"xxx"}]
["n","mai-22","Site internet ","Facebook","Twitter","Linkedin","Viadeo","Instagram","Pinterest","watsapp","emailing","sms","tiktok","Fiche entreprise google","Marketplace","Autres préciser","Préciser  Type de destinataire ","Total prospection"]
[null,"2022-04-28",1,1,1,1,1,1,1,1,1,1,1,1,1,1,"fichier Clients",{"$f":"Tableau10[[#This Row],[Site internet ]]+Tableau10[[#This Row],[Facebook]]+Tableau10[[#This Row],[Twitter]]+Tableau10[[#This Row],[Linkedin]]+Tableau10[[#This Row],[Viadeo]]+Tableau10[[#This Row],[Instagram]]+Tableau10[[#This Row],[Pinterest]]+Tableau10[[#This Row],[watsapp]]+Tableau10[[#This Row],[emailing]]+Tableau10[[#This Row],[sms]]+Tableau10[[#This Row],[tiktok]]+Tableau10[[#This Row],[Fiche entreprise google]]+Tableau10[[#This Row],[Autres préciser]]","v":13}]
[1,null,null,null,null,null,null,null,null,null,null,null,null,null,null,null,null,{"$f":"Tableau10[[#This Row],[Site internet ]]+Tableau10[[#This Row],[Facebook]]+Tableau10[[#This Row],[Twitter]]+Tableau10[[#This Row],[Linkedin]]+Tableau10[[#This Row],[Viadeo]]+Tableau10[[#This Row],[Instagram]]+Tableau10[[#This Row],[Pinterest]]+Tableau10[[#This Row],[watsapp]]+Tableau10[[#This Row],[emailing]]+Tableau10[[#This Row],[sms]]+Tableau10[[#This Row],[tiktok]]+Tableau10[[#This Row],[Fiche entreprise google]]+Tableau10[[#This Row],[Marketplace]]+Tableau10[[#This Row],[Autres préciser]]","v":0}]
[2,null,null,null,null,null,null,null,null,null,null,null,null,null,null,null,null,{"$f":"Tableau10[[#This Row],[Site internet ]]+Tableau10[[#This Row],[Facebook]]+Tableau10[[#This Row],[Twitter]]+Tableau10[[#This Row],[Linkedin]]+Tableau10[[#This Row],[Viadeo]]+Tableau10[[#This Row],[Instagram]]+Tableau10[[#This Row],[Pinterest]]+Tableau10[[#This Row],[watsapp]]+Tableau10[[#This Row],[emailing]]+Tableau10[[#This Row],[sms]]+Tableau10[[#This Row],[tiktok]]+Tableau10[[#This Row],[Fiche entreprise google]]+Tableau10[[#This Row],[Autres préciser]]","v":0}]
[3,null,null,null,null,null,null,null,null,null,null,null,null,null,null,null,null,{"$f":"Tableau10[[#This Row],[Site internet ]]+Tableau10[[#This Row],[Facebook]]+Tableau10[[#This Row],[Twitter]]+Tableau10[[#This Row],[Linkedin]]+Tableau10[[#This Row],[Viadeo]]+Tableau10[[#This Row],[Instagram]]+Tableau10[[#This Row],[Pinterest]]+Tableau10[[#This Row],[watsapp]]+Tableau10[[#This Row],[emailing]]+Tableau10[[#This Row],[sms]]+Tableau10[[#This Row],[tiktok]]+Tableau10[[#This Row],[Fiche entreprise google]]+Tableau10[[#This Row],[Autres préciser]]","v":0}]
[4,null,null,null,null,null,null,null,null,null,null,null,null,null,null,null,null,{"$f":"Tableau10[[#This Row],[Site internet ]]+Tableau10[[#This Row],[Facebook]]+Tableau10[[#This Row],[Twitter]]+Tableau10[[#This Row],[Linkedin]]+Tableau10[[#This Row],[Viadeo]]+Tableau10[[#This Row],[Instagram]]+Tableau10[[#This Row],[Pinterest]]+Tableau10[[#This Row],[watsapp]]+Tableau10[[#This Row],[emailing]]+Tableau10[[#This Row],[sms]]+Tableau10[[#This Row],[tiktok]]+Tableau10[[#This Row],[Fiche entreprise google]]+Tableau10[[#This Row],[Autres préciser]]","v":0}]
[5,null,null,null,null,null,null,null,null,null,null,null,null,null,null,null,null,{"$f":"Tableau10[[#This Row],[Site internet ]]+Tableau10[[#This Row],[Facebook]]+Tableau10[[#This Row],[Twitter]]+Tableau10[[#This Row],[Linkedin]]+Tableau10[[#This Row],[Viadeo]]+Tableau10[[#This Row],[Instagram]]+Tableau10[[#This Row],[Pinterest]]+Tableau10[[#This Row],[watsapp]]+Tableau10[[#This Row],[emailing]]+Tableau10[[#This Row],[sms]]+Tableau10[[#This Row],[tiktok]]+Tableau10[[#This Row],[Fiche entreprise google]]+Tableau10[[#This Row],[Autres préciser]]","v":0}]
[6,null,null,null,null,null,null,null,null,null,null,null,null,null,null,null,null,{"$f":"Tableau10[[#This Row],[Site internet ]]+Tableau10[[#This Row],[Facebook]]+Tableau10[[#This Row],[Twitter]]+Tableau10[[#This Row],[Linkedin]]+Tableau10[[#This Row],[Viadeo]]+Tableau10[[#This Row],[Instagram]]+Tableau10[[#This Row],[Pinterest]]+Tableau10[[#This Row],[watsapp]]+Tableau10[[#This Row],[emailing]]+Tableau10[[#This Row],[sms]]+Tableau10[[#This Row],[tiktok]]+Tableau10[[#This Row],[Fiche entreprise google]]+Tableau10[[#This Row],[Autres préciser]]","v":0}]
[7,null,null,null,null,null,null,null,null,null,null,null,null,null,null,null,null,{"$f":"Tableau10[[#This Row],[Site internet ]]+Tableau10[[#This Row],[Facebook]]+Tableau10[[#This Row],[Twitter]]+Tableau10[[#This Row],[Linkedin]]+Tableau10[[#This Row],[Viadeo]]+Tableau10[[#This Row],[Instagram]]+Tableau10[[#This Row],[Pinterest]]+Tableau10[[#This Row],[watsapp]]+Tableau10[[#This Row],[emailing]]+Tableau10[[#This Row],[sms]]+Tableau10[[#This Row],[tiktok]]+Tableau10[[#This Row],[Fiche entreprise google]]+Tableau10[[#This Row],[Autres préciser]]","v":0}]
[8,null,null,null,null,null,null,null,null,null,null,null,null,null,null,null,null,{"$f":"Tableau10[[#This Row],[Site internet ]]+Tableau10[[#This Row],[Facebook]]+Tableau10[[#This Row],[Twitter]]+Tableau10[[#This Row],[Linkedin]]+Tableau10[[#This Row],[Viadeo]]+Tableau10[[#This Row],[Instagram]]+Tableau10[[#This Row],[Pinterest]]+Tableau10[[#This Row],[watsapp]]+Tableau10[[#This Row],[emailing]]+Tableau10[[#This Row],[sms]]+Tableau10[[#This Row],[tiktok]]+Tableau10[[#This Row],[Fiche entreprise google]]+Tableau10[[#This Row],[Autres préciser]]","v":0}]
[9,null,null,null,null,null,null,null,null,null,null,null,null,null,null,null,null,{"$f":"Tableau10[[#This Row],[Site internet ]]+Tableau10[[#This Row],[Facebook]]+Tableau10[[#This Row],[Twitter]]+Tableau10[[#This Row],[Linkedin]]+Tableau10[[#This Row],[Viadeo]]+Tableau10[[#This Row],[Instagram]]+Tableau10[[#This Row],[Pinterest]]+Tableau10[[#This Row],[watsapp]]+Tableau10[[#This Row],[emailing]]+Tableau10[[#This Row],[sms]]+Tableau10[[#This Row],[tiktok]]+Tableau10[[#This Row],[Fiche entreprise google]]+Tableau10[[#This Row],[Autres préciser]]","v":0}]
[10,null,null,null,null,null,null,null,null,null,null,null,null,null,null,null,null,{"$f":"Tableau10[[#This Row],[Site internet ]]+Tableau10[[#This Row],[Facebook]]+Tableau10[[#This Row],[Twitter]]+Tableau10[[#This Row],[Linkedin]]+Tableau10[[#This Row],[Viadeo]]+Tableau10[[#This Row],[Instagram]]+Tableau10[[#This Row],[Pinterest]]+Tableau10[[#This Row],[watsapp]]+Tableau10[[#This Row],[emailing]]+Tableau10[[#This Row],[sms]]+Tableau10[[#This Row],[tiktok]]+Tableau10[[#This Row],[Fiche entreprise google]]+Tableau10[[#This Row],[Autres préciser]]","v":0}]
[11,null,null,null,null,null,null,null,null,null,null,null,null,null,null,null,null,{"$f":"Tableau10[[#This Row],[Site internet ]]+Tableau10[[#This Row],[Facebook]]+Tableau10[[#This Row],[Twitter]]+Tableau10[[#This Row],[Linkedin]]+Tableau10[[#This Row],[Viadeo]]+Tableau10[[#This Row],[Instagram]]+Tableau10[[#This Row],[Pinterest]]+Tableau10[[#This Row],[watsapp]]+Tableau10[[#This Row],[emailing]]+Tableau10[[#This Row],[sms]]+Tableau10[[#This Row],[tiktok]]+Tableau10[[#This Row],[Fiche entreprise google]]+Tableau10[[#This Row],[Autres préciser]]","v":0}]
[12,null,null,null,null,null,null,null,null,null,null,null,null,null,null,null,null,{"$f":"Tableau10[[#This Row],[Site internet ]]+Tableau10[[#This Row],[Facebook]]+Tableau10[[#This Row],[Twitter]]+Tableau10[[#This Row],[Linkedin]]+Tableau10[[#This Row],[Viadeo]]+Tableau10[[#This Row],[Instagram]]+Tableau10[[#This Row],[Pinterest]]+Tableau10[[#This Row],[watsapp]]+Tableau10[[#This Row],[emailing]]+Tableau10[[#This Row],[sms]]+Tableau10[[#This Row],[tiktok]]+Tableau10[[#This Row],[Fiche entreprise google]]+Tableau10[[#This Row],[Autres préciser]]","v":0}]
[13,null,null,null,null,null,null,null,null,null,null,null,null,null,null,null,null,{"$f":"Tableau10[[#This Row],[Site internet ]]+Tableau10[[#This Row],[Facebook]]+Tableau10[[#This Row],[Twitter]]+Tableau10[[#This Row],[Linkedin]]+Tableau10[[#This Row],[Viadeo]]+Tableau10[[#This Row],[Instagram]]+Tableau10[[#This Row],[Pinterest]]+Tableau10[[#This Row],[watsapp]]+Tableau10[[#This Row],[emailing]]+Tableau10[[#This Row],[sms]]+Tableau10[[#This Row],[tiktok]]+Tableau10[[#This Row],[Fiche entreprise google]]+Tableau10[[#This Row],[Autres préciser]]","v":0}]
[14,null,null,null,null,null,null,null,null,null,null,null,null,null,null,null,null,{"$f":"Tableau10[[#This Row],[Site internet ]]+Tableau10[[#This Row],[Facebook]]+Tableau10[[#This Row],[Twitter]]+Tableau10[[#This Row],[Linkedin]]+Tableau10[[#This Row],[Viadeo]]+Tableau10[[#This Row],[Instagram]]+Tableau10[[#This Row],[Pinterest]]+Tableau10[[#This Row],[watsapp]]+Tableau10[[#This Row],[emailing]]+Tableau10[[#This Row],[sms]]+Tableau10[[#This Row],[tiktok]]+Tableau10[[#This Row],[Fiche entreprise google]]+Tableau10[[#This Row],[Autres préciser]]","v":0}]
[15,null,null,null,null,null,null,null,null,null,null,null,null,null,null,null,null,{"$f":"Tableau10[[#This Row],[Site internet ]]+Tableau10[[#This Row],[Facebook]]+Tableau10[[#This Row],[Twitter]]+Tableau10[[#This Row],[Linkedin]]+Tableau10[[#This Row],[Viadeo]]+Tableau10[[#This Row],[Instagram]]+Tableau10[[#This Row],[Pinterest]]+Tableau10[[#This Row],[watsapp]]+Tableau10[[#This Row],[emailing]]+Tableau10[[#This Row],[sms]]+Tableau10[[#This Row],[tiktok]]+Tableau10[[#This Row],[Fiche entreprise google]]+Tableau10[[#This Row],[Autres préciser]]","v":0}]
[16,null,null,null,null,null,null,null,null,null,null,null,null,null,null,null,null,{"$f":"Tableau10[[#This Row],[Site internet ]]+Tableau10[[#This Row],[Facebook]]+Tableau10[[#This Row],[Twitter]]+Tableau10[[#This Row],[Linkedin]]+Tableau10[[#This Row],[Viadeo]]+Tableau10[[#This Row],[Instagram]]+Tableau10[[#This Row],[Pinterest]]+Tableau10[[#This Row],[watsapp]]+Tableau10[[#This Row],[emailing]]+Tableau10[[#This Row],[sms]]+Tableau10[[#This Row],[tiktok]]+Tableau10[[#This Row],[Fiche entreprise google]]+Tableau10[[#This Row],[Autres préciser]]","v":0}]
[17,null,null,null,null,null,null,null,null,null,null,null,null,null,null,null,null,{"$f":"Tableau10[[#This Row],[Site internet ]]+Tableau10[[#This Row],[Facebook]]+Tableau10[[#This Row],[Twitter]]+Tableau10[[#This Row],[Linkedin]]+Tableau10[[#This Row],[Viadeo]]+Tableau10[[#This Row],[Instagram]]+Tableau10[[#This Row],[Pinterest]]+Tableau10[[#This Row],[watsapp]]+Tableau10[[#This Row],[emailing]]+Tableau10[[#This Row],[sms]]+Tableau10[[#This Row],[tiktok]]+Tableau10[[#This Row],[Fiche entreprise google]]+Tableau10[[#This Row],[Autres préciser]]","v":0}]
[18,null,null,null,null,null,null,null,null,null,null,null,null,null,null,null,null,{"$f":"Tableau10[[#This Row],[Site internet ]]+Tableau10[[#This Row],[Facebook]]+Tableau10[[#This Row],[Twitter]]+Tableau10[[#This Row],[Linkedin]]+Tableau10[[#This Row],[Viadeo]]+Tableau10[[#This Row],[Instagram]]+Tableau10[[#This Row],[Pinterest]]+Tableau10[[#This Row],[watsapp]]+Tableau10[[#This Row],[emailing]]+Tableau10[[#This Row],[sms]]+Tableau10[[#This Row],[tiktok]]+Tableau10[[#This Row],[Fiche entreprise google]]+Tableau10[[#This Row],[Autres préciser]]","v":0}]
[19,null,null,null,null,null,null,null,null,null,null,null,null,null,null,null,null,{"$f":"Tableau10[[#This Row],[Site internet ]]+Tableau10[[#This Row],[Facebook]]+Tableau10[[#This Row],[Twitter]]+Tableau10[[#This Row],[Linkedin]]+Tableau10[[#This Row],[Viadeo]]+Tableau10[[#This Row],[Instagram]]+Tableau10[[#This Row],[Pinterest]]+Tableau10[[#This Row],[watsapp]]+Tableau10[[#This Row],[emailing]]+Tableau10[[#This Row],[sms]]+Tableau10[[#This Row],[tiktok]]+Tableau10[[#This Row],[Fiche entreprise google]]+Tableau10[[#This Row],[Autres préciser]]","v":0}]
[20,null,null,null,null,null,null,null,null,null,null,null,null,null,null,null,null,{"$f":"Tableau10[[#This Row],[Site internet ]]+Tableau10[[#This Row],[Facebook]]+Tableau10[[#This Row],[Twitter]]+Tableau10[[#This Row],[Linkedin]]+Tableau10[[#This Row],[Viadeo]]+Tableau10[[#This Row],[Instagram]]+Tableau10[[#This Row],[Pinterest]]+Tableau10[[#This Row],[watsapp]]+Tableau10[[#This Row],[emailing]]+Tableau10[[#This Row],[sms]]+Tableau10[[#This Row],[tiktok]]+Tableau10[[#This Row],[Fiche entreprise google]]+Tableau10[[#This Row],[Autres préciser]]","v":0}]
[21,null,null,null,null,null,null,null,null,null,null,null,null,null,null,null,null,{"$f":"Tableau10[[#This Row],[Site internet ]]+Tableau10[[#This Row],[Facebook]]+Tableau10[[#This Row],[Twitter]]+Tableau10[[#This Row],[Linkedin]]+Tableau10[[#This Row],[Viadeo]]+Tableau10[[#This Row],[Instagram]]+Tableau10[[#This Row],[Pinterest]]+Tableau10[[#This Row],[watsapp]]+Tableau10[[#This Row],[emailing]]+Tableau10[[#This Row],[sms]]+Tableau10[[#This Row],[tiktok]]+Tableau10[[#This Row],[Fiche entreprise google]]+Tableau10[[#This Row],[Autres préciser]]","v":0}]
[22,null,null,null,null,null,null,null,null,null,null,null,null,null,null,null,null,{"$f":"Tableau10[[#This Row],[Site internet ]]+Tableau10[[#This Row],[Facebook]]+Tableau10[[#This Row],[Twitter]]+Tableau10[[#This Row],[Linkedin]]+Tableau10[[#This Row],[Viadeo]]+Tableau10[[#This Row],[Instagram]]+Tableau10[[#This Row],[Pinterest]]+Tableau10[[#This Row],[watsapp]]+Tableau10[[#This Row],[emailing]]+Tableau10[[#This Row],[sms]]+Tableau10[[#This Row],[tiktok]]+Tableau10[[#This Row],[Fiche entreprise google]]+Tableau10[[#This Row],[Autres préciser]]","v":0}]
[23,null,null,null,null,null,null,null,null,null,null,null,null,null,null,null,null,{"$f":"Tableau10[[#This Row],[Site internet ]]+Tableau10[[#This Row],[Facebook]]+Tableau10[[#This Row],[Twitter]]+Tableau10[[#This Row],[Linkedin]]+Tableau10[[#This Row],[Viadeo]]+Tableau10[[#This Row],[Instagram]]+Tableau10[[#This Row],[Pinterest]]+Tableau10[[#This Row],[watsapp]]+Tableau10[[#This Row],[emailing]]+Tableau10[[#This Row],[sms]]+Tableau10[[#This Row],[tiktok]]+Tableau10[[#This Row],[Fiche entreprise google]]+Tableau10[[#This Row],[Autres préciser]]","v":0}]
[24,null,null,null,null,null,null,null,null,null,null,null,null,null,null,null,null,{"$f":"Tableau10[[#This Row],[Site internet ]]+Tableau10[[#This Row],[Facebook]]+Tableau10[[#This Row],[Twitter]]+Tableau10[[#This Row],[Linkedin]]+Tableau10[[#This Row],[Viadeo]]+Tableau10[[#This Row],[Instagram]]+Tableau10[[#This Row],[Pinterest]]+Tableau10[[#This Row],[watsapp]]+Tableau10[[#This Row],[emailing]]+Tableau10[[#This Row],[sms]]+Tableau10[[#This Row],[tiktok]]+Tableau10[[#This Row],[Fiche entreprise google]]+Tableau10[[#This Row],[Autres préciser]]","v":0}]
[25,null,null,null,null,null,null,null,null,null,null,null,null,null,null,null,null,{"$f":"Tableau10[[#This Row],[Site internet ]]+Tableau10[[#This Row],[Facebook]]+Tableau10[[#This Row],[Twitter]]+Tableau10[[#This Row],[Linkedin]]+Tableau10[[#This Row],[Viadeo]]+Tableau10[[#This Row],[Instagram]]+Tableau10[[#This Row],[Pinterest]]+Tableau10[[#This Row],[watsapp]]+Tableau10[[#This Row],[emailing]]+Tableau10[[#This Row],[sms]]+Tableau10[[#This Row],[tiktok]]+Tableau10[[#This Row],[Fiche entreprise google]]+Tableau10[[#This Row],[Autres préciser]]","v":0}]
[26,null,null,null,null,null,null,null,null,null,null,null,null,null,null,null,null,{"$f":"Tableau10[[#This Row],[Site internet ]]+Tableau10[[#This Row],[Facebook]]+Tableau10[[#This Row],[Twitter]]+Tableau10[[#This Row],[Linkedin]]+Tableau10[[#This Row],[Viadeo]]+Tableau10[[#This Row],[Instagram]]+Tableau10[[#This Row],[Pinterest]]+Tableau10[[#This Row],[watsapp]]+Tableau10[[#This Row],[emailing]]+Tableau10[[#This Row],[sms]]+Tableau10[[#This Row],[tiktok]]+Tableau10[[#This Row],[Fiche entreprise google]]+Tableau10[[#This Row],[Autres préciser]]","v":0}]
[27,null,null,null,null,null,null,null,null,null,null,null,null,null,null,null,null,{"$f":"Tableau10[[#This Row],[Site internet ]]+Tableau10[[#This Row],[Facebook]]+Tableau10[[#This Row],[Twitter]]+Tableau10[[#This Row],[Linkedin]]+Tableau10[[#This Row],[Viadeo]]+Tableau10[[#This Row],[Instagram]]+Tableau10[[#This Row],[Pinterest]]+Tableau10[[#This Row],[watsapp]]+Tableau10[[#This Row],[emailing]]+Tableau10[[#This Row],[sms]]+Tableau10[[#This Row],[tiktok]]+Tableau10[[#This Row],[Fiche entreprise google]]+Tableau10[[#This Row],[Autres préciser]]","v":0}]
[28,null,null,null,null,null,null,null,null,null,null,null,null,null,null,null,null,{"$f":"Tableau10[[#This Row],[Site internet ]]+Tableau10[[#This Row],[Facebook]]+Tableau10[[#This Row],[Twitter]]+Tableau10[[#This Row],[Linkedin]]+Tableau10[[#This Row],[Viadeo]]+Tableau10[[#This Row],[Instagram]]+Tableau10[[#This Row],[Pinterest]]+Tableau10[[#This Row],[watsapp]]+Tableau10[[#This Row],[emailing]]+Tableau10[[#This Row],[sms]]+Tableau10[[#This Row],[tiktok]]+Tableau10[[#This Row],[Fiche entreprise google]]+Tableau10[[#This Row],[Autres préciser]]","v":0}]
[29,null,null,null,null,null,null,null,null,null,null,null,null,null,null,null,null,{"$f":"Tableau10[[#This Row],[Site internet ]]+Tableau10[[#This Row],[Facebook]]+Tableau10[[#This Row],[Twitter]]+Tableau10[[#This Row],[Linkedin]]+Tableau10[[#This Row],[Viadeo]]+Tableau10[[#This Row],[Instagram]]+Tableau10[[#This Row],[Pinterest]]+Tableau10[[#This Row],[watsapp]]+Tableau10[[#This Row],[emailing]]+Tableau10[[#This Row],[sms]]+Tableau10[[#This Row],[tiktok]]+Tableau10[[#This Row],[Fiche entreprise google]]+Tableau10[[#This Row],[Autres préciser]]","v":0}]
[30,null,null,null,null,null,null,null,null,null,null,null,null,null,null,null,null,{"$f":"Tableau10[[#This Row],[Site internet ]]+Tableau10[[#This Row],[Facebook]]+Tableau10[[#This Row],[Twitter]]+Tableau10[[#This Row],[Linkedin]]+Tableau10[[#This Row],[Viadeo]]+Tableau10[[#This Row],[Instagram]]+Tableau10[[#This Row],[Pinterest]]+Tableau10[[#This Row],[watsapp]]+Tableau10[[#This Row],[emailing]]+Tableau10[[#This Row],[sms]]+Tableau10[[#This Row],[tiktok]]+Tableau10[[#This Row],[Fiche entreprise google]]+Tableau10[[#This Row],[Autres préciser]]","v":0}]
[31,null,null,null,null,null,null,null,null,null,null,null,null,null,null,null,null,{"$f":"Tableau10[[#This Row],[Site internet ]]+Tableau10[[#This Row],[Facebook]]+Tableau10[[#This Row],[Twitter]]+Tableau10[[#This Row],[Linkedin]]+Tableau10[[#This Row],[Viadeo]]+Tableau10[[#This Row],[Instagram]]+Tableau10[[#This Row],[Pinterest]]+Tableau10[[#This Row],[watsapp]]+Tableau10[[#This Row],[emailing]]+Tableau10[[#This Row],[sms]]+Tableau10[[#This Row],[tiktok]]+Tableau10[[#This Row],[Fiche entreprise google]]+Tableau10[[#This Row],[Autres préciser]]","v":0}]
["total",null,{"$f":"SUBTOTAL(109,C9:C39)","v":0},{"$f":"SUBTOTAL(109,D9:D39)","v":0},0,0,0,0,0,0,0,0,0,0,0,{"$f":"SUBTOTAL(109,P9:P39)","v":0},null,{"$f":"SUBTOTAL(109,R9:R39)","v":0}]

{"sheet":"T5 Lieu de prospection ","index":9,"n_rows":54,"n_cols":19,"rows_kept":54,"cut":false,"hidden":false,"merged":[[1,0,1,16],[0,0,0,16]]}
["T5-LIEUX (ZONES) DE PROSPECTION-CONTACT PHYSIQUES/TEL/ECRITES",null,null,null,null,null,null,null,null,null,null,null,null,null,null,null,null,null,{"$f":"A4","v":"2022-05-01"}]
["J'indique les dates et lieux de prospection ou rdv clients/autres "]
["Type Action Prospection","jour1","jour2","jour3","jour4","jour5","jour6","jour7","INTERNATIONAL","Continents","National","régional","département /code postal","communes","quartier","rue ","Tâches traitées","Préciser si plusieurs tâches  traitées","T10 Annexe rue-pays-ville"]
["2022-05-01","ex 12","ex 13","ex 14","ex 15","ex 16","ex 17","ex 18","Algérie ","Afrique",null,null,null,null,null,null,"fichier Clients","adm, fichier clients, compta, fichier prospects"]
["Semaine 1 "]
["Phoning"]
["Distribution support imprimés"]
["Porte à porte"]
["Presse écrite"]
["Boutique éphémère"]
["Affichage"]
["dossiers réponse à offre"]
["Rdv physique"]
["Rdv contrat/clients"]
["Semaine 2"]
["Phoning"]
["Distribution support imprimés"]
["Porte à porte"]
["Presse écrite"]
["Boutique éphémère"]
["Affichage"]
["dossiers réponse à offre"]
["Rdv physique"]
["Rdv contrat/clients"]
["Semaine 3"]
["Phoning"]
["Distribution support imprimés"]
["Porte à porte"]
["Presse écrite"]
["Boutique éphémère"]
["Affichage"]
["dossiers réponse à offre"]
["Rdv physique"]
["Rdv contrat/clients"]
["Semaine 4"]
["Phoning"]
["Distribution support imprimés"]
["Porte à porte"]
["Presse écrite"]
["Boutique éphémère"]
["Affichage"]
["dossiers réponse à offre"]
["Rdv physique"]
["Rdv contrat/clients"]
["semaine 5"]
["Phoning"]
["Distribution support imprimés"]
["Porte à porte"]
["Presse écrite"]
["Boutique éphémère"]
["Affichage"]
["dossiers réponse à offre"]
["Rdv physique"]
["Rdv contrat/clients"]

{"sheet":"T6 Suivi Activité","index":10,"n_rows":34,"n_cols":18,"rows_kept":34,"cut":false,"hidden":false,"merged":[[3,0,3,17],[0,0,0,17],[1,0,1,17],[2,0,2,17],[32,1,32,7],[33,1,33,7],[5,8,5,17],[5,0,5,7],[12,1,12,7],[17,1,17,7],[27,1,27,7],[22,1,22,7],[13,0,13,16],[18,0,18,16],[23,0,23,16],[28,0,28,16],[8,0,8,16]]}
["T6-TABLEAU DE SUIVI - Prospection"]
["Pour rappel : lors des ateliers FC2E physiques (ADP) il vous sera demandé de faire  au minimum 3 actions de prospection  et 5 maximum "]
["Toufois, nous vous rappellons qu'une prospection efficace doit être quotidienne"]
[{"$f":"A7","v":"2022-05-01"}]
[]
["Actions réalisées dans le MOIS de",null,null,null,null,null,null,null,"Actions de Prospection auprès de quel Reseau ? (inscrire le nombre  d'actions et type de réseau )"]
["2022-05-01","jour1","jour2","jour3","jour4","jour5","jour6","jour7","Distribution supports imprimés","Phoning","Porte à porte","presse écrite","Presse radio","Affichage","Boutique éphémère (stand marché,  grde surface, forume, salon)","Communication évènementielle","Dépôt dossiers réponse à offre(marché public-partenariat, autres)","e.com"]
[{"$f":"A7","v":"2022-05-01"},12,13,null,null,16,null,18,50,100,3,1,1,120,1,1,1,{"$f":"'T4 suivi Ecommunication'!R8","v":13}]
["Semaine 1"]
["Réseau personnel"]
["Réseau professionnel"]
["Réseau Web"]
["Total",null,null,null,null,null,null,null,{"$f":"SUM(I10:I12)","v":0},{"$f":"SUM(J10:J12)","v":0},0,0,0,0,0,0,0]
["Semaine 2"]
["Réseau personnel"]
["Réseau professionnel"]
["Réseau Web"]
["Total",null,null,null,null,null,null,null,{"$f":"SUM(I15:I17)","v":0},{"$f":"SUM(J15:J17)","v":0},0,0,0,0,0,0,0]
["Semaine 3"]
["Réseau personnel"]
["Réseau professionnel"]
["Réseau Web"]
["Total",null,null,null,null,null,null,null,{"$f":"SUM(I20:I22)","v":0},0,0,0,0,0,0,0,0]
["Semaine 4"]
["Réseau personnel"]
["Réseau professionnel"]
["Réseau Web"]
["Total",null,null,null,null,null,null,null,{"$f":"SUM(I25:I27)","v":0},0,0,0,0,0,0,0,0]
["Semaine 5"]
["Réseau personnel"]
["Réseau professionnel"]
["Réseau Web"]
["Total",null,null,null,null,null,null,null,{"$f":"SUM(I30:I32)","v":0},0,0,0,0,0,0,0,0]
["Total",null,null,null,null,null,null,null,{"$f":"I33+I28+I18+I13","v":0},{"$f":"J33+J28+J18+J13","v":0},0,0,0,0,0,0,0,{"$f":"'T4 suivi Ecommunication'!R40","v":0}]

{"sheet":"T7 Stratégie commerciale","index":11,"n_rows":9,"n_cols":16,"rows_kept":9,"cut":false,"hidden":false,"merged":[[0,0,0,15],[1,0,1,15],[2,0,2,15],[3,1,6,1],[3,2,5,6],[3,7,5,15]]}
["T7- TABLEAU DE SUIVI - Stratégie commerciale \n(se rendre visible marché commercial, ou  bien de cerner/acquérir les compétences (savoir-technique-commercial)  pour développer son entreprise)"]
["Objectif : obtenir, observer des méthodes de Développement commercial - observation métier-stratégie de développement - Identifer le réseau le plus adapté au développement de l'entreprise en fonction de son objet et statut. "]
["Stratégie commerciale (inscrire date, contact réalisé - Contact relancé-cocher la case )"]
["Activation","DATE ","Quel réseau je veux activer créer, développer,",null,null,null,null,"J'acquiers des compétences, de info,J'active... j'entretiens,  ou je développe mon réseau en utilisant "]
["Développement"]
["Création"]
["Stratégie mise en œuvre ",null,"Correspondance Fichier client (feuille T2) (indiquer n° ligne cellule ou nom Client)","Réseau personnel","Réseau professionnel","Réseau communautaire physique","Réseau e.communication","Enquête métier","Stage","Emploi IAE","Emploi Classique","La Formation","Fidélisation (client)","Marketplace","Boutique éphémère","Autre à préciser"]
["Choisir dans la liste déroulant l'Action menée\n ",null,null,null,null,null,null,null,null,null,null,null,null,null,null,"Texte libre"]
["Création","2022-04-25","Mme Liza","Contact Réalisé",null,"Contact relancé"]

{"sheet":"T8 Chiffre d'affaire","index":12,"n_rows":40,"n_cols":9,"rows_kept":40,"cut":false,"hidden":false,"merged":[[5,0,5,8],[1,0,1,8],[2,0,2,8],[3,0,3,4],[3,5,3,8]]}
[]
["T8-TABLEAU DE SUIVI - CHIFFRE AFFAIRE"]
["Pour rappel : La complétude de ce tableau doit être quotidienne "]
["mois",null,null,null,null,{"$f":"Tableau6[[#Headers],[mai-22]]","v":"mai-22"}]
[]
["Chiffre d'affaire du mois"]
["mai-22","Dépenses (achats, crédit, salaires, charges, taxe, investissment, formation..) en euros","objet","type fournisseurs/depenses","Recettes (Produits services vendus) en euros","Produits/Services vendus ","Nom ou intial Clients","Préciser client réseau","Commentaire libre sur Problème financier rencontré ou autres difficultés"]
[1,300,"formations HACCP","FC2E",130,null,"Leroy","Reseau Web","endettement depuis 6 mois et problème santé depuis 1 semaine"]
[1]
[2]
[3]
[4]
[5]
[6]
[7]
[8]
[9]
[10]
[11]
[12]
[13]
[14]
[15]
[16]
[17]
[18]
[19]
[20]
[21]
[22]
[23]
[24]
[25]
[26]
[27]
[28]
[29]
[30]
[31]
["TOTAUX",{"$f":"SUBTOTAL(109,B9:B39)","v":0},null,null,{"$f":"SUBTOTAL(109,E9:E39)","v":0}]

{"sheet":"T9 Besoin Mat-Mo-Cpce-Partnair","index":13,"n_rows":56,"n_cols":16,"rows_kept":56,"cut":false,"hidden":false,"merged":[[1,0,1,15]]}
[]
["T9-BESOIN MATERIEL-MAIN D'ŒUVRE-COMPETENCES-PARTENARIAT"]
[]
["n","Date du besoin identifé","Date demande FAI (si prise en charge possible)","MATERIEL (informatiques, chaussures sécu(EPI), blouse,etc,...)","TRAITER (indiquer la date d'obtention)1","MAIN D'ŒUVRE","TRAITER (indiquer la date de traitement)2","COMPETENCES (besoin en formation, stage, qualification reglementaire, etc…)","TRAITER (indiquer la date de traitement)3","PARTENARIAT FINANCIER","TRAITER (indiquer la date de traitement)4","PARTENARIAT ENTREPRISE","TRAITER (indiquer la date de traitement)5","LOGISTIQUE (livraison, commande, retour, deplacement)","TRAITER (indiquer la date de traitement)6","OBSERVATION -PRECISION"]
["exemple",null,"2022-05-12","chaussures sécurité","2022-05-12",null,null,null,null,null,null,null,null,null,null,"fai + apport perso+fondation"]
[1]
[2]
[3]
[4]
[5]
[6]
[7]
[8]
[9]
[10]
[11]
[12]
[13]
[14]
[15]
[16]
[17]
[18]
[19]
[20]
[21]
[22]
[23]
[24]
[25]
[26]
[27]
[28]
[29]
[30]
[31]
[32]
[33]
[34]
[35]
[36]
[37]
[38]
[39]
[40]
[41]
[42]
[43]
[44]
[45]
[46]
[47]
[48]
[49]
[50]
[51]

{"sheet":"T10 annexe rue-pays-ville","index":14,"n_rows":46626,"n_cols":17,"rows_kept":4500,"cut":true,"hidden":false,"merged":[[0,0,0,6],[0,10,0,16],[0,8,0,9]],"bounds":{"rows_first":2000,"rows_last":500,"rows_between":2000,"halvings":0}}
["Retour vers T2 \n(fichier clients/prospects)",null,null,null,null,null,null,null,"Retour vers T5 lieu prospection",null,"T10 - ANNEXE RUES PAYS VILLES CONTINENTS"]
[]
["DEP","DIR","CODECOM","CODEVOIE","CLEFVOIE","nature_voie","nom des rues","TYPEVOIE","VILLE",null,null,"code posal","Ville",null,null,"liste de pays à l'international","Correspondance continent-pays"]
[69,0,1,"B001","D","    ","LES BOIS DE LAGNIERE      ",3,"AFFOUX                        "]
[69,0,1,"B002","E","    ","LE BOURG                  ",3,"AFFOUX                        ",null,null,69170,"AFFOUX",null,null,"Afghanistan ","Asie"]
[69,0,1,"B003","F","    ","LE CHAMPIER               ",3,"AFFOUX                        ",null,null,69790,"AIGUEPERSE",null,null,"Afrique du Sud ","Afrique"]
[69,0,1,"B004","G","    ","CHEZ GUILLIEN             ",3,"AFFOUX                        ",null,null,69250,"ALBIGNY SUR SAONE",null,null,"Åland (les Îles)","Europe"]
[69,0,1,"B005","H","    ","CHEZ LIGOT                ",3,"AFFOUX                        ",null,null,69380,"ALIX",null,null,"Albanie ","Europe"]
[69,0,1,"B006","J","    ","CHEZ MANDERON             ",3,"AFFOUX                        ",null,null,69480,"AMBERIEUX D AZERGUES",null,null,"Algérie ","Afrique"]
[69,0,1,"B007","K","    ","LA COLLONGE               ",3,"AFFOUX                        ",null,null,69550,"AMPLEPUIS",null,null,"Allemagne ","Europe"]
[69,0,1,"B008","L","    ","CREPIT                    ",3,"AFFOUX                        ",null,null,69420,"AMPUIS",null,null,"Andorre ","Europe"]
[69,0,1,"B009","M","    ","LE CRET CUISSARD          ",3,"AFFOUX                        ",null,null,69490,"ANCY",null,null,"Angola ","Afrique"]
[69,0,1,"B010","N","    ","LE CRET DE ROCHEFORT      ",3,"AFFOUX                        ",null,null,69480,"ANSE",null,null,"Anguilla","Amérique du Nord"]
[69,0,1,"B011","P","    ","LE CUISSARD               ",3,"AFFOUX                        ",null,null,69400,"ARNAS",null,null,"Antarctique ","Antarctica"]
[69,0,1,"B012","R","    ","LE FERRIERE               ",3,"AFFOUX                        ",null,null,69610,"AVEIZE",null,null,"Antigua-et-Barbuda","Amérique du Nord"]
[69,0,1,"B013","S","    ","LE GOUJET                 ",3,"AFFOUX                        ",null,null,69790,"AZOLETTE",null,null,"Arabie saoudite ","Asie"]
[69,0,1,"B014","T","    ","LA GOUTTE                 ",3,"AFFOUX                        ",null,null,69620,"BAGNOLS",null,null,"Argentine ","Amérique du Sud"]
[69,0,1,"B015","U","    ","LE GRISOT                 ",3,"AFFOUX                        ",null,null,69430,"BEAUJEU",null,null,"Arménie ","Asie"]
[69,0,1,"B016","V","    ","L HORME                   ",3,"AFFOUX                        ",null,null,69700,"BEAUVALLON",null,null,"Aruba","Amérique du Nord"]
[69,0,1,"B017","W","    ","LES MOLLIERES             ",3,"AFFOUX                        ",null,null,69220,"BELLEVILLE EN BEAUJOLAIS",null,null,"Australie ","Océanie"]
[69,0,1,"B018","X","    ","LE MONTMETERME            ",3,"AFFOUX                        ",null,null,69380,"BELMONT D AZERGUES",null,null,"Autriche ","Europe"]
[69,0,1,"B019","Y","    ","LES PLACES                ",3,"AFFOUX                        ",null,null,69690,"BESSENAY",null,null,"Azerbaïdjan ","Asie"]
[69,0,1,"B020","Z","    ","LES PRAIRIES              ",3,"AFFOUX                        ",null,null,69690,"BIBOST",null,null,"Bahamas ","Amérique du Nord"]
[69,0,1,"B021","A","    ","ROCHEFORT                 ",3,"AFFOUX                        ",null,null,69460,"BLACE",null,null,"Bahreïn","Asie"]
[69,0,1,"B022","B","    ","LA VERPILLE               ",3,"AFFOUX                        ",null,null,69530,"BRIGNAIS",null,null,"Bangladesh ","Asie"]
[69,0,1,5,"B","RUE ","DE LA CURE                ",1,"AFFOUX                        ",null,null,69500,"BRON",null,null,"Barbade ","Amérique du Nord"]
[69,0,1,10,"G","PL  ","DE L'EGLISE               ",1,"AFFOUX                        ",null,null,69690,"BRULLIOLES",null,null,"Bélarus ","Europe"]
[69,0,1,12,"J","RUE ","DES EPARRES               ",1,"AFFOUX                        ",null,null,69690,"BRUSSIEU",null,null,"Belgique ","Europe"]
[69,0,1,18,"R","RUE ","DU GRISOT                 ",1,"AFFOUX                        ",null,null,69210,"BULLY",null,null,"Belize ","Amérique du Nord"]
[69,0,1,20,"T","RUE ","DU LOTISSEMENT            ",1,"AFFOUX                        ",null,null,69270,"CAILLOUX SUR FONTAINES",null,null,"Bénin ","Afrique"]
[69,0,1,21,"U","PL  ","DU LOTISSEMENT            ",1,"AFFOUX                        ",null,null,69300,"CALUIRE ET CUIRE",null,null,"Bermudes ","Amérique du Nord"]
[69,0,1,28,"B","IMP ","DE LA MAIRIE              ",1,"AFFOUX                        ",null,null,69840,"CENVES",null,null,"Bhoutan ","Asie"]
[69,0,1,30,"D","RUE ","DE MONTMETERME            ",1,"AFFOUX                        ",null,null,69220,"CERCIE",null,null,"Bolivie (État plurinational de)","Amérique du Sud"]
[69,0,1,35,"J","RUE ","PRINCIPALE                ",1,"AFFOUX                        ",null,null,69440,"CHABANIERE",null,null,"Bonaire, Saint-Eustache et Saba","Amérique du Nord"]
[69,0,1,50,"A","CHE ","DE BARBERY                ",1,"AFFOUX                        ",null,null,69870,"CHAMBOST ALLIERES",null,null,"Bosnie-Herzégovine ","Europe"]
[69,0,1,54,"E","CHE ","DU BROUILLY               ",1,"AFFOUX                        ",null,null,69770,"CHAMBOST LONGESSAIGNE",null,null,"Botswana ","Afrique"]
[69,0,1,62,"N","IMP ","DES CARRIERES             ",1,"AFFOUX                        ",null,null,69620,"CHAMELET",null,null,"Bouvet (l'Île)","Amérique du Sud"]
[69,0,1,64,"R","IMP ","DE LA COLLONGE            ",1,"AFFOUX                        ",null,null,69410,"CHAMPAGNE AU MONT D OR",null,null,"Brésil ","Amérique du Sud"]
[69,0,1,66,"T","CHE ","DU CREPIER                ",1,"AFFOUX                        ",null,null,69970,"CHAPONNAY",null,null,"Brunéi Darussalam ","Asie"]
[69,0,1,74,"B","CHE ","DES ENVERS                ",1,"AFFOUX                        ",null,null,69630,"CHAPONOST",null,null,"Bulgarie ","Europe"]
[69,0,1,84,"M","CHE ","DES FERRIERES             ",1,"AFFOUX                        ",null,null,69260,"CHARBONNIERES LES BAINS",null,null,"Burkina Faso ","Afrique"]
[69,0,1,86,"P","RUE ","DE LA FORGE               ",1,"AFFOUX                        ",null,null,69220,"CHARENTAY",null,null,"Burundi ","Afrique"]
[69,0,1,92,"W","IMP ","DE LA GARDERIE            ",1,"AFFOUX                        ",null,null,69390,"CHARLY",null,null,"Cabo Verde","Afrique"]
[69,0,1,94,"Y","IMP ","DES GARENNES              ",1,"AFFOUX                        ",null,null,69380,"CHARNAY",null,null,"Caïmans (les Îles)","Amérique du Nord"]
[69,0,1,96,"A","RTE ","DES GENETS                ",1,"AFFOUX                        ",null,null,69380,"CHASSELAY",null,null,"Cambodge ","Asie"]
[69,0,1,98,"C","CHE ","DU GOUJET                 ",1,"AFFOUX                        ",null,null,69680,"CHASSIEU",null,null,"Cameroun ","Afrique"]
[69,0,1,100,"E","CHE ","DU GRISOT                 ",1,"AFFOUX                        ",null,null,69380,"CHATILLON",null,null,"Canada ","Amérique du Nord"]
[69,0,1,102,"G","IMP ","DES GRILLONS              ",1,"AFFOUX                        ",null,null,69440,"CHAUSSAN",null,null,"Chili ","Amérique du Sud"]
[69,0,1,104,"J","RTE ","DU GUILLIN                ",1,"AFFOUX                        ",null,null,69380,"CHAZAY D AZERGUES",null,null,"Chine ","Asie"]
[69,0,1,110,"R","IMP ","DES HOLMES                ",1,"AFFOUX                        ",null,null,69840,"CHENAS",null,null,"Christmas (l'Île)","Océanie"]
[69,0,1,132,"P","IMP ","DU MANDERON               ",1,"AFFOUX                        ",null,null,69430,"CHENELETTE",null,null,"Chypre","Asie"]
[69,0,1,134,"S","CHE ","DES MOLIERES              ",1,"AFFOUX                        ",null,null,69380,"CHESSY",null,null,"Cocos (les Îles) / Keeling (les Îles)","Océanie"]
[69,0,1,135,"T","RTE ","DU MONTMETERME            ",1,"AFFOUX                        ",null,null,69210,"CHEVINAY",null,null,"Colombie ","Amérique du Sud"]
[69,0,1,137,"V","CHE ","DU MOULIN                 ",1,"AFFOUX                        ",null,null,69115,"CHIROUBLES",null,null,"Comores ","Afrique"]
[69,0,1,142,"A","RTE ","DU NAZET                  ",1,"AFFOUX                        ",null,null,69380,"CIVRIEUX D AZERGUES",null,null,"Congo ","Afrique"]
[69,0,1,150,"J","CHE ","DU PANDOLI                ",1,"AFFOUX                        ",null,null,69870,"CLAVEISOLLES",null,null,"Congo (la République démocratique du)","Afrique"]
[69,0,1,152,"L","CHE ","DES PLACES                ",1,"AFFOUX                        ",null,null,69640,"COGNY",null,null,"Cook (les Îles)","Océanie"]
[69,0,1,170,"F","IMP ","DE ROCHEFORT              ",1,"AFFOUX                        ",null,null,69590,"COISE",null,null,"Corée (la République de)","Asie"]
[69,0,1,180,"S","RTE ","DE SAINT FORGEUX          ",1,"AFFOUX                        ",null,null,69660,"COLLONGES AU MONT D OR",null,null,"Corée (la République populaire démocratique de)","Asie"]
[69,0,1,190,"C","IMP ","DES TILLEULS              ",1,"AFFOUX                        ",null,null,69125,"COLOMBIER SAUGNIEU",null,null,"Costa Rica ","Amérique du Nord"]
[69,0,1,194,"G","RTE ","DU TORRENCHIN             ",1,"AFFOUX                        ",null,null,69360,"COMMUNAY",null,null,"Côte d'Ivoire ","Afrique"]
[69,0,1,196,"J","IMP ","DU TRAM                   ",1,"AFFOUX                        ",null,null,69420,"CONDRIEU",null,null,"Croatie ","Europe"]
[69,0,1,200,"N","RTE ","DE LA VALETTE             ",1,"AFFOUX                        ",null,null,69960,"CORBAS",null,null,"Cuba","Amérique du Nord"]
[69,0,2,"B001","Z","    ","LA BARRE                  ",3,"AIGUEPERSE                    ",null,null,69220,"CORCELLES EN BEAUJOLAIS",null,null,"Curaçao","Amérique du Nord"]
[69,0,2,"B002","A","    ","LE BAS DE LA COMBE        ",3,"AIGUEPERSE                    ",null,null,69470,"COURS",null,null,"Danemark ","Europe"]
[69,0,2,"B003","B","    ","AUX BOIS                  ",3,"AIGUEPERSE                    ",null,null,69690,"COURZIEU",null,null,"Djibouti","Afrique"]
[69,0,2,"B004","C","    ","BOIS DES HAYES            ",3,"AIGUEPERSE                    ",null,null,69270,"COUZON AU MONT D OR",null,null,"dominicaine (la République)","Amérique du Nord"]
[69,0,2,"B005","D","    ","BORDAS                    ",3,"AIGUEPERSE                    ",null,null,69290,"CRAPONNE",null,null,"Dominique ","Amérique du Nord"]
[69,0,2,"B006","E","    ","LES BORDES                ",3,"AIGUEPERSE                    ",null,null,69550,"CUBLIZE",null,null,"Égypte ","Afrique"]
[69,0,2,"B007","F","    ","LES BOURDONNEAUX          ",3,"AIGUEPERSE                    ",null,null,69250,"CURIS AU MONT D OR",null,null,"El Salvador","Amérique du Nord"]
[69,0,2,"B008","G","    ","LE BOURG                  ",3,"AIGUEPERSE                    ",null,null,69570,"DARDILLY",null,null,"Émirats arabes unis ","Asie"]
[69,0,2,"B009","H","    ","LES BREUILS               ",3,"AIGUEPERSE                    ",null,null,69150,"DECINES CHARPIEU",null,null,"Équateur ","Amérique du Sud"]
[69,0,2,"B010","J","    ","LA BRUYERE                ",3,"AIGUEPERSE                    ",null,null,69640,"DENICE",null,null,"Érythrée ","Afrique"]
[69,0,2,"B011","K","    ","CHAMP CROUX               ",3,"AIGUEPERSE                    ",null,null,69860,"DEUX GROSNES",null,null,"Espagne ","Europe"]
[69,0,2,"B012","L","    ","CHANTE ALOUETTE           ",3,"AIGUEPERSE                    ",null,null,69170,"DIEME",null,null,"Estonie ","Europe"]
[69,0,2,"B013","M","    ","CHANTE LOUP               ",3,"AIGUEPERSE                    ",null,null,69380,"DOMMARTIN",null,null,"Eswatini ","Afrique"]
[69,0,2,"B014","N","    ","LES CHARMES               ",3,"AIGUEPERSE                    ",null,null,69220,"DRACE",null,null,"États-Unis d'Amérique ","Amérique du Nord"]
[69,0,2,"B015","P","    ","CHEMARIN                  ",3,"AIGUEPERSE                    ",null,null,69850,"DUERNE",null,null,"Éthiopie ","Afrique"]
[69,0,2,"B016","R","    ","CHEVAGNY                  ",3,"AIGUEPERSE                    ",null,null,69700,"ECHALAS",null,null,"Falkland (les Îles) /Malouines (les Îles)","Amérique du Sud"]
[69,0,2,"B017","S","    ","LE COLOMBIER              ",3,"AIGUEPERSE                    ",null,null,69130,"ECULLY",null,null,"Féroé (les Îles)","Europe"]
[69,0,2,"B018","T","    ","LA COMBE                  ",3,"AIGUEPERSE                    ",null,null,69840,"EMERINGES",null,null,"Fidji ","Océanie"]
[69,0,2,"B019","U","    ","LA COMBE AUX GEAIS        ",3,"AIGUEPERSE                    ",null,null,69210,"EVEUX",null,null,"Finlande ","Europe"]
[69,0,2,"B020","V","    ","COMBE NOIRE               ",3,"AIGUEPERSE                    ",null,null,69320,"FEYZIN",null,null,"France ","Europe"]
[69,0,2,"B021","W","    ","CROIX DU TRUGE            ",3,"AIGUEPERSE                    ",null,null,69820,"FLEURIE",null,null,"Gabon ","Afrique"]
[69,0,2,"B022","X","    ","LA FEUILLEE               ",3,"AIGUEPERSE                    ",null,null,69250,"FLEURIEU SUR SAONE",null,null,"Gambie ","Afrique"]
[69,0,2,"B023","Y","    ","FONCAILLES                ",3,"AIGUEPERSE                    ",null,null,69210,"FLEURIEUX SUR L ARBRESLE",null,null,"Géorgie ","Asie"]
[69,0,2,"B024","Z","    ","LA FORET                  ",3,"AIGUEPERSE                    ",null,null,69270,"FONTAINES ST MARTIN",null,null,"Géorgie du Sud-et-les Îles Sandwich du Sud ","Amérique du Sud"]
[69,0,2,"B025","A","    ","LE FOUX                   ",3,"AIGUEPERSE                    ",null,null,69270,"FONTAINES SUR SAONE",null,null,"Ghana ","Afrique"]
[69,0,2,"B026","B","    ","LES GATILLES              ",3,"AIGUEPERSE                    ",null,null,69340,"FRANCHEVILLE",null,null,"Gibraltar","Europe"]
[69,0,2,"B027","C","    ","GERIS                     ",3,"AIGUEPERSE                    ",null,null,69620,"FRONTENAS",null,null,"Grèce ","Europe"]
[69,0,2,"B028","D","    ","LES GORLATS               ",3,"AIGUEPERSE                    ",null,null,69740,"GENAS",null,null,"Grenade ","Amérique du Nord"]
[69,0,2,"B029","E","    ","LE GRAND CHAMP            ",3,"AIGUEPERSE                    ",null,null,69730,"GENAY",null,null,"Groenland ","Amérique du Nord"]
[69,0,2,"B030","F","    ","LES GUILLIENS             ",3,"AIGUEPERSE                    ",null,null,69700,"GIVORS",null,null,"Guadeloupe ","Amérique du Nord"]
[69,0,2,"B031","G","    ","HELAS                     ",3,"AIGUEPERSE                    ",null,null,69400,"GLEIZE",null,null,"Guam","Océanie"]
[69,0,2,"B032","H","    ","MARCILLY                  ",3,"AIGUEPERSE                    ",null,null,69870,"GRANDRIS",null,null,"Guatemala ","Amérique du Nord"]
[69,0,2,"B033","J","    ","LES MATRAYS               ",3,"AIGUEPERSE                    ",null,null,69290,"GREZIEU LA VARENNE",null,null,"Guernesey","Europe"]
[69,0,2,"B034","K","    ","MERGAGNE                  ",3,"AIGUEPERSE                    ",null,null,69610,"GREZIEU LE MARCHE",null,null,"Guinée ","Afrique"]
[69,0,2,"B035","L","    ","MONT GUILLIN              ",3,"AIGUEPERSE                    ",null,null,69520,"GRIGNY",null,null,"Guinée équatoriale ","Afrique"]
[69,0,2,"B036","M","    ","LA MONTAGNE               ",3,"AIGUEPERSE                    ",null,null,69610,"HAUTE RIVOIRE",null,null,"Guinée-Bissau ","Afrique"]
[69,0,2,"B037","N","    ","MONTESCOT                 ",3,"AIGUEPERSE                    ",null,null,69540,"IRIGNY",null,null,"Guyana ","Amérique du Sud"]
[69,0,2,"B038","P","    ","LE MOULIN DE LA BARRE     ",3,"AIGUEPERSE                    ",null,null,69330,"JONAGE",null,null,"Guyane française (la)","Amérique du Sud"]
[69,0,2,"B039","R","    ","LA PERRIERE               ",3,"AIGUEPERSE                    ",null,null,69330,"JONS",null,null,"Haïti","Amérique du Nord"]
[69,0,2,"B040","S","    ","AUX PINS                  ",3,"AIGUEPERSE                    ",null,null,69170,"JOUX",null,null,"Heard-et-Îles MacDonald (l'Île)","Océanie"]
[69,0,2,"B041","T","    ","PRES DE CHEVAGNY          ",3,"AIGUEPERSE                    ",null,null,69840,"JULIENAS",null,null,"Honduras ","Amérique du Nord"]
[69,0,2,"B042","U","    ","PRES DES SOLYS            ",3,"AIGUEPERSE                    ",null,null,69840,"JULLIE",null,null,"Hong Kong","Asie"]
[69,0,2,"B043","V","    ","LES PRES GERIS            ",3,"AIGUEPERSE                    ",null,null,69210,"L ARBRESLE",null,null,"Hongrie ","Europe"]
[69,0,2,"B044","W","    ","LA ROCHE                  ",3,"AIGUEPERSE                    ",null,null,69590,"LA CHAPELLE SUR COISE",null,null,"Île de Man","Europe"]
[69,0,2,"B045","X","    ","LE RONZEAU                ",3,"AIGUEPERSE                    ",null,null,69350,"LA MULATIERE",null,null,"Îles mineures éloignées des États-Unis ","Océanie"]
[69,0,2,"B046","Y","    ","AUX SARRETS               ",3,"AIGUEPERSE                    ",null,null,69890,"LA TOUR DE SALVAGNY",null,null,"Inde ","Asie"]
[69,0,2,"B047","Z","    ","LE SOLY                   ",3,"AIGUEPERSE                    ",null,null,69640,"LACENAS",null,null,"Indien (le Territoire britannique de l'océan)","Afrique"]
[69,0,2,"B048","A","    ","TERRES DE CHANTE ALOUETTE ",3,"AIGUEPERSE                    ",null,null,69480,"LACHASSAGNE",null,null,"Indonésie ","Asie"]
[69,0,2,"B049","B","    ","TERRES DU FOUX            ",3,"AIGUEPERSE                    ",null,null,69870,"LAMURE SUR AZERGUES",null,null,"Iran (République Islamique d')","Asie"]
[69,0,2,"B050","C","    ","TRANCHE PIED              ",3,"AIGUEPERSE                    ",null,null,69220,"LANCIE",null,null,"Iraq ","Asie"]
[69,0,2,"B051","D","    ","LA TUILERIE               ",3,"AIGUEPERSE                    ",null,null,69430,"LANTIGNIE",null,null,"Irlande ","Europe"]
[69,0,2,"B052","E","    ","VAVRE                     ",3,"AIGUEPERSE                    ",null,null,69590,"LARAJASSE",null,null,"Islande ","Europe"]
[69,0,3,"A010","T","    ","LES HAUTS D'ALBIGNY       ",2,"ALBIGNY-SUR-SAONE             ",null,null,69620,"LE BREUIL",null,null,"Israël","Asie"]
[69,0,3,"B001","V","    ","LES AVORAUX               ",3,"ALBIGNY-SUR-SAONE             ",null,null,69460,"LE PERREON",null,null,"Italie ","Europe"]
[69,0,3,"B002","W","    ","BALAYE                    ",3,"ALBIGNY-SUR-SAONE             ",null,null,69620,"LEGNY",null,null,"Jamaïque ","Amérique du Nord"]
[69,0,3,"B003","X","    ","BEL AIR                   ",3,"ALBIGNY-SUR-SAONE             ",null,null,69210,"LENTILLY",null,null,"Japon ","Asie"]
[69,0,3,"B004","Y","    ","LE BOUCHET                ",3,"ALBIGNY-SUR-SAONE             ",null,null,69430,"LES ARDILLATS",null,null,"Jersey","Europe"]
[69,0,3,"B005","Z","    ","LE BOURG                  ",3,"ALBIGNY-SUR-SAONE             ",null,null,69380,"LES CHERES",null,null,"Jordanie ","Asie"]
[69,0,3,"B006","A","    ","LES BRUYERES              ",3,"ALBIGNY-SUR-SAONE             ",null,null,69420,"LES HAIES",null,null,"Kazakhstan ","Asie"]
[69,0,3,"B007","B","    ","LES CARRIERES             ",3,"ALBIGNY-SUR-SAONE             ",null,null,69610,"LES HALLES",null,null,"Kenya ","Afrique"]
[69,0,3,"B008","C","    ","LES COMBES                ",3,"ALBIGNY-SUR-SAONE             ",null,null,69170,"LES SAUVAGES",null,null,"Kirghizistan ","Asie"]
[69,0,3,"B009","D","    ","LE CRET                   ",3,"ALBIGNY-SUR-SAONE             ",null,null,69620,"LETRA",null,null,"Kiribati","Océanie"]
[69,0,3,"B010","E","    ","LES GDES TERRES           ",3,"ALBIGNY-SUR-SAONE             ",null,null,69400,"LIMAS",null,null,"Koweït ","Asie"]
[69,0,3,"B011","F","    ","LES GROLLES               ",3,"ALBIGNY-SUR-SAONE             ",null,null,69760,"LIMONEST",null,null,"Lao (la République démocratique populaire)","Asie"]
[69,0,3,"B012","G","    ","ILE DE LA CROIX           ",3,"ALBIGNY-SUR-SAONE             ",null,null,69380,"LISSIEU",null,null,"Lesotho ","Afrique"]
[69,0,3,"B013","H","    ","ILE DE RONTANT            ",3,"ALBIGNY-SUR-SAONE             ",null,null,69700,"LOIRE SUR RHONE",null,null,"Lettonie ","Europe"]
[69,0,3,"B014","J","    ","MIGNONNE                  ",3,"ALBIGNY-SUR-SAONE             ",null,null,69420,"LONGES",null,null,"Liban ","Asie"]
[69,0,3,"B015","K","    ","MOLETANT                  ",3,"ALBIGNY-SUR-SAONE             ",null,null,69770,"LONGESSAIGNE",null,null,"Libéria ","Afrique"]
[69,0,3,"B016","L","    ","LA MONTAGNE               ",3,"ALBIGNY-SUR-SAONE             ",null,null,69380,"LOZANNE",null,null,"Libye ","Afrique"]
[69,0,3,"B017","M","    ","NOTRE DAME                ",3,"ALBIGNY-SUR-SAONE             ",null,null,69480,"LUCENAY",null,null,"Liechtenstein ","Europe"]
[69,0,3,"B018","N","    ","LA PLACE                  ",3,"ALBIGNY-SUR-SAONE             ",null,null,69001,"LYON 1",null,null,"Lituanie ","Europe"]
[69,0,3,"B019","P","    ","LA PLAINE                 ",3,"ALBIGNY-SUR-SAONE             ",null,null,69002,"LYON 2",null,null,"Luxembourg ","Europe"]
[69,0,3,"B020","R","    ","LES REGARDS               ",3,"ALBIGNY-SUR-SAONE             ",null,null,69003,"LYON 3",null,null,"Macao","Asie"]
[69,0,3,"B021","S","    ","TISON                     ",3,"ALBIGNY-SUR-SAONE             ",null,null,69004,"LYON 4",null,null,"Macédoine du Nord ","Europe"]
[69,0,3,"B022","T","    ","LE TREMBLAY               ",3,"ALBIGNY-SUR-SAONE             ",null,null,69005,"LYON 5",null,null,"Madagascar","Afrique"]
[69,0,3,"B023","U","    ","LES TRAVERSES             ",3,"ALBIGNY-SUR-SAONE             ",null,null,69006,"LYON 6",null,null,"Malaisie ","Asie"]
[69,0,3,"B024","V","    ","VILLEVERT                 ",3,"ALBIGNY-SUR-SAONE             ",null,null,69007,"LYON 7",null,null,"Malawi ","Afrique"]
[69,0,3,15,"D","RUE ","ARMAND ZIPFEL             ",1,"ALBIGNY-SUR-SAONE             ",null,null,69008,"LYON 8",null,null,"Maldives ","Asie"]
[69,0,3,20,"J","AV  ","DES AVORAUX               ",1,"ALBIGNY-SUR-SAONE             ",null,null,69009,"LYON 9",null,null,"Mali ","Afrique"]
[69,0,3,21,"K","CHE ","DES AVORAUX               ",1,"ALBIGNY-SUR-SAONE             ",null,null,69430,"MARCHAMPT",null,null,"Malte","Europe"]
[69,0,3,40,"F","MTE ","DE BEL AIR                ",1,"ALBIGNY-SUR-SAONE             ",null,null,69380,"MARCILLY D AZERGUES",null,null,"Mariannes du Nord (les Îles)","Océanie"]
[69,0,3,41,"G","IMP ","DE BEL AIR                ",1,"ALBIGNY-SUR-SAONE             ",null,null,69480,"MARCY",null,null,"Maroc ","Afrique"]
[69,0,3,46,"M","CHE ","DES CARRIERES             ",1,"ALBIGNY-SUR-SAONE             ",null,null,69280,"MARCY L ETOILE",null,null,"Marshall (les Îles)","Océanie"]
[69,0,3,50,"S","MTE ","DU CHANOINE ROULLET       ",1,"ALBIGNY-SUR-SAONE             ",null,null,69970,"MARENNES",null,null,"Martinique ","Amérique du Nord"]
[69,0,3,60,"C","CHE ","DES CHASSEURS             ",1,"ALBIGNY-SUR-SAONE             ",null,null,69550,"MEAUX LA MONTAGNE",null,null,"Maurice","Afrique"]
[69,0,3,74,"T","CHE ","DES COMBES                ",1,"ALBIGNY-SUR-SAONE             ",null,null,69510,"MESSIMY",null,null,"Mauritanie ","Afrique"]
[69,0,3,79,"Y","ESP ","DANIEL SARRABAT           ",1,"ALBIGNY-SUR-SAONE             ",null,null,69610,"MEYS",null,null,"Mayotte","Afrique"]
[69,0,3,83,"C","PL  ","DU DR ALOIN               ",1,"ALBIGNY-SUR-SAONE             ",null,null,69330,"MEYZIEU",null,null,"Mexique ","Amérique du Nord"]
[69,0,3,93,"N","RUE ","ETIENNE RICHERAND         ",1,"ALBIGNY-SUR-SAONE             ",null,null,69390,"MILLERY",null,null,"Micronésie (États fédérés de)","Océanie"]
[69,0,3,100,"W","AV  ","GABRIEL PERI              ",1,"ALBIGNY-SUR-SAONE             ",null,null,69780,"MIONS",null,null,"Moldavie (la République de)","Europe"]
[69,0,3,120,"T","AV  ","DE LA GARE                ",1,"ALBIGNY-SUR-SAONE             ",null,null,69620,"MOIRE",null,null,"Monaco","Europe"]
[69,0,3,121,"U","PL  ","DE LA GARE                ",1,"ALBIGNY-SUR-SAONE             ",null,null,69250,"MONTANAY",null,null,"Mongolie ","Asie"]
[69,0,3,127,"A","QUAI","GENERAL DE GAULLE         ",1,"ALBIGNY-SUR-SAONE             ",null,null,69640,"MONTMELAS ST SORLIN",null,null,"Monténégro ","Europe"]
[69,0,3,130,"D","RUE ","GERMAIN                   ",1,"ALBIGNY-SUR-SAONE             ",null,null,69610,"MONTROMANT",null,null,"Montserrat","Amérique du Nord"]
[69,0,3,133,"G","CHE ","DES GORGES                ",1,"ALBIGNY-SUR-SAONE             ",null,null,69770,"MONTROTTIER",null,null,"Mozambique ","Afrique"]
[69,0,3,140,"P","RUE ","DES GROLLES               ",1,"ALBIGNY-SUR-SAONE             ",null,null,69480,"MORANCE",null,null,"Myanmar ","Asie"]
[69,0,3,158,"J","AV  ","HENRI BARBUSSE            ",1,"ALBIGNY-SUR-SAONE             ",null,null,69440,"MORNANT",null,null,"Namibie ","Afrique"]
[69,0,3,170,"X","RUE ","JEAN CHIRAT               ",1,"ALBIGNY-SUR-SAONE             ",null,null,69440,"MORNANT",null,null,"Nauru","Océanie"]
[69,0,3,179,"G","IMP ","JOSEPH CHOLLET            ",1,"ALBIGNY-SUR-SAONE             ",null,null,69250,"NEUVILLE SUR SAONE",null,null,"Népal ","Asie"]
[69,0,3,180,"H","RUE ","JOSEPH CHOLLET            ",1,"ALBIGNY-SUR-SAONE             ",null,null,69460,"ODENAS",null,null,"Nicaragua ","Amérique du Nord"]
[69,0,3,200,"E","RUE ","LEFEBVRE                  ",1,"ALBIGNY-SUR-SAONE             ",null,null,69530,"ORLIENAS",null,null,"Niger ","Afrique"]
[69,0,3,207,"M","RUE ","DES MARAICHERS            ",1,"ALBIGNY-SUR-SAONE             ",null,null,69600,"OULLINS",null,null,"Nigéria ","Afrique"]
[69,0,3,212,"T","RTE ","DES MONTS D OR            ",1,"ALBIGNY-SUR-SAONE             ",null,null,69310,"PIERRE BENITE",null,null,"Niue","Océanie"]
[69,0,3,220,"B","CHE ","NOTRE DAME                ",1,"ALBIGNY-SUR-SAONE             ",null,null,69250,"POLEYMIEUX AU MONT D OR",null,null,"Norfolk (l'Île)","Océanie"]
[69,0,3,221,"C","CHE ","PRIVE NOTRE DAME          ",1,"ALBIGNY-SUR-SAONE             ",null,null,69290,"POLLIONNAY",null,null,"Norvège ","Europe"]
[69,0,3,228,"K","RUE ","DU PARC DES MONTS D'OR    ",1,"ALBIGNY-SUR-SAONE             ",null,null,69590,"POMEYS",null,null,"Nouvelle-Calédonie ","Océanie"]
[69,0,3,230,"M","RUE ","PASTEUR                   ",1,"ALBIGNY-SUR-SAONE             ",null,null,69480,"POMMIERS",null,null,"Nouvelle-Zélande ","Océanie"]
[69,0,3,231,"N","MTE ","DU PERE CAMUS             ",1,"ALBIGNY-SUR-SAONE             ",null,null,69640,"PORTE DES PIERRES DOREES",null,null,"Oman","Asie"]
[69,0,3,233,"R","CHE ","DES REGARDS               ",1,"ALBIGNY-SUR-SAONE             ",null,null,69870,"POULE LES ECHARMEAUX",null,null,"Ouganda ","Afrique"]
[69,0,3,235,"T","CHE ","SAINT JACQUES             ",1,"ALBIGNY-SUR-SAONE             ",null,null,69790,"PROPIERES",null,null,"Ouzbékistan ","Asie"]
[69,0,3,238,"W","ALL ","DES TAMARIS               ",1,"ALBIGNY-SUR-SAONE             ",null,null,69330,"PUSIGNAN",null,null,"Pakistan ","Asie"]
[69,0,3,240,"Y","CHE ","DU TISON                  ",1,"ALBIGNY-SUR-SAONE             ",null,null,69430,"QUINCIE EN BEAUJOLAIS",null,null,"Palaos ","Océanie"]
[69,0,3,241,"Z","CHE ","DU TREMBLAY               ",1,"ALBIGNY-SUR-SAONE             ",null,null,69650,"QUINCIEUX",null,null,"Palestine, État de","Asie"]
[69,0,3,242,"A","CHE ","DU TROU DU CHAT           ",1,"ALBIGNY-SUR-SAONE             ",null,null,69470,"RANCHAL",null,null,"Panama ","Amérique du Nord"]
[69,0,3,245,"D","PL  ","DE VERDUN                 ",1,"ALBIGNY-SUR-SAONE             ",null,null,69430,"REGNIE DURETTE",null,null,"Papouasie-Nouvelle-Guinée ","Océanie"]
[69,0,3,247,"F","MTE ","DU VIEUX CHATEAU          ",1,"ALBIGNY-SUR-SAONE             ",null,null,69140,"RILLIEUX LA PAPE",null,null,"Paraguay ","Amérique du Sud"]
[69,0,3,250,"J","QUAI","DE VILLEVERT              ",1,"ALBIGNY-SUR-SAONE             ",null,null,69440,"RIVERIE",null,null,"Pays-Bas ","Europe"]
[69,0,3,260,"V","RUE ","VOIE NOUVELLE             ",1,"ALBIGNY-SUR-SAONE             ",null,null,69640,"RIVOLET",null,null,"Pérou ","Amérique du Sud"]
[69,0,4,"A001","D","CTRE","GERIATRIQUE VAL D'AZ.     ",2,"ALIX                          ",null,null,69270,"ROCHETAILLEE SUR SAONE",null,null,"Philippines ","Asie"]
[69,0,4,"B001","R","    ","AU BOIS DES MINES         ",3,"ALIX                          ",null,null,69550,"RONNO",null,null,"Pitcairn","Océanie"]
[69,0,4,"B002","S","    ","AU BOIS DES NOYERS        ",3,"ALIX                          ",null,null,69510,"RONTALON",null,null,"Pologne ","Europe"]
[69,0,4,"B003","T","    ","AU BOURG                  ",3,"ALIX                          ",null,null,69210,"SAIN BEL",null,null,"Polynésie française ","Océanie"]
[69,0,4,"B004","U","    ","AUX BRUYERES              ",3,"ALIX                          ",null,null,69460,"SALLES ARBUISSONNAS BEAUJOLAIS",null,null,"Porto Rico","Amérique du Nord"]
[69,0,4,"B005","V","    ","AUX CABANES               ",3,"ALIX                          ",null,null,69490,"SARCEY",null,null,"Portugal ","Europe"]
[69,0,4,"B006","W","    ","AU CHATEAU                ",3,"ALIX                          ",null,null,69580,"SATHONAY CAMP",null,null,"Qatar ","Asie"]
[69,0,4,"B007","X","    ","AU CHEVRONET              ",3,"ALIX                          ",null,null,69580,"SATHONAY VILLAGE",null,null,"République arabe syrienne ","Asie"]
[69,0,4,"B008","Y","    ","A LA COLLINE              ",3,"ALIX                          ",null,null,69210,"SAVIGNY",null,null,"République centrAfriqueine ","Afrique"]
[69,0,4,"B009","Z","    ","AU FROMENTAL              ",3,"ALIX                          ",null,null,69360,"SEREZIN DU RHONE",null,null,"Réunion ","Afrique"]
[69,0,4,"B010","A","    ","AU GARRET                 ",3,"ALIX                          ",null,null,69360,"SIMANDRES",null,null,"Roumanie ","Europe"]
[69,0,4,"B011","B","    ","AUX GRANDES TERRES        ",3,"ALIX                          ",null,null,69360,"SOLAIZE",null,null,"Royaume-Uni de Grande-Bretagne et d'Irlande du Nord ","Europe"]
[69,0,4,"B012","C","    ","AU MAPAS                  ",3,"ALIX                          ",null,null,69510,"SOUCIEU EN JARREST",null,null,"Russie (la Fédération de)","Europe"]
[69,0,4,"B013","D","    ","AU MOULIN                 ",3,"ALIX                          ",null,null,69210,"SOURCIEUX LES MINES",null,null,"Rwanda ","Afrique"]
[69,0,4,"B014","E","    ","AU PERROUX                ",3,"ALIX                          ",null,null,69610,"SOUZY",null,null,"Sahara occidental","Afrique"]
[69,0,4,"B900","T","    ","LES PLACES                ",3,"ALIX                          ",null,null,69440,"ST ANDRE LA COTE",null,null,"Saint-Barthélemy","Amérique du Nord"]
[69,0,4,"B901","U","    ","LA ROCHELLE               ",3,"ALIX                          ",null,null,69170,"ST APPOLINAIRE",null,null,"Sainte-Hélène, Ascension et Tristan da Cunha","Afrique"]
[69,0,4,10,"U","PL  ","DE L EGLISE               ",1,"ALIX                          ",null,null,69720,"ST BONNET DE MURE",null,null,"Sainte-Lucie","Amérique du Nord"]
[69,0,4,11,"V","RUE ","DU LOTISSEMENT            ",1,"ALIX                          ",null,null,69790,"ST BONNET DES BRUYERES",null,null,"Saint-Kitts-et-Nevis","Amérique du Nord"]
[69,0,4,15,"Z","IMP ","DES ACACIAS               ",1,"ALIX                          ",null,null,69870,"ST BONNET LE TRONCY",null,null,"Saint-Marin","Europe"]
[69,0,4,16,"A","RUE ","AYME CHALUS               ",1,"ALIX                          ",null,null,69790,"ST CLEMENT DE VERS",null,null,"Saint-Martin (partie française)","Amérique du Nord"]
[69,0,4,20,"E","CHE ","DES BARRIERES             ",1,"ALIX                          ",null,null,69930,"ST CLEMENT LES PLACES",null,null,"Saint-Martin (partie néerlandaise)","Amérique du Nord"]
[69,0,4,22,"G","IMP ","DU BOIS DES NOYERS        ",1,"ALIX                          ",null,null,69170,"ST CLEMENT SUR VALSONNE",null,null,"Saint-Pierre-et-Miquelon","Amérique du Nord"]
[69,0,4,24,"J","RTE ","DES BRUYERES              ",1,"ALIX                          ",null,null,69450,"ST CYR AU MONT D OR",null,null,"Saint-Siège ","Europe"]
[69,0,4,25,"K","IMP ","DES BRUYERES              ",1,"ALIX                          ",null,null,69870,"ST CYR LE CHATOUX",null,null,"Saint-Vincent-et-les Grenadines","Amérique du Nord"]
[69,0,4,28,"N","CHE ","DES CABANES               ",1,"ALIX                          ",null,null,69560,"ST CYR SUR LE RHONE",null,null,"Salomon (les Îles)","Océanie"]
[69,0,4,29,"P","MTE ","DU CARDINAL FESCH         ",1,"ALIX                          ",null,null,69370,"ST DIDIER AU MONT D OR",null,null,"Samoa ","Océanie"]
[69,0,4,30,"R","PL  ","DES CHANOINESSES          ",1,"ALIX                          ",null,null,69430,"ST DIDIER SUR BEAUJEU",null,null,"Samoa américaines ","Océanie"]
[69,0,4,31,"S","CHE ","DES CHARMILLES            ",1,"ALIX                          ",null,null,69460,"ST ETIENNE DES OULLIERES",null,null,"Sao Tomé-et-Principe","Afrique"]
[69,0,4,32,"T","RTE ","DU CHATEAU DE MARZE       ",1,"ALIX                          ",null,null,69460,"ST ETIENNE LA VARENNE",null,null,"Sénégal ","Afrique"]
[69,0,4,34,"V","IMP ","DU CLOS                   ",1,"ALIX                          ",null,null,69190,"ST FONS",null,null,"Serbie ","Europe"]
[69,0,4,35,"W","CHE ","DU CLOS DES LIESSES       ",1,"ALIX                          ",null,null,69490,"ST FORGEUX",null,null,"Seychelles ","Afrique"]
[69,0,4,37,"Y","RTE ","DE LA COLLINE             ",1,"ALIX                          ",null,null,69610,"ST GENIS L ARGENTIERE",null,null,"Sierra Leone ","Afrique"]
[69,0,4,38,"Z","IMP ","DES COMBES                ",1,"ALIX                          ",null,null,69230,"ST GENIS LAVAL",null,null,"Singapour","Asie"]
[69,0,4,40,"B","CHE ","DES DAMES DE LA ROUE      ",1,"ALIX                          ",null,null,69290,"ST GENIS LES OLLIERES",null,null,"Slovaquie ","Europe"]
[69,0,4,42,"D","CHE ","DES ECOLIERS              ",1,"ALIX                          ",null,null,69830,"ST GEORGES DE RENEINS",null,null,"Slovénie ","Europe"]
[69,0,4,43,"E","RUE ","DE L EGLISE               ",1,"ALIX                          ",null,null,69650,"ST GERMAIN AU MONT D OR",null,null,"Somalie ","Afrique"]
[69,0,4,44,"F","RUE ","DES ERABLES               ",1,"ALIX                          ",null,null,69210,"ST GERMAIN NUELLES",null,null,"Soudan ","Afrique"]
[69,0,4,46,"H","IMP ","DU FOUR BANAL             ",1,"ALIX                          ",null,null,69790,"ST IGNY DE VERS",null,null,"Soudan du Sud ","Afrique"]
[69,0,4,47,"J","CHE ","DU FOURNEL                ",1,"ALIX                          ",null,null,69380,"ST JEAN DES VIGNES",null,null,"Sri Lanka","Asie"]
[69,0,4,48,"K","IMP ","DE LA FRATERNITE          ",1,"ALIX                          ",null,null,69550,"ST JEAN LA BUSSIERE",null,null,"Suède ","Europe"]
[69,0,4,49,"L","CHE ","DU FROMENTAL              ",1,"ALIX                          ",null,null,69640,"ST JULIEN",null,null,"Suisse ","Europe"]
[69,0,4,51,"N","RTE ","DU GARRET                 ",1,"ALIX                          ",null,null,69690,"ST JULIEN SUR BIBOST",null,null,"Suriname ","Amérique du Sud"]
[69,0,4,52,"P","ALL ","DES GLYCINES              ",1,"ALIX                          ",null,null,69870,"ST JUST D AVRAY",null,null,"Svalbard et l'Île Jan Mayen ","Europe"]
[69,0,4,53,"R","MTE ","DES GUILLAUMES            ",1,"ALIX                          ",null,null,69220,"ST LAGER",null,null,"Tadjikistan ","Asie"]
[69,0,4,55,"T","PL  ","DE L HOPITAL              ",1,"ALIX                          ",null,null,69440,"ST LAURENT D AGNY",null,null,"Taïwan (Province de Chine)","Asie"]
[69,0,4,57,"V","ALL ","DES IRIS                  ",1,"ALIX                          ",null,null,69440,"ST LAURENT D AGNY",null,null,"Tanzanie (la République-Unie de)","Afrique"]
[69,0,4,60,"Y","IMP ","LACENAIRE                 ",1,"ALIX                          ",null,null,69930,"ST LAURENT DE CHAMOUSSET",null,null,"Tchad ","Afrique"]
[69,0,4,61,"Z","IMP ","DU LAVOIR                 ",1,"ALIX                          ",null,null,69720,"ST LAURENT DE MURE",null,null,"Tchéquie ","Europe"]
[69,0,4,63,"B","PL  ","DE LA MAIRIE              ",1,"ALIX                          ",null,null,69170,"ST MARCEL L ECLAIRE",null,null,"Terres australes françaises ","Afrique"]
[69,0,4,64,"C","CHE ","DE LA METRAT              ",1,"ALIX                          ",null,null,69850,"ST MARTIN EN HAUT",null,null,"Thaïlande ","Asie"]
[69,0,4,66,"E","IMP ","NICOLE DE CRESSIA         ",1,"ALIX                          ",null,null,69870,"ST NIZIER D AZERGUES",null,null,"Timor-Leste ","Asie"]
[69,0,4,67,"F","ALL ","DES NOISETIERS            ",1,"ALIX                          ",null,null,69780,"ST PIERRE DE CHANDIEU",null,null,"Togo ","Afrique"]
[69,0,4,70,"J","MTE ","DU PERROUX                ",1,"ALIX                          ",null,null,69210,"ST PIERRE LA PALUD",null,null,"Tokelau ","Océanie"]
[69,0,4,71,"K","CHE ","DU PETIT BOIS             ",1,"ALIX                          ",null,null,69800,"ST PRIEST",null,null,"Tonga ","Océanie"]
[69,0,4,72,"L","RTE ","DU PONCELIN               ",1,"ALIX                          ",null,null,69270,"ST ROMAIN AU MONT D OR",null,null,"Trinité-et-Tobago ","Amérique du Nord"]
[69,0,4,73,"M","MTE ","DU PONTET                 ",1,"ALIX                          ",null,null,69490,"ST ROMAIN DE POPEY",null,null,"Tunisie ","Afrique"]
[69,0,4,74,"N","CHE ","DU PRE ROND               ",1,"ALIX                          ",null,null,69560,"ST ROMAIN EN GAL",null,null,"Turkménistan ","Asie"]
[69,0,4,78,"T","RTE ","DE LA ROCHELLE            ",1,"ALIX                          ",null,null,69700,"ST ROMAIN EN GIER",null,null,"Turks-et-Caïcos (les Îles)","Amérique du Nord"]
[69,0,4,81,"W","CHE ","DES SEIGLIERES            ",1,"ALIX                          ",null,null,69360,"ST SYMPHORIEN D OZON",null,null,"Turquie ","Asie"]
[69,0,4,82,"X","CHE ","DES SOUCHES               ",1,"ALIX                          ",null,null,69590,"ST SYMPHORIEN SUR COISE",null,null,"Tuvalu ","Océanie"]
[69,0,4,83,"Y","CHE ","DU SOUVENIR FRANCAIS      ",1,"ALIX                          ",null,null,69620,"ST VERAND",null,null,"Ukraine ","Europe"]
[69,0,4,85,"A","RTE ","DES TROTTIERES            ",1,"ALIX                          ",null,null,69240,"ST VINCENT DE REINS",null,null,"Uruguay ","Amérique du Sud"]
[69,0,4,90,"F","PL  ","DE LA VIERGE NOIRE        ",1,"ALIX                          ",null,null,69440,"STE CATHERINE",null,null,"Vanuatu ","Océanie"]
[69,0,4,91,"G","CHE ","DU VIEUX MOULIN           ",1,"ALIX                          ",null,null,69560,"STE COLOMBE",null,null,"Venezuela (République bolivarienne du)","Amérique du Sud"]
[69,0,4,92,"H","CHE ","DES VIGNES                ",1,"ALIX                          ",null,null,69280,"STE CONSORCE",null,null,"Vierges britanniques (les Îles)","Amérique du Nord"]
[69,0,4,93,"J","RTE ","DE VILLEFRANCHE           ",1,"ALIX                          ",null,null,69610,"STE FOY L ARGENTIERE",null,null,"Vierges des États-Unis (les Îles)","Amérique du Nord"]
[69,0,5,"B001","L","    ","LES AVOINERIES            ",3,"AMBERIEUX                     ",null,null,69110,"STE FOY LES LYON",null,null,"Viet Nam ","Asie"]
[69,0,5,"B002","M","    ","LES BOTTIERES             ",3,"AMBERIEUX                     ",null,null,69620,"STE PAULE",null,null,"Wallis-et-Futuna","Océanie"]
[69,0,5,"B003","N","    ","LE BOURG                  ",3,"AMBERIEUX                     ",null,null,69440,"TALUYERS",null,null,"Yémen ","Asie"]
[69,0,5,"B004","P","    ","BOUTOLLARDES              ",3,"AMBERIEUX                     ",null,null,69220,"TAPONAS",null,null,"Zambie ","Afrique"]
[69,0,5,"B005","R","    ","LES CACHETTES             ",3,"AMBERIEUX                     ",null,null,69170,"TARARE",null,null,"Zimbabwe ","Afrique"]
[69,0,5,"B006","S","    ","LES CREUX                 ",3,"AMBERIEUX                     ",null,null,69160,"TASSIN LA DEMI LUNE"]
[69,0,5,"B007","T","    ","LES FIOUTES               ",3,"AMBERIEUX                     ",null,null,69620,"TERNAND"]
[69,0,5,"B008","U","    ","LA FOUGERE                ",3,"AMBERIEUX                     ",null,null,69360,"TERNAY"]
[69,0,5,"B009","V","    ","LE GACOPIN                ",3,"AMBERIEUX                     ",null,null,69620,"THEIZE"]
[69,0,5,"B010","W","    ","LA GRANDE BORDIERE        ",3,"AMBERIEUX                     ",null,null,69240,"THIZY LES BOURGS"]
[69,0,5,"B011","X","    ","GRANDS CHENEVRIERS        ",3,"AMBERIEUX                     ",null,null,69510,"THURINS"]
[69,0,5,"B012","Y","    ","LES GRAVIERES             ",3,"AMBERIEUX                     ",null,null,69780,"TOUSSIEU"]
[69,0,5,"B013","Z","    ","LES ILES                  ",3,"AMBERIEUX                     ",null,null,69420,"TREVES"]
[69,0,5,"B014","A","    ","LA PETITE BORDIERE        ",3,"AMBERIEUX                     ",null,null,69420,"TUPIN ET SEMONS"]
[69,0,5,"B015","B","    ","LE PILON                  ",3,"AMBERIEUX                     ",null,null,69620,"VAL D OINGT"]
[69,0,5,"B016","C","    ","LES PLANTIERES            ",3,"AMBERIEUX                     ",null,null,69170,"VALSONNE"]
[69,0,5,"B017","D","    ","PONT DE MONTLUEL          ",3,"AMBERIEUX                     ",null,null,69670,"VAUGNERAY"]
[69,0,5,"B018","E","    ","PRE COUZON                ",3,"AMBERIEUX                     ",null,null,69120,"VAULX EN VELIN"]
[69,0,5,"B019","F","    ","PRE DE LA CHAINE          ",3,"AMBERIEUX                     ",null,null,69460,"VAUX EN BEAUJOLAIS"]
[69,0,5,"B020","G","    ","PRE GUDET                 ",3,"AMBERIEUX                     ",null,null,69820,"VAUXRENARD"]
[69,0,5,"B021","H","    ","PRE LA CHAINE             ",3,"AMBERIEUX                     ",null,null,69200,"VENISSIEUX"]
[69,0,5,"B022","J","    ","LES RABLIERES             ",3,"AMBERIEUX                     ",null,null,69390,"VERNAISON"]
[69,0,5,"B023","K","    ","LES RONTAIS               ",3,"AMBERIEUX                     ",null,null,69430,"VERNAY"]
[69,0,5,"B024","L","    ","LA ROTANIERE              ",3,"AMBERIEUX                     ",null,null,69640,"VILLE SUR JARNIOUX"]
[69,0,5,"B025","M","    ","SAINT MARTIN              ",3,"AMBERIEUX                     ",null,null,69770,"VILLECHENEVE"]
[69,0,5,"B026","N","    ","LA SARANDIERE             ",3,"AMBERIEUX                     ",null,null,69400,"VILLEFRANCHE SUR SAONE"]
[69,0,5,"B027","P","    ","SAUZAY CARRA              ",3,"AMBERIEUX                     ",null,null,69100,"VILLEURBANNE"]
[69,0,5,"B028","R","    ","LA SOUCHE                 ",3,"AMBERIEUX                     ",null,null,69910,"VILLIE MORGON"]
[69,0,5,"B029","S","    ","VERS LE MOULIN            ",3,"AMBERIEUX                     ",null,null,69490,"VINDRY SUR TURDINE"]
[69,0,5,"B030","T","    ","LE VORLY                  ",3,"AMBERIEUX                     ",null,null,69390,"VOURLES"]
[69,0,5,"X001","N","    ","AUTOROUTE A466            ",4,"AMBERIEUX                     ",null,null,69510,"YZERON"]
[69,0,5,10,"P","RTE ","D ANSE                    ",1,"AMBERIEUX                     "]
[69,0,5,12,"S","RUE ","DE LA BARMONDIERE         ",1,"AMBERIEUX                     "]
[69,0,5,14,"U","CHE ","CHEMIN DE LA BORDIERE     ",1,"AMBERIEUX                     "]
[69,0,5,15,"V","IMP ","DUCHEMIN                  ",1,"AMBERIEUX                     "]
[69,0,5,16,"W","RUE ","CORNET                    ",1,"AMBERIEUX                     "]
[69,0,5,17,"X","RUE ","DES CREUX                 ",1,"AMBERIEUX                     "]
[69,0,5,18,"Y","RUE ","DU CLOS DE LA CURE        ",1,"AMBERIEUX                     "]
[69,0,5,20,"A","RUE ","DE L EGLISE               ",1,"AMBERIEUX                     "]
[69,0,5,25,"F","PL  ","DU FOUR A PAIN            ",1,"AMBERIEUX                     "]
[69,0,5,35,"S","RUE ","DES JARDINS FLEURIS       ",1,"AMBERIEUX                     "]
[69,0,5,50,"H","RTE ","DE LYON                   ",1,"AMBERIEUX                     "]
[69,0,5,60,"U","RUE ","DE LA MAIRIE              ",1,"AMBERIEUX                     "]
[69,0,5,126,"R","RUE ","MARIO ET MONIQUE PIANI    ",1,"AMBERIEUX                     "]
[69,0,5,130,"V","IMP ","IMPASSE DU MOULIN         ",1,"AMBERIEUX                     "]
[69,0,5,135,"A","RUE ","DU PILON                  ",1,"AMBERIEUX                     "]
[69,0,5,136,"B","RUE ","DES PLANTIERES            ",1,"AMBERIEUX                     "]
[69,0,5,138,"D","RUE ","SAINT HUBERT              ",1,"AMBERIEUX                     "]
[69,0,5,140,"F","RUE ","DU SOPHORA                ",1,"AMBERIEUX                     "]
[69,0,5,142,"H","RUE ","DU STADE                  ",1,"AMBERIEUX                     "]
[69,0,5,143,"J","RUE ","DES TULIPIERS             ",1,"AMBERIEUX                     "]
[69,0,5,144,"K","RUE ","DU VAUZEL                 ",1,"AMBERIEUX                     "]
[69,0,5,145,"L","IMP ","DU VIEUX CHENE            ",1,"AMBERIEUX                     "]
[69,0,5,146,"M","RUE ","DU VIEUX CHENE            ",1,"AMBERIEUX                     "]
[69,0,6,"B001","G","    ","LES ALLOUETS              ",3,"AMPLEPUIS                     "]
[69,0,6,"B002","H","    ","BAGATELLE                 ",3,"AMPLEPUIS                     "]
[69,0,6,"B003","J","    ","BALIGAGE                  ",3,"AMPLEPUIS                     "]
[69,0,6,"B004","K","    ","BARBERET                  ",3,"AMPLEPUIS                     "]
[69,0,6,"B005","L","    ","LA BARONNIE               ",3,"AMPLEPUIS                     "]
[69,0,6,"B006","M","    ","BAS DE CHARIVET           ",3,"AMPLEPUIS                     "]
[69,0,6,"B007","N","    ","BAS DE RANCON             ",3,"AMPLEPUIS                     "]
[69,0,6,"B008","P","    ","LE BECY                   ",3,"AMPLEPUIS                     "]
[69,0,6,"B009","R","    ","BERCHAUTIERE              ",3,"AMPLEPUIS                     "]
[69,0,6,"B010","S","    ","BERCHOUX                  ",3,"AMPLEPUIS                     "]
[69,0,6,"B011","T","    ","BERLAND                   ",3,"AMPLEPUIS                     "]
[69,0,6,"B012","U","    ","BERNISSE                  ",3,"AMPLEPUIS                     "]
[69,0,6,"B013","V","    ","BISSACHERE                ",3,"AMPLEPUIS                     "]
[69,0,6,"B014","W","    ","BOIS CHALLON              ",3,"AMPLEPUIS                     "]
[69,0,6,"B015","X","    ","BOIS DE LA FAY            ",3,"AMPLEPUIS                     "]
[69,0,6,"B016","Y","    ","BOIS DE RUIRE             ",3,"AMPLEPUIS                     "]
[69,0,6,"B017","Z","    ","BOIS DES GOUTTES          ",3,"AMPLEPUIS                     "]
[69,0,6,"B018","A","    ","LE BOIS FORT              ",3,"AMPLEPUIS                     "]
[69,0,6,"B019","B","    ","BOIS FOURRIER             ",3,"AMPLEPUIS                     "]
[69,0,6,"B020","C","    ","BOIS ROUGE                ",3,"AMPLEPUIS                     "]
[69,0,6,"B021","D","    ","BOIS SAINT JEAN           ",3,"AMPLEPUIS                     "]
[69,0,6,"B022","E","    ","LE BOURG                  ",3,"AMPLEPUIS                     "]
[69,0,6,"B023","F","    ","LA BRANCHE                ",3,"AMPLEPUIS                     "]
[69,0,6,"B024","G","    ","BREGADE                   ",3,"AMPLEPUIS                     "]
[69,0,6,"B025","H","    ","BREGADE D EN HAUT         ",3,"AMPLEPUIS                     "]
[69,0,6,"B026","J","    ","BURON                     ",3,"AMPLEPUIS                     "]
[69,0,6,"B027","K","    ","CHADOIX                   ",3,"AMPLEPUIS                     "]
[69,0,6,"B028","L","    ","CHAPET                    ",3,"AMPLEPUIS                     "]
[69,0,6,"B029","M","    ","CHARIVET                  ",3,"AMPLEPUIS                     "]
[69,0,6,"B030","N","    ","CHAUDURES                 ",3,"AMPLEPUIS                     "]
[69,0,6,"B031","P","    ","CHEZ CANTIN               ",3,"AMPLEPUIS                     "]
[69,0,6,"B032","R","    ","CHEZ CHENEVIER            ",3,"AMPLEPUIS                     "]
[69,0,6,"B033","S","    ","CHEZ FOREST               ",3,"AMPLEPUIS                     "]
[69,0,6,"B034","T","    ","CHEZ GUERRE               ",3,"AMPLEPUIS                     "]
[69,0,6,"B035","U","    ","CHEZ MAQUINON             ",3,"AMPLEPUIS                     "]
[69,0,6,"B036","V","    ","COLAS                     ",3,"AMPLEPUIS                     "]
[69,0,6,"B037","W","    ","LA COMBE                  ",3,"AMPLEPUIS                     "]
[69,0,6,"B038","X","    ","LE COUCY                  ",3,"AMPLEPUIS                     "]
[69,0,6,"B039","Y","    ","LE CRET                   ",3,"AMPLEPUIS                     "]
[69,0,6,"B040","Z","    ","CRET DES PINS             ",3,"AMPLEPUIS                     "]
[69,0,6,"B041","A","    ","CROCOMBY                  ",3,"AMPLEPUIS                     "]
[69,0,6,"B042","B","    ","LE CROZET                 ",3,"AMPLEPUIS                     "]
[69,0,6,"B043","C","    ","LA CROZETTE               ",3,"AMPLEPUIS                     "]
[69,0,6,"B044","D","    ","CURES                     ",3,"AMPLEPUIS                     "]
[69,0,6,"B045","E","    ","LE DESERT                 ",3,"AMPLEPUIS                     "]
[69,0,6,"B046","F","    ","LES DESVIOUX              ",3,"AMPLEPUIS                     "]
[69,0,6,"B047","G","    ","ETANG DU MAS              ",3,"AMPLEPUIS                     "]
[69,0,6,"B048","H","    ","FAYOLLES                  ",3,"AMPLEPUIS                     "]
[69,0,6,"B049","J","    ","FERME DU VERNAY           ",3,"AMPLEPUIS                     "]
[69,0,6,"B050","K","    ","LA FOLLETIERE             ",3,"AMPLEPUIS                     "]
[69,0,6,"B051","L","    ","LA FOND DU PUITS          ",3,"AMPLEPUIS                     "]
[69,0,6,"B052","M","    ","FORILLON                  ",3,"AMPLEPUIS                     "]
[69,0,6,"B053","N","    ","LES FOURS                 ",3,"AMPLEPUIS                     "]
[69,0,6,"B054","P","    ","LE FRENE                  ",3,"AMPLEPUIS                     "]
[69,0,6,"B055","R","    ","LA GALERIE                ",3,"AMPLEPUIS                     "]
[69,0,6,"B056","S","    ","LA GANDAILLERE            ",3,"AMPLEPUIS                     "]
[69,0,6,"B057","T","    ","GOUJARD                   ",3,"AMPLEPUIS                     "]
[69,0,6,"B058","U","    ","LA GOUTARDIERE            ",3,"AMPLEPUIS                     "]
[69,0,6,"B059","V","    ","GRAND JOASSON             ",3,"AMPLEPUIS                     "]
[69,0,6,"B060","W","    ","GRANGE NEUVE              ",3,"AMPLEPUIS                     "]
[69,0,6,"B061","X","    ","LE GROLET                 ",3,"AMPLEPUIS                     "]
[69,0,6,"B062","Y","    ","HAM DE SAINT CLAUDE HUISSE",3,"AMPLEPUIS                     "]
[69,0,6,"B063","Z","    ","HAUT DU REVERDY           ",3,"AMPLEPUIS                     "]
[69,0,6,"B064","A","    ","JACQUEME                  ",3,"AMPLEPUIS                     "]
[69,0,6,"B065","B","    ","JOANIN                    ",3,"AMPLEPUIS                     "]
[69,0,6,"B066","C","    ","JOASSON                   ",3,"AMPLEPUIS                     "]
[69,0,6,"B067","D","    ","LA JULIANERIE             ",3,"AMPLEPUIS                     "]
[69,0,6,"B068","E","    ","LABROSSE                  ",3,"AMPLEPUIS                     "]
[69,0,6,"B069","F","    ","LAFARGE                   ",3,"AMPLEPUIS                     "]
[69,0,6,"B070","G","    ","LAVERGNET                 ",3,"AMPLEPUIS                     "]
[69,0,6,"B071","H","    ","LEGRIS                    ",3,"AMPLEPUIS                     "]
[69,0,6,"B072","J","    ","LA LOIVE                  ",3,"AMPLEPUIS                     "]
[69,0,6,"B073","K","    ","MARVALIN                  ",3,"AMPLEPUIS                     "]
[69,0,6,"B074","L","    ","MIOLAND                   ",3,"AMPLEPUIS                     "]
[69,0,6,"B075","M","    ","MONLUZIN                  ",3,"AMPLEPUIS                     "]
[69,0,6,"B076","N","    ","LE MONT                   ",3,"AMPLEPUIS                     "]
[69,0,6,"B077","P","    ","MONT CHERVET              ",3,"AMPLEPUIS                     "]
[69,0,6,"B078","R","    ","MONT EN HAUT              ",3,"AMPLEPUIS                     "]
[69,0,6,"B079","S","    ","MONTAGNE DE RUIRE         ",3,"AMPLEPUIS                     "]
[69,0,6,"B080","T","    ","LE MONTEILLET             ",3,"AMPLEPUIS                     "]
[69,0,6,"B081","U","    ","MORTIER                   ",3,"AMPLEPUIS                     "]
[69,0,6,"B082","V","    ","MUSEL                     ",3,"AMPLEPUIS                     "]
[69,0,6,"B083","W","    ","LES NIOULES               ",3,"AMPLEPUIS                     "]
[69,0,6,"B084","X","    ","PAILLASSON                ",3,"AMPLEPUIS                     "]
[69,0,6,"B085","Y","    ","LE PASSET                 ",3,"AMPLEPUIS                     "]
[69,0,6,"B086","Z","    ","LA PERAUDIERE             ",3,"AMPLEPUIS                     "]
[69,0,6,"B087","A","    ","RIVIERE                   ",3,"AMPLEPUIS                     "]
[69,0,6,"B088","B","    ","LES PETITS BROTTEAUX      ",3,"AMPLEPUIS                     "]
[69,0,6,"B089","C","    ","PICHOMARD                 ",3,"AMPLEPUIS                     "]
[69,0,6,"B090","D","    ","LA PIERRE                 ",3,"AMPLEPUIS                     "]
[69,0,6,"B091","E","    ","PIERROLAND                ",3,"AMPLEPUIS                     "]
[69,0,6,"B092","F","    ","LE PIJEAN                 ",3,"AMPLEPUIS                     "]
[69,0,6,"B093","G","    ","PINS DE LA LIBERTE        ",3,"AMPLEPUIS                     "]
[69,0,6,"B094","H","    ","LES PLACES                ",3,"AMPLEPUIS                     "]
[69,0,6,"B095","J","    ","LES PLANCHES              ",3,"AMPLEPUIS                     "]
[69,0,6,"B096","K","    ","AU PLAT                   ",3,"AMPLEPUIS                     "]
[69,0,6,"B097","L","    ","PRAGADON                  ",3,"AMPLEPUIS                     "]
[69,0,6,"B098","M","    ","LE PRAY                   ",3,"AMPLEPUIS                     "]
[69,0,6,"B099","N","    ","LE PUITS                  ",3,"AMPLEPUIS                     "]
[69,0,6,"B100","P","    ","LA QUARANTAINE            ",3,"AMPLEPUIS                     "]
[69,0,6,"B101","R","    ","RANCON                    ",3,"AMPLEPUIS                     "]
[69,0,6,"B102","S","    ","REBE                      ",3,"AMPLEPUIS                     "]
[69,0,6,"B103","T","    ","REVERDY                   ",3,"AMPLEPUIS                     "]
[69,0,6,"B104","U","    ","REVILLON                  ",3,"AMPLEPUIS                     "]
[69,0,6,"B105","V","    ","LA RIVIERE                ",3,"AMPLEPUIS                     "]
[69,0,6,"B106","W","    ","ROCHEFORT NORD            ",3,"AMPLEPUIS                     "]
[69,0,6,"B107","X","    ","ROCHEFORT SUD             ",3,"AMPLEPUIS                     "]
[69,0,6,"B108","Y","    ","LE RODET                  ",3,"AMPLEPUIS                     "]
[69,0,6,"B109","Z","    ","ROUSSILLON                ",3,"AMPLEPUIS                     "]
[69,0,6,"B110","A","    ","RUIRE                     ",3,"AMPLEPUIS                     "]
[69,0,6,"B111","B","    ","SAINT ANTOINE             ",3,"AMPLEPUIS                     "]
[69,0,6,"B112","C","    ","SAINT LAGER               ",3,"AMPLEPUIS                     "]
[69,0,6,"B113","D","    ","SANDRIN                   ",3,"AMPLEPUIS                     "]
[69,0,6,"B114","E","    ","SILLOUX NORD              ",3,"AMPLEPUIS                     "]
[69,0,6,"B115","F","    ","SILLOUX SUD               ",3,"AMPLEPUIS                     "]
[69,0,6,"B116","G","    ","TERRES CHENEVIER          ",3,"AMPLEPUIS                     "]
[69,0,6,"B117","H","    ","TERRES DE PRAY            ",3,"AMPLEPUIS                     "]
[69,0,6,"B118","J","    ","LE THIVARD                ",3,"AMPLEPUIS                     "]
[69,0,6,"B119","K","    ","TREMBLAY                  ",3,"AMPLEPUIS                     "]
[69,0,6,"B120","L","    ","VARAINE                   ",3,"AMPLEPUIS                     "]
[69,0,6,"B121","M","    ","VARENNE                   ",3,"AMPLEPUIS                     "]
[69,0,6,"B122","N","    ","VERNAY                    ",3,"AMPLEPUIS                     "]
[69,0,6,"B123","P","    ","VERNAYES                  ",3,"AMPLEPUIS                     "]
[69,0,6,"B124","R","    ","VERVAS                    ",3,"AMPLEPUIS                     "]
[69,0,6,"B125","S","    ","LA VIGNE                  ",3,"AMPLEPUIS                     "]
[69,0,6,"B126","T","    ","ZACHARIE                  ",3,"AMPLEPUIS                     "]
[69,0,6,"B127","U","    ","LE BERTHIOT               ",3,"AMPLEPUIS                     "]
[69,0,6,"B128","V","    ","LE BLANCHON               ",3,"AMPLEPUIS                     "]
[69,0,6,"B129","W","    ","LA CLAYE                  ",3,"AMPLEPUIS                     "]
[69,0,6,"B130","X","    ","COMELANDE                 ",3,"AMPLEPUIS                     "]
[69,0,6,"B131","Y","    ","CRET DE CHAPET            ",3,"AMPLEPUIS                     "]
[69,0,6,"B132","Z","    ","LA CROZE                  ",3,"AMPLEPUIS                     "]
[69,0,6,"B133","A","    ","LA DEMI LUNE              ",3,"AMPLEPUIS                     "]
[69,0,6,"B134","B","    ","LA DONCHEE                ",3,"AMPLEPUIS                     "]
[69,0,6,"B135","C","    ","LA GAITE                  ",3,"AMPLEPUIS                     "]
[69,0,6,"B136","D","    ","LES GOUTTES               ",3,"AMPLEPUIS                     "]
[69,0,6,"B137","E","    ","CHEZ GUYOT                ",3,"AMPLEPUIS                     "]
[69,0,6,"B138","F","    ","MARGOTTON                 ",3,"AMPLEPUIS                     "]
[69,0,6,"B139","G","    ","LE MAS                    ",3,"AMPLEPUIS                     "]
[69,0,6,"B140","H","    ","CHEZ PALOT                ",3,"AMPLEPUIS                     "]
[69,0,6,"B141","J","    ","LE PERROTON               ",3,"AMPLEPUIS                     "]
[69,0,6,"B142","K","    ","LE PILON                  ",3,"AMPLEPUIS                     "]
[69,0,6,"B143","L","    ","PIMPIAT                   ",3,"AMPLEPUIS                     "]
[69,0,6,"B144","M","    ","LES PINS                  ",3,"AMPLEPUIS                     "]
[69,0,6,"B145","N","    ","LA PLATTE                 ",3,"AMPLEPUIS                     "]
[69,0,6,"B146","P","    ","CHEZ PRALUS               ",3,"AMPLEPUIS                     "]
[69,0,6,"B147","R","    ","LA REMISE                 ",3,"AMPLEPUIS                     "]
[69,0,6,"B148","S","    ","LE THIVOYON               ",3,"AMPLEPUIS                     "]
[69,0,6,"B149","T","    ","CHEZ LE VIEUX             ",3,"AMPLEPUIS                     "]
[69,0,6,"B150","U","    ","CHEZ PONTEILLE            ",3,"AMPLEPUIS                     "]
[69,0,6,"B151","V","    ","LE DETOUT                 ",3,"AMPLEPUIS                     "]
[69,0,6,10,"K","RUE ","ADOLPHE DETAIX            ",1,"AMPLEPUIS                     "]
[69,0,6,15,"R","CHEM","DES ALLOUETS              ",1,"AMPLEPUIS                     "]
[69,0,6,20,"W","RUE ","DE L ANCIENNE PROVIDENCE  ",1,"AMPLEPUIS                     "]
[69,0,6,40,"T","IMP ","DE L ANCIENNE PROVIDENCE  ",1,"AMPLEPUIS                     "]
[69,0,6,45,"Y","RUE ","ANDRE MALRAUX             ",1,"AMPLEPUIS                     "]
[69,0,6,60,"P","PL  ","D ARMES                   ",1,"AMPLEPUIS                     "]
[69,0,6,80,"L","RUE ","AUGUSTE VILLY             ",1,"AMPLEPUIS                     "]
[69,0,6,90,"X","CHE ","DE BAGATELLE              ",1,"AMPLEPUIS                     "]
[69,0,6,91,"Y","CHEM","DE BALIGAGE               ",1,"AMPLEPUIS                     "]
[69,0,6,93,"A","IMP ","DE BARBERET               ",1,"AMPLEPUIS                     "]
[69,0,6,95,"C","CHEM","DE BARONNIE               ",1,"AMPLEPUIS                     "]
[69,0,6,96,"D","CHEM","DU BAS DE CHAPET          ",1,"AMPLEPUIS                     "]
[69,0,6,97,"E","IMP ","DU BAS DE CHARIVET        ",1,"AMPLEPUIS                     "]
[69,0,6,98,"F","CHEM","DU BAS DE VARENNE         ",1,"AMPLEPUIS                     "]
[69,0,6,99,"G","CHEM","DE BECY                   ",1,"AMPLEPUIS                     "]
[69,0,6,100,"H","RUE ","DE BELFORT                ",1,"AMPLEPUIS                     "]
[69,0,6,120,"E","PL  ","BELFORT                   ",1,"AMPLEPUIS                     "]
[69,0,6,124,"J","CHEM","DE BERLAND                ",1,"AMPLEPUIS                     "]
[69,0,6,126,"L","CHEM","DE BERNISSE               ",1,"AMPLEPUIS                     "]
[69,0,6,130,"R","IMP ","BERTHIOT                  ",1,"AMPLEPUIS                     "]
[69,0,6,161,"Z","CHEM","DE LA BISSACHERE          ",1,"AMPLEPUIS                     "]
[69,0,6,164,"C","CHEM","DE BLANCHON               ",1,"AMPLEPUIS                     "]
[69,0,6,167,"F","ALL ","DES BLEUETS               ",1,"AMPLEPUIS                     "]
[69,0,6,170,"J","IMP ","DU BOIS DE RUIRE          ",1,"AMPLEPUIS                     "]
[69,0,6,171,"K","RUE ","DU BOIS DES MOLLIERES     ",1,"AMPLEPUIS                     "]
[69,0,6,172,"L","IMP ","DU BOIS ROUGE             ",1,"AMPLEPUIS                     "]
[69,0,6,175,"P","ALL ","DU BONHEUR                ",1,"AMPLEPUIS                     "]
[69,0,6,177,"S","CHEM","DE LA BOUCLE              ",1,"AMPLEPUIS                     "]
[69,0,6,180,"V","RUE ","BOURBON                   ",1,"AMPLEPUIS                     "]
[69,0,6,200,"S","PL  ","DE LA BOUVERIE            ",1,"AMPLEPUIS                     "]
[69,0,6,201,"T","RUE ","DE LA BOUVERIE            ",1,"AMPLEPUIS                     "]
[69,0,6,210,"C","IMP ","DU BRACOU                 ",1,"AMPLEPUIS                     "]
[69,0,6,220,"N","CHE ","DE BREGADE                ",1,"AMPLEPUIS                     "]
[69,0,6,240,"K","CHE ","DE LA BROSSE              ",1,"AMPLEPUIS                     "]
[69,0,6,245,"R","CHEM","DE BURON                  ",1,"AMPLEPUIS                     "]
[69,0,6,250,"W","ALL ","DES CAMELIAS              ",1,"AMPLEPUIS                     "]
[69,0,6,252,"Y","RUE ","DES CAPUCINES             ",1,"AMPLEPUIS                     "]
[69,0,6,258,"E","IMP ","DES CHENES                ",1,"AMPLEPUIS                     "]
[69,0,6,260,"G","RUE ","CENTRALE                  ",1,"AMPLEPUIS                     "]
[69,0,6,262,"J","CHEM","DE LA CERISE              ",1,"AMPLEPUIS                     "]
[69,0,6,264,"L","CHEM","DE CHADOIX                ",1,"AMPLEPUIS                     "]
[69,0,6,266,"N","CHEM","DE CHAPET                 ",1,"AMPLEPUIS                     "]
[69,0,6,268,"R","IMP ","CHAPET - CROZET           ",1,"AMPLEPUIS                     "]
[69,0,6,270,"T","CHEM","DE CHARIVET               ",1,"AMPLEPUIS                     "]
[69,0,6,272,"V","CHEM","DU CHATEAU D'EAU          ",1,"AMPLEPUIS                     "]
[69,0,6,274,"X","CHEM","DU CHATEAU DE ROCHEFORT   ",1,"AMPLEPUIS                     "]
[69,0,6,275,"Y","CHEM","DE CHEZ CHENEVIER         ",1,"AMPLEPUIS                     "]
[69,0,6,276,"Z","CHEM","DE CHEZ GUERRE            ",1,"AMPLEPUIS                     "]
[69,0,6,277,"A","CHEM","DE CHEZ PALOT             ",1,"AMPLEPUIS                     "]
[69,0,6,279,"C","IMP ","DE CHIMERE                ",1,"AMPLEPUIS                     "]
[69,0,6,280,"D","PL  ","CHAUMIENE                 ",1,"AMPLEPUIS                     "]
[69,0,6,281,"E","CHEM","DU CHIZAL                 ",1,"AMPLEPUIS                     "]
[69,0,6,282,"F","IMP ","DU CLOU                   ",1,"AMPLEPUIS                     "]
[69,0,6,283,"G","IMP ","COLAS                     ",1,"AMPLEPUIS                     "]
[69,0,6,284,"H","CHEM","DE LA COMBE               ",1,"AMPLEPUIS                     "]
[69,0,6,285,"J","CHE ","DE LA CLAIRIERE           ",1,"AMPLEPUIS                     "]
[69,0,6,287,"L","IMP ","DES COQUELICOTS           ",1,"AMPLEPUIS                     "]
[69,0,6,289,"N","BD  ","DE COUCY                  ",1,"AMPLEPUIS                     "]
[69,0,6,290,"P","CHE ","DE COUCY                  ",1,"AMPLEPUIS                     "]
[69,0,6,291,"R","PAS ","DES COTEAUX DU PARADIS    ",1,"AMPLEPUIS                     "]
[69,0,6,292,"S","IMP ","DES COTEAUX DU PARADIS    ",1,"AMPLEPUIS                     "]
[69,0,6,295,"V","RTE ","DE CUBLIZE                ",1,"AMPLEPUIS                     "]
[69,0,6,296,"W","CD  ","NO 10                     ",1,"AMPLEPUIS                     "]
[69,0,6,297,"X","IMP ","DETAIX                    ",1,"AMPLEPUIS                     "]
[69,0,6,298,"Y","RUE ","DANIEL FARGEOT            ",1,"AMPLEPUIS                     "]
[69,0,6,300,"A","RUE ","DU DOCTEUR BOURNET        ",1,"AMPLEPUIS                     "]
[69,0,6,312,"N","IMP ","DE LA DONCHEE             ",1,"AMPLEPUIS                     "]
[69,0,6,320,"X","RUE ","DE L EGALITE              ",1,"AMPLEPUIS                     "]
[69,0,6,330,"H","PAS ","DE L'EGLISE               ",1,"AMPLEPUIS                     "]
[69,0,6,332,"K","IMP ","DE L ETANG DE MAS         ",1,"AMPLEPUIS                     "]
[69,0,6,338,"S","IMP ","DE L ETOILE               ",1,"AMPLEPUIS                     "]
[69,0,6,340,"U","RUE ","EUGENE DECHELETTE         ",1,"AMPLEPUIS                     "]
[69,0,6,350,"E","PL  ","DE L EUROPE               ",1,"AMPLEPUIS                     "]
[69,0,6,352,"G","RPT ","DE LA FERME               ",1,"AMPLEPUIS                     "]
[69,0,6,360,"R","IMP ","DE LA FOLLETIERE          ",1,"AMPLEPUIS                     "]
[69,0,6,380,"M","RUE ","DES FONTAINES             ",1,"AMPLEPUIS                     "]
[69,0,6,385,"T","IMP ","FOREST                    ",1,"AMPLEPUIS                     "]
[69,0,6,400,"J","RTE ","DE FOURNEAUX              ",1,"AMPLEPUIS                     "]
[69,0,6,410,"V","RUE ","DE FOURNEAUX              ",1,"AMPLEPUIS                     "]
[69,0,6,412,"X","RUE ","FRANCOIS MITTERRAND       ",1,"AMPLEPUIS                     "]
[69,0,6,413,"Y","IMP ","DU FRENE                  ",1,"AMPLEPUIS                     "]
[69,0,6,414,"Z","CHE ","DE LA GAIETE              ",1,"AMPLEPUIS                     "]
[69,0,6,416,"B","CHEM","DE LA GALERIE             ",1,"AMPLEPUIS                     "]
[69,0,6,420,"F","AV  ","DE LA GARE                ",1,"AMPLEPUIS                     "]
[69,0,6,422,"H","CHE ","DE LA GARE                ",1,"AMPLEPUIS                     "]
[69,0,6,424,"K","PL  ","DE LA GARE                ",1,"AMPLEPUIS                     "]
[69,0,6,440,"C","PL  ","GENERAL DE GAULLE         ",1,"AMPLEPUIS                     "]
[69,0,6,448,"L","SQ  ","GEORGES JORY              ",1,"AMPLEPUIS                     "]
[69,0,6,450,"N","RUE ","GEORGES PLASSE            ",1,"AMPLEPUIS                     "]
[69,0,6,451,"P","IMP ","GEORGES PLASSE            ",1,"AMPLEPUIS                     "]
[69,0,6,454,"T","RUE ","GEORGES POMPIDOU          ",1,"AMPLEPUIS                     "]
[69,0,6,455,"U","RTE ","DES GORDIAS               ",1,"AMPLEPUIS                     "]
[69,0,6,456,"V","IMP ","DE GOUJARD                ",1,"AMPLEPUIS                     "]
[69,0,6,457,"W","CHEM","DES GOUTTES               ",1,"AMPLEPUIS                     "]
[69,0,6,458,"X","IMP ","DE GRANGE NEUVE           ",1,"AMPLEPUIS                     "]
[69,0,6,460,"Z","RUE ","GRAS                      ",1,"AMPLEPUIS                     "]
[69,0,6,462,"B","IMP ","DU GRESIL                 ",1,"AMPLEPUIS                     "]
[69,0,6,464,"D","CHEM","DES GRIS                  ",1,"AMPLEPUIS                     "]
[69,0,6,465,"E","CHEM","DE GROLET                 ",1,"AMPLEPUIS                     "]
[69,0,6,466,"F","CHEM","GUILLOUX                  ",1,"AMPLEPUIS                     "]
[69,0,6,468,"H","IMP ","GUYOT                     ",1,"AMPLEPUIS                     "]
[69,0,6,482,"Y","CHEM","DES HAUTS DE LA PIERRE    ",1,"AMPLEPUIS                     "]
[69,0,6,498,"R","IMP ","DE L HOTEL DE VILLE       ",1,"AMPLEPUIS                     "]
[69,0,6,500,"T","PL  ","DE L HOTEL DE VILLE       ",1,"AMPLEPUIS                     "]
[69,0,6,520,"P","RUE ","DE L HOTEL DE VILLE       ",1,"AMPLEPUIS                     "]
[69,0,6,550,"X","RUE ","HENRI DAMET               ",1,"AMPLEPUIS                     "]
[69,0,6,555,"C","RUE ","DU HUIT MAI 1945          ",1,"AMPLEPUIS                     "]
[69,0,6,560,"H","PL  ","DE L INDUSTRIE            ",1,"AMPLEPUIS                     "]
[69,0,6,570,"U","RUE ","JEAN FRIZON               ",1,"AMPLEPUIS                     "]
[69,0,6,572,"W","RUE ","JEAN GOUJAT               ",1,"AMPLEPUIS                     "]
[69,0,6,574,"Y","RUE ","JEAN MERMOZ               ",1,"AMPLEPUIS                     "]
[69,0,6,575,"Z","AV  ","JEAN MOOS                 ",1,"AMPLEPUIS                     "]
[69,0,6,576,"A","RUE ","JEAN MOULIN               ",1,"AMPLEPUIS                     "]
[69,0,6,577,"B","PAS ","JEAN MOULIN               ",1,"AMPLEPUIS                     "]
[69,0,6,578,"C","PLA ","JEAN MOULIN               ",1,"AMPLEPUIS                     "]
[69,0,6,580,"E","RUE ","J P BLEIN                 ",1,"AMPLEPUIS                     "]
[69,0,6,600,"B","RUE ","JEANNETTE PONTEILLE       ",1,"AMPLEPUIS                     "]
[69,0,6,601,"C","IMP ","JOANIN                    ",1,"AMPLEPUIS                     "]
[69,0,6,602,"D","RTE ","DE JOASSON                ",1,"AMPLEPUIS                     "]
[69,0,6,605,"G","ALL ","DES JONQUILLES            ",1,"AMPLEPUIS                     "]
[69,0,6,610,"M","RUE ","JOSEPH VIGNON             ",1,"AMPLEPUIS                     "]
[69,0,6,612,"P","RUE ","DE JOYEUSE                ",1,"AMPLEPUIS                     "]
[69,0,6,613,"R","IMP ","DE LA JULIANERIE          ",1,"AMPLEPUIS                     "]
[69,0,6,614,"S","IMP ","DU BAS DE LAFARGE         ",1,"AMPLEPUIS                     "]
[69,0,6,615,"T","PL  ","DU 14 JUILLET 1790        ",1,"AMPLEPUIS                     "]
[69,0,6,616,"U","CHEM","DE LAFARGE                ",1,"AMPLEPUIS                     "]
[69,0,6,617,"V","RUE ","DES LILAS                 ",1,"AMPLEPUIS                     "]
[69,0,6,618,"W","IMP ","DE LA LOIVE               ",1,"AMPLEPUIS                     "]
[69,0,6,620,"Y","PL  ","LOUBEAU                   ",1,"AMPLEPUIS                     "]
[69,0,6,622,"A","RUE ","LOUBEAU                   ",1,"AMPLEPUIS                     "]
[69,0,6,624,"C","RUE ","LOUIS GUEYDON             ",1,"AMPLEPUIS                     "]
[69,0,6,635,"P","IMP ","DES LYS                   ",1,"AMPLEPUIS                     "]
[69,0,6,640,"V","RTE ","DE MACHEZAL               ",1,"AMPLEPUIS                     "]
[69,0,6,648,"D","RUE ","MARCEL PAGNOL             ",1,"AMPLEPUIS                     "]
[69,0,6,649,"E","RUE ","DES MARGUERITES           ",1,"AMPLEPUIS                     "]
[69,0,6,650,"F","RUE ","MAURICE PERRODON          ",1,"AMPLEPUIS                     "]
[69,0,6,652,"H","RUE ","MENDES FRANCE             ",1,"AMPLEPUIS                     "]
[69,0,6,654,"K","SQ  ","MICHEL LABROSSE           ",1,"AMPLEPUIS                     "]
[69,0,6,655,"L","ALL ","DES MILLE FLEURS          ",1,"AMPLEPUIS                     "]
[69,0,6,656,"M","IMP ","DE MIOLAND                ",1,"AMPLEPUIS                     "]
[69,0,6,657,"N","CHEM","DU MONT                   ",1,"AMPLEPUIS                     "]
[69,0,6,658,"P","RUE ","DES MUGUETS               ",1,"AMPLEPUIS                     "]
[69,0,6,660,"S","RUE ","NEUVE                     ",1,"AMPLEPUIS                     "]
[69,0,6,664,"W","RUE ","DE NEVERS                 ",1,"AMPLEPUIS                     "]
[69,0,6,665,"X","CHEM","DES NIOULES               ",1,"AMPLEPUIS                     "]
[69,0,6,678,"L","VC  ","DU NORD                   ",1,"AMPLEPUIS                     "]
[69,0,6,680,"N","RUE ","DU NORD                   ",1,"AMPLEPUIS                     "]
[69,0,6,690,"Z","RUE ","DU ONZE NOVEMBRE 1918     ",1,"AMPLEPUIS                     "]
[69,0,6,696,"F","CHE ","DU PASSET                 ",1,"AMPLEPUIS                     "]
[69,0,6,698,"H","IMP ","DU PASSET                 ",1,"AMPLEPUIS                     "]
[69,0,6,700,"K","RUE ","PAUL DE LA GOUTTE         ",1,"AMPLEPUIS                     "]
[69,0,6,705,"R","RUE ","PAUL GIRAUD               ",1,"AMPLEPUIS                     "]
[69,0,6,720,"G","RUE ","DU PAVILLON               ",1,"AMPLEPUIS                     "]
[69,0,6,721,"H","RUE ","DE LA PEPINIERE           ",1,"AMPLEPUIS                     "]
[69,0,6,722,"J","IMP ","PERRETON                  ",1,"AMPLEPUIS                     "]
[69,0,6,723,"K","CHEM","DE LA PETITE AUBERGE      ",1,"AMPLEPUIS                     "]
[69,0,6,725,"M","CHE ","DU PETIT BOIS             ",1,"AMPLEPUIS                     "]
[69,0,6,726,"N","CHEM","DE LA PIERRE              ",1,"AMPLEPUIS                     "]
[69,0,6,727,"P","CHEM","DE PIERROLAND             ",1,"AMPLEPUIS                     "]
[69,0,6,728,"R","CHEM","DU PILON                  ",1,"AMPLEPUIS                     "]
[69,0,6,729,"S","IMP ","DE PIMPIA                 ",1,"AMPLEPUIS                     "]
[69,0,6,730,"T","CHE ","DES PLACES                ",1,"AMPLEPUIS                     "]
[69,0,6,731,"U","MTE ","DES PLACES                ",1,"AMPLEPUIS                     "]
[69,0,6,740,"D","RUE ","DES PLANCHES              ",1,"AMPLEPUIS                     "]
[69,0,6,741,"E","CHEM","DU PLAT                   ",1,"AMPLEPUIS                     "]
[69,0,6,742,"F","IMP ","DU PLAT                   ",1,"AMPLEPUIS                     "]
[69,0,6,743,"G","CHEM","PONTET                    ",1,"AMPLEPUIS                     "]
[69,0,6,744,"H","IMP ","DU PORTIER                ",1,"AMPLEPUIS                     "]
[69,0,6,745,"J","PAS ","DE LA POSTE               ",1,"AMPLEPUIS                     "]
[69,0,6,746,"K","IMP ","DU PRALUS                 ",1,"AMPLEPUIS                     "]
[69,0,6,747,"L","IMP ","DU PRAY                   ",1,"AMPLEPUIS                     "]
[69,0,6,750,"P","BD  ","DE RANCON                 ",1,"AMPLEPUIS                     "]
[69,0,6,751,"R","CHEM","DU PLAT DE RANCON         ",1,"AMPLEPUIS                     "]
[69,0,6,752,"S","AV  ","RAOUL FOLLEREAU           ",1,"AMPLEPUIS                     "]
[69,0,6,753,"T","CHEM","DE REBE                   ",1,"AMPLEPUIS                     "]
[69,0,6,755,"V","CHE ","DE LA REMISE              ",1,"AMPLEPUIS                     "]
[69,0,6,760,"A","CHE ","DU REVERDY                ",1,"AMPLEPUIS                     "]
[69,0,6,780,"X","RTE ","DE ROANNE                 ",1,"AMPLEPUIS                     "]
[69,0,6,782,"Z","CHEM","DE ROCHAGNY               ",1,"AMPLEPUIS                     "]
[69,0,6,783,"A","RTE ","DE ROCHEFORT              ",1,"AMPLEPUIS                     "]
[69,0,6,810,"E","CHEM","DE ROUSSILLON             ",1,"AMPLEPUIS                     "]
[69,0,6,818,"N","IMP ","SAINT ANTOINE             ",1,"AMPLEPUIS                     "]
[69,0,6,820,"R","RUE ","SAINT ANTOINE             ",1,"AMPLEPUIS                     "]
[69,0,6,825,"W","RTE ","DE SAINT CLAUDE           ",1,"AMPLEPUIS                     "]
[69,0,6,827,"Y","RTE ","DE SAINT CLAUDE HUISSEL   ",1,"AMPLEPUIS                     "]
[69,0,6,830,"B","IMP ","SAINT EXUPERY             ",1,"AMPLEPUIS                     "]
[69,0,6,840,"M","RUE ","SAINT JOSEPH              ",1,"AMPLEPUIS                     "]
[69,0,6,858,"G","PL  ","SAINT PAUL                ",1,"AMPLEPUIS                     "]
[69,0,6,860,"J","RUE ","SAINT PAUL                ",1,"AMPLEPUIS                     "]
[69,0,6,879,"E","PAS ","SAINT PHILIBERT           ",1,"AMPLEPUIS                     "]
[69,0,6,880,"F","RUE ","SAINT PHILIBERT           ",1,"AMPLEPUIS                     "]
[69,0,6,899,"B","IMP ","ST ROCH                   ",1,"AMPLEPUIS                     "]
[69,0,6,900,"C","RUE ","SAINT ROCH                ",1,"AMPLEPUIS                     "]
[69,0,6,902,"E","RLE ","SAINT ROCH                ",1,"AMPLEPUIS                     "]
[69,0,6,920,"Z","RUE ","SAINTE LUCIE              ",1,"AMPLEPUIS                     "]
[69,0,6,922,"B","PL  ","SAINTE MARIE              ",1,"AMPLEPUIS                     "]
[69,0,6,924,"D","RUE ","SAINTE MARIE              ",1,"AMPLEPUIS                     "]
[69,0,6,926,"F","CHE ","DE SANDRIN                ",1,"AMPLEPUIS                     "]
[69,0,6,928,"H","RPT ","DU SAPIN VERT             ",1,"AMPLEPUIS                     "]
[69,0,6,929,"J","IMP ","DU SECHOU                 ",1,"AMPLEPUIS                     "]
[69,0,6,930,"K","CHEM","DE SILLOUX                ",1,"AMPLEPUIS                     "]
[69,0,6,931,"L","CHEM","DE LA STATION             ",1,"AMPLEPUIS                     "]
[69,0,6,950,"G","RTE ","DE TARARE                 ",1,"AMPLEPUIS                     "]
[69,0,6,953,"K","CHE ","DES TARDIERES             ",1,"AMPLEPUIS                     "]
[69,0,6,960,"T","RUE ","THIMONIER                 ",1,"AMPLEPUIS                     "]
[69,0,6,965,"Y","IMP ","DU THIVARD                ",1,"AMPLEPUIS                     "]
[69,0,6,1010,"X","CHEM","DU TREMBLAY               ",1,"AMPLEPUIS                     "]
[69,0,6,1015,"C","RUE ","DU TRESOR                 ",1,"AMPLEPUIS                     "]
[69,0,6,1018,"F","CHEM","DE VERVAS                 ",1,"AMPLEPUIS                     "]
[69,0,6,1020,"H","RUE ","DE LA VIDERIE             ",1,"AMPLEPUIS                     "]
[69,0,6,1040,"E","PL  ","VIETTY                    ",1,"AMPLEPUIS                     "]
[69,0,6,1041,"F","IMP ","DE CHEZ LE VIEUX          ",1,"AMPLEPUIS                     "]
[69,0,6,1060,"B","RUE ","DU VIEUX REVERDY          ",1,"AMPLEPUIS                     "]
[69,0,6,1062,"D","IMP ","DE LA RIVIERE             ",1,"AMPLEPUIS                     "]
[69,0,6,1064,"F","IMP ","DES ROSES                 ",1,"AMPLEPUIS                     "]
[69,0,6,1066,"H","IMP ","DE LA VALLEE              ",1,"AMPLEPUIS                     "]
[69,0,6,1068,"K","IMP ","DE LA VARENNE             ",1,"AMPLEPUIS                     "]
[69,0,6,1070,"M","IMP ","DES VARINES               ",1,"AMPLEPUIS                     "]
[69,0,6,1072,"P","IMP ","VERNAY                    ",1,"AMPLEPUIS                     "]
[69,0,6,1079,"X","CHEM","DE LA VIGNE               ",1,"AMPLEPUIS                     "]
[69,0,6,1080,"Y","IMP ","DE LA VIGNE               ",1,"AMPLEPUIS                     "]
[69,0,6,1082,"A","VC  ","DE LA VIGNE               ",1,"AMPLEPUIS                     "]
[69,0,6,1085,"D","CHEM","DU VIREMOULIN             ",1,"AMPLEPUIS                     "]
[69,0,6,1090,"J","IMP ","DES COTEAUX DE BREGADE    ",1,"AMPLEPUIS                     "]
[69,0,6,1100,"V","CHEM","DU CRET                   ",1,"AMPLEPUIS                     "]
[69,0,6,1110,"F","CHEM","DU CREUX                  ",1,"AMPLEPUIS                     "]
[69,0,6,1120,"S","IMP ","DU CREUX DE CHAPET        ",1,"AMPLEPUIS                     "]
[69,0,6,1130,"C","IMP ","DE LA CREUZE              ",1,"AMPLEPUIS                     "]
[69,0,6,1140,"N","CHEM","DU CROCOMBY               ",1,"AMPLEPUIS                     "]
[69,0,6,1150,"Z","IMP ","DE LA CROIX DES GOUTTES   ",1,"AMPLEPUIS                     "]
[69,0,6,1160,"K","CHEM","DE LA CROIX L'HORMET      ",1,"AMPLEPUIS                     "]
[69,0,6,1170,"W","IMP ","DE LA CROIX L'HORMET      ",1,"AMPLEPUIS                     "]
[69,0,6,1180,"G","CHEM","DE LA CROIX ROUSSE        ",1,"AMPLEPUIS                     "]
[69,0,6,1190,"T","CHEM","DE LA CROZE               ",1,"AMPLEPUIS                     "]
[69,0,6,1200,"D","IMP ","DU CROZET                 ",1,"AMPLEPUIS                     "]
[69,0,6,1210,"P","CHEM","DE LA CROZETTE            ",1,"AMPLEPUIS                     "]
[69,0,6,1220,"A","CHEM","DES CURES                 ",1,"AMPLEPUIS                     "]
[69,0,6,1230,"L","RTE ","DE LA DEMI LUNE           ",1,"AMPLEPUIS                     "]
[69,0,6,1240,"X","IMP ","DU DESERT                 ",1,"AMPLEPUIS                     "]
[69,0,6,1260,"U","IMP ","DU DETOUT                 ",1,"AMPLEPUIS                     "]
[69,0,6,1280,"R","CHEM","DE MARVALIN               ",1,"AMPLEPUIS                     "]
[69,0,6,1290,"B","IMP ","DU MONT                   ",1,"AMPLEPUIS                     "]
[69,0,6,1300,"M","CHEM","DE MONTCHERVET            ",1,"AMPLEPUIS                     "]
[69,0,6,1310,"Y","CHEM","DU MONTEILLET             ",1,"AMPLEPUIS                     "]
[69,0,6,1319,"H","CHEM","DU CRET DES PINS          ",1,"AMPLEPUIS                     "]
[69,0,6,1320,"J","IMP ","DES PINS                  ",1,"AMPLEPUIS                     "]
[69,0,6,1330,"V","CHEM","DU PIROLET                ",1,"AMPLEPUIS                     "]
[69,0,6,1340,"F","IMP ","DE LA PISCINE             ",1,"AMPLEPUIS                     "]
[69,0,7,"A022","N","LOT ","LE PETIT VAGNOT           ",2,"AMPUIS                        "]
[69,0,7,"A100","Y","RES ","DES VIGNES                ",2,"AMPUIS                        "]
[69,0,7,"B001","C","    ","L ARSELIE                 ",3,"AMPUIS                        "]
[69,0,7,"B002","D","    ","BACON                     ",3,"AMPUIS                        "]
[69,0,7,"B003","E","    ","BALEYAT                   ",3,"AMPUIS                        "]
[69,0,7,"B004","F","    ","BAS BOUCHAREY             ",3,"AMPUIS                        "]
[69,0,7,"B005","G","    ","BASSE VIALLIERE           ",3,"AMPUIS                        "]
[69,0,7,"B006","H","    ","BERTHOLON                 ",3,"AMPUIS                        "]
[69,0,7,"B007","J","    ","BESSET                    ",3,"AMPUIS                        "]
[69,0,7,"B008","K","    ","BONNIVIERES               ",3,"AMPUIS                        "]
[69,0,7,"B009","L","    ","BOUCHAREY                 ",3,"AMPUIS                        "]
[69,0,7,"B010","M","    ","LE BOURG                  ",3,"AMPUIS                        "]
[69,0,7,"B011","N","    ","LES BOURRELIERES          ",3,"AMPUIS                        "]
[69,0,7,"B012","P","    ","BRAMARET                  ",3,"AMPUIS                        "]
[69,0,7,"B013","R","    ","BRIBESAILLES              ",3,"AMPUIS                        "]
[69,0,7,"B014","S","    ","LA BROCARDE               ",3,"AMPUIS                        "]
[69,0,7,"B015","T","    ","LA BROSSE                 ",3,"AMPUIS                        "]
[69,0,7,"B016","U","    ","LE CARCAN                 ",3,"AMPUIS                        "]
[69,0,7,"B017","V","    ","CHAFFAGE                  ",3,"AMPUIS                        "]
[69,0,7,"B018","W","    ","CHAMPCORDAY               ",3,"AMPUIS                        "]
[69,0,7,"B019","X","    ","LE CHAMPIN                ",3,"AMPUIS                        "]
[69,0,7,"B020","Y","    ","LE CHAMPON                ",3,"AMPUIS                        "]
[69,0,7,"B021","Z","    ","LE CHANTIER               ",3,"AMPUIS                        "]
[69,0,7,"B022","A","    ","LE CHATEAU                ",3,"AMPUIS                        "]
[69,0,7,"B023","B","    ","CHATELON                  ",3,"AMPUIS                        "]
[69,0,7,"B024","C","    ","CHATILLON                 ",3,"AMPUIS                        "]
[69,0,7,"B025","D","    ","CHAUFFAGE                 ",3,"AMPUIS                        "]
[69,0,7,"B026","E","    ","CHAVAILLON                ",3,"AMPUIS                        "]
[69,0,7,"B027","F","    ","CHAVAROCHE                ",3,"AMPUIS                        "]
[69,0,7,"B028","G","    ","CHP ROND                  ",3,"AMPUIS                        "]
[69,0,7,"B029","H","    ","COGNET                    ",3,"AMPUIS                        "]
[69,0,7,"B030","J","    ","LA COLONGE                ",3,"AMPUIS                        "]
[69,0,7,"B031","K","    ","COMBACHEZ                 ",3,"AMPUIS                        "]
[69,0,7,"B032","L","    ","LE COMBARD                ",3,"AMPUIS                        "]
[69,0,7,"B033","M","    ","COMBE BERNARD             ",3,"AMPUIS                        "]
[69,0,7,"B034","N","    ","LES COMBES                ",3,"AMPUIS                        "]
[69,0,7,"B035","P","    ","LES CORINS                ",3,"AMPUIS                        "]
[69,0,7,"B036","R","    ","COTE BLONDE               ",3,"AMPUIS                        "]
[69,0,7,"B037","S","    ","COTE BODIN                ",3,"AMPUIS                        "]
[69,0,7,"B038","T","    ","COTE BRUNE                ",3,"AMPUIS                        "]
[69,0,7,"B039","U","    ","COTE FERREE               ",3,"AMPUIS                        "]
[69,0,7,"B040","V","    ","COTE ROZIER               ",3,"AMPUIS                        "]
[69,0,7,"B041","W","    ","LES COUTURES              ",3,"AMPUIS                        "]
[69,0,7,"B042","X","    ","LE CROPON                 ",3,"AMPUIS                        "]
[69,0,7,"B043","Y","    ","LES DIES                  ",3,"AMPUIS                        "]
[69,0,7,"B044","Z","    ","LES ENTES                 ",3,"AMPUIS                        "]
[69,0,7,"B045","A","    ","FAYARDET                  ",3,"AMPUIS                        "]
[69,0,7,"B046","B","    ","FONGEANT                  ",3,"AMPUIS                        "]
[69,0,7,"B047","C","    ","FOURVIER                  ",3,"AMPUIS                        "]
[69,0,7,"B048","D","    ","LE GARAT                  ",3,"AMPUIS                        "]
[69,0,7,"B049","E","    ","GD PLOMB                  ",3,"AMPUIS                        "]
[69,0,7,"B050","F","    ","LE GD PRE                 ",3,"AMPUIS                        "]
[69,0,7,"B051","G","    ","GERINE                    ",3,"AMPUIS                        "]
[69,0,7,"B052","H","    ","LE GIRARD                 ",3,"AMPUIS                        "]
[69,0,7,"B053","J","    ","LE GIRAUD                 ",3,"AMPUIS                        "]
[69,0,7,"B054","K","    ","LE GOUTAY                 ",3,"AMPUIS                        "]
[69,0,7,"B055","L","    ","LE GRAND BOIS             ",3,"AMPUIS                        "]
[69,0,7,"B056","M","    ","GRANDES PLACES            ",3,"AMPUIS                        "]
[69,0,7,"B057","N","    ","GRANDS TAILLIS            ",3,"AMPUIS                        "]
[69,0,7,"B058","P","    ","LE GRENOUILLAT            ",3,"AMPUIS                        "]
[69,0,7,"B059","R","    ","GUEROT                    ",3,"AMPUIS                        "]
[69,0,7,"B060","S","    ","ILE DE VERENAY            ",3,"AMPUIS                        "]
[69,0,7,"B061","T","    ","JANET                     ",3,"AMPUIS                        "]
[69,0,7,"B062","U","    ","LE LACAT                  ",3,"AMPUIS                        "]
[69,0,7,"B063","V","    ","LANCEMENT                 ",3,"AMPUIS                        "]
[69,0,7,"B064","W","    ","LA LANDONNE               ",3,"AMPUIS                        "]
[69,0,7,"B065","X","    ","LESARDES                  ",3,"AMPUIS                        "]
[69,0,7,"B066","Y","    ","LEYAT                     ",3,"AMPUIS                        "]
[69,0,7,"B067","Z","    ","LA MADINIERE              ",3,"AMPUIS                        "]
[69,0,7,"B068","A","    ","MANTELET                  ",3,"AMPUIS                        "]
[69,0,7,"B069","B","    ","MARSANNE                  ",3,"AMPUIS                        "]
[69,0,7,"B070","C","    ","MAUPERTUIS                ",3,"AMPUIS                        "]
[69,0,7,"B071","D","    ","LE MOLLARD                ",3,"AMPUIS                        "]
[69,0,7,"B072","E","    ","MONTMAIN                  ",3,"AMPUIS                        "]
[69,0,7,"B073","F","    ","MORNACHON                 ",3,"AMPUIS                        "]
[69,0,7,"B074","G","    ","MORNAS                    ",3,"AMPUIS                        "]
[69,0,7,"B075","H","    ","LES MOUTONNES             ",3,"AMPUIS                        "]
[69,0,7,"B076","J","    ","NAVE                      ",3,"AMPUIS                        "]
[69,0,7,"B077","K","    ","NEVE                      ",3,"AMPUIS                        "]
[69,0,7,"B078","L","    ","LA PLAINE                 ",3,"AMPUIS                        "]
[69,0,7,"B079","M","    ","LE PLOMB                  ",3,"AMPUIS                        "]
[69,0,7,"B080","N","    ","LE PORT                   ",3,"AMPUIS                        "]
[69,0,7,"B081","P","    ","LA RAIE                   ",3,"AMPUIS                        "]
[69,0,7,"B082","R","    ","LE RECRU                  ",3,"AMPUIS                        "]
[69,0,7,"B083","S","    ","RITOLAS                   ",3,"AMPUIS                        "]
[69,0,7,"B084","T","    ","LE RIVAL                  ",3,"AMPUIS                        "]
[69,0,7,"B085","U","    ","LA ROCHE                  ",3,"AMPUIS                        "]
[69,0,7,"B086","V","    ","ROCHINS                   ",3,"AMPUIS                        "]
[69,0,7,"B087","W","    ","ROUSSEILLY                ",3,"AMPUIS                        "]
[69,0,7,"B088","X","    ","ROZIER                    ",3,"AMPUIS                        "]
[69,0,7,"B089","Y","    ","LES SABLES                ",3,"AMPUIS                        "]
[69,0,7,"B090","Z","    ","SAUSAIE                   ",3,"AMPUIS                        "]
[69,0,7,"B091","A","    ","LE SORBIER                ",3,"AMPUIS                        "]
[69,0,7,"B092","B","    ","LA TAQUIERE               ",3,"AMPUIS                        "]
[69,0,7,"B093","C","    ","TARTARAS                  ",3,"AMPUIS                        "]
[69,0,7,"B094","D","    ","TERRES DE NAVE            ",3,"AMPUIS                        "]
[69,0,7,"B095","E","    ","LA TRAILLE                ",3,"AMPUIS                        "]
[69,0,7,"B096","F","    ","LE TRIEVES                ",3,"AMPUIS                        "]
[69,0,7,"B097","G","    ","LA TRIOTE                 ",3,"AMPUIS                        "]
[69,0,7,"B098","H","    ","LE TRUCHET                ",3,"AMPUIS                        "]
[69,0,7,"B099","J","    ","LE VAGNOT                 ",3,"AMPUIS                        "]
[69,0,7,"B100","K","    ","VALLIN                    ",3,"AMPUIS                        "]
[69,0,7,"B101","L","    ","VERENAY                   ",3,"AMPUIS                        "]
[69,0,7,"B102","M","    ","LA VIALLIERE              ",3,"AMPUIS                        "]
[69,0,7,"B103","N","    ","LE GRAND PRE              ",3,"AMPUIS                        "]
[69,0,7,"X001","E","    ","CENTRALE DE VAUGRIS       ",4,"AMPUIS                        "]
[69,0,7,"X002","F","    ","CTRLE PEAGE DE ROUSSILLON ",4,"AMPUIS                        "]
[69,0,7,5,"A","RUE ","DES ACACIAS               ",1,"AMPUIS                        "]
[69,0,7,7,"C","BD  ","DES ALLEES                ",1,"AMPUIS                        "]
[69,0,7,10,"F","CHE ","DU BAC                    ",1,"AMPUIS                        "]
[69,0,7,11,"G","CHE ","DE LA BASSE VIALLERE      ",1,"AMPUIS                        "]
[69,0,7,12,"H","IMP ","DE LA BASSE VIALLERE      ",1,"AMPUIS                        "]
[69,0,7,14,"K","CHE ","DE LA BROSSE              ",1,"AMPUIS                        "]
[69,0,7,15,"L","RTE ","DE BOUCHAREY              ",1,"AMPUIS                        "]
[69,0,7,16,"M","CHE ","DE LA BRUNETTE            ",1,"AMPUIS                        "]
[69,0,7,17,"N","RUE ","DE LA BROCARDE            ",1,"AMPUIS                        "]
[69,0,7,18,"P","IMP ","DE LA CAMETTE             ",1,"AMPUIS                        "]
[69,0,7,19,"R","RUE ","DU CARCAN                 ",1,"AMPUIS                        "]
[69,0,7,20,"S","AV  ","DU CHATEAU                ",1,"AMPUIS                        "]
[69,0,7,21,"T","RUE ","DU CENTRE                 ",1,"AMPUIS                        "]
[69,0,7,22,"U","RUE ","DE LA COTE BRUNE          ",1,"AMPUIS                        "]
[69,0,7,23,"V","CHE ","COTE ROTIE                ",1,"AMPUIS                        "]
[69,0,7,24,"W","CHE ","DES COUTURES              ",1,"AMPUIS                        "]
[69,0,7,25,"X","RTE ","DEPARTEMENTALE 386        ",1,"AMPUIS                        "]
[69,0,7,26,"Y","PL  ","DE L'EGLISE               ",1,"AMPUIS                        "]
[69,0,7,27,"Z","RUE ","DE LA FELODIERE           ",1,"AMPUIS                        "]
[69,0,7,28,"A","RUE ","DU GARAT                  ",1,"AMPUIS                        "]
[69,0,7,29,"B","COTE","DE LA GERINE              ",1,"AMPUIS                        "]
[69,0,7,30,"C","RUE ","DU GRAND PRE              ",1,"AMPUIS                        "]
[69,0,7,32,"E","RUE ","DU JARRE                  ",1,"AMPUIS                        "]
[69,0,7,34,"G","RTE ","DU LACAT                  ",1,"AMPUIS                        "]
[69,0,7,35,"H","RUE ","DU LOT. DES COTES ROTIES  ",1,"AMPUIS                        "]
[69,0,7,36,"J","RUE ","DES MARAICHERS            ",1,"AMPUIS                        "]
[69,0,7,37,"K","CHE ","DES MARRONNIERS           ",1,"AMPUIS                        "]
[69,0,7,38,"L","RUE ","DE MONTLYS                ",1,"AMPUIS                        "]
[69,0,7,39,"M","RUE ","DE MONTMAIN               ",1,"AMPUIS                        "]
[69,0,7,41,"P","CHE ","DU MOLLARD                ",1,"AMPUIS                        "]
[69,0,7,44,"T","RUE ","DU MOULIN                 ",1,"AMPUIS                        "]
[69,0,7,46,"V","RUE ","DES MOUTONNES             ",1,"AMPUIS                        "]
[69,0,7,60,"K","RUE ","DE LA PARISIENNE          ",1,"AMPUIS                        "]
[69,0,7,64,"P","PL  ","DE LA PASSERELLE          ",1,"AMPUIS                        "]
[69,0,7,70,"W","RUE ","DE LA PLAINE              ",1,"AMPUIS                        "]
[69,0,7,80,"G","RUE ","DES PLATANES              ",1,"AMPUIS                        "]
[69,0,7,90,"T","RUE ","DU PONT ROYAL             ",1,"AMPUIS                        "]
[69,0,7,100,"D","PTR ","PETITE RUE DU PORT        ",1,"AMPUIS                        "]
[69,0,7,110,"P","RUE ","DU PORT                   ",1,"AMPUIS                        "]
[69,0,7,130,"L","RTE ","DU RECRU                  ",1,"AMPUIS                        "]
[69,0,7,140,"X","RUE ","DU REVOUX                 ",1,"AMPUIS                        "]
[69,0,7,149,"G","MTE ","DE RITOLAS                ",1,"AMPUIS                        "]
[69,0,7,160,"U","RTE ","DE LA ROCHE               ",1,"AMPUIS                        "]
[69,0,7,170,"E","RTE ","DE ROZIER                 ",1,"AMPUIS                        "]
[69,0,7,185,"W","CHE ","DU SOLEIL                 ",1,"AMPUIS                        "]
[69,0,7,190,"B","IMP ","DU STADE                  ",1,"AMPUIS                        "]
[69,0,7,210,"Y","RTE ","DE LA TAQUIERE            ",1,"AMPUIS                        "]
[69,0,7,212,"A","RTE ","DE TARTARAS               ",1,"AMPUIS                        "]
[69,0,7,220,"J","CHE ","DE LA TRAILLE             ",1,"AMPUIS                        "]
[69,0,7,230,"V","IMP ","DU TRIEVES                ",1,"AMPUIS                        "]
[69,0,7,240,"F","RUE ","DU TRIEVES                ",1,"AMPUIS                        "]
[69,0,7,260,"C","RUE ","DU VAGNOT                 ",1,"AMPUIS                        "]
[69,0,7,270,"N","IMP ","DE LA VIALLIERE           ",1,"AMPUIS                        "]
[69,0,7,271,"P","CHE ","DE LA VIALLIERE           ",1,"AMPUIS                        "]
[69,0,7,272,"R","IMP ","DES VIGNES                ",1,"AMPUIS                        "]
[69,0,7,275,"U","RUE ","DU VIEUX RITOLAS          ",1,"AMPUIS                        "]
[69,0,7,280,"Z","AV  ","DE LA GARE                ",1,"AMPUIS                        "]
[69,0,7,281,"A","RUE ","JEAN JULIEN CHAPELANT     ",1,"AMPUIS                        "]
[69,0,7,292,"M","RTE ","DU CHAMPIN                ",1,"AMPUIS                        "]
[69,0,7,293,"N","RTE ","DU GIRAUD                 ",1,"AMPUIS                        "]
[69,0,7,294,"P","RUE ","DU JANET                  ",1,"AMPUIS                        "]
[69,0,7,295,"R","RUE ","DE LA BROSSE              ",1,"AMPUIS                        "]
[69,0,7,296,"S","RUE ","DE LA VIEILLE BROSSE      ",1,"AMPUIS                        "]
[69,0,7,300,"W","IMP ","DE L'AULIN                ",1,"AMPUIS                        "]
[69,0,7,310,"G","RTE ","DE BRAMARET               ",1,"AMPUIS                        "]
[69,0,7,320,"T","RTE ","DE CHARFFAGE              ",1,"AMPUIS                        "]
[69,0,7,321,"U","CHE ","DES CHATAIGNIERS          ",1,"AMPUIS                        "]
[69,0,7,322,"V","RTE ","DE CHAVAILLON             ",1,"AMPUIS                        "]
[69,0,7,323,"W","CHE ","DU GROS CHENE             ",1,"AMPUIS                        "]
[69,0,7,325,"Y","CHE ","DU COMBARD                ",1,"AMPUIS                        "]
[69,0,7,327,"A","CHE ","DES CORENDIES             ",1,"AMPUIS                        "]
[69,0,7,330,"D","CHE ","DE COTE FERREE            ",1,"AMPUIS                        "]
[69,0,7,335,"J","CHE ","DE L' ETANG               ",1,"AMPUIS                        "]
[69,0,7,340,"P","CHE ","DE FAYARDET               ",1,"AMPUIS                        "]
[69,0,7,348,"Y","CHE ","DES GRANDS FRENES         ",1,"AMPUIS                        "]
[69,0,7,350,"A","RUE ","GABRIEL VANEL             ",1,"AMPUIS                        "]
[69,0,7,360,"L","CHE ","DES LABOUREURS            ",1,"AMPUIS                        "]
[69,0,7,365,"S","CHE ","DE LA MADINIERE           ",1,"AMPUIS                        "]
[69,0,7,370,"X","IMP ","DE LA MINE                ",1,"AMPUIS                        "]
[69,0,7,372,"Z","CHE ","DE MORNAS                 ",1,"AMPUIS                        "]
[69,0,7,382,"K","CHE ","DE GRAND PLOMB            ",1,"AMPUIS                        "]
[69,0,7,390,"U","CHE ","DE LA ROSE                ",1,"AMPUIS                        "]
[69,0,7,395,"Z","CHE ","DE ROUSSEILLY             ",1,"AMPUIS                        "]
[69,0,7,400,"E","CHE ","DES SERRES VERTES         ",1,"AMPUIS                        "]
[69,0,8,"B001","Y","    ","ARJOUX                    ",3,"ANCY                          "]
[69,0,8,"B002","Z","    ","LE BANCILLON              ",3,"ANCY                          "]
[69,0,8,"B003","A","    ","LE BAS D ARJOUX           ",3,"ANCY                          "]
[69,0,8,"B004","B","    ","LES BOIS D ARJOUX         ",3,"ANCY                          "]
[69,0,8,"B005","C","    ","LE BOIS PIVOT             ",3,"ANCY                          "]
[69,0,8,"B006","D","    ","LE BOURG                  ",3,"ANCY                          "]
[69,0,8,"B007","E","    ","BREZET                    ",3,"ANCY                          "]
[69,0,8,"B008","F","    ","LES CHAPOTIERES           ",3,"ANCY                          "]
[69,0,8,"B009","G","    ","LES CHATAIGNERAIES        ",3,"ANCY                          "]
[69,0,8,"B010","H","    ","LA COTE                   ",3,"ANCY                          "]
[69,0,8,"B011","J","    ","LE COUVENT                ",3,"ANCY                          "]
[69,0,8,"B012","K","    ","LE CRET                   ",3,"ANCY                          "]
[69,0,8,"B013","L","    ","LE CRET D ARJOUX          ",3,"ANCY                          "]
[69,0,8,"B014","M","    ","CROIX MURIER              ",3,"ANCY                          "]
[69,0,8,"B015","N","    ","L ELITE                   ",3,"ANCY                          "]
[69,0,8,"B016","P","    ","LE GAYNON                 ",3,"ANCY                          "]
[69,0,8,"B017","R","    ","LES GOUTTES               ",3,"ANCY                          "]
[69,0,8,"B018","S","    ","LE GRAND BOIS             ",3,"ANCY                          "]
[69,0,8,"B019","T","    ","LES HUMBERTS BAS          ",3,"ANCY                          "]
[69,0,8,"B020","U","    ","LES HUMBERTS HAUTS        ",3,"ANCY                          "]
[69,0,8,"B021","V","    ","LA LIOUFFE                ",3,"ANCY                          "]
[69,0,8,"B022","W","    ","MAILLARD NORD             ",3,"ANCY                          "]
[69,0,8,"B023","X","    ","MAILLARD SUD              ",3,"ANCY                          "]
[69,0,8,"B024","Y","    ","LE MAS SAINT JEAN         ",3,"ANCY                          "]
[69,0,8,"B025","Z","    ","MATILLON                  ",3,"ANCY                          "]
[69,0,8,"B026","A","    ","LE MOLLON                 ",3,"ANCY                          "]
[69,0,8,"B027","B","    ","LE MONIN                  ",3,"ANCY                          "]
[69,0,8,"B028","C","    ","MONTMENOT                 ",3,"ANCY                          "]
[69,0,8,"B029","D","    ","LE MULLIN                 ",3,"ANCY                          "]
[69,0,8,"B030","E","    ","LE PELERAT                ",3,"ANCY                          "]
[69,0,8,"B031","F","    ","LE REBORGNI               ",3,"ANCY                          "]
[69,0,8,"B032","G","    ","LE SINDIC                 ",3,"ANCY                          "]
[69,0,8,"B033","H","    ","LE TEILLOUX               ",3,"ANCY                          "]
[69,0,8,4,"V","RUE ","D ARJOUX                  ",1,"ANCY                          "]
[69,0,8,8,"Z","RUE ","CENTRALE                  ",1,"ANCY                          "]
[69,0,8,10,"B","RUE ","DU CIMETIERE              ",1,"ANCY                          "]
[69,0,8,12,"D","PL  ","DE L EGLISE               ",1,"ANCY                          "]
[69,0,8,15,"G","RUE ","DES FERMES                ",1,"ANCY                          "]
[69,0,8,18,"K","IMP ","DES GRANGES               ",1,"ANCY                          "]
[69,0,8,19,"L","RUE ","DU GROUPE SCOLAIRE        ",1,"ANCY                          "]
[69,0,8,22,"P","RUE ","DE LA MAIRIE              ",1,"ANCY                          "]
[69,0,8,25,"T","RUE ","NOIRE                     ",1,"ANCY                          "]
[69,0,8,33,"B","RTE ","D'ARJOUX                  ",1,"ANCY                          "]
[69,0,8,48,"T","IMP ","DES ABREUVOIRS            ",1,"ANCY                          "]
[69,0,8,52,"X","RUE ","AIME DE SAINT JEAN        ",1,"ANCY                          "]
[69,0,8,58,"D","IMP ","DES ANCOLIES              ",1,"ANCY                          "]
[69,0,8,62,"H","IMP ","D'ANGELE                  ",1,"ANCY                          "]
[69,0,8,68,"P","CHE ","DES APPROTS               ",1,"ANCY                          "]
[69,0,8,70,"S","CHE ","DES APPES                 ",1,"ANCY                          "]
[69,0,8,80,"C","RUE ","DE L'ECOLE                ",1,"ANCY                          "]
[69,0,8,82,"E","CHE ","DE LA BALEINE             ",1,"ANCY                          "]
[69,0,8,86,"J","RTE ","DU BANCILLON              ",1,"ANCY                          "]
[69,0,8,88,"L","IMP ","DU BATAILLY               ",1,"ANCY                          "]
[69,0,8,92,"R","CHE ","DU BOIS CARNOUX           ",1,"ANCY                          "]
[69,0,8,96,"V","CHE ","DU BOIS DE RUY            ",1,"ANCY                          "]
[69,0,8,100,"Z","RTE ","DE BREZET                 ",1,"ANCY                          "]
[69,0,8,112,"M","IMP ","DES CHALETS               ",1,"ANCY                          "]
[69,0,8,114,"P","RUE ","JOSEPH CHAMBON            ",1,"ANCY                          "]
[69,0,8,116,"S","RTE ","DE LA CHATAIGNERAIE       ",1,"ANCY                          "]
[69,0,8,118,"U","IMP ","DE CHATIERE               ",1,"ANCY                          "]
[69,0,8,120,"W","CHE ","DU CHAZALET               ",1,"ANCY                          "]
[69,0,8,121,"X","CHE ","DU CHAZALLET              ",1,"ANCY                          "]
[69,0,8,122,"Y","CHE ","DE CHEZ TREILLE           ",1,"ANCY                          "]
[69,0,8,128,"E","RUE ","DU COUVENT                ",1,"ANCY                          "]
[69,0,8,130,"G","IMP ","CORCELETTE                ",1,"ANCY                          "]
[69,0,8,132,"J","RUE ","DES COTEAUX               ",1,"ANCY                          "]
[69,0,8,137,"P","RTE ","DU CRET DES HOUX          ",1,"ANCY                          "]
[69,0,8,138,"R","CHE ","DU CRET DU FOUR           ",1,"ANCY                          "]
[69,0,8,140,"T","CHE ","DU CRET DE MONTMAIN       ",1,"ANCY                          "]
[69,0,8,146,"Z","CHE ","DE LA CROIX               ",1,"ANCY                          "]
[69,0,8,150,"D","RUE ","DE LA CURE                ",1,"ANCY                          "]
[69,0,8,162,"S","CHE ","DU DENIS                  ",1,"ANCY                          "]
[69,0,8,184,"R","IMP ","DE L'ELITE                ",1,"ANCY                          "]
[69,0,8,190,"X","IMP ","DE L'ETANG                ",1,"ANCY                          "]
[69,0,8,194,"B","IMP ","DU MATILLON               ",1,"ANCY                          "]
[69,0,8,204,"M","CHE ","DES FRENES                ",1,"ANCY                          "]
[69,0,8,208,"S","IMP ","DU FORGERON               ",1,"ANCY                          "]
[69,0,8,220,"E","RTE ","DES GOUTTES               ",1,"ANCY                          "]
[69,0,8,238,"Z","CHE ","DES HIRONDELLES           ",1,"ANCY                          "]
[69,0,8,240,"B","CHE ","DES HUMBERTS              ",1,"ANCY                          "]
[69,0,8,242,"D","CHE ","DES GARENNES              ",1,"ANCY                          "]
[69,0,8,254,"S","CHE ","DU GRAND BOIS             ",1,"ANCY                          "]
[69,0,8,272,"L","RUE ","DU LAVOIR                 ",1,"ANCY                          "]
[69,0,8,276,"R","IMP ","DES LEILLES               ",1,"ANCY                          "]
[69,0,8,280,"V","IMP ","DES LILAS                 ",1,"ANCY                          "]
[69,0,8,284,"Z","IMP ","DE LA LIOUFFE             ",1,"ANCY                          "]
[69,0,8,290,"F","CHE ","DE MAILLARD               ",1,"ANCY                          "]
[69,0,8,291,"G","RTE ","DU MAS SAINT JEAN         ",1,"ANCY                          "]
[69,0,8,300,"S","RTE ","DE MONTROTTIER            ",1,"ANCY                          "]
[69,0,8,314,"G","RTE ","DU MOLLON                 ",1,"ANCY                          "]
[69,0,8,316,"J","CHE ","DU MONIN                  ",1,"ANCY                          "]
[69,0,8,320,"N","RTE ","DE MONTMENOT              ",1,"ANCY                          "]
[69,0,8,381,"E","ALL ","DES MERISIERS             ",1,"ANCY                          "]
[69,0,8,386,"K","CHE ","DU PAVE                   ",1,"ANCY                          "]
[69,0,8,410,"L","CHE ","DE LA RIVIERE             ",1,"ANCY                          "]
[69,0,8,426,"D","RTE ","DE SAINT ROMAIN           ",1,"ANCY                          "]
[69,0,8,428,"F","RTE ","DE SAINT JULIEN           ",1,"ANCY                          "]
[69,0,8,430,"H","RTE ","DE SAVIGNY                ",1,"ANCY                          "]
[69,0,8,436,"P","CHE ","DES SELLETTES             ",1,"ANCY                          "]
[69,0,8,440,"U","IMP ","DES SOURCES               ",1,"ANCY                          "]
[69,0,8,446,"A","IMP ","DU SUCHET                 ",1,"ANCY                          "]
[69,0,8,460,"R","RTE ","DE TEILLOUX               ",1,"ANCY                          "]
[69,0,8,464,"V","CHE ","DU TRESONCLE              ",1,"ANCY                          "]
[69,0,8,480,"M","CHE ","DE LA VALLONNIERE         ",1,"ANCY                          "]
[69,0,8,500,"J","    ","ZONE ARTISANALE DU COUVENT",1,"ANCY                          "]
[69,0,9,"A001","G","LOT ","LOTISSEMENT BAYOUX        ",2,"ANSE                          "]
[69,0,9,"A004","K","RES ","LES BLEUETS               ",2,"ANSE                          "]
[69,0,9,"A006","M","LOT ","LOTISSEMENT AUX CARRIERES ",2,"ANSE                          "]
[69,0,9,"A007","N","LOT ","LOTISSEMENT LES CEPS      ",2,"ANSE                          "]
[69,0,9,"A012","U","LOT ","LOTISSEMENT LA CITADELLE  ",2,"ANSE                          "]
[69,0,9,"A015","X","LOT ","LE COTEAU DU BEAUJOLAIS   ",2,"ANSE                          "]
[69,0,9,"A020","C","LOT ","L OREE DU VILLAGE         ",2,"ANSE                          "]
[69,0,9,"A025","H","LOT ","LOTISSEMENT LES PEPINIERES",2,"ANSE                          "]
[69,0,9,"A030","N","RES ","RESIDENCE LES SARMENTS    ",2,"ANSE                          "]
[69,0,9,"A035","U","LOT ","LOTISSEMENT LA TREILLE    ",2,"ANSE                          "]
[69,0,9,"A040","Z","RES ","RESIDENCE LES VIGNES      ",2,"ANSE                          "]
[69,0,9,"B001","U","    ","LES BAGES                 ",3,"ANSE                          "]
[69,0,9,"B002","V","    ","BANCILLON                 ",3,"ANSE                          "]
[69,0,9,"B003","W","    ","LES BASSIEUX              ",3,"ANSE                          "]
[69,0,9,"B004","X","    ","BEL AIR                   ",3,"ANSE                          "]
[69,0,9,"B005","Y","    ","BELLE VUE                 ",3,"ANSE                          "]
[69,0,9,"B006","Z","    ","BLANCHERIE                ",3,"ANSE                          "]
[69,0,9,"B007","A","    ","BOIS D ALIX               ",3,"ANSE                          "]
[69,0,9,"B008","B","    ","BOIS MAYEUX               ",3,"ANSE                          "]
[69,0,9,"B009","C","    ","LA BORDIERE NORD          ",3,"ANSE                          "]
[69,0,9,"B010","D","    ","BORDELAN                  ",3,"ANSE                          "]
[69,0,9,"B011","E","    ","BORDELAN D ANSE           ",3,"ANSE                          "]
[69,0,9,"B012","F","    ","LE BOURG                  ",3,"ANSE                          "]
[69,0,9,"B013","G","    ","BRIANNE NORD              ",3,"ANSE                          "]
[69,0,9,"B014","H","    ","BRIE                      ",3,"ANSE                          "]
[69,0,9,"B015","J","    ","LA CATONNE                ",3,"ANSE                          "]
[69,0,9,"B016","K","    ","AUX CARRIERES             ",3,"ANSE                          "]
[69,0,9,"B017","L","    ","AU CELESTIN               ",3,"ANSE                          "]
[69,0,9,"B018","M","    ","CHANSELLE                 ",3,"ANSE                          "]
[69,0,9,"B019","N","    ","CHARENTAY                 ",3,"ANSE                          "]
[69,0,9,"B020","P","    ","LA CITADELLE NORD         ",3,"ANSE                          "]
[69,0,9,"B021","R","    ","LA COMBE                  ",3,"ANSE                          "]
[69,0,9,"B022","S","    ","AUX COMMUNAUX             ",3,"ANSE                          "]
[69,0,9,"B023","T","    ","LES CONDAMINES NORD       ",3,"ANSE                          "]
[69,0,9,"B024","U","    ","LES COURRIERES            ",3,"ANSE                          "]
[69,0,9,"B025","V","    ","LE CREUX                  ",3,"ANSE                          "]
[69,0,9,"B026","W","    ","LE CROCU                  ",3,"ANSE                          "]
[69,0,9,"B027","X","    ","FONTAVY                   ",3,"ANSE                          "]
[69,0,9,"B028","Y","    ","LA FONTAINE NORD          ",3,"ANSE                          "]
[69,0,9,"B029","Z","    ","EN GEMILLEUX              ",3,"ANSE                          "]
[69,0,9,"B030","A","    ","LES GETTIERES             ",3,"ANSE                          "]
[69,0,9,"B031","B","    ","LA GONTHIERE              ",3,"ANSE                          "]
[69,0,9,"B032","C","    ","GRAND COQUERIEUX          ",3,"ANSE                          "]
[69,0,9,"B033","D","    ","GRAND LAINARD             ",3,"ANSE                          "]
[69,0,9,"B034","E","    ","LES GRANDES GENETTES      ",3,"ANSE                          "]
[69,0,9,"B035","F","    ","LA GRANGE DU BIEF NORD    ",3,"ANSE                          "]
[69,0,9,"B036","G","    ","GRAVES EST                ",3,"ANSE                          "]
[69,0,9,"B037","H","    ","LA GRAVIERE               ",3,"ANSE                          "]
[69,0,9,"B038","J","    ","HAUTE PRAIRIE             ",3,"ANSE                          "]
[69,0,9,"B039","K","    ","LES JACARENNES            ",3,"ANSE                          "]
[69,0,9,"B040","L","    ","LE JONCHAY                ",3,"ANSE                          "]
[69,0,9,"B041","M","    ","LAPRAYE                   ",3,"ANSE                          "]
[69,0,9,"B042","N","    ","LES LEVRIERES             ",3,"ANSE                          "]
[69,0,9,"B043","P","    ","LA LOGERE                 ",3,"ANSE                          "]
[69,0,9,"B044","R","    ","MOLAIZE                   ",3,"ANSE                          "]
[69,0,9,"B045","S","    ","NACHET                    ",3,"ANSE                          "]
[69,0,9,"B046","T","    ","LES PERELLES              ",3,"ANSE                          "]
[69,0,9,"B047","U","    ","PETIT COQUERIEUX NORD     ",3,"ANSE                          "]
[69,0,9,"B048","V","    ","PETIT LAINARD             ",3,"ANSE                          "]
[69,0,9,"B049","W","    ","LES POTHIERES             ",3,"ANSE                          "]
[69,0,9,"B050","X","    ","PRE CORLUS                ",3,"ANSE                          "]
[69,0,9,"B051","Y","    ","PRE LAFAY                 ",3,"ANSE                          "]
[69,0,9,"B052","Z","    ","PRES CLOTRES              ",3,"ANSE                          "]
[69,0,9,"B054","B","    ","LE RONCHET                ",3,"ANSE                          "]
[69,0,9,"B055","C","    ","RONGEFER                  ",3,"ANSE                          "]
[69,0,9,"B056","D","    ","RUISSEL                   ",3,"ANSE                          "]
[69,0,9,"B057","E","    ","SAINT ROMAIN              ",3,"ANSE                          "]
[69,0,9,"B058","F","    ","SAINT TRYS                ",3,"ANSE                          "]
[69,0,9,"B059","G","    ","LE SOLLIER                ",3,"ANSE                          "]
[69,0,9,"B060","H","    ","TERRES BANDIERS           ",3,"ANSE                          "]
[69,0,9,"B061","J","    ","LES TERRES PLATES         ",3,"ANSE                          "]
[69,0,9,"B062","K","    ","TROIS CHATELS             ",3,"ANSE                          "]
[69,0,9,"B063","L","    ","VERBOUYE                  ",3,"ANSE                          "]
[69,0,9,"B064","M","    ","BRIANNE SUD               ",3,"ANSE                          "]
[69,0,9,"B065","N","    ","LA BORDIERE SUD           ",3,"ANSE                          "]
[69,0,9,"B066","P","    ","LE BOURG NORD             ",3,"ANSE                          "]
[69,0,9,"B067","R","    ","LE BOURG SUD              ",3,"ANSE                          "]
[69,0,9,"B068","S","    ","LA CITADELLE SUD          ",3,"ANSE                          "]
[69,0,9,"B069","T","    ","LES CONDAMINES SUD        ",3,"ANSE                          "]
[69,0,9,"B070","U","    ","LA DAME BLANCHE           ",3,"ANSE                          "]
[69,0,9,"B071","V","    ","LA FONTAINE SUD           ",3,"ANSE                          "]
[69,0,9,"B072","W","    ","LA GRANGE BARONNA         ",3,"ANSE                          "]
[69,0,9,"B073","X","    ","LA GRANGE DU BIEF SUD     ",3,"ANSE                          "]
[69,0,9,"B074","Y","    ","GRAVES OUEST              ",3,"ANSE                          "]
[69,0,9,"B075","Z","    ","PETIT COQUERIEUX SUD      ",3,"ANSE                          "]
[69,0,9,"B076","A","    ","PONT DE BRIGNEUX          ",3,"ANSE                          "]
[69,0,9,"B077","B","    ","LE COLOMBIER              ",3,"ANSE                          "]
[69,0,9,"B900","W","    ","BAYOUX                    ",3,"ANSE                          "]
[69,0,9,"B901","X","    ","LES CEPS                  ",3,"ANSE                          "]
[69,0,9,"B902","Y","    ","COQUERIEUX                ",3,"ANSE                          "]
[69,0,9,"B903","Z","    ","LES GRANDS VIERRES        ",3,"ANSE                          "]
[69,0,9,"B904","A","    ","GRANGE BOTTON             ",3,"ANSE                          "]
[69,0,9,"B905","B","    ","LA TREILLE                ",3,"ANSE                          "]
[69,0,9,1,"M","CHE ","D AIGUE                   ",1,"ANSE                          "]
[69,0,9,2,"N","COUR","DES ALOUETTES             ",1,"ANSE                          "]
[69,0,9,3,"P","COUR","DES AMPHORES              ",1,"ANSE                          "]
[69,0,9,4,"R","SEN ","SENTIER DES ARCHERS       ",1,"ANSE                          "]
[69,0,9,5,"S","VOIE","ASA PAULINI               ",1,"ANSE                          "]
[69,0,9,6,"T","CHE ","DES HAUTS DE BASSIEUX     ",1,"ANSE                          "]
[69,0,9,7,"U","RUE ","DES BASSIEUX              ",1,"ANSE                          "]
[69,0,9,8,"V","CHE ","DU BIEF                   ",1,"ANSE                          "]
[69,0,9,9,"W","CHE ","DE BORDELAN               ",1,"ANSE                          "]
[69,0,9,10,"X","RUE ","DE LA BRETACHE            ",1,"ANSE                          "]
[69,0,9,11,"Y","CHE ","BOUSSARDI                 ",1,"ANSE                          "]
[69,0,9,12,"Z","IMP ","GRANGE BARONNA            ",1,"ANSE                          "]
[69,0,9,13,"A","IMP ","DU BIEF                   ",1,"ANSE                          "]
[69,0,9,14,"B","SQ  ","SQUARE DES CEDRES         ",1,"ANSE                          "]
[69,0,9,15,"C","AV  ","DE BRIANNE                ",1,"ANSE                          "]
[69,0,9,17,"E","MAIL","PIETON BRIANNE            ",1,"ANSE                          "]
[69,0,9,18,"F","COUR","DES CENTURIONS            ",1,"ANSE                          "]
[69,0,9,19,"G","COUR","DES CHARS                 ",1,"ANSE                          "]
[69,0,9,21,"J","RUE ","DU CHATEAU                ",1,"ANSE                          "]
[69,0,9,22,"K","PL  ","DU GENERAL DE GAULLE      ",1,"ANSE                          "]
[69,0,9,23,"L","COUR","DU CIRQUE                 ",1,"ANSE                          "]
[69,0,9,24,"M","CHE ","DE LA CROIX DE MISSION    ",1,"ANSE                          "]
[69,0,9,26,"P","CHE ","DE COQUERIEUX             ",1,"ANSE                          "]
[69,0,9,27,"R","RUE ","DES DAMES DE BRIANNE      ",1,"ANSE                          "]
[69,0,9,28,"S","RUE ","JEAN DESIRE TRAIT         ",1,"ANSE                          "]
[69,0,9,29,"T","CHE ","DU DIVIN                  ",1,"ANSE                          "]
[69,0,9,30,"U","RUE ","DU DOCTEUR GAUDENS        ",1,"ANSE                          "]
[69,0,9,31,"V","COUR","DU DOC YVES SERRAND       ",1,"ANSE                          "]
[69,0,9,32,"W","AV  ","DE L EUROPE               ",1,"ANSE                          "]
[69,0,9,33,"X","PL  ","DE L EGLISE               ",1,"ANSE                          "]
[69,0,9,34,"Y","COUR","DES FAUVETTES             ",1,"ANSE                          "]
[69,0,9,35,"Z","RUE ","DU FOUR BANAL             ",1,"ANSE                          "]
[69,0,9,36,"A","PL  ","DES FRERES FOURNET        ",1,"ANSE                          "]
[69,0,9,37,"B","PL  ","DES FRERES GIRAUDET       ",1,"ANSE                          "]
[69,0,9,38,"C","RUE ","FRETON                    ",1,"ANSE                          "]
[69,0,9,39,"D","RUE ","DES FRERES GIRAUDET       ",1,"ANSE                          "]
[69,0,9,40,"E","AV  ","DE LA GARE                ",1,"ANSE                          "]
[69,0,9,41,"F","IMP ","DES FRERES REY            ",1,"ANSE                          "]
[69,0,9,43,"H","CHE ","DE GYRE                   ",1,"ANSE                          "]
[69,0,9,44,"J","AV  ","GENERAL LECLERC           ",1,"ANSE                          "]
[69,0,9,45,"K","    ","ANCIENNE GRANDE RUE       ",1,"ANSE                          "]
[69,0,9,46,"L","CHE ","DE LA GRANGE BARONNA      ",1,"ANSE                          "]
[69,0,9,47,"M","    ","PLACE DE LA GARE          ",1,"ANSE                          "]
[69,0,9,48,"N","SEN ","SENTIER DU GOLF           ",1,"ANSE                          "]
[69,0,9,49,"P","RTE ","DE GRAVES                 ",1,"ANSE                          "]
[69,0,9,50,"R","RUE ","DE LA GRAVIERE            ",1,"ANSE                          "]
[69,0,9,51,"S","IMP ","DE LA GRAVIERE            ",1,"ANSE                          "]
[69,0,9,52,"T","PL  ","DU HUIT MAI 1945          ",1,"ANSE                          "]
[69,0,9,53,"U","COUR","DES JARRES                ",1,"ANSE                          "]
[69,0,9,54,"V","RUE ","JEAN DURAND               ",1,"ANSE                          "]
[69,0,9,55,"W","AV  ","JEAN LAVAL                ",1,"ANSE                          "]
[69,0,9,56,"X","CHE ","DES GRANDS VIERES         ",1,"ANSE                          "]
[69,0,9,57,"Y","SEN ","LE GRAPILLON              ",1,"ANSE                          "]
[69,0,9,58,"Z","IMP ","JEAN LAVAL                ",1,"ANSE                          "]
[69,0,9,59,"A","CHE ","CHEMIN DE LA FONTAVY      ",1,"ANSE                          "]
[69,0,9,61,"C","AV  ","JEAN VACHER               ",1,"ANSE                          "]
[69,0,9,62,"D","CHE ","DES BRUYERES              ",1,"ANSE                          "]
[69,0,9,63,"E","RUE ","DU JONCHAY                ",1,"ANSE                          "]
[69,0,9,64,"F","RTE ","DE LACHASSAGNE            ",1,"ANSE                          "]
[69,0,9,65,"G","AV  ","LAMARTINE                 ",1,"ANSE                          "]
[69,0,9,66,"H","CHE ","DE SAINT BERNARD          ",1,"ANSE                          "]
[69,0,9,67,"J","CHE ","DE LA FONTAINE            ",1,"ANSE                          "]
[69,0,9,68,"K","COUR","DES LEGIONS               ",1,"ANSE                          "]
[69,0,9,69,"L","CHE ","DE LA LOGERE              ",1,"ANSE                          "]
[69,0,9,70,"M","AV  ","DE LA LIBERATION          ",1,"ANSE                          "]
[69,0,9,71,"N","CHE ","DES LEVRIERES             ",1,"ANSE                          "]
[69,0,9,72,"P","RUE ","DU LION D OR              ",1,"ANSE                          "]
[69,0,9,73,"R","CHE ","DES GRANDES LEVEES        ",1,"ANSE                          "]
[69,0,9,74,"S","AV  ","DE LOSSBURG               ",1,"ANSE                          "]
[69,0,9,75,"T","RTE ","DE LUCENAY                ",1,"ANSE                          "]
[69,0,9,76,"U","RTE ","VIEILLE RTE DE LACHASSAGNE",1,"ANSE                          "]
[69,0,9,77,"V","RTE ","DE LYON                   ",1,"ANSE                          "]
[69,0,9,78,"W","PL  ","DE LA MAIRIE              ",1,"ANSE                          "]
[69,0,9,79,"X","CHE ","DU BELVEDERE              ",1,"ANSE                          "]
[69,0,9,82,"A","IMP ","DES LEVRIERES             ",1,"ANSE                          "]
[69,0,9,83,"B","PL  ","DE L EGALITE              ",1,"ANSE                          "]
[69,0,9,85,"D","ALL ","MARIEN PRE                ",1,"ANSE                          "]
[69,0,9,86,"E","RUE ","DU MARCHE                 ",1,"ANSE                          "]
[69,0,9,87,"F","RTE ","DE MARCY                  ",1,"ANSE                          "]
[69,0,9,88,"G","IMP ","DU MOULIN                 ",1,"ANSE                          "]
[69,0,9,89,"H","IMP ","DES ANCIENNES CARRIERES   ",1,"ANSE                          "]
[69,0,9,91,"K","RUE ","DES MARRONNIERS           ",1,"ANSE                          "]
[69,0,9,92,"L","ALL ","DES HAUTS DE VIGNES       ",1,"ANSE                          "]
[69,0,9,93,"M","RUE ","MAURICE UTRILLO           ",1,"ANSE                          "]
[69,0,9,94,"N","ALL ","DE CHARENTAY              ",1,"ANSE                          "]
[69,0,9,95,"P","RUE ","MARTHORET                 ",1,"ANSE                          "]
[69,0,9,96,"R","IMP ","DE LA COMBE               ",1,"ANSE                          "]
[69,0,9,97,"S","RTE ","DE SAINT BERNARD          ",1,"ANSE                          "]
[69,0,9,98,"T","COUR","DES MESANGES              ",1,"ANSE                          "]
[69,0,9,99,"U","IMP ","DES PEPINIERES            ",1,"ANSE                          "]
[69,0,9,101,"W","IMP ","MESSIMIEUX                ",1,"ANSE                          "]
[69,0,9,102,"X","CHE ","DES MOLAIZES              ",1,"ANSE                          "]
[69,0,9,105,"A","RTE ","NATIONALE 6               ",1,"ANSE                          "]
[69,0,9,106,"B","RUE ","NATIONALE                 ",1,"ANSE                          "]
[69,0,9,107,"C","IMP ","DU NORD                   ",1,"ANSE                          "]
[69,0,9,108,"D","CHE ","DU PANIER FLEURI          ",1,"ANSE                          "]
[69,0,9,109,"E","MTE ","DE L OPPIDUM              ",1,"ANSE                          "]
[69,0,9,110,"F","PL  ","DE LA PANNETERIE          ",1,"ANSE                          "]
[69,0,9,111,"G","CHE ","PETIT CHEMIN DE LA COMBE  ",1,"ANSE                          "]
[69,0,9,112,"H","RUE ","PASTEUR                   ",1,"ANSE                          "]
[69,0,9,113,"J","CHE ","DU PETIT LAINARD          ",1,"ANSE                          "]
[69,0,9,114,"K","CHE ","DES PERELLES NORD         ",1,"ANSE                          "]
[69,0,9,115,"L","RUE ","DES PEPINIERES            ",1,"ANSE                          "]
[69,0,9,116,"M","CHE ","DU PETIT PONT DE BRIGNEUX ",1,"ANSE                          "]
[69,0,9,117,"N","RUE ","DU PERE OGIER             ",1,"ANSE                          "]
[69,0,9,119,"R","COUR","DES PINSONS               ",1,"ANSE                          "]
[69,0,9,120,"S","RUE ","PONT CHOLLET              ",1,"ANSE                          "]
[69,0,9,121,"T","CHE ","DES POTEAUX               ",1,"ANSE                          "]
[69,0,9,122,"U","AV  ","DE LA PREMIERE ARMEE      ",1,"ANSE                          "]
[69,0,9,123,"V","SEN ","DES POTHIERES             ",1,"ANSE                          "]
[69,0,9,125,"X","RUE ","DU PUITS LACHAINE         ",1,"ANSE                          "]
[69,0,9,126,"Y","AV  ","DU PRE AUX MOUTONS        ",1,"ANSE                          "]
[69,0,9,127,"Z","ALL ","RENAUD DE FOREZ           ",1,"ANSE                          "]
[69,0,9,128,"A","RTE ","DE POMMIERS               ",1,"ANSE                          "]
[69,0,9,129,"B","CHE ","DU RONCHET                ",1,"ANSE                          "]
[69,0,9,130,"C","RUE ","DES REMPARTS              ",1,"ANSE                          "]
[69,0,9,131,"D","RUE ","RENAUD DE FOREZ           ",1,"ANSE                          "]
[69,0,9,132,"E","PL  ","DE LA REPUBLIQUE          ",1,"ANSE                          "]
[69,0,9,133,"F","COUR","DES ROSSIGNOLS            ",1,"ANSE                          "]
[69,0,9,134,"G","CHE ","DE LA ROSERAIE            ",1,"ANSE                          "]
[69,0,9,135,"H","RUE ","SAINT ABDON               ",1,"ANSE                          "]
[69,0,9,136,"J","ALL ","DES NOYERS                ",1,"ANSE                          "]
[69,0,9,137,"K","RUE ","DU PARC                   ",1,"ANSE                          "]
[69,0,9,138,"L","RUE ","RABELAIS                  ",1,"ANSE                          "]
[69,0,9,140,"N","RUE ","SAINT ANTOINE             ",1,"ANSE                          "]
[69,0,9,141,"P","CHE ","DE LA ROSETTE             ",1,"ANSE                          "]
[69,0,9,144,"T","IMP ","SAINT BLAISE              ",1,"ANSE                          "]
[69,0,9,145,"U","RUE ","SAINT BLAISE              ",1,"ANSE                          "]
[69,0,9,147,"W","RUE ","SAINT CLAUDE              ",1,"ANSE                          "]
[69,0,9,150,"Z","PL  ","SAINT CYPRIEN             ",1,"ANSE                          "]
[69,0,9,155,"E","RUE ","SAINT CYPRIEN             ",1,"ANSE                          "]
[69,0,9,160,"K","RUE ","SAINT JEAN                ",1,"ANSE                          "]
[69,0,9,165,"R","IMP ","SAINT PIERRE              ",1,"ANSE                          "]
[69,0,9,170,"W","RUE ","SAINT PIERRE              ",1,"ANSE                          "]
[69,0,9,173,"Z","RUE ","DE LA SCIERIE             ",1,"ANSE                          "]
[69,0,9,174,"A","IMP ","DES SOURCES               ",1,"ANSE                          "]
[69,0,9,175,"B","CHE ","SAINT ROMAIN              ",1,"ANSE                          "]
[69,0,9,177,"D","RUE ","DES SOURCES               ",1,"ANSE                          "]
[69,0,9,179,"F","SEN ","DU SOUILLET               ",1,"ANSE                          "]
[69,0,9,180,"G","IMP ","DU SUD                    ",1,"ANSE                          "]
[69,0,9,182,"J","ALL ","SUZANNE VALADON           ",1,"ANSE                          "]
[69,0,9,185,"M","RUE ","SAINT VINCENT             ",1,"ANSE                          "]
[69,0,9,186,"N","COUR","DU TEMPLE                 ",1,"ANSE                          "]
[69,0,9,187,"P","COUR","DU THEATRE                ",1,"ANSE                          "]
[69,0,9,188,"R","COUR","DES THERMES               ",1,"ANSE                          "]
[69,0,9,189,"S","RUE ","TRAVERSIERE               ",1,"ANSE                          "]
[69,0,9,190,"T","RUE ","DES TROIS CHATELS         ",1,"ANSE                          "]
[69,0,9,192,"V","CHE ","DE TRECHEN                ",1,"ANSE                          "]
[69,0,9,193,"W","RUE ","DU TRIANGLE               ",1,"ANSE                          "]
[69,0,9,195,"Y","RUE ","DU TROIS SEPTEMBRE 1944   ",1,"ANSE                          "]
[69,0,9,196,"Z","RUE ","DU TROU DU CHAT           ",1,"ANSE                          "]
[69,0,9,197,"A","RUE ","DU TROU DU CHIEN          ",1,"ANSE                          "]
[69,0,9,198,"B","RUE ","DE VERDUN                 ",1,"ANSE                          "]
[69,0,9,200,"D","ALL ","DU DOCTEUR YVES SERRAND   ",1,"ANSE                          "]
[69,0,9,201,"E","CHE ","VIGNE DE LA FOND          ",1,"ANSE                          "]
[69,0,9,202,"F","RUE ","VICTOR HUGO               ",1,"ANSE                          "]
[69,0,9,203,"G","IMP ","DU VIEUX MOULIN           ",1,"ANSE                          "]
[69,0,9,204,"H","COUR","DES VIGNES                ",1,"ANSE                          "]
[69,0,9,205,"J","CHE ","DE LA VIGNE DES GARCONS   ",1,"ANSE                          "]
[69,0,9,206,"K","CHE ","DE LA BLANCHERIE          ",1,"ANSE                          "]
[69,0,9,207,"L","CHE ","DU BOIS D ALIX            ",1,"ANSE                          "]
[69,0,9,208,"M","CHE ","LA BORDIERE               ",1,"ANSE                          "]
[69,0,9,209,"N","CHE ","DE BRIE                   ",1,"ANSE                          "]
[69,0,9,210,"P","CHE ","DES CARRIERES             ",1,"ANSE                          "]
[69,0,9,211,"R","IMP ","DE LA CITADELLE           ",1,"ANSE                          "]
[69,0,9,212,"S","CHE ","DE LA COMBE               ",1,"ANSE                          "]
[69,0,9,213,"T","RUE ","DE LA CRESSONNIERE        ",1,"ANSE                          "]
[69,0,9,214,"U","RTE ","DES CRETES                ",1,"ANSE                          "]
[69,0,9,215,"V","CHE ","DE LA GONTHIERE           ",1,"ANSE                          "]
[69,0,9,216,"W","CHE ","DU GRAND COQUERIEUX       ",1,"ANSE                          "]
[69,0,9,217,"X","CHE ","DE LA GRANGE DU BIEF      ",1,"ANSE                          "]
[69,0,9,218,"Y","CHE ","DE LA GRANGE BOTTON       ",1,"ANSE                          "]
[69,0,9,219,"Z","IMP ","DU BANCILLON              ",1,"ANSE                          "]
[69,0,9,220,"A","ALL ","DU FOUR A CHAUX           ",1,"ANSE                          "]
[69,0,9,222,"C","RUE ","DE LA BOUCLE              ",1,"ANSE                          "]
[69,0,9,235,"S","SQ  ","SQUARE DU 1ER ZOUAVE      ",1,"ANSE                          "]
[69,0,9,236,"T","CHE ","DU CREUX                  ",1,"ANSE                          "]
[69,0,9,237,"U","CHE ","DE BELLEVUE               ",1,"ANSE                          "]
[69,0,9,238,"V","PL  ","DES CONDAMINES            ",1,"ANSE                          "]
[69,0,9,239,"W","MTE ","DE LA CITADELLE           ",1,"ANSE                          "]
[69,0,9,240,"X","ALL ","DU COTEAU D ANSE          ",1,"ANSE                          "]
[69,0,9,241,"Y","ALL ","DU BANCILLON              ",1,"ANSE                          "]
[69,0,9,242,"Z","IMP ","DES BASSIEUX              ",1,"ANSE                          "]
[69,0,9,243,"A","RUE ","BAYOUX                    ",1,"ANSE                          "]
[69,0,9,244,"B","CHE ","DES CELESTINS             ",1,"ANSE                          "]
[69,0,9,245,"C","RUE ","DES CEPS                  ",1,"ANSE                          "]
[69,0,9,246,"D","ALL ","DE LA COLLINIERE          ",1,"ANSE                          "]
[69,0,9,247,"E","CHE ","DU COLOMBIER              ",1,"ANSE                          "]
[69,0,9,248,"F","ALL ","DU COLOMBIER              ",1,"ANSE                          "]
[69,0,9,249,"G","RUE ","EUGENE BUSSY              ",1,"ANSE                          "]
[69,0,9,250,"H","ALL ","DE L EUROPE               ",1,"ANSE                          "]
[69,0,9,251,"J","RUE ","DES FLEURS                ",1,"ANSE                          "]
[69,0,9,252,"K","ALL ","DE FRANCE                 ",1,"ANSE                          "]
[69,0,9,253,"L","IMP ","LAMARTINE                 ",1,"ANSE                          "]
[69,0,9,254,"M","RUE ","MOLIERE                   ",1,"ANSE                          "]
[69,0,9,255,"N","RUE ","DE L OREE DU VILLAGE      ",1,"ANSE                          "]
[69,0,9,256,"P","RUE ","DU PRESSOIR               ",1,"ANSE                          "]
[69,0,9,257,"R","RUE ","DE LA TREILLE             ",1,"ANSE                          "]
[69,0,9,258,"S","RUE ","DES HAUTS DE BARONNA      ",1,"ANSE                          "]
[69,0,9,259,"T","RTE ","DES FORETS                ",1,"ANSE                          "]
[69,0,9,260,"U","CHE ","DE LA COTE                ",1,"ANSE                          "]
[69,0,9,261,"V","IMP ","DE LA VIGNE DES GARCONS   ",1,"ANSE                          "]
[69,0,9,262,"W","RTE ","DE VILLEFRANCHE           ",1,"ANSE                          "]
[69,0,9,263,"X","RUE ","DU PRE CORLUS             ",1,"ANSE                          "]
[69,0,9,264,"Y","CHE ","DE LA PIERRE BLANCHE      ",1,"ANSE                          "]
[69,0,9,265,"Z","RUE ","DES OLIVIERS              ",1,"ANSE                          "]
[69,0,9,266,"A","RUE ","DU GAMAY                  ",1,"ANSE                          "]
[69,0,9,267,"B","IMP ","DE LA CRESSONNIERE        ",1,"ANSE                          "]
[69,0,9,268,"C","ALL ","DE LA VIADOREE            ",1,"ANSE                          "]
[69,0,9,269,"D","ALL ","AQUAZERGUES               ",1,"ANSE                          "]
[69,0,9,270,"E","RUE ","DES ECRIVAINS             ",1,"ANSE                          "]
[69,0,9,271,"F","PL  ","DES MUSES                 ",1,"ANSE                          "]
[69,0,9,272,"G","RUE ","DES MUSICIENS             ",1,"ANSE                          "]
[69,0,9,273,"H","RUE ","DES PEINTRES              ",1,"ANSE                          "]
[69,0,10,"A023","B","LOT ","LE BELVEDERE              ",2,"L ARBRESLE                    "]
[69,0,10,"A033","M","LOT ","LE GROSLIER VILLAGE       ",2,"L ARBRESLE                    "]
[69,0,10,"B001","P","    ","AUX BALMES DES MOLLIERES  ",3,"L ARBRESLE                    "]
[69,0,10,"B002","R","    ","LA BERTHODE               ",3,"L ARBRESLE                    "]
[69,0,10,"B003","S","    ","BIZAIR                    ",3,"L ARBRESLE                    "]
[69,0,10,"B004","T","    ","LE BOURG                  ",3,"L ARBRESLE                    "]
[69,0,10,"B005","U","    ","COLLONGE                  ",3,"L ARBRESLE                    "]
[69,0,10,"B006","V","    ","AU GD MOULIN              ",3,"L ARBRESLE                    "]
[69,0,10,"B007","W","    ","AUX GDS PRES              ",3,"L ARBRESLE                    "]
[69,0,10,"B008","X","    ","LES GDS VERNAYS           ",3,"L ARBRESLE                    "]
[69,0,10,"B009","Y","    ","LE GROSLIER               ",3,"L ARBRESLE                    "]
[69,0,10,"B010","Z","    ","LES HAUTS MARTINETS       ",3,"L ARBRESLE                    "]
[69,0,10,"B011","A","    ","EN LOUHANS                ",3,"L ARBRESLE                    "]
[69,0,10,"B012","B","    ","AUX MARTINETS             ",3,"L ARBRESLE                    "]
[69,0,10,"B013","C","    ","AUX MOLLIERES             ",3,"L ARBRESLE                    "]
[69,0,10,"B014","D","    ","LES MOLLONES              ",3,"L ARBRESLE                    "]
[69,0,10,"B015","E","    ","AU MUZARD                 ",3,"L ARBRESLE                    "]
[69,0,10,"B016","F","    ","LA PALMA                  ",3,"L ARBRESLE                    "]
[69,0,10,"B017","G","    ","LA PONTCHONNIERE          ",3,"L ARBRESLE                    "]
[69,0,10,"B018","H","    ","EN RAPINANT               ",3,"L ARBRESLE                    "]
[69,0,10,"B019","J","    ","ST ETIENNE                ",3,"L ARBRESLE                    "]
[69,0,10,"B020","K","    ","LES VERNAYS               ",3,"L ARBRESLE                    "]
[69,0,10,"B021","L","    ","AU CHAMBARD               ",3,"L ARBRESLE                    "]
[69,0,10,"B022","M","    ","CHAMP D ASILE             ",3,"L ARBRESLE                    "]
[69,0,10,"B023","N","    ","CLOS LANDAR               ",3,"L ARBRESLE                    "]
[69,0,10,"B024","P","    ","LA FONT-DEVAY             ",3,"L ARBRESLE                    "]
[69,0,10,"B027","T","    ","LE RAVATEL                ",3,"L ARBRESLE                    "]
[69,0,10,1,"H","PL  ","DE L ABBE DALMACE         ",1,"L ARBRESLE                    "]
[69,0,10,3,"K","ALL ","DES ACACIAS               ",1,"L ARBRESLE                    "]
[69,0,10,8,"R","AV  ","ANDRE LASSAGNE            ",1,"L ARBRESLE                    "]
[69,0,10,10,"T","RUE ","ANNE FRANK                ",1,"L ARBRESLE                    "]
[69,0,10,11,"U","RUE ","ANNE DE BEAUJEU           ",1,"L ARBRESLE                    "]
[69,0,10,12,"V","CHE ","D APINOST                 ",1,"L ARBRESLE                    "]
[69,0,10,13,"W","RUE ","ANTOINE PAGNEUX           ",1,"L ARBRESLE                    "]
[69,0,10,14,"X","IMP ","BACCOT                    ",1,"L ARBRESLE                    "]
[69,0,10,15,"Y","RUE ","BACCOT                    ",1,"L ARBRESLE                    "]
[69,0,10,17,"A","CHE ","DES BALMES                ",1,"L ARBRESLE                    "]
[69,0,10,18,"B","CHE ","DES BALMES NAYRINES       ",1,"L ARBRESLE                    "]
[69,0,10,20,"D","RUE ","BARTHELEMY THIMONIER      ",1,"L ARBRESLE                    "]
[69,0,10,27,"L","RUE ","BELESTAT                  ",1,"L ARBRESLE                    "]
[69,0,10,30,"P","RUE ","DU BELVEDERE              ",1,"L ARBRESLE                    "]
[69,0,10,60,"X","RUE ","BERTHELOT                 ",1,"L ARBRESLE                    "]
[69,0,10,120,"M","CHE ","DU BORG                   ",1,"L ARBRESLE                    "]
[69,0,10,160,"F","QUAI","DE LA BREVENNE            ",1,"L ARBRESLE                    "]
[69,0,10,180,"C","RUE ","DE LA BREVENNE            ",1,"L ARBRESLE                    "]
[69,0,10,200,"Z","CHE ","DES BROSSES               ",1,"L ARBRESLE                    "]
[69,0,10,215,"R","PL  ","CARNOT                    ",1,"L ARBRESLE                    "]
[69,0,10,222,"Y","IMP ","DU CEP                    ",1,"L ARBRESLE                    "]
[69,0,10,234,"L","MTE ","DU CHAMBARD               ",1,"L ARBRESLE                    "]
[69,0,10,237,"P","AV  ","DU CHAMP D ASILE          ",1,"L ARBRESLE                    "]
[69,0,10,239,"S","RUE ","CHARLES DE GAULLE         ",1,"L ARBRESLE                    "]
[69,0,10,240,"T","IMP ","CHARRASSIN                ",1,"L ARBRESLE                    "]
[69,0,10,243,"W","ALL ","DES CHATAIGNIERS          ",1,"L ARBRESLE                    "]
[69,0,10,250,"D","ALL ","DES CHENES                ",1,"L ARBRESLE                    "]
[69,0,10,260,"P","PL  ","DU CHEVAL BLANC           ",1,"L ARBRESLE                    "]
[69,0,10,274,"E","RUE ","CLAUDE SERAUCOURT         ",1,"L ARBRESLE                    "]
[69,0,10,280,"L","RUE ","CLAUDE TERRASSE           ",1,"L ARBRESLE                    "]
[69,0,10,300,"H","RUE ","COL PREVOST               ",1,"L ARBRESLE                    "]
[69,0,10,309,"T","CHE ","COMMUNAL 406              ",1,"L ARBRESLE                    "]
[69,0,10,320,"E","RUE ","DU DOC DUSSERRE           ",1,"L ARBRESLE                    "]
[69,0,10,340,"B","RUE ","DU DOC MICHEL             ",1,"L ARBRESLE                    "]
[69,0,10,370,"J","ALL ","DES EGLANTINES            ",1,"L ARBRESLE                    "]
[69,0,10,380,"V","RUE ","EMILE FOURNIER            ",1,"L ARBRESLE                    "]
[69,0,10,400,"S","RUE ","EMILE ZOLA                ",1,"L ARBRESLE                    "]
[69,0,10,409,"B","ALL ","DES ERABLES               ",1,"L ARBRESLE                    "]
[69,0,10,420,"N","RUE ","FERRACHAT                 ",1,"L ARBRESLE                    "]
[69,0,10,425,"U","CHE ","DE LA FONT DEVAY          ",1,"L ARBRESLE                    "]
[69,0,10,430,"Z","RUE ","DU FOUR A CHAUX           ",1,"L ARBRESLE                    "]
[69,0,10,460,"G","QUAI","DES FRENES                ",1,"L ARBRESLE                    "]
[69,0,10,470,"T","AV  ","DES HAUTS DU LYONNAIS     ",1,"L ARBRESLE                    "]
[69,0,10,480,"D","RUE ","GABRIEL PERI              ",1,"L ARBRESLE                    "]
[69,0,10,500,"A","PL  ","DE LA GARE                ",1,"L ARBRESLE                    "]
[69,0,10,510,"L","ALL ","DES GLYCINES              ",1,"L ARBRESLE                    "]
[69,0,10,512,"N","IMP ","DE LA GRAPPE              ",1,"L ARBRESLE                    "]
[69,0,10,514,"R","CHE ","DU GROSLIER               ",1,"L ARBRESLE                    "]
[69,0,10,515,"S","RUE ","DU GROSLIER               ",1,"L ARBRESLE                    "]
[69,0,10,517,"U","IMP ","DU GYMNASE                ",1,"L ARBRESLE                    "]
[69,0,10,518,"V","RUE ","JEAN-BAPTISTE LOUIS GUY   ",1,"L ARBRESLE                    "]
[69,0,10,519,"W","RUE ","JEAN-JACQUES DE BOISSIEU  ",1,"L ARBRESLE                    "]
[69,0,10,521,"Y","PL  ","JEAN-JACQUES SAINCLAIR    ",1,"L ARBRESLE                    "]
[69,0,10,522,"Z","RUE ","JEAN-MICHEL GROBON        ",1,"L ARBRESLE                    "]
[69,0,10,523,"A","ALL ","JEAN BARDET               ",1,"L ARBRESLE                    "]
[69,0,10,524,"B","SQ  ","JEAN BARDET               ",1,"L ARBRESLE                    "]
[69,0,10,525,"C","RUE ","JEAN MOULIN               ",1,"L ARBRESLE                    "]
[69,0,10,530,"H","ALL ","DES JONQUILLES            ",1,"L ARBRESLE                    "]
[69,0,10,532,"K","RUE ","JOSEPH CHARVET            ",1,"L ARBRESLE                    "]
[69,0,10,535,"N","RUE ","JULES DESBOIS             ",1,"L ARBRESLE                    "]
[69,0,10,537,"R","SQ  ","DU HUIT MAI 1945          ",1,"L ARBRESLE                    "]
[69,0,10,540,"U","RUE ","DE LARVAUX                ",1,"L ARBRESLE                    "]
[69,0,10,550,"E","PTE ","LE CORBUSIER              ",1,"L ARBRESLE                    "]
[69,0,10,558,"N","PTE ","DE LA LIBERATION          ",1,"L ARBRESLE                    "]
[69,0,10,560,"R","PL  ","DE LA LIBERTE             ",1,"L ARBRESLE                    "]
[69,0,10,563,"U","RTE ","DE LOUHANS                ",1,"L ARBRESLE                    "]
[69,0,10,565,"W","RUE ","LOUIS FOUCRE              ",1,"L ARBRESLE                    "]
[69,0,10,571,"C","RTE ","DE LOZANNE                ",1,"L ARBRESLE                    "]
[69,0,10,580,"M","RUE ","DE LYON                   ",1,"L ARBRESLE                    "]
[69,0,10,599,"H","IMP ","DE LA MADELEINE           ",1,"L ARBRESLE                    "]
[69,0,10,600,"J","PL  ","DE LA MADELEINE           ",1,"L ARBRESLE                    "]
[69,0,10,640,"C","RUE ","DE LA MAIRIE              ",1,"L ARBRESLE                    "]
[69,0,10,643,"F","RUE ","MAITRE PHILIPPE           ",1,"L ARBRESLE                    "]
[69,0,10,646,"J","IMP ","DU MARAICHER              ",1,"L ARBRESLE                    "]
[69,0,10,653,"S","ALL ","DES MARRONNIERS           ",1,"L ARBRESLE                    "]
[69,0,10,657,"W","CHE ","DES MARTINETS             ",1,"L ARBRESLE                    "]
[69,0,10,658,"X","RUE ","DES MARTINETS             ",1,"L ARBRESLE                    "]
[69,0,10,670,"K","RUE ","MICHEL AULAS              ",1,"L ARBRESLE                    "]
[69,0,10,680,"W","RUE ","MICHELET                  ",1,"L ARBRESLE                    "]
[69,0,10,700,"T","PL  ","MICHELET                  ",1,"L ARBRESLE                    "]
[69,0,10,701,"U","RUE ","MICHEL LAPANDERY          ",1,"L ARBRESLE                    "]
[69,0,10,705,"Y","ALL ","DES MIMOSAS               ",1,"L ARBRESLE                    "]
[69,0,10,710,"D","RUE ","DU MISTRAL                ",1,"L ARBRESLE                    "]
[69,0,10,715,"J","CHE ","DES MOLLIERES             ",1,"L ARBRESLE                    "]
[69,0,10,717,"L","CHE ","DES MOLLONES              ",1,"L ARBRESLE                    "]
[69,0,10,781,"F","IMP ","DU MOULIN                 ",1,"L ARBRESLE                    "]
[69,0,10,800,"B","IMP ","DES MURES                 ",1,"L ARBRESLE                    "]
[69,0,10,811,"N","RTE ","NATIONALE 7 DEVIATION     ",1,"L ARBRESLE                    "]
[69,0,10,820,"Y","RTE ","DE NUELLES                ",1,"L ARBRESLE                    "]
[69,0,10,830,"J","AV  ","DU ONZE NOVEMBRE 1918     ",1,"L ARBRESLE                    "]
[69,0,10,836,"R","AV  ","DE LA PAIX                ",1,"L ARBRESLE                    "]
[69,0,10,840,"V","CHE ","DE LA PALMA               ",1,"L ARBRESLE                    "]
[69,0,10,860,"S","RUE ","DE PARIS                  ",1,"L ARBRESLE                    "]
[69,0,10,880,"N","RUE ","PEILLON                   ",1,"L ARBRESLE                    "]
[69,0,10,885,"U","RUE ","DU PERE PERRET            ",1,"L ARBRESLE                    "]
[69,0,10,895,"E","PL  ","PHILIPPE AUGUSTE GONIN    ",1,"L ARBRESLE                    "]
[69,0,10,900,"K","RUE ","PIERRE BROSSOLETTE        ",1,"L ARBRESLE                    "]
[69,0,10,920,"G","PL  ","PIERRE MARIE DURAND       ",1,"L ARBRESLE                    "]
[69,0,10,940,"D","RUE ","PIERRE PASSEMARD          ",1,"L ARBRESLE                    "]
[69,0,10,960,"A","AV  ","PIERRE SEMARD             ",1,"L ARBRESLE                    "]
[69,0,10,980,"X","IMP ","DES PLANCHES              ",1,"L ARBRESLE                    "]
[69,0,10,984,"B","ALL ","DES PLATANES              ",1,"L ARBRESLE                    "]
[69,0,10,986,"D","ALL ","DE LA PONTCHONNIERE       ",1,"L ARBRESLE                    "]
[69,0,10,988,"F","CHE ","DU PONT PIERRON           ",1,"L ARBRESLE                    "]
[69,0,10,990,"H","ALL ","DU PRINTEMPS              ",1,"L ARBRESLE                    "]
[69,0,10,1000,"U","RUE ","DU PUITS DE LA CHALEUR    ",1,"L ARBRESLE                    "]
[69,0,10,1008,"C","RUE ","DES QUATRE-VENTS          ",1,"L ARBRESLE                    "]
[69,0,10,1020,"R","RUE ","RASPAIL                   ",1,"L ARBRESLE                    "]
[69,0,10,1025,"W","CHE ","DU RAVATEL                ",1,"L ARBRESLE                    "]
[69,0,10,1027,"Y","RUE ","RAYMOND LECERF            ",1,"L ARBRESLE                    "]
[69,0,10,1040,"M","RUE ","DE LA REPUBLIQUE          ",1,"L ARBRESLE                    "]
[69,0,10,1060,"J","PL  ","DE LA REPUBLIQUE          ",1,"L ARBRESLE                    "]
[69,0,10,1100,"C","RTE ","DE SAIN BEL               ",1,"L ARBRESLE                    "]
[69,0,10,1101,"D","CHE ","DE ST ETIENNE             ",1,"L ARBRESLE                    "]
[69,0,10,1102,"E","    ","MONTEE ST GERMAIN         ",1,"L ARBRESLE                    "]
[69,0,10,1104,"G","IMP ","SAINT JEAN BAPTISTE       ",1,"L ARBRESLE                    "]
[69,0,10,1108,"L","PL  ","SAINT JULIEN              ",1,"L ARBRESLE                    "]
[69,0,10,1140,"W","PL  ","SAPEON                    ",1,"L ARBRESLE                    "]
[69,0,10,1150,"G","IMP ","DU SARMENT                ",1,"L ARBRESLE                    "]
[69,0,10,1165,"Y","RUE ","DES SOEURS DE L HOPITAL   ",1,"L ARBRESLE                    "]
[69,0,10,1167,"A","CHE ","DES TANNERIES             ",1,"L ARBRESLE                    "]
[69,0,10,1168,"B","PL  ","DES TILLEULS              ",1,"L ARBRESLE                    "]
[69,0,10,1174,"H","IMP ","DE LA TREILLE             ",1,"L ARBRESLE                    "]
[69,0,10,1180,"P","RUE ","DES TROIS MAURES          ",1,"L ARBRESLE                    "]
[69,0,10,1181,"R","PL  ","DES TROIS COMMUNES        ",1,"L ARBRESLE                    "]
[69,0,10,1230,"U","IMP ","DES VENDANGES             ",1,"L ARBRESLE                    "]
[69,0,10,1239,"D","PL  ","VICTOR HUGO               ",1,"L ARBRESLE                    "]
[69,0,10,1240,"E","RUE ","VICTOR HUGO               ",1,"L ARBRESLE                    "]
[69,0,10,1244,"J","RUE ","DU VIGNOBLE               ",1,"L ARBRESLE                    "]
[69,0,10,1259,"A","IMP ","VOLTAIRE                  ",1,"L ARBRESLE                    "]
[69,0,10,1260,"B","RUE ","VOLTAIRE                  ",1,"L ARBRESLE                    "]
[69,0,12,"B001","F","    ","L ARDIERES                ",3,"LES ARDILLATS                 "]
[69,0,12,"B002","G","    ","L AUBEPINE                ",3,"LES ARDILLATS                 "]
[69,0,12,"B003","H","    ","LES BELOUZES              ",3,"LES ARDILLATS                 "]
[69,0,12,"B004","J","    ","LES BERNILLONS            ",3,"LES ARDILLATS                 "]
[69,0,12,"B005","K","    ","BOURBET                   ",3,"LES ARDILLATS                 "]
[69,0,12,"B006","L","    ","LE BOURG                  ",3,"LES ARDILLATS                 "]
[69,0,12,"B007","M","    ","LES BRETUS                ",3,"LES ARDILLATS                 "]
[69,0,12,"B008","N","    ","LA BROUSSAILLERIE         ",3,"LES ARDILLATS                 "]
[69,0,12,"B009","P","    ","LA BRUYERE                ",3,"LES ARDILLATS                 "]
[69,0,12,"B010","R","    ","CHAMBONNE                 ",3,"LES ARDILLATS                 "]
[69,0,12,"B011","S","    ","CHAMPOMMIER               ",3,"LES ARDILLATS                 "]
[69,0,12,"B012","T","    ","LES CHASSAGNES            ",3,"LES ARDILLATS                 "]
[69,0,12,"B013","U","    ","LE CHATEAU                ",3,"LES ARDILLATS                 "]
[69,0,12,"B014","V","    ","LES CHIERES               ",3,"LES ARDILLATS                 "]
[69,0,12,"B015","W","    ","LES COCHARDS              ",3,"LES ARDILLATS                 "]
[69,0,12,"B016","X","    ","LE COLLIER                ",3,"LES ARDILLATS                 "]
[69,0,12,"B017","Y","    ","COTE AUDIN EST            ",3,"LES ARDILLATS                 "]
[69,0,12,"B018","Z","    ","COTE AUDIN OUEST          ",3,"LES ARDILLATS                 "]
[69,0,12,"B019","A","    ","CRIE                      ",3,"LES ARDILLATS                 "]
[69,0,12,"B020","B","    ","LES CROIX                 ",3,"LES ARDILLATS                 "]
[69,0,12,"B021","C","    ","CROIX GALLIS              ",3,"LES ARDILLATS                 "]
[69,0,12,"B022","D","    ","LA DEGOLLIERE             ",3,"LES ARDILLATS                 "]
[69,0,12,"B023","E","    ","LES ECHARMETTES           ",3,"LES ARDILLATS                 "]
[69,0,12,"B024","F","    ","LES ESSARDS               ",3,"LES ARDILLATS                 "]
[69,0,12,"B025","G","    ","SUR LES ESSARDS           ",3,"LES ARDILLATS                 "]
[69,0,12,"B026","H","    ","LE GRAND CHEMIN           ",3,"LES ARDILLATS                 "]
[69,0,12,"B027","J","    ","LES GRANDES TERRES        ",3,"LES ARDILLATS                 "]
[69,0,12,"B028","K","    ","LES GRAVIERES             ",3,"LES ARDILLATS                 "]
[69,0,12,"B029","L","    ","JOYE                      ",3,"LES ARDILLATS                 "]
[69,0,12,"B030","M","    ","LES LAISSUS               ",3,"LES ARDILLATS                 "]
[69,0,12,"B031","N","    ","LES LAURENTS              ",3,"LES ARDILLATS                 "]
[69,0,12,"B032","P","    ","MARCA                     ",3,"LES ARDILLATS                 "]
[69,0,12,"B033","R","    ","MONNET                    ",3,"LES ARDILLATS                 "]
[69,0,12,"B034","S","    ","MONT SOMBET               ",3,"LES ARDILLATS                 "]
[69,0,12,"B035","T","    ","LE MORIN                  ",3,"LES ARDILLATS                 "]
[69,0,12,"B036","U","    ","MONTIVIER                 ",3,"LES ARDILLATS                 "]
[69,0,12,"B037","V","    ","LA PAPETERIE              ",3,"LES ARDILLATS                 "]
[69,0,12,"B038","W","    ","LE PERROUD                ",3,"LES ARDILLATS                 "]
[69,0,12,"B039","X","    ","PISSEFOUR                 ",3,"LES ARDILLATS                 "]
[69,0,12,"B040","Y","    ","PLUVIER                   ",3,"LES ARDILLATS                 "]
[69,0,12,"B041","Z","    ","LES POUDIERES             ",3,"LES ARDILLATS                 "]
[69,0,12,"B042","A","    ","LA POYE                   ",3,"LES ARDILLATS                 "]
[69,0,12,"B043","B","    ","RANFRAY                   ",3,"LES ARDILLATS                 "]
[69,0,12,"B044","C","    ","LA ROCHE                  ",3,"LES ARDILLATS                 "]
[69,0,12,"B045","D","    ","ROCHE GONIN               ",3,"LES ARDILLATS                 "]
[69,0,12,"B046","E","    ","TERRE NOIRE               ",3,"LES ARDILLATS                 "]
[69,0,12,"B047","F","    ","LE THEL                   ",3,"LES ARDILLATS                 "]
[69,0,12,"B048","G","    ","LES VAILLANTS             ",3,"LES ARDILLATS                 "]
[69,0,12,"B049","H","    ","LE VAL D ARDIERES         ",3,"LES ARDILLATS                 "]
[69,0,12,"B050","J","    ","LA VERRIERE EST           ",3,"LES ARDILLATS                 "]
[69,0,12,"B051","K","    ","LA VERRIERE OUEST         ",3,"LES ARDILLATS                 "]
[69,0,12,"B900","H","    ","LES GLANDES               ",3,"LES ARDILLATS                 "]
[69,0,12,5,"D","RTE ","D'AMIGNIE                 ",1,"LES ARDILLATS                 "]
[69,0,12,7,"F","RTE ","DES ARDILLATS             ",1,"LES ARDILLATS                 "]
[69,0,12,10,"J","RTE ","D'AVENAS                  ",1,"LES ARDILLATS                 "]
[69,0,12,15,"P","MTE ","DES BELOUZES              ",1,"LES ARDILLATS                 "]
[69,0,12,17,"S","IMP ","DES BERNILLONS            ",1,"LES ARDILLATS                 "]
[69,0,12,19,"U","IMP ","DES BRETUS                ",1,"LES ARDILLATS                 "]
[69,0,12,22,"X","IMP ","BUISONNIERE               ",1,"LES ARDILLATS                 "]
[69,0,12,25,"A","MTE ","DE CHAMPOMMIER            ",1,"LES ARDILLATS                 "]
[69,0,12,26,"B","IMP ","DU CHATEAU                ",1,"LES ARDILLATS                 "]
[69,0,12,27,"C","RTE ","DE CHATILLON              ",1,"LES ARDILLATS                 "]
[69,0,12,29,"E","RTE ","DE CHENELETTE             ",1,"LES ARDILLATS                 "]
[69,0,12,31,"G","IMP ","DES CHEVREUILS            ",1,"LES ARDILLATS                 "]
[69,0,12,33,"J","    ","BOUCLE DES CHIERES        ",1,"LES ARDILLATS                 "]
[69,0,12,35,"L","CHE ","DU CIMETIERE              ",1,"LES ARDILLATS                 "]
[69,0,12,39,"R","IMP ","DU CORNILLAT              ",1,"LES ARDILLATS                 "]
[69,0,12,40,"S","RTE ","DU COL DE CRIE            ",1,"LES ARDILLATS                 "]
[69,0,12,41,"T","IMP ","DE CRIE                   ",1,"LES ARDILLATS                 "]
[69,0,12,50,"C","IMP ","DE L'ECOLE                ",1,"LES ARDILLATS                 "]
[69,0,12,53,"F","MTE ","DE L'EGLISE               ",1,"LES ARDILLATS                 "]
[69,0,12,55,"H","IMP ","DE L'ETANG                ",1,"LES ARDILLATS                 "]
[69,0,12,57,"K","CHE ","DES ESSARDS               ",1,"LES ARDILLATS                 "]
[69,0,12,60,"N","    ","BOUCLE DES FARJATS        ",1,"LES ARDILLATS                 "]
[69,0,12,65,"U","IMP ","DE LA GARENNE             ",1,"LES ARDILLATS                 "]
[69,0,12,66,"V","IMP ","DE LA FONTAINE            ",1,"LES ARDILLATS                 "]
[69,0,12,67,"W","IMP ","DU GELAY                  ",1,"LES ARDILLATS                 "]
[69,0,12,68,"X","IMP ","DE FONTBOTTIER            ",1,"LES ARDILLATS                 "]
[69,0,12,69,"Y","IMP ","DES GLANDES               ",1,"LES ARDILLATS                 "]
[69,0,12,70,"Z","IMP ","DES FRENES                ",1,"LES ARDILLATS                 "]
[69,0,12,71,"A","CHE ","DU GRAND BERRE            ",1,"LES ARDILLATS                 "]
[69,0,12,73,"C","IMP ","DE LA GRANGE DU BOIS      ",1,"LES ARDILLATS                 "]
[69,0,12,75,"E","IMP ","DE GRALOUP                ",1,"LES ARDILLATS                 "]
[69,0,12,85,"R","IMP ","JOSEPH MICHAUDON          ",1,"LES ARDILLATS                 "]
[69,0,12,87,"T","MTE ","DE JOYE                   ",1,"LES ARDILLATS                 "]
[69,0,12,95,"B","CHE ","DES LAISSUS               ",1,"LES ARDILLATS                 "]
[69,0,12,105,"M","PAS ","DE LA MAIRIE              ",1,"LES ARDILLATS                 "]
[69,0,12,109,"S","IMP ","DE MARCA                  ",1,"LES ARDILLATS                 "]
[69,0,12,110,"T","IMP ","DE MONTIVIER              ",1,"LES ARDILLATS                 "]
[69,0,12,111,"U","IMP ","DU MONT SOMBET            ",1,"LES ARDILLATS                 "]
[69,0,12,113,"W","RTE ","DE MONSOLS                ",1,"LES ARDILLATS                 "]
[69,0,12,115,"Y","IMP ","DU MORIN                  ",1,"LES ARDILLATS                 "]
[69,0,12,117,"A","CHE ","DU MOULIN                 ",1,"LES ARDILLATS                 "]
[69,0,12,120,"D","CHE ","DE LA NOIX                ",1,"LES ARDILLATS                 "]
[69,0,12,125,"J","IMP ","DES ONCINS                ",1,"LES ARDILLATS                 "]
[69,0,12,130,"P","MTE ","DU PERROUD                ",1,"LES ARDILLATS                 "]
[69,0,12,135,"V","IMP ","DE PISSEFOUR              ",1,"LES ARDILLATS                 "]
[69,0,12,137,"X","MTE ","DE PLUVIER                ",1,"LES ARDILLATS                 "]
[69,0,12,140,"A","IMP ","DE LA POYE                ",1,"LES ARDILLATS                 "]
[69,0,12,150,"L","IMP ","DE LA RIVIERE             ",1,"LES ARDILLATS                 "]
[69,0,12,155,"S","IMP ","DE LA ROCHE               ",1,"LES ARDILLATS                 "]
[69,0,12,156,"T","IMP ","DE LA ROCHE GONIN         ",1,"LES ARDILLATS                 "]
[69,0,12,157,"U","IMP ","DES ROCHAUDS              ",1,"LES ARDILLATS                 "]
[69,0,12,160,"X","IMP ","DU ROQUET                 ",1,"LES ARDILLATS                 "]
[69,0,12,170,"H","MTE ","DU SAINT RIGAUD           ",1,"LES ARDILLATS                 "]
[69,0,12,172,"K","IMP ","DU SABOTIER               ",1,"LES ARDILLATS                 "]
[69,0,12,175,"N","IMP ","DE LA SERVE               ",1,"LES ARDILLATS                 "]
[69,0,12,180,"U","CHE ","DU SUCHET                 ",1,"LES ARDILLATS                 "]
[69,0,12,185,"Z","CHE ","DU TACOT                  ",1,"LES ARDILLATS                 "]
[69,0,12,187,"B","IMP ","DES TERRASSE DE L'ARDIERES",1,"LES ARDILLATS                 "]
[69,0,12,190,"E","IMP ","DU THEL                   ",1,"LES ARDILLATS                 "]
[69,0,12,195,"K","IMP ","DU TILLEUL                ",1,"LES ARDILLATS                 "]
[69,0,12,200,"R","IMP ","DES VAILLANTS             ",1,"LES ARDILLATS                 "]
[69,0,12,207,"Y","IMP ","DU VELAY                  ",1,"LES ARDILLATS                 "]
[69,0,12,208,"Z","CHE ","DES VALETTES              ",1,"LES ARDILLATS                 "]
[69,0,12,210,"B","CHE ","DE LA VERRIERE            ",1,"LES ARDILLATS                 "]
[69,0,12,215,"G","CHE ","DES VIEUX DEPOTS          ",1,"LES ARDILLATS                 "]
[69,0,12,220,"M","CHE ","DES VIGNES                ",1,"LES ARDILLATS                 "]
[69,0,13,"B001","B","    ","AUX ABREUVOIRS            ",3,"ARNAS                         "]
[69,0,13,"B002","C","    ","AVE MARIA                 ",3,"ARNAS                         "]
[69,0,13,"B003","D","    ","BASSES RUES               ",3,"ARNAS                         "]
[69,0,13,"B004","E","    ","BATIEUX                   ",3,"ARNAS                         "]
[69,0,13,"B005","F","    ","LE BOURG                  ",3,"ARNAS                         "]
[69,0,13,"B006","G","    ","AUX BRUYERES              ",3,"ARNAS                         "]
[69,0,13,"B007","H","    ","CHAMP DE JOUX             ",3,"ARNAS                         "]
[69,0,13,"B008","J","    ","CHAMP DE LA GRANGE MORIN  ",3,"ARNAS                         "]
[69,0,13,"B009","K","    ","CHAMP DU GARET            ",3,"ARNAS                         "]
[69,0,13,"B010","L","    ","CHAMPBURSY                ",3,"ARNAS                         "]
[69,0,13,"B011","M","    ","CHANTE GRILLET            ",3,"ARNAS                         "]
[69,0,13,"B012","N","    ","CHAVANNE                  ",3,"ARNAS                         "]
[69,0,13,"B013","P","    ","CHEZ VERRIER              ",3,"ARNAS                         "]
[69,0,13,"B014","R","    ","CROIX FLEURIE             ",3,"ARNAS                         "]
[69,0,13,"B015","S","    ","L ECUELLE                 ",3,"ARNAS                         "]
[69,0,13,"B016","T","    ","L EPIE                    ",3,"ARNAS                         "]
[69,0,13,"B017","U","    ","GRANDE TERRE              ",3,"ARNAS                         "]
[69,0,13,"B018","V","    ","GRANGE DU MOULIN          ",3,"ARNAS                         "]
[69,0,13,"B019","W","    ","GRANGE PERRET             ",3,"ARNAS                         "]
[69,0,13,"B020","X","    ","HERBAIN                   ",3,"ARNAS                         "]
[69,0,13,"B021","Y","    ","JOUTECROT                 ",3,"ARNAS                         "]
[69,0,13,"B022","Z","    ","JOUX                      ",3,"ARNAS                         "]
[69,0,13,"B023","A","    ","LONGSARD                  ",3,"ARNAS                         "]
[69,0,13,"B024","B","    ","MARIETTON                 ",3,"ARNAS                         "]
[69,0,13,"B025","C","    ","PLACE BLANCHE             ",3,"ARNAS                         "]
[69,0,13,"B026","D","    ","PRAIRIE D ARNAS           ",3,"ARNAS                         "]
[69,0,13,"B027","E","    ","PRE DU GARET              ",3,"ARNAS                         "]
[69,0,13,"B028","F","    ","PRES MALSAINS             ",3,"ARNAS                         "]
[69,0,13,"B029","G","    ","AUX RUES                  ",3,"ARNAS                         "]
[69,0,13,"B030","H","    ","AUX SERVES                ",3,"ARNAS                         "]
[69,0,13,"B031","J","    ","LES SOCIETES              ",3,"ARNAS                         "]
[69,0,13,"B032","K","    ","L'ECUELLE EST             ",3,"ARNAS                         "]
[69,0,13,"B033","L","    ","CHAMP DE JOUX NORD        ",3,"ARNAS                         "]
[69,0,13,"B034","M","    ","GRANGE DE JOUX            ",3,"ARNAS                         "]
[69,0,13,"B035","N","    ","CHAVANNE EST              ",3,"ARNAS                         "]
[69,0,13,"B037","R","    ","LE VERRIER                ",3,"ARNAS                         "]
[69,0,13,"B038","S","    ","LE PRE DU MOULIN          ",3,"ARNAS                         "]
[69,0,13,"B039","T","    ","AVE MARIA SUD             ",3,"ARNAS                         "]
[69,0,13,"B040","U","    ","C DE LA GRANGE MORIN OUEST",3,"ARNAS                         "]
[69,0,13,"B041","V","    ","CROIX FLEURIE NORD        ",3,"ARNAS                         "]
[69,0,13,"B043","X","    ","CHAMP DE JOUX SUD         ",3,"ARNAS                         "]
[69,0,13,"B044","Y","    ","CHAMP DU GARET SUD        ",3,"ARNAS                         "]
[69,0,13,"B045","Z","    ","CHAMP DU GARET NORD       ",3,"ARNAS                         "]
[69,0,13,"B900","D","    ","CHEMIN PROFOND            ",3,"ARNAS                         "]
[69,0,13,2,"W","RUE ","DE L ABBAYE               ",1,"ARNAS                         "]
[69,0,13,10,"E","IMP ","D AMIRON                  ",1,"ARNAS                         "]
[69,0,13,11,"F","ART ","ANCIENNE RTE DE BEAUJEU   ",1,"ARNAS                         "]
[69,0,13,12,"G","AV  ","DE BEAUJEU                ",1,"ARNAS                         "]
[69,0,13,13,"H","RUE ","DU BEAUJOLAIS             ",1,"ARNAS                         "]
[69,0,13,15,"K","CHE ","DE BEAUREGARD             ",1,"ARNAS                         "]
[69,0,13,18,"N","RUE ","BLAISE PASCAL             ",1,"ARNAS                         "]
[69,0,13,20,"R","RUE ","BERTHELOT                 ",1,"ARNAS                         "]
[69,0,13,25,"W","RUE ","DE LA BOUCLE              ",1,"ARNAS                         "]
[69,0,13,27,"Y","CHE ","DES CAVALIERS             ",1,"ARNAS                         "]
[69,0,13,28,"Z","IMP ","DU COTEAU                 ",1,"ARNAS                         "]
[69,0,13,32,"D","ALL ","DU BOIS CROZET            ",1,"ARNAS                         "]
[69,0,13,33,"E","RUE ","DU CHAMP DU GARET         ",1,"ARNAS                         "]
[69,0,13,34,"F","IMP ","DE LA CERISAIE            ",1,"ARNAS                         "]
[69,0,13,35,"G","CHE ","CHANTEGRILLET             ",1,"ARNAS                         "]
[69,0,13,36,"H","IMP ","CHANTEGRILLET             ",1,"ARNAS                         "]
[69,0,13,37,"J","RTE ","DE CHANTEGRILLET          ",1,"ARNAS                         "]
[69,0,13,38,"K","RTE ","DE CHAMBURCY              ",1,"ARNAS                         "]
[69,0,13,39,"L","IMP ","DE LA CHARTONNIERE        ",1,"ARNAS                         "]
[69,0,13,40,"M","IMP ","CHARLES BAUDELAIRE        ",1,"ARNAS                         "]
[69,0,13,41,"N","PL  ","CHARLES BAUDELAIRE        ",1,"ARNAS                         "]
[69,0,13,42,"P","SQ  ","CHARLES DE FLEURIEU       ",1,"ARNAS                         "]
[69,0,13,43,"R","IMP ","DU CLOS DE LA GRANGE      ",1,"ARNAS                         "]
[69,0,13,44,"S","CHEM","DE LA CROIX BARNOUD       ",1,"ARNAS                         "]
[69,0,13,45,"T","RUE ","DE LA CHARTONNIERE        ",1,"ARNAS                         "]
[69,0,13,46,"U","RUE ","DE CHAVANNE               ",1,"ARNAS                         "]
[69,0,13,47,"V","RUE ","DU CHEVALIER DECOULEUR    ",1,"ARNAS                         "]
[69,0,13,48,"W","IMP ","DE CHAVANNE               ",1,"ARNAS                         "]
[69,0,13,49,"X","ALL ","DE L ENCEINTE             ",1,"ARNAS                         "]
[69,0,13,50,"Y","RUE ","DE LA CROIX FLEURIE       ",1,"ARNAS                         "]
[69,0,13,51,"Z","CHE ","DE LA CROIX               ",1,"ARNAS                         "]
[69,0,13,52,"A","PL  ","DE L EGLISE               ",1,"ARNAS                         "]
[69,0,13,53,"B","RUE ","GEORGE SAND               ",1,"ARNAS                         "]
[69,0,13,54,"C","RTE ","D EPINAY                  ",1,"ARNAS                         "]
[69,0,13,55,"D","IMP ","GUILLAUME APOLLINAIRE     ",1,"ARNAS                         "]
[69,0,13,56,"E","PL  ","GUILLAUME APOLLINAIRE     ",1,"ARNAS                         "]
[69,0,13,57,"F","RTE ","DES FRENES                ",1,"ARNAS                         "]
[69,0,13,59,"H","IMP ","GRANGE MORIN              ",1,"ARNAS                         "]
[69,0,13,60,"J","RUE ","GRANGE MORIN              ",1,"ARNAS                         "]
[69,0,13,65,"P","RTE ","DE LA GRANGE PERRET       ",1,"ARNAS                         "]
[69,0,13,70,"V","RTE ","D HERBAIN                 ",1,"ARNAS                         "]
[69,0,13,71,"W","IMP ","LATHUILIERE               ",1,"ARNAS                         "]
[69,0,13,74,"Z","CHE ","DE JOUTECROT              ",1,"ARNAS                         "]
[69,0,13,75,"A","AV  ","DE JOUX                   ",1,"ARNAS                         "]
[69,0,13,76,"B","IMP ","DU PETIT JOUX             ",1,"ARNAS                         "]
[69,0,13,78,"D","IMP ","LA FONTAINE               ",1,"ARNAS                         "]
[69,0,13,79,"E","PL  ","LA FONTAINE               ",1,"ARNAS                         "]
[69,0,13,80,"F","RUE ","DE LA LIBERTE             ",1,"ARNAS                         "]
[69,0,13,85,"L","CHE ","DE LONGSARD               ",1,"ARNAS                         "]
[69,0,13,86,"M","RTE ","DE LONGSARD               ",1,"ARNAS                         "]
[69,0,13,90,"S","RUE ","LOUIS PLASSE              ",1,"ARNAS                         "]
[69,0,13,91,"T","CHE ","DU LOUP                   ",1,"ARNAS                         "]
[69,0,13,92,"U","RTE ","DES MARAICHERS            ",1,"ARNAS                         "]
[69,0,13,94,"W","RTE ","DES MAISONS NEUVES        ",1,"ARNAS                         "]
[69,0,13,95,"X","RUE ","DU MARVERAND              ",1,"ARNAS                         "]
[69,0,13,96,"Y","IMP ","MAURICE UTRILLO           ",1,"ARNAS                         "]
[69,0,13,97,"Z","CHE ","DU NIZERAND               ",1,"ARNAS                         "]
[69,0,13,98,"A","RUE ","DU NIZERAND               ",1,"ARNAS                         "]
[69,0,13,99,"B","RTE ","NATIONALE 6               ",1,"ARNAS                         "]
[69,0,13,100,"C","RUE ","DU NORD                   ",1,"ARNAS                         "]
[69,0,13,101,"D","RTE ","DE NUITS                  ",1,"ARNAS                         "]
[69,0,13,102,"E","RUE ","DES PEPINIERES            ",1,"ARNAS                         "]
[69,0,13,103,"F","CHE ","DU PETIT JOUX             ",1,"ARNAS                         "]
[69,0,13,104,"G","CHE ","PROFOND                   ",1,"ARNAS                         "]
[69,0,13,105,"H","RUE ","PHILIPPE DAMIRON          ",1,"ARNAS                         "]
[69,0,13,106,"J","IMP ","PHILIPPE DAMIRON          ",1,"ARNAS                         "]
[69,0,13,107,"K","IMP ","DES PRAIRIES              ",1,"ARNAS                         "]
[69,0,13,108,"L","RUE ","PRE DU MOULIN             ",1,"ARNAS                         "]
[69,0,13,109,"M","RUE ","PREVERT                   ",1,"ARNAS                         "]
[69,0,13,110,"N","RTE ","DES SERVES                ",1,"ARNAS                         "]
[69,0,13,111,"P","IMP ","RIMBAUD                   ",1,"ARNAS                         "]
[69,0,13,112,"R","PL  ","RIMBAUD                   ",1,"ARNAS                         "]
[69,0,13,113,"S","RTE ","DU RUISSEAU DES FONTAINES ",1,"ARNAS                         "]
[69,0,13,114,"T","RTE ","DE SAINT JULIEN           ",1,"ARNAS                         "]
[69,0,13,115,"U","RUE ","DU STADE                  ",1,"ARNAS                         "]
[69,0,13,116,"V","SQ  ","DU SOUVENIR FRANCAIS      ",1,"ARNAS                         "]
[69,0,13,117,"W","IMP ","SUZANNE VALADON           ",1,"ARNAS                         "]
[69,0,13,118,"X","RTE ","DES RUES                  ",1,"ARNAS                         "]
[69,0,13,119,"Y","CHE ","DU RUISSEAU               ",1,"ARNAS                         "]
[69,0,13,120,"Z","CHE ","DES TACHES                ",1,"ARNAS                         "]
[69,0,13,123,"C","IMP ","DES TAMARIS               ",1,"ARNAS                         "]
[69,0,13,124,"D","RTE ","DU TOLERON                ",1,"ARNAS                         "]
[69,0,13,125,"E","IMP ","LE VERRIER                ",1,"ARNAS                         "]
[69,0,13,126,"F","RTE ","DU VERRIER                ",1,"ARNAS                         "]
[69,0,13,127,"G","IMP ","PAUL VERLAINE             ",1,"ARNAS                         "]
[69,0,13,128,"H","CHE ","DES RESISTANTS            ",1,"ARNAS                         "]
[69,0,13,129,"J","IMP ","DU PIGEONNIER             ",1,"ARNAS                         "]
[69,0,13,130,"K","CHE ","DE RONDE                  ",1,"ARNAS                         "]
[69,0,13,131,"L","IMP ","PARIS LYON MEDITERRANEE   ",1,"ARNAS                         "]
[69,0,13,141,"X","IMP ","DES SERVES                ",1,"ARNAS                         "]
[69,0,13,142,"Y","IMP ","DU DOM DES VERNES         ",1,"ARNAS                         "]
[69,0,13,148,"E","CHE ","DES VIGNES                ",1,"ARNAS                         "]
[69,0,13,149,"F","IMP ","DES BARRIERES             ",1,"ARNAS                         "]
[69,0,13,150,"G","CHE ","DE L'AIGUILLAGE           ",1,"ARNAS                         "]
[69,0,13,151,"H","IMP ","DES ARBOUSIERS            ",1,"ARNAS                         "]
[69,0,13,152,"J","ALL ","DE LA BELETTE             ",1,"ARNAS                         "]
[69,0,13,153,"K","ALL ","DES AULNES                ",1,"ARNAS                         "]
[69,0,13,155,"M","CHE ","DES ABREUVOIRS            ",1,"ARNAS                         "]
[69,0,13,156,"N","CHE ","DE L'ATELIER              ",1,"ARNAS                         "]
[69,0,13,158,"R","IMP ","DES BLES                  ",1,"ARNAS                         "]
[69,0,13,160,"T","ALL ","DES BUISSONS              ",1,"ARNAS                         "]
[69,0,13,161,"U","IMP ","DES BRUNELLES             ",1,"ARNAS                         "]
[69,0,13,162,"V","    ","PLACETTE DES BLEUETS      ",1,"ARNAS                         "]
[69,0,13,163,"W","RUE ","DES AUBEPINES             ",1,"ARNAS                         "]
[69,0,13,164,"X","RUE ","MARIUS BERLIET            ",1,"ARNAS                         "]
[69,0,13,165,"Y","IMP ","DES AMANDIERS             ",1,"ARNAS                         "]
[69,0,13,166,"Z","RUE ","DES ACACIAS               ",1,"ARNAS                         "]
[69,0,13,170,"D","RTE ","DES BRUYERES              ",1,"ARNAS                         "]
[69,0,13,175,"J","ALL ","DE LA CASCADE             ",1,"ARNAS                         "]
[69,0,13,176,"K","CHE ","DES COQUELICOTS           ",1,"ARNAS                         "]
[69,0,13,178,"M","    ","ESPACE DES CHAMPIGNONS    ",1,"ARNAS                         "]
[69,0,13,179,"N","RTE ","DE LA CHAPELLE            ",1,"ARNAS                         "]
[69,0,13,185,"V","AV  ","DE L'EPIE                 ",1,"ARNAS                         "]
[69,0,13,186,"W","CHE ","DES ETANGS                ",1,"ARNAS                         "]
[69,0,13,187,"X","IMP ","DE LA FORGE               ",1,"ARNAS                         "]
[69,0,13,188,"Y","CHE ","DES GARDONS               ",1,"ARNAS                         "]
[69,0,13,189,"Z","RTE ","DES GENETS                ",1,"ARNAS                         "]
[69,0,13,190,"A","CHE ","DE LA GRANGE MENARD       ",1,"ARNAS                         "]
[69,0,13,191,"B","CHE ","DE GRANGE VIEILLE         ",1,"ARNAS                         "]
[69,0,13,192,"C","IMP ","DE LA HALTE               ",1,"ARNAS                         "]
[69,0,13,193,"D","RUE ","DES HETRES                ",1,"ARNAS                         "]
[69,0,13,195,"F","RUE ","JACQUES PREVERT           ",1,"ARNAS                         "]
[69,0,13,196,"G","RUE ","JEAN CHAFFANJON           ",1,"ARNAS                         "]
[69,0,13,197,"H","RUE ","JEAN DE LA FONTAINE       ",1,"ARNAS                         "]
[69,0,13,200,"L","MTE ","DES JONCS                 ",1,"ARNAS                         "]
[69,0,13,205,"S","ALL ","DU FIGUIER                ",1,"ARNAS                         "]
[69,0,13,206,"T","ALL ","DU BEL HORIZON            ",1,"ARNAS                         "]
[69,0,13,207,"U","CHE ","DU GUEPIER                ",1,"ARNAS                         "]
[69,0,13,208,"V","CHE ","DU HERON                  ",1,"ARNAS                         "]
[69,0,13,209,"W","    ","COUR DES LAVANDES         ",1,"ARNAS                         "]
[69,0,13,210,"X","CHE ","DES LIEVRES               ",1,"ARNAS                         "]
[69,0,13,212,"Z","IMP ","LUCIE AUBRAC              ",1,"ARNAS                         "]
[69,0,13,213,"A","CHE ","DES LIBELLULES            ",1,"ARNAS                         "]
[69,0,13,215,"C","IMP ","DES LAURIERS              ",1,"ARNAS                         "]
[69,0,13,220,"H","ALL ","DES MIMOSAS               ",1,"ARNAS                         "]
[69,0,13,222,"K","ALL ","DES NIGELLES              ",1,"ARNAS                         "]
[69,0,13,223,"L","ALL ","DES NOISETIERS            ",1,"ARNAS                         "]
[69,0,13,224,"M","ALL ","MICHEL GANDOGER           ",1,"ARNAS                         "]
[69,0,13,225,"N","IMP ","AMBROISE PARE             ",1,"ARNAS                         "]
[69,0,13,226,"P","IMP ","DU PETIT PERRIER          ",1,"ARNAS                         "]
[69,0,13,227,"R","ALL ","DES NENUPHARS             ",1,"ARNAS                         "]
[69,0,13,229,"T","CHE ","DES PRUNELIERS            ",1,"ARNAS                         "]
[69,0,13,230,"U","IMP ","DES POMMIERS              ",1,"ARNAS                         "]
[69,0,13,231,"V","IMP ","DU PONT                   ",1,"ARNAS                         "]
[69,0,13,232,"W","IMP ","PAUL ELUARD               ",1,"ARNAS                         "]
[69,0,13,235,"Z","IMP ","DU PRIEURE                ",1,"ARNAS                         "]
[69,0,13,238,"C","PAS ","DU MEUNIER                ",1,"ARNAS                         "]
[69,0,13,244,"J","RUE ","DES PINSONS               ",1,"ARNAS                         "]
[69,0,13,245,"K","RUE ","DES PRAIRIES              ",1,"ARNAS                         "]
[69,0,13,247,"M","RUE ","DU RAIL                   ",1,"ARNAS                         "]
[69,0,13,248,"N","ALL ","DU SERPOLET               ",1,"ARNAS                         "]
[69,0,13,249,"P","IMP ","ARTHUR RIMBAUD            ",1,"ARNAS                         "]
[69,0,13,250,"R","IMP ","DES ROSEAUX               ",1,"ARNAS                         "]
[69,0,13,255,"W","    ","TRAVERSEE RENE LAENNEC    ",1,"ARNAS                         "]
[69,0,13,256,"X","PL  ","DES SARMENTS              ",1,"ARNAS                         "]
[69,0,13,258,"Z","IMP ","DU TACOT                  ",1,"ARNAS                         "]
[69,0,13,259,"A","RUE ","DES TAMARIS               ",1,"ARNAS                         "]
[69,0,13,261,"C","ALL ","DE LA TOUR                ",1,"ARNAS                         "]
[69,0,13,262,"D","RUE ","DES TULIPIERS             ",1,"ARNAS                         "]
[69,0,13,263,"E","ALL ","DU VIEUX CHENE            ",1,"ARNAS                         "]
[69,0,13,264,"F","CHE ","DU VIEUX LAVOIR           ",1,"ARNAS                         "]
[69,0,13,265,"G","IMP ","DU VIEUX POIRIER          ",1,"ARNAS                         "]
[69,0,13,266,"H","IMP ","DU VIEUX PUITS            ",1,"ARNAS                         "]
[69,0,13,268,"K","RUE ","BORIS VIAN                ",1,"ARNAS                         "]
[69,0,13,270,"M","PAS ","DU VIGNERON               ",1,"ARNAS                         "]
[69,0,13,271,"N","RUE ","DU MOULIN DE TUET         ",1,"ARNAS                         "]
[69,0,14,"A010","V","HAM ","DES BOUTHIERES            ",2,"AVEIZE                        "]
[69,0,14,"B001","X","    ","LES ADRETS                ",3,"AVEIZE                        "]
[69,0,14,"B002","Y","    ","L ARGENTIERE              ",3,"AVEIZE                        "]
[69,0,14,"B003","Z","    ","LE BAS D ORJOLLES         ",3,"AVEIZE                        "]
[69,0,14,"B004","A","    ","LA BERNARDIERE            ",3,"AVEIZE                        "]
[69,0,14,"B005","B","    ","LE BITERNAY NORD          ",3,"AVEIZE                        "]
[69,0,14,"B006","C","    ","LE BITERNAY SUD           ",3,"AVEIZE                        "]
[69,0,14,"B007","D","    ","LES BOIS D HURAS          ",3,"AVEIZE                        "]
[69,0,14,"B008","E","    ","BOUCHET                   ",3,"AVEIZE                        "]
[69,0,14,"B009","F","    ","LE BOURG                  ",3,"AVEIZE                        "]
[69,0,14,"B010","G","    ","LES BOURLIERES            ",3,"AVEIZE                        "]
[69,0,14,"B011","H","    ","LES BOUTHIERES            ",3,"AVEIZE                        "]
[69,0,14,"B012","J","    ","LE BRE                    ",3,"AVEIZE                        "]
[69,0,14,"B013","K","    ","LE CHATELARD              ",3,"AVEIZE                        "]
[69,0,14,"B014","L","    ","LA CHAVA                  ",3,"AVEIZE                        "]
[69,0,14,"B015","M","    ","CHENEVE                   ",3,"AVEIZE                        "]
[69,0,14,"B016","N","    ","CHENEVIERE                ",3,"AVEIZE                        "]
[69,0,14,"B017","P","    ","CHEVRE BLANC              ",3,"AVEIZE                        "]
[69,0,14,"B018","R","    ","LE COLOMBET               ",3,"AVEIZE                        "]
[69,0,14,"B019","S","    ","LES COTES                 ",3,"AVEIZE                        "]
[69,0,14,"B020","T","    ","LA COURTINE DU BAS        ",3,"AVEIZE                        "]
[69,0,14,"B021","U","    ","LA COURTINE DU HT         ",3,"AVEIZE                        "]
[69,0,14,"B022","V","    ","LE CRET                   ",3,"AVEIZE                        "]
[69,0,14,"B023","W","    ","CRX MATOUR                ",3,"AVEIZE                        "]
[69,0,14,"B024","X","    ","CRX TROUILLOUX            ",3,"AVEIZE                        "]
[69,0,14,"B025","Y","    ","LES CURES                 ",3,"AVEIZE                        "]
[69,0,14,"B026","Z","    ","LES ENVERS DU GLAS        ",3,"AVEIZE                        "]
[69,0,14,"B027","A","    ","LES ESPARCIEUX NORD       ",3,"AVEIZE                        "]
[69,0,14,"B028","B","    ","LES ESPARCIEUX SUD        ",3,"AVEIZE                        "]
[69,0,14,"B029","C","    ","LA FAYOLLE                ",3,"AVEIZE                        "]
[69,0,14,"B030","D","    ","LA FEUILLEE               ",3,"AVEIZE                        "]
[69,0,14,"B031","E","    ","LA FONT DE L EGLISE       ",3,"AVEIZE                        "]
[69,0,14,"B032","F","    ","LA FORET                  ",3,"AVEIZE                        "]
[69,0,14,"B033","G","    ","FOURCHET                  ",3,"AVEIZE                        "]
[69,0,14,"B034","H","    ","LA GAIZE                  ",3,"AVEIZE                        "]
[69,0,14,"B035","J","    ","LE GAS                    ",3,"AVEIZE                        "]
[69,0,14,"B036","K","    ","GD BUT                    ",3,"AVEIZE                        "]
[69,0,14,"B037","L","    ","LES GDES TERRES           ",3,"AVEIZE                        "]
[69,0,14,"B038","M","    ","LE GLAS                   ",3,"AVEIZE                        "]
[69,0,14,"B039","N","    ","LES GORGES                ",3,"AVEIZE                        "]
[69,0,14,"B040","P","    ","GRANGE REYNARD            ",3,"AVEIZE                        "]
[69,0,14,"B041","R","    ","LES GRANGES               ",3,"AVEIZE                        "]
[69,0,14,"B042","S","    ","LES GUILLERMIERES         ",3,"AVEIZE                        "]
[69,0,14,"B043","T","    ","HAM DE PRESLE             ",3,"AVEIZE                        "]
[69,0,14,"B044","U","    ","HAM DU TREVE              ",3,"AVEIZE                        "]
[69,0,14,"B045","V","    ","LE HT D ORJOLLES          ",3,"AVEIZE                        "]
[69,0,14,"B046","W","    ","HURAS                     ",3,"AVEIZE                        "]
[69,0,14,"B047","X","    ","JACQUEMONT                ",3,"AVEIZE                        "]
[69,0,14,"B048","Y","    ","LES JORTES                ",3,"AVEIZE                        "]
[69,0,14,"B049","Z","    ","LAMURE NORD               ",3,"AVEIZE                        "]
[69,0,14,"B050","A","    ","LAMURE SUD                ",3,"AVEIZE                        "]
[69,0,14,"B051","B","    ","LES MAISONS NEUVES        ",3,"AVEIZE                        "]
[69,0,14,"B052","C","    ","MARGARAT                  ",3,"AVEIZE                        "]
[69,0,14,"B053","D","    ","LE MURIAU                 ",3,"AVEIZE                        "]
[69,0,14,"B054","E","    ","LES ORNAGES               ",3,"AVEIZE                        "]
[69,0,14,"B055","F","    ","LA PERELLE                ",3,"AVEIZE                        "]
[69,0,14,"B056","G","    ","PINS BERTHIER             ",3,"AVEIZE                        "]
[69,0,14,"B057","H","    ","PLACARON                  ",3,"AVEIZE                        "]
[69,0,14,"B058","J","    ","LE PLAT                   ",3,"AVEIZE                        "]
[69,0,14,"B059","K","    ","PONT GRIZON               ",3,"AVEIZE                        "]
[69,0,14,"B060","L","    ","LES PRES DE MAI           ",3,"AVEIZE                        "]
[69,0,14,"B061","M","    ","PRESLE                    ",3,"AVEIZE                        "]
[69,0,14,"B062","N","    ","RAMPEAUX                  ",3,"AVEIZE                        "]
[69,0,14,"B063","P","    ","LE REYNARD                ",3,"AVEIZE                        "]
[69,0,14,"B064","R","    ","RIZOUD                    ",3,"AVEIZE                        "]
[69,0,14,"B065","S","    ","LA SABOIRE                ",3,"AVEIZE                        "]
[69,0,14,"B066","T","    ","LA SALARDIERE             ",3,"AVEIZE                        "]
[69,0,14,"B067","U","    ","LE SAPEY                  ",3,"AVEIZE                        "]
[69,0,14,"B068","V","    ","SARAILLY                  ",3,"AVEIZE                        "]
[69,0,14,"B069","W","    ","LE TERRON                 ",3,"AVEIZE                        "]
[69,0,14,"B070","X","    ","TORTIGNEUX                ",3,"AVEIZE                        "]
[69,0,14,"B071","Y","    ","LE TOURNET                ",3,"AVEIZE                        "]
[69,0,14,"B072","Z","    ","TRALU                     ",3,"AVEIZE                        "]
[69,0,14,"B073","A","    ","LE TREVE                  ",3,"AVEIZE                        "]
[69,0,14,"B074","B","    ","LE TROUILLARD             ",3,"AVEIZE                        "]
[69,0,14,"B075","C","    ","LE VOITURIN               ",3,"AVEIZE                        "]
[69,0,14,"B901","A","    ","LA COURTINE               ",3,"AVEIZE                        "]
[69,0,14,"B902","B","    ","LES ESPARCIEUX            ",3,"AVEIZE                        "]
[69,0,14,"B903","C","    ","LAMURE                    ",3,"AVEIZE                        "]
[69,0,14,"B904","D","    ","ORJOLLES                  ",3,"AVEIZE                        "]
[69,0,14,"X001","Z","PKG ","ESPACE CULTURE ET LOISIRS ",4,"AVEIZE                        "]
[69,0,14,20,"L","CHE ","L'ARGENTIERE ET ORGIERS   ",1,"AVEIZE                        "]
[69,0,14,22,"N","RTE ","DE L'ARGENTIERE           ",1,"AVEIZE                        "]
[69,0,14,40,"H","CHE ","AVEIZE A CHAPELLE S/ COISE",1,"AVEIZE                        "]
[69,0,14,50,"U","CHE ","D'AVEIZE A POMEYS         ",1,"AVEIZE                        "]
[69,0,14,60,"E","CHE ","AVEIZE A SOUZY ARGENTIERE ",1,"AVEIZE                        "]
[69,0,14,70,"R","CHE ","AVEIZE AU MOULIN ORJOLLES ",1,"AVEIZE                        "]
[69,0,14,80,"B","CHE ","D'AVEIZE AUX ESPARCIEUX   ",1,"AVEIZE                        "]
[69,0,14,84,"F","IMP ","BERGER                    ",1,"AVEIZE                        "]
[69,0,14,86,"H","IMP ","DE LA BREVENNE            ",1,"AVEIZE                        "]
[69,0,14,90,"M","IMP ","DU PETIT BOIS             ",1,"AVEIZE                        "]
[69,0,14,92,"P","IMP ","DU BOURDAT                ",1,"AVEIZE                        "]
[69,0,14,93,"R","CHE ","DU BOURDAT                ",1,"AVEIZE                        "]
[69,0,14,94,"S","CHE ","DU BOIS RIZOUD            ",1,"AVEIZE                        "]
[69,0,14,100,"Y","RUE ","DE LA BOULANGERIE         ",1,"AVEIZE                        "]
[69,0,14,120,"V","IMP ","DU CENTRE                 ",1,"AVEIZE                        "]
[69,0,14,130,"F","CHE ","DE LA CHAVA               ",1,"AVEIZE                        "]
[69,0,14,140,"S","CHE ","DE CHENEVE                ",1,"AVEIZE                        "]
[69,0,14,150,"C","CHE ","DE CHENEVIERE             ",1,"AVEIZE                        "]
[69,0,14,151,"D","IMP ","DE CHENEVIERE             ",1,"AVEIZE                        "]
[69,0,14,160,"N","RUE ","DE LA COLLINE             ",1,"AVEIZE                        "]
[69,0,14,170,"Z","CHE ","DE LA COURTINE            ",1,"AVEIZE                        "]
[69,0,14,172,"B","RTE ","DES COURTINES             ",1,"AVEIZE                        "]
[69,0,14,180,"K","RUE ","DU CRET                   ",1,"AVEIZE                        "]
[69,0,14,190,"W","RUE ","DE LA CROIX MICHEL        ",1,"AVEIZE                        "]
[69,0,14,192,"Y","IMP ","DE LA CROIX TROUILLOUX    ",1,"AVEIZE                        "]
[69,0,14,195,"B","RUE ","DES CURES                 ",1,"AVEIZE                        "]
[69,0,14,196,"C","IMP ","DES CURES                 ",1,"AVEIZE                        "]
[69,0,14,200,"G","RTE ","DE DUERNE                 ",1,"AVEIZE                        "]
[69,0,14,205,"M","RUE ","DE L' ECOLE               ",1,"AVEIZE                        "]
[69,0,14,210,"T","RUE ","DES ECOLES                ",1,"AVEIZE                        "]
[69,0,14,230,"P","PL  ","DE L'EGLISE               ",1,"AVEIZE                        "]
[69,0,14,240,"A","RUE ","DES ETANGS                ",1,"AVEIZE                        "]
[69,0,14,250,"L","CHE ","DE LA FAYOLLE             ",1,"AVEIZE                        "]
[69,0,14,275,"N","CHE ","DE LA PETITE FONT         ",1,"AVEIZE                        "]
[69,0,14,278,"S","CHE ","DU FOURCHET               ",1,"AVEIZE                        "]
[69,0,14,280,"U","IMP ","DE LA FORET               ",1,"AVEIZE                        "]
[69,0,14,282,"W","IMP ","DE LA FEUILLEE            ",1,"AVEIZE                        "]
[69,0,14,284,"Y","IMP ","DES JORTES                ",1,"AVEIZE                        "]
[69,0,14,285,"Z","CHE ","DE JACQUEMONT             ",1,"AVEIZE                        "]
[69,0,14,287,"B","IMP ","DES JARDINS               ",1,"AVEIZE                        "]
[69,0,14,300,"R","CHE ","DES MAISONS NEUVES        ",1,"AVEIZE                        "]
[69,0,14,417,"T","CHE ","DES ESPARCIEUX            ",1,"AVEIZE                        "]
[69,0,14,418,"U","IMP ","DES ESPARCIEUX            ",1,"AVEIZE                        "]
[69,0,14,419,"V","CHE ","DU GAS                    ",1,"AVEIZE                        "]
[69,0,14,420,"W","CHE ","DES ESPARCIEUX            ",1,"AVEIZE                        "]
[69,0,14,421,"X","RUE ","DE LA GOUTTE              ",1,"AVEIZE                        "]
[69,0,14,422,"Y","IMP ","DES GENETS                ",1,"AVEIZE                        "]
[69,0,14,423,"Z","IMP ","DU FLACHON                ",1,"AVEIZE                        "]
[69,0,14,424,"A","IMP ","DES GLYCINES              ",1,"AVEIZE                        "]
[69,0,14,425,"B","IMP ","DES GUILLERMIERES         ",1,"AVEIZE                        "]
[69,0,14,426,"C","GR  ","RUE                       ",1,"AVEIZE                        "]
[69,0,14,427,"D","IMP ","DE LA FAYOLLE DU HAUT     ",1,"AVEIZE                        "]
[69,0,14,428,"E","RTE ","DE GREZIEU LE MARCHE      ",1,"AVEIZE                        "]
[69,0,14,429,"F","IMP ","DE LAMURE                 ",1,"AVEIZE                        "]
[69,0,14,430,"G","IMP ","DES LAURIERS              ",1,"AVEIZE                        "]
[69,0,14,431,"H","IMP ","DE LA FAYOLLE DU BAS      ",1,"AVEIZE                        "]
[69,0,14,432,"J","IMP ","DU LAVOIR                 ",1,"AVEIZE                        "]
[69,0,14,434,"L","IMP ","DES LILAS                 ",1,"AVEIZE                        "]
[69,0,14,435,"M","CHE ","DE LAMURE                 ",1,"AVEIZE                        "]
[69,0,14,436,"N","RUE ","DU PIN BERTHIER           ",1,"AVEIZE                        "]
[69,0,14,438,"R","IMP ","DES PINS                  ",1,"AVEIZE                        "]
[69,0,14,439,"S","RTE ","DU PONT GRIZON            ",1,"AVEIZE                        "]
[69,0,14,440,"T","IMP ","DES PRES                  ",1,"AVEIZE                        "]
[69,0,14,442,"V","IMP ","DU PUITS                  ",1,"AVEIZE                        "]
[69,0,14,444,"X","IMP ","DES RAMPEAUX              ",1,"AVEIZE                        "]
[69,0,14,446,"Z","RUE ","DU SOLEIL LEVANT          ",1,"AVEIZE                        "]
[69,0,14,448,"B","RTE ","DE ST SYMPHORIEN SUR COISE",1,"AVEIZE                        "]
[69,0,14,449,"C","RTE ","DE STE FOY L' ARGENTIERE  ",1,"AVEIZE                        "]
[69,0,14,450,"D","CHE ","DU TERRON                 ",1,"AVEIZE                        "]
[69,0,14,460,"P","IMP ","DU TREVE                  ",1,"AVEIZE                        "]
[69,0,14,470,"A","CHE ","TREVE DU FOURCHET AU CD 34",1,"AVEIZE                        "]
[69,0,14,490,"X","IMP ","DES MAISONS NEUVES        ",1,"AVEIZE                        "]
[69,0,14,492,"Z","IMP ","DES MARRONNIERS           ",1,"AVEIZE                        "]
[69,0,14,494,"B","IMP ","DES MOUSSERONS            ",1,"AVEIZE                        "]
[69,0,14,496,"D","IMP ","DU MURIAU                 ",1,"AVEIZE                        "]
[69,0,14,498,"F","IMP ","DU NOISETIER              ",1,"AVEIZE                        "]
[69,0,14,499,"G","CHE ","DU NOISETIER              ",1,"AVEIZE                        "]
[69,0,14,500,"H","IMP ","DES OISEAUX               ",1,"AVEIZE                        "]
[69,0,14,504,"M","CHE ","DU PERRIN                 ",1,"AVEIZE                        "]
[69,0,14,505,"N","IMP ","DES ORNAGES               ",1,"AVEIZE                        "]
[69,0,14,506,"P","CHE ","DE L'ORJOLLE              ",1,"AVEIZE                        "]
[69,0,14,507,"R","CHE ","DU VAL D'ORJOLLE          ",1,"AVEIZE                        "]
[69,0,14,508,"S","IMP ","DE L'ORZON                ",1,"AVEIZE                        "]
[69,0,14,509,"T","CHE ","DU PLAT                   ",1,"AVEIZE                        "]
[69,0,14,510,"U","IMP ","DU PILAT                  ",1,"AVEIZE                        "]
[69,0,14,511,"V","IMP ","DU PLAT                   ",1,"AVEIZE                        "]
[69,0,14,515,"Z","IMP ","DU PLACARON               ",1,"AVEIZE                        "]
[69,0,14,518,"C","IMP ","DE PICOT                  ",1,"AVEIZE                        "]
[69,0,14,519,"D","CHE ","DE PRESLES                ",1,"AVEIZE                        "]
[69,0,14,520,"E","IMP ","DES PRES DE MAI           ",1,"AVEIZE                        "]
[69,0,14,521,"F","IMP ","DE LA PRAIRIE             ",1,"AVEIZE                        "]
[69,0,14,522,"G","RUE ","DE LA PRAIRIE             ",1,"AVEIZE                        "]
[69,0,14,525,"K","IMP ","DES RIVIERES              ",1,"AVEIZE                        "]
[69,0,14,526,"L","IMP ","DE GRANGE REYNARD         ",1,"AVEIZE                        "]
[69,0,14,527,"M","PASS","DU REYNARD                ",1,"AVEIZE                        "]
[69,0,14,530,"R","IMP ","DE LA SABOIRE             ",1,"AVEIZE                        "]
[69,0,14,534,"V","IMP ","DU SAPEY                  ",1,"AVEIZE                        "]
[69,0,14,536,"X","IMP ","DES SAPINS                ",1,"AVEIZE                        "]
[69,0,14,548,"K","CHE ","DU TORTIGNEUX             ",1,"AVEIZE                        "]
[69,0,14,550,"M","CHE ","DU TOURNET                ",1,"AVEIZE                        "]
[69,0,14,570,"J","IMP ","DES VIEILLES VIGNES       ",1,"AVEIZE                        "]
[69,0,14,572,"L","CHE ","DU GLAS                   ",1,"AVEIZE                        "]
[69,0,14,573,"M","IMP ","DU GRAND BUT              ",1,"AVEIZE                        "]
[69,0,14,575,"P","CHE ","DES ORNAGES               ",1,"AVEIZE                        "]
[69,0,14,576,"R","PAS ","DES ORNAGES               ",1,"AVEIZE                        "]
[69,0,16,"B001","N","    ","AUX ANDRES                ",3,"AZOLETTE                      "]
[69,0,16,"B002","P","    ","LES BERRADES              ",3,"AZOLETTE                      "]
[69,0,16,"B003","R","    ","LE BOURG                  ",3,"AZOLETTE                      "]
[69,0,16,"B004","S","    ","CHAMP CONTREE             ",3,"AZOLETTE                      "]
[69,0,16,"B005","T","    ","CHAMP CRU                 ",3,"AZOLETTE                      "]
[69,0,16,"B006","U","    ","CHATILLON                 ",3,"AZOLETTE                      "]
[69,0,16,"B007","V","    ","LES COTES                 ",3,"AZOLETTE                      "]
[69,0,16,"B008","W","    ","FOURVIERE                 ",3,"AZOLETTE                      "]
[69,0,16,"B009","X","    ","GRANDES TERRES            ",3,"AZOLETTE                      "]
[69,0,16,"B010","Y","    ","LES GRANDES VERCHERES     ",3,"AZOLETTE                      "]
[69,0,16,"B011","Z","    ","HAUT DE RUERE             ",3,"AZOLETTE                      "]
[69,0,16,"B012","A","    ","LAPIERRE                  ",3,"AZOLETTE                      "]
[69,0,16,"B013","B","    ","MONTIMIER                 ",3,"AZOLETTE                      "]
[69,0,16,"B014","C","    ","PRES GARNIER              ",3,"AZOLETTE                      "]
[69,0,16,"B015","D","    ","LES TERRES D ETE          ",3,"AZOLETTE                      "]
[69,0,16,"B016","E","    ","LES VERCHERES             ",3,"AZOLETTE                      "]
[69,0,16,"B017","F","    ","VERS LE CROS              ",3,"AZOLETTE                      "]
[69,0,16,"B018","G","    ","LES VIERS                 ",3,"AZOLETTE                      "]
[69,0,16,20,"C","RTE ","DU BOURG                  ",1,"AZOLETTE                      "]
[69,0,16,26,"J","CHE ","DES BRUYERES              ",1,"AZOLETTE                      "]
[69,0,16,32,"R","RTE ","DU CHAUMONT               ",1,"AZOLETTE                      "]
[69,0,16,36,"V","CHE ","DES CHENES                ",1,"AZOLETTE                      "]
[69,0,16,40,"Z","CHE ","DES COTES                 ",1,"AZOLETTE                      "]
[69,0,16,46,"F","CHE ","DU CROS                   ",1,"AZOLETTE                      "]
[69,0,16,101,"R","IMP ","DU GARNIER                ",1,"AZOLETTE                      "]
[69,0,17,"B003","L","    ","BOITROLLES                ",3,"BAGNOLS                       "]
[69,0,18,"B012","S","    ","LES CELLIERS              ",3,"BEAUJEU                       "]
[69,0,18,"B033","P","    ","FOND BIDON                ",3,"BEAUJEU                       "]
[69,0,18,"B050","H","    ","LES MERAS                 ",3,"BEAUJEU                       "]
[69,0,18,"B067","B","    ","REVOLON                   ",3,"BEAUJEU                       "]
[69,0,18,41,"S","RTE ","DU CHARNAY                ",1,"BEAUJEU                       "]
[69,0,18,160,"W","PL  ","DE LA GARE                ",1,"BEAUJEU                       "]
[69,0,18,300,"Y","PL  ","DE LA PAIX                ",1,"BEAUJEU                       "]
[69,0,18,514,"F","CHE ","DE LA CROIX DES LARRONS   ",1,"BEAUJEU                       "]
[69,0,18,560,"F","PAS ","JOSEPH FRANTZ             ",1,"BEAUJEU                       "]
[69,0,18,600,"Z","IMP ","DES MURETS                ",1,"BEAUJEU                       "]
[69,0,18,644,"X","CHE ","DES ROUETTES              ",1,"BEAUJEU                       "]
[69,0,19,"A001","N","LOT ","LES PLATANES              ",2,"BELLEVILLE-EN-BEAUJOLAIS      "]
[69,0,19,"B020","W","    ","FONTENAILLES              ",3,"BELLEVILLE-EN-BEAUJOLAIS      "]
[69,0,19,"B046","Z","    ","LES RONTAYS               ",3,"BELLEVILLE-EN-BEAUJOLAIS      "]
[69,0,19,"B081","M","    ","PIZAY OUEST               ",3,"BELLEVILLE-EN-BEAUJOLAIS      "]
[69,0,19,9,"C","RUE ","DE LA GRAPPE              ",1,"BELLEVILLE-EN-BEAUJOLAIS      "]
[69,0,19,27,"X","IMP ","DES GARENNES              ",1,"BELLEVILLE-EN-BEAUJOLAIS      "]
[69,0,19,51,"Y","RTE ","DE CHALENDIERES           ",1,"BELLEVILLE-EN-BEAUJOLAIS      "]
[69,0,19,69,"T","RTE ","DES GRANGES               ",1,"BELLEVILLE-EN-BEAUJOLAIS      "]
[69,0,19,94,"V","RUE ","PIERRE COTHENET           ",1,"BELLEVILLE-EN-BEAUJOLAIS      "]
[69,0,19,133,"M","IMP ","DES LAURIERS              ",1,"BELLEVILLE-EN-BEAUJOLAIS      "]
[69,0,19,151,"G","RUE ","DES HESPERIDES            ",1,"BELLEVILLE-EN-BEAUJOLAIS      "]
[69,0,19,174,"G","RUE ","DE TANIS                  ",1,"BELLEVILLE-EN-BEAUJOLAIS      "]
[69,0,19,192,"B","IMP ","GUSTAVE EIFFEL            ",1,"BELLEVILLE-EN-BEAUJOLAIS      "]
[69,0,19,237,"A","RUE ","DE CHAMBORD               ",1,"BELLEVILLE-EN-BEAUJOLAIS      "]
[69,0,19,350,"Y","RUE ","DOC DUPLANT               ",1,"BELLEVILLE-EN-BEAUJOLAIS      "]
[69,0,19,528,"S","RUE ","DE L ETANG DE LALY        ",1,"BELLEVILLE-EN-BEAUJOLAIS      "]
[69,0,19,645,"U","RUE ","DES PALISSARDS            ",1,"BELLEVILLE-EN-BEAUJOLAIS      "]
[69,0,19,752,"K","RUE ","DE LA PLUME               ",1,"BELLEVILLE-EN-BEAUJOLAIS      "]
[69,0,19,890,"K","CHE ","DE LA SAONE               ",1,"BELLEVILLE-EN-BEAUJOLAIS      "]
[69,0,19,915,"M","RUE ","THEVENET                  ",1,"BELLEVILLE-EN-BEAUJOLAIS      "]
[69,0,19,988,"S","RUE ","ALBERT CAMUS              ",1,"BELLEVILLE-EN-BEAUJOLAIS      "]
[69,0,20,82,"C","CHE ","DU LAVOIR                 ",1,"BELMONT D'AZERGUES            "]
[69,0,21,"A080","R","LOT ","COMBE AYMAS               ",2,"BESSENAY                      "]
[69,0,21,"B009","A","    ","LE CHAPUIS                ",3,"BESSENAY                      "]
[69,0,21,"B030","Y","    ","JUSSIEUX                  ",3,"BESSENAY                      "]
[69,0,21,"B047","S","    ","SERIVOL                   ",3,"BESSENAY                      "]
[69,0,21,18,"D","RTE ","DE BERNAY                 ",1,"BESSENAY                      "]
[69,0,21,74,"P","ALL ","GIRARD                    ",1,"BESSENAY                      "]
[69,0,21,97,"P","RTE ","DE JUSSIEU                ",1,"BESSENAY                      "]
[69,0,21,130,"A","CHE ","DE LA PLAINE              ",1,"BESSENAY                      "]
[69,0,21,158,"F","RTE ","DE SAIN BEL               ",1,"BESSENAY                      "]
[69,0,22,"B004","R","    ","LA CALONNIERE             ",3,"BIBOST                        "]
[69,0,22,130,"W","CHE ","DE LA CALONNIERE          ",1,"BIBOST                        "]
[69,0,22,620,"D","CHE ","DE LA VOUTE               ",1,"BIBOST                        "]
[69,0,23,"B003","K","    ","BOIS DES COMBES           ",3,"BLACE                         "]
[69,0,23,"B039","Z","    ","LE VORTILLON              ",3,"BLACE                         "]
[69,0,23,45,"Z","RTE ","DES CEDRES                ",1,"BLACE                         "]
[69,0,23,100,"J","IMP ","DU FOND DE BLACE          ",1,"BLACE                         "]
[69,0,23,149,"M","IMP ","DU MONTJOLY               ",1,"BLACE                         "]
[69,0,24,"B006","J","    ","CHANRION                  ",3,"VAL D'OINGT                   "]
[69,0,24,"B027","G","    ","TANAY                     ",3,"VAL D'OINGT                   "]
[69,0,24,"B073","G","    ","NIOLLES SUD               ",3,"VAL D'OINGT                   "]
[69,0,24,"B919","B","    ","LES GRANDES TERRES        ",3,"VAL D'OINGT                   "]
[69,0,24,"B936","V","    ","LES RIVIERES              ",3,"VAL D'OINGT                   "]
[69,0,24,"B953","N","    ","LE BOURG                  ",3,"VAL D'OINGT                   "]
[69,0,24,"B974","L","    ","MUSSY                     ",3,"VAL D'OINGT                   "]
[69,0,24,124,"F","CHE ","DE LA CONTARDIERE         ",1,"VAL D'OINGT                   "]
[69,0,24,222,"M","CHE ","DE LA FORET               ",1,"VAL D'OINGT                   "]
[69,0,24,358,"K","SEN ","DES MESANGES              ",1,"VAL D'OINGT                   "]
[69,0,24,465,"B","ALL ","DES PIERRES DOREES        ",1,"VAL D'OINGT                   "]
[69,0,24,506,"W","CHE ","DE ST ROCH                ",1,"VAL D'OINGT                   "]
[69,0,24,644,"W","MTE ","DES CHAPONS               ",1,"VAL D'OINGT                   "]
[69,0,24,683,"N","RTE ","DE MUSSY                  ",1,"VAL D'OINGT                   "]
[69,0,24,704,"L","CHE ","DES ROCHERS               ",1,"VAL D'OINGT                   "]
[69,0,24,721,"E","CHE ","DU VIVERET                ",1,"VAL D'OINGT                   "]
[69,0,26,"B008","C","    ","LA BONNETTE               ",3,"LE BREUIL                     "]
[69,0,26,"B029","A","    ","A LA GARDE                ",3,"LE BREUIL                     "]
[69,0,26,"B046","U","    ","AU PELU                   ",3,"LE BREUIL                     "]
[69,0,26,"B067","S","    ","SOUS LES PLACES           ",3,"LE BREUIL                     "]
[69,0,26,142,"S","RUE ","DES OISEAUX               ",1,"LE BREUIL                     "]
[69,0,26,228,"K","CHE ","DES VIGNERONS             ",1,"LE BREUIL                     "]
[69,0,27,"B014","E","    ","CHERON                    ",3,"BRIGNAIS                      "]
[69,0,27,"B031","Y","    ","LES PEROUSES              ",3,"BRIGNAIS                      "]
[69,0,27,24,"J","ALL ","DES ALOUETTES             ",1,"BRIGNAIS                      "]
[69,0,27,57,"V","ALL ","DE BEAUNANT               ",1,"BRIGNAIS                      "]
[69,0,27,206,"G","ALL ","DES CHENES                ",1,"BRIGNAIS                      "]
[69,0,27,220,"X","MTE ","DE LA COTE                ",1,"BRIGNAIS                      "]
[69,0,27,300,"J","AV  ","FERDINAND GAILLARD        ",1,"BRIGNAIS                      "]
[69,0,27,414,"H","CHE ","DE LA GERLE               ",1,"BRIGNAIS                      "]
[69,0,27,461,"J","RUE ","JEAN ROUSSELIN            ",1,"BRIGNAIS                      "]
[69,0,27,480,"E","RUE ","MERE ELISE RIVET          ",1,"BRIGNAIS                      "]
[69,0,27,543,"Y","ALL ","PAUL GAUGUIN              ",1,"BRIGNAIS                      "]
[69,0,27,675,"S","IMP ","RIVOIRE                   ",1,"BRIGNAIS                      "]
[69,0,27,785,"L","RUE ","DES SERRES                ",1,"BRIGNAIS                      "]
[69,0,27,901,"M","CHE ","DU VERT PRE               ",1,"BRIGNAIS                      "]
[69,0,28,"B003","N","    ","LE BOULEAU                ",3,"BRINDAS                       "]
[69,0,28,"B020","G","    ","LE GOURD                  ",3,"BRINDAS                       "]
[69,0,28,"B041","E","    ","PONT D ARTHAUD            ",3,"BRINDAS                       "]
[69,0,28,74,"J","CHE ","DU DEVAY                  ",1,"BRINDAS                       "]
[69,0,28,144,"K","CHE ","DES HOTTEAUX              ",1,"BRINDAS                       "]
[69,0,28,224,"X","IMP ","DU PALAIS BOURBON         ",1,"BRINDAS                       "]
[69,0,28,281,"J","CHE ","DES ROULATTES             ",1,"BRINDAS                       "]
[69,0,29,"B131","Y","    ","MAS DE REBUFER            ",3,"BRON                          "]
[69,0,29,"B137","E","    ","MAS DE TERRAILLON         ",3,"BRON                          "]
[69,0,29,65,"V","SQ  ","ANTOINE PERRIN            ",1,"BRON                          "]
[69,0,29,380,"M","CHE ","DES CHASSEURS             ",1,"BRON                          "]
[69,0,29,500,"T","IMP ","DE LA CORDERIE            ",1,"BRON                          "]
[69,0,29,627,"F","BD  ","EMILE BOLLAERT            ",1,"BRON                          "]
[69,0,29,721,"H","IMP ","FERDINAND BUISSON         ",1,"BRON                          "]
[69,0,29,788,"F","ALL ","DES GINKGOS               ",1,"BRON                          "]
[69,0,29,925,"E","RUE ","JACQUES DALIGAND          ",1,"BRON                          "]
[69,0,29,1105,"A","RUE ","LOUIS PERGAUD             ",1,"BRON                          "]
[69,0,29,1193,"W","RUE ","DU MAS DE LA FORET        ",1,"BRON                          "]
[69,0,29,1313,"B","RUE ","PAUL BELLEMAIN            ",1,"BRON                          "]
[69,0,29,1405,"B","ALL ","DES PLATANES              ",1,"BRON                          "]
[69,0,29,1540,"Y","RUE ","DES ROSES                 ",1,"BRON                          "]
[69,0,29,1705,"C","ALL ","DES TILLEULS              ",1,"BRON                          "]
[69,0,30,"B020","Y","    ","FAVARY                    ",3,"BRULLIOLES                    "]
[69,0,30,"B029","H","    ","LA GRANDE CROIX           ",3,"BRULLIOLES                    "]
[69,0,30,7,"C","CHE ","DE CHAMPELUS              ",1,"BRULLIOLES                    "]
[69,0,30,97,"A","CHE ","DE LA ROUE                ",1,"BRULLIOLES                    "]
[69,0,31,"B002","Z","    ","LES BROSSES               ",3,"BRUSSIEU                      "]
[69,0,31,"B019","T","    ","GDE PIERRE                ",3,"BRUSSIEU                      "]
[69,0,31,34,"C","RUE ","CLAUDE CHENEVIERE         ",1,"BRUSSIEU                      "]
[69,0,31,90,"N","RUE ","DE LA GRAND'FOND          ",1,"BRUSSIEU                      "]
[69,0,31,177,"H","RTE ","NATIONALE                 ",1,"BRUSSIEU                      "]
[69,0,31,235,"W","IMP ","LES TERRASSES             ",1,"BRUSSIEU                      "]
[69,0,32,"B011","E","    ","LES CHARTIERES            ",3,"BULLY                         "]
[69,0,32,"B032","C","    ","LES GRIGNOLLIERES         ",3,"BULLY                         "]
[69,0,32,50,"R","RTE ","DE BELLEVUE               ",1,"BULLY                         "]
[69,0,32,230,"L","PL  ","DU CONSEIL DE FABRIQUE    ",1,"BULLY                         "]
[69,0,32,470,"X","CHE ","DU GRAND LAVAL            ",1,"BULLY                         "]
[69,0,32,675,"V","ALL ","DES MERISIERS             ",1,"BULLY                         "]
[69,0,32,970,"R","RTE ","DE SAINT BIS              ",1,"BULLY                         "]
[69,0,32,1050,"C","PL  ","DES TERREAUX              ",1,"BULLY                         "]
[69,0,33,"B025","R","    ","MARQUE                    ",3,"CAILLOUX-SUR-FONTAINES        "]
[69,0,33,"B046","N","    ","LE GARRIOT                ",3,"CAILLOUX-SUR-FONTAINES        "]
[69,0,33,140,"J","IMP ","DU COMMERCE               ",1,"CAILLOUX-SUR-FONTAINES        "]
[69,0,33,350,"M","CHE ","DE JAMBE DE LOUP          ",1,"CAILLOUX-SUR-FONTAINES        "]
[69,0,33,540,"U","RTE ","DU TILLEUL                ",1,"CAILLOUX-SUR-FONTAINES        "]
[69,0,34,"B040","C","    ","MALPERTUIS                ",3,"CALUIRE ET CUIRE              "]
[69,0,34,50,"G","RUE ","ANDRE MARIE AMPERE        ",1,"CALUIRE ET CUIRE              "]
[69,0,34,330,"L","MTE ","CASTELLANE                ",1,"CALUIRE ET CUIRE              "]
[69,0,34,433,"Y","IMP ","CLAUDE DUMONT             ",1,"CALUIRE ET CUIRE              "]
[69,0,34,574,"B","AV  ","DU DOCTEUR ZAMENHOF       ",1,"CALUIRE ET CUIRE              "]
[69,0,34,670,"F","RUE ","ERNEST RENAN              ",1,"CALUIRE ET CUIRE              "]
[69,0,34,802,"Z","IMP ","GALLIENI                  ",1,"CALUIRE ET CUIRE              "]
[69,0,34,900,"F","MTE ","GRUFFAZ                   ",1,"CALUIRE ET CUIRE              "]
[69,0,34,1143,"V","IMP ","DES LIEVRES               ",1,"CALUIRE ET CUIRE              "]
[69,0,34,1200,"G","ALL ","MANUS                     ",1,"CALUIRE ET CUIRE              "]
[69,0,34,1462,"S","ALL ","DU PARC DE MONTCHOISY     ",1,"CALUIRE ET CUIRE              "]
[69,0,34,1640,"K","CHE ","PIERRE DREVET             ",1,"CALUIRE ET CUIRE              "]
[69,0,34,1778,"K","PL  ","DE LA ROCHETTE            ",1,"CALUIRE ET CUIRE              "]
[69,0,34,1915,"J","PL  ","VALENTIN HAUY             ",1,"CALUIRE ET CUIRE              "]
[69,0,35,"B004","J","    ","BESSAY                    ",3,"CENVES                        "]
[69,0,35,"B043","B","    ","COMBE DE VAUX             ",3,"CENVES                        "]
[69,0,35,"B060","V","    ","LA FOREST DU COMTE        ",3,"CENVES                        "]
[69,0,35,"B081","T","    ","LES JONNETS               ",3,"CENVES                        "]
[69,0,35,"B098","L","    ","PIERRE DAVID              ",3,"CENVES                        "]
[69,0,35,"B119","J","    ","AU REPOSTAIRE             ",3,"CENVES                        "]
[69,0,35,"B136","C","    ","SARRAZENIERE              ",3,"CENVES                        "]
[69,0,36,"B015","S","    ","PRES BADA                 ",3,"CERCIE                        "]
[69,0,36,29,"A","RUE ","DES DOUZE LOGIS           ",1,"CERCIE                        "]
[69,0,36,52,"A","IMP ","DES MAISONS NEUVES        ",1,"CERCIE                        "]
[69,0,36,71,"W","RTE ","DE SAINT ENNEMOND         ",1,"CERCIE                        "]
[69,0,37,"B018","R","    ","CHAMBOST                  ",3,"CHAMBOST ALLIERES             "]
[69,0,37,"B027","A","    ","LES CITES                 ",3,"CHAMBOST ALLIERES             "]
[69,0,37,"B048","Y","    ","LE GOURD PILATE           ",3,"CHAMBOST ALLIERES             "]
[69,0,37,10,"A","PL  ","ALFRED CUINET             ",1,"CHAMBOST ALLIERES             "]
[69,0,37,70,"R","IMP ","DE LA COMBE               ",1,"CHAMBOST ALLIERES             "]
[69,0,37,160,"N","CHE ","DE CHEZ NANTES            ",1,"CHAMBOST ALLIERES             "]
[69,0,38,"A010","R","LOT ","DU BARMAT                 ",2,"CHAMBOST-LONGESSAIGNE         "]
[69,0,38,"B019","M","    ","CHEZ LACHARD              ",3,"CHAMBOST-LONGESSAIGNE         "]
[69,0,38,"B036","F","    ","LE DARCET                 ",3,"CHAMBOST-LONGESSAIGNE         "]
[69,0,38,20,"G","PL  ","DE LA BASCULE             ",1,"CHAMBOST-LONGESSAIGNE         "]
[69,0,38,61,"B","CHE ","DU GRAND CHAMP            ",1,"CHAMBOST-LONGESSAIGNE         "]
[69,0,38,91,"J","CHE ","CHEZ QUITTE               ",1,"CHAMBOST-LONGESSAIGNE         "]
[69,0,38,136,"H","CHE ","DU BELVEDERE              ",1,"CHAMBOST-LONGESSAIGNE         "]
[69,0,38,160,"J","RPT ","DU GENEVET                ",1,"CHAMBOST-LONGESSAIGNE         "]
[69,0,38,177,"C","CHE ","DU MOULIN                 ",1,"CHAMBOST-LONGESSAIGNE         "]
[69,0,38,205,"H","CHE ","DES ROSEAUX               ",1,"CHAMBOST-LONGESSAIGNE         "]
[69,0,39,"B015","D","    ","AU BROUILLARD             ",3,"CHAMELET                      "]
[69,0,39,"B047","N","    ","SAINT JULIEN              ",3,"CHAMELET                      "]
[69,0,39,36,"V","    ","ALLEE DE LA GARE          ",1,"CHAMELET                      "]
[69,0,39,69,"F","RUE ","DU REMPART NORD           ",1,"CHAMELET                      "]
[69,0,39,168,"N","ALL ","DE LA GRENOUILLERE        ",1,"CHAMELET                      "]
[69,0,40,"A045","V","LOT ","DE MONT-LOUIS             ",2,"CHAMPAGNE-AU-MONT-D OR        "]
[69,0,40,40,"V","CHE ","DU CIMETIERE              ",1,"CHAMPAGNE-AU-MONT-D OR        "]
[69,0,40,175,"S","RUE ","JEAN PHILIPPE RAMEAU      ",1,"CHAMPAGNE-AU-MONT-D OR        "]
[69,0,40,240,"M","AV  ","DE MONT LOUIS             ",1,"CHAMPAGNE-AU-MONT-D OR        "]
[69,0,40,320,"Z","CHE ","DE SAINT ANDRE            ",1,"CHAMPAGNE-AU-MONT-D OR        "]
[69,0,42,"B005","E","    ","LE BOURG                  ",3,"LA CHAPELLE SUR COISE         "]
[69,0,42,"B022","Y","    ","LES HEURES                ",3,"LA CHAPELLE SUR COISE         "]
[69,0,42,70,"U","CHE ","DU GAS                    ",1,"LA CHAPELLE SUR COISE         "]
[69,0,42,130,"J","CHE ","DE PRE CLOS               ",1,"LA CHAPELLE SUR COISE         "]
[69,0,42,210,"W","CHE ","DU VERGER                 ",1,"LA CHAPELLE SUR COISE         "]
[69,0,43,"B018","P","    ","LE CHARFOUR               ",3,"CHAPONOST                     "]
[69,0,43,"B043","S","    ","LE GUICHARDET             ",3,"CHAPONOST                     "]
[69,0,43,"B053","C","    ","LE MONDOR                 ",3,"CHAPONOST                     "]
[69,0,43,85,"F","RUE ","DES BLEUETS               ",1,"CHAPONOST                     "]
[69,0,43,129,"D","CHE ","DE CHANTEGRILLET          ",1,"CHAPONOST                     "]
[69,0,43,200,"F","RUE ","DOC PENARD                ",1,"CHAPONOST                     "]
[69,0,43,332,"Z","RTE ","DE LA GAGERE              ",1,"CHAPONOST                     "]
[69,0,43,405,"D","PAS ","DU JAILLARD               ",1,"CHAPONOST                     "]
[69,0,43,665,"L","IMP ","MARTEL                    ",1,"CHAPONOST                     "]
[69,0,43,857,"V","CHE ","DES TERRES                ",1,"CHAPONOST                     "]
[69,0,44,"B009","A","    ","BRUSSILLAY                ",3,"CHARBONNIERES-LES-BAINS       "]
[69,0,44,"B026","U","    ","LA NOUVELLE SOURCE        ",3,"CHARBONNIERES-LES-BAINS       "]
[69,0,44,44,"G","CHE ","DU BAUDY                  ",1,"CHARBONNIERES-LES-BAINS       "]
[69,0,44,280,"N","RUE ","DOC GIRARD                ",1,"CHARBONNIERES-LES-BAINS       "]
[69,0,44,484,"K","MTE ","DES LAURIERS              ",1,"CHARBONNIERES-LES-BAINS       "]
[69,0,44,845,"C","MTE ","DU VIEUX PONT             ",1,"CHARBONNIERES-LES-BAINS       "]
[69,0,45,"B021","J","    ","GARANCHE                  ",3,"CHARENTAY                     "]
[69,0,45,"B023","L","    ","LA GIRARDIERE             ",3,"CHARENTAY                     "]
[69,0,45,"B904","U","    ","LES MAISONS NEUVES        ",3,"CHARENTAY                     "]
[69,0,45,19,"A","RTE ","DE DELPHINGUE             ",1,"CHARENTAY                     "]
[69,0,45,37,"V","CHE ","DE MONTERNOT              ",1,"CHARENTAY                     "]
[69,0,45,75,"L","CHE ","DU NERVAL                 ",1,"CHARENTAY                     "]
[69,0,46,7,"H","RUE ","DES BALCONS DE CHARLY     ",1,"CHARLY                        "]
[69,0,46,96,"E","CHE ","DU CLOS CHALLAND          ",1,"CHARLY                        "]
[69,0,46,180,"W","RTE ","DE FRONTIGNY              ",1,"CHARLY                        "]
[69,0,46,234,"E","ALL ","DES MESANGES              ",1,"CHARLY                        "]
[69,0,46,317,"V","RUE ","DE LA RUMEYERE            ",1,"CHARLY                        "]
[69,0,47,"B005","H","    ","BUISSY                    ",3,"CHARNAY                       "]
[69,0,47,36,"K","RUE ","DE LA MAISON FORTE        ",1,"CHARNAY                       "]
[69,0,47,58,"J","RTE ","DE CHATILLON              ",1,"CHARNAY                       "]
[69,0,47,75,"C","CHE ","DU PUIT BANAL             ",1,"CHARNAY                       "]
[69,0,49,"A075","N","LOT ","LES MESANGES              ",2,"CHASSELAY                     "]
[69,0,49,"B013","H","    ","CHATELARD                 ",3,"CHASSELAY                     "]
[69,0,49,"B037","J","    ","L HOPITAL                 ",3,"CHASSELAY                     "]
[69,0,49,"B052","A","    ","PIERRE MOULURE            ",3,"CHASSELAY                     "]
[69,0,49,49,"R","CHE ","DE L HERBETAN             ",1,"CHASSELAY                     "]
[69,0,49,76,"V","IMP ","DU PLANTIN                ",1,"CHASSELAY                     "]
[69,0,49,118,"R","CHE ","DE LA GRANGE              ",1,"CHASSELAY                     "]
[69,0,49,334,"A","IMP ","DU PIVERT                 ",1,"CHASSELAY                     "]
[69,0,50,"B018","J","    ","LE CHATELET               ",3,"CHATILLON                     "]
[69,0,50,"B035","C","    ","GOUTTE CHARDON            ",3,"CHATILLON                     "]
[69,0,50,"B074","V","    ","VIEGO                     ",3,"CHATILLON                     "]
[69,0,50,100,"S","IMP ","DE LA GARE                ",1,"CHATILLON                     "]
[69,0,50,117,"K","CHE ","DU PLAN                   ",1,"CHATILLON                     "]
[69,0,50,134,"D","CHE ","DE BOYEUX                 ",1,"CHATILLON                     "]
[69,0,50,156,"C","CHE ","DE LA PRAY                ",1,"CHATILLON                     "]
[69,0,50,173,"W","IMP ","DES GRANGES MARDUEL       ",1,"CHATILLON                     "]
[69,0,51,"B018","E","    ","LE CHARMAY                ",3,"CHAUSSAN                      "]
[69,0,51,"X044","K","PKG ","PARKING DU PILAT          ",4,"CHAUSSAN                      "]
[69,0,51,55,"N","IMP ","DE CHAVAGNEUX             ",1,"CHAUSSAN                      "]
[69,0,51,190,"K","IMP ","DU MAURY                  ",1,"CHAUSSAN                      "]
[69,0,51,258,"J","CHE ","DU PONTET                 ",1,"CHAUSSAN                      "]
[69,0,52,"B002","H","    ","LES BAGEARDES             ",3,"CHAZAY-D AZERGUES             "]
[69,0,52,"B019","B","    ","LE MAS                    ",3,"CHAZAY-D AZERGUES             "]
[69,0,52,35,"M","ALL ","DE BRETIGNY               ",1,"CHAZAY-D AZERGUES             "]
[69,0,52,66,"W","RUE ","EMMANUEL CHABRIER         ",1,"CHAZAY-D AZERGUES             "]
[69,0,52,84,"R","RUE ","JEAN BAPTISTE LULLI       ",1,"CHAZAY-D AZERGUES             "]
[69,0,52,101,"J","PAS ","D ONCIEUX                 ",1,"CHAZAY-D AZERGUES             "]
[69,0,52,125,"K","RUE ","DE LA ROCHE               ",1,"CHAZAY-D AZERGUES             "]
[69,0,52,142,"D","RUE ","DU TOUR                   ",1,"CHAZAY-D AZERGUES             "]
[69,0,53,"B002","D","    ","AU BOIS RETOUR            ",3,"CHENAS                        "]
[69,0,53,150,"H","RTE ","DU CRU MOULIN A VENT      ",1,"CHENAS                        "]
[69,0,53,320,"T","RTE ","DES MORIERS               ",1,"CHENAS                        "]
[69,0,54,"B002","Z","    ","LE BOURG                  ",3,"CHENELETTE                    "]
[69,0,54,"B021","V","    ","PIERRE AUX FUTS           ",3,"CHENELETTE                    "]
[69,0,54,26,"U","RTE ","DE LA CROIX D'AJOUX       ",1,"CHENELETTE                    "]
[69,0,54,125,"B","MTE ","DES NUIZIERES             ",1,"CHENELETTE                    "]
[69,0,55,"B020","P","    ","GRAVEYRON                 ",3,"LES CHERES                    "]
[69,0,55,19,"G","CHE ","DU BOURG                  ",1,"LES CHERES                    "]
[69,0,55,57,"Y","CHE ","DES GORGES                ",1,"LES CHERES                    "]
[69,0,55,96,"R","RUE ","DU PUITS PERRON           ",1,"LES CHERES                    "]
[69,0,56,"B010","Z","    ","COMBOULEAU                ",3,"CHESSY                        "]
[69,0,56,"B027","T","    ","A LA TAVERNE              ",3,"CHESSY                        "]
[69,0,56,76,"P","ALL ","DES HAUTS DE CHESSY       ",1,"CHESSY                        "]
[69,0,56,96,"L","IMP ","DES  PLACES               ",1,"CHESSY                        "]
[69,0,56,130,"Y","RUE ","DU VAL D AZERGUES         ",1,"CHESSY                        "]
[69,0,57,"B017","C","    ","LE PAILLERON              ",3,"CHEVINAY                      "]
[69,0,57,21,"A","MTE ","DES BONNETIERES           ",1,"CHEVINAY                      "]
[69,0,57,72,"F","RUE ","DU FOUR A PAIN            ",1,"CHEVINAY                      "]
[69,0,58,"B019","A","    ","CREUX DES SAIGNES         ",3,"CHIROUBLES                    "]
[69,0,58,"B038","W","    ","GRILLE MIDI               ",3,"CHIROUBLES                    "]
[69,0,58,"B058","T","    ","ROCHEFORT                 ",3,"CHIROUBLES                    "]
[69,0,58,2,"A","RUE ","DE LA BASCULE             ",1,"CHIROUBLES                    "]
[69,0,58,19,"U","RTE ","DU FETRE                  ",1,"CHIROUBLES                    "]
[69,0,58,40,"S","RTE ","DES SAIGNES               ",1,"CHIROUBLES                    "]
[69,0,59,"B025","C","    ","LE PLAN                   ",3,"CIVRIEUX-D AZERGUES           "]
[69,0,59,70,"V","CHE ","DU CIMETIERE              ",1,"CIVRIEUX-D AZERGUES           "]
[69,0,59,220,"H","RTE ","DE LYON                   ",1,"CIVRIEUX-D AZERGUES           "]
[69,0,59,340,"N","CHE ","DE LA PRISE               ",1,"CIVRIEUX-D AZERGUES           "]
[69,0,60,"B009","F","    ","BOIS BALLANDRAS           ",3,"CLAVEISOLLES                  "]
[69,0,60,"B026","Z","    ","LA CHAIR                  ",3,"CLAVEISOLLES                  "]
[69,0,60,"B065","S","    ","CROIX DU SARRET           ",3,"CLAVEISOLLES                  "]
[69,0,60,"B086","P","    ","FONT CULTI                ",3,"CLAVEISOLLES                  "]
[69,0,60,"B103","H","    ","LES HAYES                 ",3,"CLAVEISOLLES                  "]
[69,0,60,"B124","F","    ","PLAT DES GRANGES          ",3,"CLAVEISOLLES                  "]
[69,0,60,"B141","Z","    ","LA TOUR                   ",3,"CLAVEISOLLES                  "]
[69,0,61,"B006","Y","    ","BOIS DU CHAMP             ",3,"COGNY                         "]
[69,0,61,"B027","W","    ","CORSEL                    ",3,"COGNY                         "]
[69,0,61,12,"Y","IMP ","DU BOIS                   ",1,"COGNY                         "]
[69,0,61,35,"Y","IMP ","DU CREUX                  ",1,"COGNY                         "]
[69,0,61,98,"S","RTE ","DU LOUP                   ",1,"COGNY                         "]
[69,0,61,132,"D","IMP ","DES PLACHES               ",1,"COGNY                         "]
[69,0,62,"A014","R","HAM ","DE CHANTEGRILLET          ",2,"COISE                         "]
[69,0,62,"B012","A","    ","CHAPELLON                 ",3,"COISE                         "]
[69,0,62,"B052","U","    ","LE VERNAY                 ",3,"COISE                         "]
[69,0,62,38,"X","IMP ","DES COTES DE LA CHAZOTTE  ",1,"COISE                         "]
[69,0,62,103,"T","RTE ","DU GROS FOUR              ",1,"COISE                         "]
[69,0,62,193,"R","RTE ","DU PETIT VAL              ",1,"COISE                         "]
[69,0,62,226,"B","RUE ","DU SOLEIL COUCHANT        ",1,"COISE                         "]
[69,0,63,"B009","T","    ","CLOS DES VARENNES         ",3,"COLLONGES-AU-MONT- D OR       "]
[69,0,63,"B030","R","    ","LES RIVIERES              ",3,"COLLONGES-AU-MONT- D OR       "]
[69,0,63,320,"Z","RUE ","DE GELIVES                ",1,"COLLONGES-AU-MONT- D OR       "]
[69,0,63,534,"G","CHE ","DU MANILLON               ",1,"COLLONGES-AU-MONT- D OR       "]
[69,0,63,784,"D","RUE ","DU PUITS ST NIZIER        ",1,"COLLONGES-AU-MONT- D OR       "]
[69,0,63,960,"V","RUE ","DES VARENNES              ",1,"COLLONGES-AU-MONT- D OR       "]
[69,0,64,"B016","W","    ","CORDELLIERES              ",3,"CONDRIEU                      "]
[69,0,64,"B033","P","    ","LYMPS                     ",3,"CONDRIEU                      "]
[69,0,64,50,"B","CHE ","DES CABANES               ",1,"CONDRIEU                      "]
[69,0,64,100,"F","RUE ","CREMAILLERE               ",1,"CONDRIEU                      "]
[69,0,64,243,"L","RUE ","DE L'EUROPE               ",1,"CONDRIEU                      "]
[69,0,64,397,"D","ALL ","DE LA LAMBERTE            ",1,"CONDRIEU                      "]
[69,0,64,445,"F","RUE ","DES MARINIERS             ",1,"CONDRIEU                      "]
[69,0,64,619,"V","CHE ","DE LA PLAINE              ",1,"CONDRIEU                      "]
[69,0,64,766,"E","CHE ","DU ROZAY                  ",1,"CONDRIEU                      "]
[69,0,65,"B015","R","    ","CHASSAGNE                 ",3,"CORCELLES EN BEAUJOLAIS       "]
[69,0,65,"B032","J","    ","LES PALISSARDS            ",3,"CORCELLES EN BEAUJOLAIS       "]
[69,0,65,7,"A","IMP ","DU BASSIN                 ",1,"CORCELLES EN BEAUJOLAIS       "]
[69,0,65,27,"X","ALL ","LE CLOS DE LA CONDEMINE   ",1,"CORCELLES EN BEAUJOLAIS       "]
[69,0,65,150,"F","ALL ","DE LA SALLE DES FETES     ",1,"CORCELLES EN BEAUJOLAIS       "]
[69,0,65,185,"U","RTE ","DU VIEUX BOURG            ",1,"CORCELLES EN BEAUJOLAIS       "]
[69,0,66,"B033","F","    ","DEVARENNE                 ",3,"COURS                         "]
[69,0,66,"B055","E","    ","LESPINASSE                ",3,"COURS                         "]
[69,0,66,"B073","Z","    ","LA RIVIERE                ",3,"COURS                         "]
[69,0,66,"B091","U","    ","CHALUMET                  ",3,"COURS                         "]
[69,0,66,"B112","S","    ","SERPOLIERES               ",3,"COURS                         "]
[69,0,66,"B129","K","    ","LES FORESTS ET RAMBERTON  ",3,"COURS                         "]
[69,0,66,"B150","H","    ","LE CHATELET               ",3,"COURS                         "]
[69,0,66,51,"U","RUE ","BALARD                    ",1,"COURS                         "]
[69,0,66,73,"T","IMP ","DES BLEUETS               ",1,"COURS                         "]
[69,0,66,179,"H","CHE ","DE CHALUMET               ",1,"COURS                         "]
[69,0,66,264,"A","CHE ","DE CHENILLON              ",1,"COURS                         "]
[69,0,66,340,"H","RUE ","DES DAMES                 ",1,"COURS                         "]
[69,0,66,442,"U","CHE ","DU FAUNE                  ",1,"COURS                         "]
[69,0,66,610,"B","PL  ","IRENEE CHRISTOPHE         ",1,"COURS                         "]
[69,0,66,652,"X","RUE ","DES JARDINS               ",1,"COURS                         "]
[69,0,66,802,"K","CHE ","DU NURIN                  ",1,"COURS                         "]
[69,0,66,866,"E","IMP ","DES PEINTRES              ",1,"COURS                         "]
[69,0,66,901,"T","CHE ","DE LA RANCHE              ",1,"COURS                         "]
[69,0,66,978,"B","RUE ","DE SEVELINGES             ",1,"COURS                         "]
[69,0,66,1166,"F","PAS ","DES VIOLETTES             ",1,"COURS                         "]
[69,0,66,1190,"G","IMP ","PUITS MAYENCON            ",1,"COURS                         "]
[69,0,66,1207,"A","PL  ","HENRI MICHALOT            ",1,"COURS                         "]
[69,0,66,1228,"Y","CHE ","DE GRENER                 ",1,"COURS                         "]
[69,0,66,1245,"S","IMP ","DES SERRES                ",1,"COURS                         "]
[69,0,66,1266,"P","VOIE","FORESTIERE DE FOUPEYSSON  ",1,"COURS                         "]
[69,0,67,"B026","U","    ","BYPERRAIN                 ",3,"COURZIEU                      "]
[69,0,67,"B043","M","    ","LES ENVERS                ",3,"COURZIEU                      "]
[69,0,67,"B064","K","    ","LONGECOMBE-NORD           ",3,"COURZIEU                      "]
[69,0,67,"B081","D","    ","LA PERCHE                 ",3,"COURZIEU                      "]
[69,0,67,"B098","X","    ","LES VIGNASSES             ",3,"COURZIEU                      "]
[69,0,67,144,"R","CHE ","DU CLOS                   ",1,"COURZIEU                      "]
[69,0,67,400,"U","PL  ","DE LA MAIRIE              ",1,"COURZIEU                      "]
[69,0,67,523,"C","CHE ","DE PLATERON               ",1,"COURZIEU                      "]
[69,0,67,640,"E","CHE ","DU TORTERON ET MORONIERE  ",1,"COURZIEU                      "]
[69,0,68,"B003","P","    ","CHARGERI                  ",3,"COUZON-AU-MONT-D OR           "]
[69,0,68,"B024","M","    ","LE TIGNOT                 ",3,"COUZON-AU-MONT-D OR           "]
[69,0,68,120,"K","CHE ","CHOSSEGROS                ",1,"COUZON-AU-MONT-D OR           "]
[69,0,68,638,"Y","RUE ","SAINT LEONARD             ",1,"COUZON-AU-MONT-D OR           "]
[69,0,69,"B003","K","    ","LES CENDRIERES            ",3,"CRAPONNE                      "]
[69,0,69,"B020","D","    ","LES TOURRAIS              ",3,"CRAPONNE                      "]
[69,0,69,140,"C","ART ","ANCIENNE ROUTE DE BRINDAS ",1,"CRAPONNE                      "]
[69,0,69,236,"G","IMP ","DES COQUELICOTS           ",1,"CRAPONNE                      "]
[69,0,69,361,"T","IMP ","DE LA GATOLIERE           ",1,"CRAPONNE                      "]
[69,0,69,561,"K","RUE ","DES LANDES                ",1,"CRAPONNE                      "]
[69,0,69,834,"G","ALL ","DU PROMONTOIR             ",1,"CRAPONNE                      "]
[69,0,69,1040,"F","IMP ","DES TROIGNES              ",1,"CRAPONNE                      "]
[69,0,70,"B013","S","    ","CHEZ FAVRE                ",3,"CUBLIZE                       "]
[69,0,70,"B024","D","    ","LA CROIX GRAVILLON        ",3,"CUBLIZE                       "]
[69,0,70,"B045","B","    ","MOROMBLE                  ",3,"CUBLIZE                       "]
[69,0,70,"B062","V","    ","TINARD                    ",3,"CUBLIZE                       "]
[69,0,70,77,"E","RUE ","DU MOULIN                 ",1,"CUBLIZE                       "]
[69,0,70,150,"J","IMP ","DES ABEILLES              ",1,"CUBLIZE                       "]
[69,0,70,210,"Z","IMP ","DE LA COTE                ",1,"CUBLIZE                       "]
[69,0,70,364,"S","CHE ","DU LAITIER                ",1,"CUBLIZE                       "]
[69,0,70,424,"G","RTE ","DU POMEROL                ",1,"CUBLIZE                       "]
[69,0,70,474,"L","CHE ","DE LA RUISSELIERE         ",1,"CUBLIZE                       "]
[69,0,71,"B011","K","    ","LE CHENE                  ",3,"CURIS-AU-MONT-D OR            "]
[69,0,71,30,"Z","MTE ","DE L EGLISE               ",1,"CURIS-AU-MONT-D OR            "]
[69,0,71,55,"B","RTE ","DE ST GERMAIN AU MONT D OR",1,"CURIS-AU-MONT-D OR            "]
[69,0,72,"B003","X","    ","LE BARRIOT                ",3,"DARDILLY                      "]
[69,0,72,"B020","R","    ","LE COGNY                  ",3,"DARDILLY                      "]
[69,0,72,"B043","R","    ","PIERRE BLANCHE            ",3,"DARDILLY                      "]
[69,0,72,"B059","H","    ","LONGE NORD                ",3,"DARDILLY                      "]
[69,0,72,34,"Z","CHE ","DU BOIS RAGOT             ",1,"DARDILLY                      "]
[69,0,72,63,"F","MTE ","DU CLAIR                  ",1,"DARDILLY                      "]
[69,0,72,85,"E","CHE ","DES ECOLIERS              ",1,"DARDILLY                      "]
[69,0,72,108,"E","CHE ","DU MENESTREL              ",1,"DARDILLY                      "]
[69,0,72,126,"Z","CHE ","DU PANORAMA               ",1,"DARDILLY                      "]
[69,0,72,143,"T","IMP ","DU PINAY                  ",1,"DARDILLY                      "]
[69,0,72,166,"T","ALL ","DE LA TOUR                ",1,"DARDILLY                      "]
[69,0,74,"B013","Z","    ","CAILLOTIERE               ",3,"DENICE                        "]
[69,0,74,"B030","T","    ","GRANGE DES MAURES         ",3,"DENICE                        "]
[69,0,74,"B051","R","    ","LE VIVIAN                 ",3,"DENICE                        "]
[69,0,74,18,"Y","RTE ","DE LA CAILLOTIERE         ",1,"DENICE                        "]
[69,0,74,48,"F","RUE ","DE LA FORGE               ",1,"DENICE                        "]
[69,0,74,95,"G","RTE ","DE MALVAL                 ",1,"DENICE                        "]
[69,0,75,"B008","P","    ","LE CHAGNARD               ",3,"DIEME                         "]
[69,0,75,"B031","P","    ","LE GRUPON                 ",3,"DIEME                         "]
[69,0,75,"B047","G","    ","LE TREVE                  ",3,"DIEME                         "]
[69,0,76,"B003","E","    ","BOIS COMMUNAUX            ",3,"DOMMARTIN                     "]
[69,0,76,"B020","Y","    ","EN CORDINEAU              ",3,"DOMMARTIN                     "]
[69,0,76,"B037","S","    ","A MI MORT                 ",3,"DOMMARTIN                     "]
[69,0,76,82,"J","RUE ","DU BOURG                  ",1,"DOMMARTIN                     "]
[69,0,76,210,"Y","CHE ","DU JOINET                 ",1,"DOMMARTIN                     "]
[69,0,76,280,"Z","RTE ","DU PONT DE REYRE          ",1,"DOMMARTIN                     "]
[69,0,76,360,"L","PL  ","DES VIOLETTES             ",1,"DOMMARTIN                     "]
[69,0,77,"B010","H","    ","CHAMPAGNE                 ",3,"DRACE                         "]
[69,0,77,"B031","F","    ","PORT DE MURE              ",3,"DRACE                         "]
[69,0,77,"B048","Z","    ","BLAVENT NORD              ",3,"DRACE                         "]
[69,0,77,86,"J","CHE ","GREFFET                   ",1,"DRACE                         "]
[69,0,77,187,"U","IMP ","DE LA SERVE COUPON        ",1,"DRACE                         "]
[69,0,78,"B012","F","    ","LA BORGIA                 ",3,"DUERNE                        "]
[69,0,78,"B029","Z","    ","AUX ETOILES               ",3,"DUERNE                        "]
[69,0,78,"B051","Y","    ","AU PERRET                 ",3,"DUERNE                        "]
[69,0,78,"B068","S","    ","VANELLE                   ",3,"DUERNE                        "]
[69,0,78,145,"U","CHE ","DE L'ORJOLLE              ",1,"DUERNE                        "]
[69,0,78,225,"F","CHE ","DU STADE                  ",1,"DUERNE                        "]
[69,0,80,"B010","V","    ","BOITET                    ",3,"ECHALAS                       "]
[69,0,80,"B031","T","    ","LE COGNET                 ",3,"ECHALAS                       "]
[69,0,80,"B048","L","    ","LA CURE                   ",3,"ECHALAS                       "]
[69,0,80,"B069","J","    ","GORGEAT OUEST             ",3,"ECHALAS                       "]
[69,0,80,"B108","B","    ","RADIS ROCHETTES           ",3,"ECHALAS                       "]
[69,0,80,"B125","V","    ","TRIMOLIN                  ",3,"ECHALAS                       "]
[69,0,80,14,"T","CHE ","DE COEMEN                 ",1,"ECHALAS                       "]
[69,0,80,55,"M","RUE ","DE L'EGLISE               ",1,"ECHALAS                       "]
[69,0,80,92,"C","RTE ","DES HAIES                 ",1,"ECHALAS                       "]
[69,0,80,135,"Z","CHE ","SOUS POYRIEU              ",1,"ECHALAS                       "]
[69,0,81,"A046","T","    ","LES JARDINS D'ARCADIE     ",2,"ECULLY                        "]
[69,0,81,"B012","T","    ","LES GANTRIES              ",3,"ECULLY                        "]
[69,0,81,"B030","M","    ","SERRE                     ",3,"ECULLY                        "]
[69,0,81,10,"J","RUE ","AUGUSTE TRAMIER           ",1,"ECULLY                        "]
[69,0,81,120,"D","CHE ","DE CHARBONNIERES          ",1,"ECULLY                        "]
[69,0,81,200,"R","AV  ","DUCHALAY                  ",1,"ECULLY                        "]
[69,0,81,305,"E","AV  ","GUY DE COLLONGUE          ",1,"ECULLY                        "]
[69,0,81,512,"E","IMP ","DU PREMIER MAI            ",1,"ECULLY                        "]
[69,0,81,575,"Y","AV  ","DES SOURCES               ",1,"ECULLY                        "]
[69,0,82,"B006","G","    ","AUX CHANES                ",3,"EMERINGES                     "]
[69,0,82,"B023","A","    ","REPLAT DE VAVRE           ",3,"EMERINGES                     "]
[69,0,82,102,"E","RTE ","DES GIRAUDS               ",1,"EMERINGES                     "]
[69,0,83,"B011","H","    ","JARTIERE                  ",3,"EVEUX                         "]
[69,0,83,120,"V","CHE ","DE GRANDS FONDS           ",1,"EVEUX                         "]
[69,0,83,205,"M","MTE ","DES ROCHES                ",1,"EVEUX                         "]
[69,0,84,"B006","Y","    ","CERCILLON                 ",3,"FLEURIE                       "]
[69,0,84,"B023","S","    ","GRAND PRE                 ",3,"FLEURIE                       "]
[69,0,84,"B044","P","    ","ROCHE GUILLON             ",3,"FLEURIE                       "]
[69,0,84,10,"W","PL  ","DE LA BASCULE             ",1,"FLEURIE                       "]
[69,0,84,169,"U","RLE ","DE LA CHAPELLE DES BOIS   ",1,"FLEURIE                       "]
[69,0,84,207,"K","RTE ","DES GOGUELINS             ",1,"FLEURIE                       "]
[69,0,84,271,"E","CHE ","DE LA PIECE D'EAU         ",1,"FLEURIE                       "]
[69,0,84,301,"M","RUE ","DES VAUX                  ",1,"FLEURIE                       "]
[69,0,85,"B009","X","    ","CONTAMINE                 ",3,"FLEURIEU-SUR-SAONE            "]
[69,0,85,15,"X","CHE ","DES BRUYERES              ",1,"FLEURIEU-SUR-SAONE            "]
[69,0,85,97,"L","RUE ","DE JERICHO                ",1,"FLEURIEU-SUR-SAONE            "]
[69,0,86,"B016","A","    ","EN FRANCE                 ",3,"FLEURIEUX-SUR-L ARBRESLE      "]
[69,0,86,"B037","Y","    ","LE RIBOULET               ",3,"FLEURIEUX-SUR-L ARBRESLE      "]
[69,0,86,34,"N","PL  ","BENOIT DUBOST             ",1,"FLEURIEUX-SUR-L ARBRESLE      "]
[69,0,86,89,"Y","MTE ","DU CHENE                  ",1,"FLEURIEUX-SUR-L ARBRESLE      "]
[69,0,86,134,"X","RUE ","DU GRAND PRE              ",1,"FLEURIEUX-SUR-L ARBRESLE      "]
[69,0,86,165,"F","IMP ","DE LA MINE                ",1,"FLEURIEUX-SUR-L ARBRESLE      "]
[69,0,86,276,"B","IMP ","DES TUILIERES             ",1,"FLEURIEUX-SUR-L ARBRESLE      "]
[69,0,87,"B013","T","    ","SUR LES GUETTES           ",3,"FONTAINES-SAINT-MARTIN        "]
[69,0,87,4,"B","ALL ","DES ACACIAS               ",1,"FONTAINES-SAINT-MARTIN        "]
[69,0,87,80,"J","RUE ","DU DIOT                   ",1,"FONTAINES-SAINT-MARTIN        "]
[69,0,87,208,"Y","RUE ","JEAN PIERRE TREPOT        ",1,"FONTAINES-SAINT-MARTIN        "]
[69,0,87,278,"Z","CHE ","DU PONT BOUSQUET          ",1,"FONTAINES-SAINT-MARTIN        "]
[69,0,88,"B003","C","    ","CHATEAU ROY               ",3,"FONTAINES SUR SAONE           "]
[69,0,88,160,"S","QUAI","JEAN BAPTISTE SIMON       ",1,"FONTAINES SUR SAONE           "]
[69,0,88,310,"E","RUE ","PIERRE BOUVIER            ",1,"FONTAINES SUR SAONE           "]
[69,0,89,"B003","Y","    ","BEL AIR                   ",3,"FRANCHEVILLE                  "]
[69,0,89,"B020","S","    ","LA FALCONNIERE            ",3,"FRANCHEVILLE                  "]
[69,0,89,"B041","P","    ","LA ROUSSILLE              ",3,"FRANCHEVILLE                  "]
[69,0,89,54,"X","PL  ","DE L ANCIENNE MAIRIE      ",1,"FRANCHEVILLE                  "]
[69,0,89,420,"V","AV  ","DU CHATER                 ",1,"FRANCHEVILLE                  "]
[69,0,89,631,"Z","ALL ","DE L EXPANSION            ",1,"FRANCHEVILLE                  "]
[69,0,89,770,"A","IMP ","DES GLYCINES              ",1,"FRANCHEVILLE                  "]
[69,0,89,860,"Y","CHE ","DU LOUP                   ",1,"FRANCHEVILLE                  "]
[69,0,89,1035,"N","CHE ","DES MOUILLES              ",1,"FRANCHEVILLE                  "]
[69,0,89,1121,"G","IMP ","DES PINS                  ",1,"FRANCHEVILLE                  "]
[69,0,89,1375,"H","SQ  ","DE STEINHEIM              ",1,"FRANCHEVILLE                  "]
[69,0,90,"B017","J","    ","FOND DE BOUDY             ",3,"FRONTENAS                     "]
[69,0,90,"B034","C","    ","SAINT ABRAM ET RAGOTTES   ",3,"FRONTENAS                     "]
[69,0,90,19,"E","RUE ","DE LA FORGE               ",1,"FRONTENAS                     "]
[69,0,90,36,"Y","RTE ","DES LAPINS                ",1,"FRONTENAS                     "]
[69,0,91,"A056","K","LOT ","LES HAUTS DE GIVORS       ",2,"GIVORS                        "]
[69,0,91,"B017","E","    ","NOAILLY                   ",3,"GIVORS                        "]
[69,0,91,"B057","Y","    ","MARTOU                    ",3,"GIVORS                        "]
[69,0,91,"B078","W","    ","LES COMBES DE BANS        ",3,"GIVORS                        "]
[69,0,91,"X004","T","    ","LE COTEON (RUISSEAU)      ",4,"GIVORS                        "]
[69,0,91,85,"X","PL  ","DU BELVEDERE              ",1,"GIVORS                        "]
[69,0,91,152,"V","CHE ","DE CHARBONNIERES          ",1,"GIVORS                        "]
[69,0,91,223,"X","RUE ","DU COMMERCE               ",1,"GIVORS                        "]
[69,0,91,448,"S","QUAI","DE LA GARE D EAU          ",1,"GIVORS                        "]
[69,0,91,513,"M","ALL ","JACQUES DUCLOS            ",1,"GIVORS                        "]
[69,0,91,597,"D","ALL ","DE LA JUMENT NOIRE        ",1,"GIVORS                        "]
[69,0,91,709,"A","IMP ","DE MONTAGNY               ",1,"GIVORS                        "]
[69,0,91,815,"R","VC  ","DU PETIT CRAS             ",1,"GIVORS                        "]
[69,0,91,908,"S","COTE","DES RELIGIEUSES           ",1,"GIVORS                        "]
[69,0,91,1148,"C","CHE ","DES VORGINES              ",1,"GIVORS                        "]
[69,0,92,"B016","Z","    ","AUX GRANDES MAISONS       ",3,"GLEIZE                        "]
[69,0,92,121,"G","AV  ","ALFRED GAP                ",1,"GLEIZE                        "]
[69,0,92,178,"U","PL  ","CAMILLE JORDAN            ",1,"GLEIZE                        "]
[69,0,92,246,"T","IMP ","CLAUDINE                  ",1,"GLEIZE                        "]
[69,0,92,311,"N","IMP ","DES FAUVETTES             ",1,"GLEIZE                        "]
[69,0,92,471,"M","IMP ","DU MOULIN                 ",1,"GLEIZE                        "]
[69,0,92,548,"W","IMP ","DU QUINQUILLON            ",1,"GLEIZE                        "]
[69,0,92,606,"J","RUE ","SIMONE DE BEAUVOIR        ",1,"GLEIZE                        "]
[69,0,93,"B001","D","    ","LE BAS DU MONTAY          ",3,"GRANDRIS                      "]
[69,0,93,"B022","B","    ","LE CRET DE L AIL          ",3,"GRANDRIS                      "]
[69,0,93,"B056","N","    ","LA TOUR                   ",3,"GRANDRIS                      "]
[69,0,93,18,"R","ALL ","DES BRUYERES              ",1,"GRANDRIS                      "]
[69,0,94,"B005","D","    ","LA BARGE                  ",3,"GREZIEU-LA-VARENNE            "]
[69,0,94,"B022","X","    ","LES GDES TERRES           ",3,"GREZIEU-LA-VARENNE            "]
[69,0,94,3,"V","PL  ","ABBE LAUNAY               ",1,"GREZIEU-LA-VARENNE            "]
[69,0,94,37,"G","ALL ","DES CEDRES                ",1,"GREZIEU-LA-VARENNE            "]
[69,0,94,65,"M","RUE ","DES FORGES                ",1,"GREZIEU-LA-VARENNE            "]
[69,0,94,95,"V","RUE ","DES MONTS DU LYONNAIS     ",1,"GREZIEU-LA-VARENNE            "]
[69,0,94,187,"V","RUE ","DU VIEUX PONT             ",1,"GREZIEU-LA-VARENNE            "]
[69,0,95,"B014","J","    ","COTES MALVAL              ",3,"GREZIEU-LE-MARCHE             "]
[69,0,95,"B031","C","    ","LE PLAT MAILLARD          ",3,"GREZIEU-LE-MARCHE             "]
[69,0,95,42,"H","RUE ","DU CARTAY                 ",1,"GREZIEU-LE-MARCHE             "]
[69,0,95,70,"N","CHE ","DU GAUTIER                ",1,"GREZIEU-LE-MARCHE             "]
[69,0,95,113,"K","IMP ","DU NORD                   ",1,"GREZIEU-LE-MARCHE             "]
[69,0,95,155,"F","RTE ","DE STE FOY L'ARGENTIERE   ",1,"GREZIEU-LE-MARCHE             "]
[69,0,96,"B033","A","    ","ST ABDON                  ",3,"GRIGNY                        "]
[69,0,96,"X009","B","    ","CENTRALE DE PIERRE BENITE ",4,"GRIGNY                        "]
[69,0,96,100,"S","RUE ","DARCY                     ",1,"GRIGNY                        "]
[69,0,96,201,"B","SQ  ","DU GARON                  ",1,"GRIGNY                        "]
[69,0,96,289,"X","IMP ","JEAN SELLIER              ",1,"GRIGNY                        "]
[69,0,96,368,"H","RUE ","ROBESPIERRE               ",1,"GRIGNY                        "]
[69,0,97,"B022","J","    ","CHEZ RAYMOND              ",3,"LES HAIES                     "]
[69,0,97,"B043","G","    ","LES GRANDES TERRES        ",3,"LES HAIES                     "]
[69,0,97,"B060","A","    ","LE PET DU LOUP            ",3,"LES HAIES                     "]
[69,0,97,"B077","U","    ","SRAUDER ET TUILIERE       ",3,"LES HAIES                     "]
[69,0,97,60,"U","CHE ","DE LA CASSON              ",1,"LES HAIES                     "]
[69,0,97,485,"F","CHE ","DE LA PIGNARDIERE         ",1,"LES HAIES                     "]
[69,0,98,"B017","Z","    ","LA TREILLE                ",3,"LES HALLES                    "]
[69,0,98,21,"X","CHE ","DU MANOIR                 ",1,"LES HALLES                    "]
[69,0,99,"A055","Z","LOT ","LES GOUTTES               ",2,"HAUTE-RIVOIRE                 "]
[69,0,99,"B019","X","    ","LES CAILLETS              ",3,"HAUTE-RIVOIRE                 "]
[69,0,99,"B036","R","    ","HAM CHALANDON             ",3,"HAUTE-RIVOIRE                 "]
[69,0,99,"B903","H","    ","LE VERICEL                ",3,"HAUTE-RIVOIRE                 "]
[69,0,99,9,"E","IMP ","DU BONHOMME               ",1,"HAUTE-RIVOIRE                 "]
[69,0,99,78,"E","CHE ","DES IGNYS                 ",1,"HAUTE-RIVOIRE                 "]
[69,0,99,136,"T","PL  ","DU PRESBYTERE             ",1,"HAUTE-RIVOIRE                 "]
[69,0,99,300,"W","CHE ","DU BANCEL                 ",1,"HAUTE-RIVOIRE                 "]
[69,0,99,435,"T","IMP ","DES CHARMILLES            ",1,"HAUTE-RIVOIRE                 "]
[69,0,99,1000,"G","CHE ","DU PECHER                 ",1,"HAUTE-RIVOIRE                 "]
[69,0,99,2500,"M","CHE ","DE LA THORANCHE           ",1,"HAUTE-RIVOIRE                 "]
[69,0,100,"B039","P","    ","LES PORTIONS              ",3,"IRIGNY                        "]
[69,0,100,"B061","N","    ","LES SELLETTES SUD         ",3,"IRIGNY                        "]
[69,0,100,85,"H","RUE ","DU BROTEAU                ",1,"IRIGNY                        "]
[69,0,100,180,"L","RUE ","DE COMBEMORE              ",1,"IRIGNY                        "]
[69,0,100,317,"K","CHE ","DE LA FERME LAVAL         ",1,"IRIGNY                        "]
[69,0,100,379,"C","RUE ","DES HAUTS-DE-CELETTE      ",1,"IRIGNY                        "]
[69,0,100,465,"W","RUE ","DU MOULIN BERTHIER        ",1,"IRIGNY                        "]
[69,0,100,750,"F","CHE ","DE VOURLES                ",1,"IRIGNY                        "]
[69,0,102,"B008","X","    ","LE BOIS                   ",3,"JOUX                          "]
[69,0,102,"B037","D","    ","COMBARD                   ",3,"JOUX                          "]
[69,0,102,"B054","X","    ","LA GAILLODIERE            ",3,"JOUX                          "]
[69,0,102,"B075","V","    ","LE PERTUIS DE LA SOUCHE   ",3,"JOUX                          "]
[69,0,102,"B092","N","    ","VALORGES                  ",3,"JOUX                          "]
[69,0,102,135,"D","RUE ","DU CHATEAU                ",1,"JOUX                          "]
[69,0,102,250,"D","CHE ","DU MAGNIN                 ",1,"JOUX                          "]
[69,0,102,306,"P","IMP ","DES PRIMEVERES            ",1,"JOUX                          "]
[69,0,103,"B005","P","    ","LA BOTTIERE               ",3,"JULIENAS                      "]
[69,0,103,"B022","H","    ","JANROUX                   ",3,"JULIENAS                      "]
[69,0,103,35,"R","PL  ","DE L EGLISE               ",1,"JULIENAS                      "]
[69,0,104,"B033","R","    ","LES PRES DES BOIS         ",3,"JULLIE                        "]
[69,0,104,35,"L","    ","GRANDE RUE                ",1,"JULLIE                        "]
[69,0,105,"B005","F","    ","LE BOURG                  ",3,"LACENAS                       "]
[69,0,105,"B026","D","    ","THOIRY                    ",3,"LACENAS                       "]
[69,0,105,27,"Y","RTE ","DES CHALLES               ",1,"LACENAS                       "]
[69,0,105,53,"B","CHE ","DE LA CROIX               ",1,"LACENAS                       "]
[69,0,106,"A025","L","LOT ","DE LA SAIGNE              ",2,"LACHASSAGNE                   "]
[69,0,106,"B016","N","    ","RONGE FER                 ",3,"LACHASSAGNE                   "]
[69,0,106,48,"S","PL  ","PLACE DE L EGLISE         ",1,"LACHASSAGNE                   "]
[69,0,106,80,"B","CHE ","CHEMIN DE TRECHEIN        ",1,"LACHASSAGNE                   "]
[69,0,107,"B018","L","    ","CROIX DE LA ROUE          ",3,"LAMURE SUR AZERGUES           "]
[69,0,107,"B035","E","    ","MONTMAIN                  ",3,"LAMURE SUR AZERGUES           "]
[69,0,107,168,"T","IMP ","DES COUCOUS               ",1,"LAMURE SUR AZERGUES           "]
[69,0,107,259,"S","IMP ","DE LA GRANDE COMBE        ",1,"LAMURE SUR AZERGUES           "]
[69,0,107,336,"A","CHE ","DU MAQUIS                 ",1,"LAMURE SUR AZERGUES           "]
[69,0,107,397,"S","IMP ","DES ROSEAUX               ",1,"LAMURE SUR AZERGUES           "]
[69,0,108,"B005","T","    ","BARDOUX                   ",3,"LANCIE                        "]
[69,0,108,"B022","L","    ","LE GRAND ROCHOT           ",3,"LANCIE                        "]
[69,0,108,"B043","J","    ","LES RAISSES               ",3,"LANCIE                        "]
[69,0,108,37,"W","RUE ","DES FREBOUCHES            ",1,"LANCIE                        "]
[69,0,108,55,"R","CHE ","DU PUITS                  ",1,"LANCIE                        "]
[69,0,109,"B004","M","    ","BASTYS                    ",3,"LANTIGNIE                     "]
[69,0,109,"B022","G","    ","LES MONTHIEUX             ",3,"LANTIGNIE                     "]
[69,0,109,"B039","A","    ","VAUGERVAND                ",3,"LANTIGNIE                     "]
[69,0,109,19,"X","IMP ","DU PIGEONNIER             ",1,"LANTIGNIE                     "]
[69,0,110,"B013","T","    ","LES BOIS DE LA GRANDE     ",3,"LARAJASSE                     "]
[69,0,110,"B034","R","    ","LE CHAMPIN                ",3,"LARAJASSE                     "]
[69,0,110,"B051","J","    ","COTE GRIMAUD              ",3,"LARAJASSE                     "]
[69,0,110,"B068","C","    ","LES FLACHES               ",3,"LARAJASSE                     "]
[69,0,110,"B089","A","    ","GRANGE RAMBERT            ",3,"LARAJASSE                     "]
[69,0,110,"B106","U","    ","LAVORE                    ",3,"LARAJASSE                     "]
[69,0,110,"B127","S","    ","MOULIN MONTALAND          ",3,"LARAJASSE                     "]
[69,0,110,"B166","J","    ","LES TERRES DE DERRIERE    ",3,"LARAJASSE                     "]
[69,0,110,"B906","N","    ","LAUDRIERE                 ",3,"LARAJASSE                     "]
[69,0,110,42,"T","CHE ","DU CHAMPIN                ",1,"LARAJASSE                     "]
[69,0,110,67,"V","CHE ","DE COTE GRIMAUD           ",1,"LARAJASSE                     "]
[69,0,110,135,"U","RTE ","DU GROS FOU               ",1,"LARAJASSE                     "]
[69,0,110,182,"V","ALL ","DES JONQUILLES            ",1,"LARAJASSE                     "]
[69,0,110,303,"B","RUE ","DES PRIMEVERES            ",1,"LARAJASSE                     "]
[69,0,110,350,"C","RTE ","DE ST SYMPHORIEN SUR COISE",1,"LARAJASSE                     "]
[69,0,111,"B001","A","    ","L AZERGUES                ",3,"LEGNY                         "]
[69,0,111,"B018","U","    ","MOULIN LABLANCHE          ",3,"LEGNY                         "]
[69,0,111,42,"N","RUE ","DE L'EGLISE               ",1,"LEGNY                         "]
[69,0,111,152,"H","    ","CLOS DES SARRAZINS        ",1,"LEGNY                         "]
[69,0,112,"B016","M","    ","CRUZOLS                   ",3,"LENTILLY                      "]
[69,0,112,"B037","K","    ","LAYE                      ",3,"LENTILLY                      "]
[69,0,112,"B054","D","    ","LA RAVE                   ",3,"LENTILLY                      "]
[69,0,112,12,"B","CHE ","DE LA BOUCLE              ",1,"LENTILLY                      "]
[69,0,112,29,"V","SEN ","DES COLLEGIENS            ",1,"LENTILLY                      "]
[69,0,112,48,"R","VC  ","LE GRAND CHEMIN           ",1,"LENTILLY                      "]
[69,0,112,86,"G","CHE ","DE MOIRY                  ",1,"LENTILLY                      "]
[69,0,112,300,"P","RUE ","DU ZOUAVE                 ",1,"LENTILLY                      "]
[69,0,112,465,"U","RTE ","NOUVELLE ROUTE            ",1,"LENTILLY                      "]
[69,0,113,"B015","G","    ","CHEZ PETIT                ",3,"LETRA                         "]
[69,0,113,"B034","C","    ","GOUTTE MARTIN             ",3,"LETRA                         "]
[69,0,113,"B055","A","    ","LES PRELLES               ",3,"LETRA                         "]
[69,0,113,15,"A","IMP ","DES BELLES LETTRES        ",1,"LETRA                         "]
[69,0,113,106,"Z","PL  ","DE LA POSTE               ",1,"LETRA                         "]
[69,0,115,"B003","K","    ","LE BESSON                 ",3,"LIMAS                         "]
[69,0,115,13,"P","VC  ","MONTEE DE BUISANTE        ",1,"LIMAS                         "]
[69,0,115,34,"M","ALL ","DE LA CITADELLE           ",1,"LIMAS                         "]
[69,0,115,70,"B","CHE ","DES FOURCHES              ",1,"LIMAS                         "]
[69,0,115,110,"V","AV  ","DE LA LIBERATION          ",1,"LIMAS                         "]
[69,0,115,162,"B","RUE ","DU STADE                  ",1,"LIMAS                         "]
[69,0,116,"B025","E","    ","PT PARIS SUD              ",3,"LIMONEST                      "]
[69,0,116,11,"H","IMP ","DE BELLEVUE               ",1,"LIMONEST                      "]
[69,0,116,29,"C","ALL ","DE L ETANG                ",1,"LIMONEST                      "]
[69,0,116,62,"N","CHE ","DE NARCELLE               ",1,"LIMONEST                      "]
[69,0,116,167,"C","CR  ","NO9                       ",1,"LIMONEST                      "]
[69,0,116,168,"D","CR  ","NO10                      ",1,"LIMONEST                      "]
[69,0,116,750,"L","CHE ","DES ROBINIERS             ",1,"LIMONEST                      "]
[69,0,117,"B019","U","    ","ROTY                      ",3,"LISSIEU                       "]
[69,0,117,30,"Z","ALL ","DES CERFS                 ",1,"LISSIEU                       "]
[69,0,117,53,"Z","CHE ","DE LA CROIX RAMPEAU       ",1,"LISSIEU                       "]
[69,0,117,77,"A","CHE ","DE MARCILLY               ",1,"LISSIEU                       "]
[69,0,117,97,"X","ALL ","DES VERGNES               ",1,"LISSIEU                       "]
[69,0,118,"B019","P","    ","CHATANAY                  ",3,"LOIRE-SUR-RHONE               "]
[69,0,118,"B036","H","    ","LE FATIGUE                ",3,"LOIRE-SUR-RHONE               "]
[69,0,118,"B054","C","    ","MOULIN A VENT             ",3,"LOIRE-SUR-RHONE               "]
[69,0,118,"B075","A","    ","SOUZET                    ",3,"LOIRE-SUR-RHONE               "]
[69,0,118,45,"L","RUE ","CITE PHENIX               ",1,"LOIRE-SUR-RHONE               "]
[69,0,118,165,"S","RTE ","DU LYONNAIS               ",1,"LOIRE-SUR-RHONE               "]
[69,0,118,500,"F","RUE ","DU ROUSSET                ",1,"LOIRE-SUR-RHONE               "]
[69,0,119,"B012","C","    ","LE BRICHET                ",3,"LONGES                        "]
[69,0,119,"B027","U","    ","LA COMBE                  ",3,"LONGES                        "]
[69,0,119,"B051","V","    ","GD PRE                    ",3,"LONGES                        "]
[69,0,119,"B072","T","    ","REMILLIEUX                ",3,"LONGES                        "]
[69,0,119,15,"Z","IMP ","BEAUSOLEIL                ",1,"LONGES                        "]
[69,0,119,155,"B","CHE ","DE GRIFFONEY              ",1,"LONGES                        "]
[69,0,119,294,"C","RUE ","DE LA SAINTE CROIX        ",1,"LONGES                        "]
[69,0,120,"B001","L","    ","L ARQUILLERE              ",3,"LONGESSAIGNE                  "]
[69,0,120,"B018","E","    ","LES CLABAUDES             ",3,"LONGESSAIGNE                  "]
[69,0,120,"B039","C","    ","LA GRAND MAISON           ",3,"LONGESSAIGNE                  "]
[69,0,120,"B056","W","    ","LE PLANU EST              ",3,"LONGESSAIGNE                  "]
[69,0,120,"B903","S","    ","LA FLACHERE               ",3,"LONGESSAIGNE                  "]
[69,0,120,64,"Y","IMP ","DES FILLEULS              ",1,"LONGESSAIGNE                  "]
[69,0,120,118,"G","RTE ","DE MONTROTTIER            ",1,"LONGESSAIGNE                  "]
[69,0,120,230,"D","    ","GRANDE RUE                ",1,"LONGESSAIGNE                  "]
[69,0,120,298,"C","CHE ","DU VIRE                   ",1,"LONGESSAIGNE                  "]
[69,0,121,"B016","Y","    ","LES FORETS                ",3,"LOZANNE                       "]
[69,0,121,29,"F","CHE ","DU BOIS DU FOUR           ",1,"LOZANNE                       "]
[69,0,121,53,"G","IMP ","DE L ENTREPRISE           ",1,"LOZANNE                       "]
[69,0,121,84,"R","RUE ","DES PEUPLIERS             ",1,"LOZANNE                       "]
[69,0,121,121,"F","CHE ","DU VAVRE                  ",1,"LOZANNE                       "]
[69,0,122,"B011","N","    ","CHEVRIERES                ",3,"LUCENAY                       "]
[69,0,122,"B032","L","    ","LE GRILLIN                ",3,"LUCENAY                       "]
[69,0,122,"B049","E","    ","LE ROSSIGNOL              ",3,"LUCENAY                       "]
[69,0,122,14,"K","CHE ","DE CHIBRUT                ",1,"LUCENAY                       "]
[69,0,122,59,"J","IMP ","DES OISEAUX               ",1,"LUCENAY                       "]
[69,0,122,80,"G","CHE ","DU ROSSIGNOL              ",1,"LUCENAY                       "]
[69,0,124,"B012","F","    ","AUX BRUYERES              ",3,"MARCHAMPT                     "]
[69,0,124,"B029","Z","    ","COEUR DE LA COUR          ",3,"MARCHAMPT                     "]
[69,0,124,"B046","T","    ","FRAGNIE                   ",3,"MARCHAMPT                     "]
[69,0,124,"B067","R","    ","LE RAJON                  ",3,"MARCHAMPT                     "]
[69,0,124,36,"A","IMP ","DE LA CHAPELLE            ",1,"MARCHAMPT                     "]
[69,0,124,142,"R","RUE ","MERDEUSE                  ",1,"MARCHAMPT                     "]
[69,0,124,170,"W","PL  ","PIERRE DELAYE             ",1,"MARCHAMPT                     "]
[69,0,125,"B011","A","    ","LE FOURACHAUX             ",3,"MARCILLY-D AZERGUES           "]
[69,0,125,65,"C","IMP ","DES CARAIBES              ",1,"MARCILLY-D AZERGUES           "]
[69,0,125,230,"G","CHE ","DE LA FUCHETTE            ",1,"MARCILLY-D AZERGUES           "]
[69,0,125,410,"C","RTE ","DE NEUVILLE               ",1,"MARCILLY-D AZERGUES           "]
[69,0,126,12,"R","CHE ","DE CHAMP DELICIEUX        ",1,"MARCY                         "]
[69,0,126,29,"J","CHE ","DE VARAINE                ",1,"MARCY                         "]
[69,0,127,"B007","M","    ","LE CHAT                   ",3,"MARCY-L ETOILE                "]
[69,0,127,"B100","N","    ","MARNAS                    ",3,"MARCY-L ETOILE                "]
[69,0,127,53,"F","ALL ","DES  ECOLES               ",1,"MARCY-L ETOILE                "]
[69,0,127,100,"G","AV  ","DE LA LIBERTE             ",1,"MARCY-L ETOILE                "]
[69,0,130,"B005","X","    ","BUSSIERES                 ",3,"MEAUX LA MONTAGNE             "]
[69,0,130,"B027","W","    ","POINTU                    ",3,"MEAUX LA MONTAGNE             "]
[69,0,131,"A070","B","    ","CLOS DES VIGNES           ",2,"MESSIMY                       "]
[69,0,131,"B017","F","    ","LA CHAUSSONNIERE          ",3,"MESSIMY                       "]
[69,0,131,"B038","D","    ","LES GRANGES               ",3,"MESSIMY                       "]
[69,0,131,"B070","N","    ","LA TRIANDINE              ",3,"MESSIMY                       "]
[69,0,131,34,"T","RUE ","CENTRALE                  ",1,"MESSIMY                       "]
[69,0,131,63,"Z","ALL ","DE LA FOURNELIERE         ",1,"MESSIMY                       "]
[69,0,131,90,"D","RTE ","DU MOUCHETIER             ",1,"MESSIMY                       "]
[69,0,131,117,"H","CHE ","DE LA RONCE               ",1,"MESSIMY                       "]
[69,0,132,"B001","J","    ","LE BACHAT                 ",3,"MEYS                          "]
[69,0,132,"B018","C","    ","LE CHANINAT               ",3,"MEYS                          "]
[69,0,132,"B039","A","    ","LE GOUJON                 ",3,"MEYS                          "]
[69,0,132,"B078","T","    ","LE THUINARD               ",3,"MEYS                          "]
[69,0,132,90,"Z","CHE ","DU PAGNON                 ",1,"MEYS                          "]
[69,0,132,194,"M","CHE ","DES COMBES                ",1,"MEYS                          "]
[69,0,132,260,"J","RTE ","DE GREZIEU LE MARCHE      ",1,"MEYS                          "]
[69,0,132,406,"T","CHE ","DU PUITS                  ",1,"MEYS                          "]
[69,0,132,510,"F","IMP ","LA ZONE D'ACTIVITE GAGERE ",1,"MEYS                          "]
[69,0,133,"B035","S","    ","LE GD PRE                 ",3,"MILLERY                       "]
[69,0,133,"B056","P","    ","LA SABLIERE               ",3,"MILLERY                       "]
[69,0,133,"B065","Z","    ","VALOIS                    ",3,"MILLERY                       "]
[69,0,133,78,"G","CHE ","DES CHARMES               ",1,"MILLERY                       "]
[69,0,133,100,"F","RUE ","DE FRONTIGNY              ",1,"MILLERY                       "]
[69,0,133,240,"H","RUE ","DES MARRONNIERS           ",1,"MILLERY                       "]
[69,0,134,"B008","H","    ","BUSSY                     ",3,"MOIRE                         "]
[69,0,134,"B025","B","    ","THALEBART                 ",3,"MOIRE                         "]
[69,0,134,130,"J","RUE ","DE LA MAIRIE              ",1,"MOIRE                         "]
[69,0,134,218,"E","CHE ","DES VIGNES                ",1,"MOIRE                         "]
[69,0,135,"B008","D","    ","BRETE                     ",3,"DEUX-GROSNES                  "]
[69,0,135,"B029","B","    ","FONDS COLOMB              ",3,"DEUX-GROSNES                  "]
[69,0,135,"B068","U","    ","LES SEPAS SUD             ",3,"DEUX-GROSNES                  "]
[69,0,135,"B908","G","    ","AUX BRUYERES              ",3,"DEUX-GROSNES                  "]
[69,0,135,"B929","E","    ","LA PAIX                   ",3,"DEUX-GROSNES                  "]
[69,0,135,"B946","Y","    ","LE CARRUGE NORD           ",3,"DEUX-GROSNES                  "]
[69,0,135,"B967","W","    ","L ECURESSE                ",3,"DEUX-GROSNES                  "]
[69,0,135,"B984","P","    ","GRAND SAPIN               ",3,"DEUX-GROSNES                  "]
[69,0,135,"C016","Z","    ","SAPINS DES GRANDS BERES   ",3,"DEUX-GROSNES                  "]
[69,0,135,"C046","G","    ","AUX BUTINS                ",3,"DEUX-GROSNES                  "]
[69,0,135,"C063","A","    ","CONGRUE                   ",3,"DEUX-GROSNES                  "]
[69,0,135,"C080","U","    ","LES GRANDS PRES           ",3,"DEUX-GROSNES                  "]
[69,0,135,"C101","S","    ","AUX PIERRES               ",3,"DEUX-GROSNES                  "]
[69,0,135,"C118","K","    ","LA ROUAND                 ",3,"DEUX-GROSNES                  "]
[69,0,135,"C139","H","    ","VERTALIN                  ",3,"DEUX-GROSNES                  "]
[69,0,135,"C178","A","    ","LA MONTAGNE               ",3,"DEUX-GROSNES                  "]
[69,0,135,"C195","U","    ","LE CHATEAU                ",3,"DEUX-GROSNES                  "]
[69,0,135,"C216","S","    ","LA SALLE                  ",3,"DEUX-GROSNES                  "]
[69,0,135,16,"F","IMP ","DES CHATAIGNIERS          ",1,"DEUX-GROSNES                  "]
[69,0,135,60,"D","RUE ","DES LOGES                 ",1,"DEUX-GROSNES                  "]
[69,0,135,114,"M","RUE ","DU FORGERON               ",1,"DEUX-GROSNES                  "]
[69,0,135,170,"Y","MTE ","DES ALLOGNIERS            ",1,"DEUX-GROSNES                  "]
[69,0,135,275,"M","RTE ","DE BOUBON                 ",1,"DEUX-GROSNES                  "]
[69,0,135,360,"E","PL  ","DE LA CHARME              ",1,"DEUX-GROSNES                  "]
[69,0,135,400,"Y","MTE ","DU CHATEAU ST JU          ",1,"DEUX-GROSNES                  "]
[69,0,135,565,"C","CHE ","DE L ESPINASSE            ",1,"DEUX-GROSNES                  "]
[69,0,135,655,"A","MTE ","GOUILLOUD                 ",1,"DEUX-GROSNES                  "]
[69,0,135,760,"P","IMP ","DU LAVOIR                 ",1,"DEUX-GROSNES                  "]
[69,0,135,955,"B","RTE ","DES PLACES                ",1,"DEUX-GROSNES                  "]
[69,0,135,1045,"Z","IMP ","DE LA RIVIERE             ",1,"DEUX-GROSNES                  "]
[69,0,135,1150,"N","RUE ","DU TREIZIN                ",1,"DEUX-GROSNES                  "]
[69,0,136,"A006","K","LOT ","LES CERISIERS             ",2,"MONTAGNY                      "]
[69,0,136,"B013","E","    ","COMBE GIRAUD              ",3,"MONTAGNY                      "]
[69,0,136,"B030","Y","    ","SOURZY                    ",3,"MONTAGNY                      "]
[69,0,136,35,"X","RUE ","DE LA GROSSE ROCHE        ",1,"MONTAGNY                      "]
[69,0,136,56,"V","RUE ","DE LA RUELLE              ",1,"MONTAGNY                      "]
[69,0,136,93,"K","IMP ","DU BRESSELON              ",1,"MONTAGNY                      "]
[69,0,136,177,"B","PL  ","DE L'EGLISE               ",1,"MONTAGNY                      "]
[69,0,136,245,"A","IMP ","DES PEUPLIERS             ",1,"MONTAGNY                      "]
[69,0,137,"B009","W","    ","COUTIEUX                  ",3,"MONTMELAS-SAINT-SORLIN        "]
[69,0,137,"B022","K","    ","VERNE                     ",3,"MONTMELAS-SAINT-SORLIN        "]
[69,0,138,"B035","V","    ","LE PAGNON                 ",3,"MONTROMANT                    "]
[69,0,138,90,"Y","IMP ","DU BESSY                  ",1,"MONTROMANT                    "]
[69,0,138,300,"B","CHE ","RURAL DE LA CROIX DU VIRE ",1,"MONTROMANT                    "]
[69,0,138,470,"L","CHE ","RURAL DU GUIDON           ",1,"MONTROMANT                    "]
[69,0,138,640,"W","RUE ","DU PAVE                   ",1,"MONTROMANT                    "]
[69,0,138,850,"Z","MTE ","DE LA TRABOULE            ",1,"MONTROMANT                    "]
[69,0,139,"B026","F","    ","LA MARCHE                 ",3,"MONTROTTIER                   "]
[69,0,139,"B047","D","    ","ROBAGNY                   ",3,"MONTROTTIER                   "]
[69,0,139,"B907","N","    ","LE TREVE                  ",3,"MONTROTTIER                   "]
[69,0,139,38,"M","PL  ","DU 19 MARS 1962           ",1,"MONTROTTIER                   "]
[69,0,140,"B001","Z","    ","BARDIN                    ",3,"MORANCE                       "]
[69,0,140,"B018","T","    ","LE CRET                   ",3,"MORANCE                       "]
[69,0,140,"B039","R","    ","PETITES JARENTES          ",3,"MORANCE                       "]
[69,0,140,23,"S","RTE ","DES CHERES                ",1,"MORANCE                       "]
[69,0,140,49,"V","ALL ","DES MESANGES              ",1,"MORANCE                       "]
[69,0,140,62,"J","CHE ","DE LA RONZE               ",1,"MORANCE                       "]
[69,0,140,81,"E","ALL ","DU CONSARD                ",1,"MORANCE                       "]
[69,0,141,"B013","H","    ","LE CALICHET               ",3,"MORNANT                       "]
[69,0,141,"B034","F","    ","GERMANY                   ",3,"MORNANT                       "]
[69,0,141,8,"W","ALL ","DES ALOUETTES             ",1,"MORNANT                       "]
[69,0,141,90,"K","CHE ","DU LAVOIR                 ",1,"MORNANT                       "]
[69,0,141,183,"L","RTE ","DE CHAUSSAN               ",1,"MORNANT                       "]
[69,0,141,200,"E","RUE ","DU DOC CARREZ             ",1,"MORNANT                       "]
[69,0,141,269,"E","CHE ","DU GRANIT                 ",1,"MORNANT                       "]
[69,0,141,347,"P","RUE ","DES LORIOTS               ",1,"MORNANT                       "]
[69,0,141,470,"Y","RUE ","DU PUITS DE LA FORGE      ",1,"MORNANT                       "]
[69,0,141,520,"C","RUE ","SERPATON                  ",1,"MORNANT                       "]
[69,0,141,680,"B","IMP ","VICTOR HUGO               ",1,"MORNANT                       "]
[69,0,142,"A016","V","    ","5 RUE DELA BASTERO LES MEL",2,"LA MULATIERE                  "]
[69,0,142,10,"U","RUE ","ANDRE LAFARGE             ",1,"LA MULATIERE                  "]
[69,0,142,210,"L","RUE ","DU GRAPILLON              ",1,"LA MULATIERE                  "]
[69,0,143,"B015","B","    ","FOUR A CHAUX              ",3,"NEUVILLE SUR SAONE            "]
[69,0,143,43,"A","PL  ","ANCIENS COMBATTANTS D AFN ",1,"NEUVILLE SUR SAONE            "]
[69,0,143,191,"L","CHEM","DES CHENES                ",1,"NEUVILLE SUR SAONE            "]
[69,0,143,320,"B","RUE ","FRANCOIS VERGNAIS         ",1,"NEUVILLE SUR SAONE            "]
[69,0,143,470,"P","RUE ","JEAN MOULIN               ",1,"NEUVILLE SUR SAONE            "]
[69,0,143,640,"Z","QUAI","PASTEUR                   ",1,"NEUVILLE SUR SAONE            "]
[69,0,145,"B008","K","    ","LA CHAIZE                 ",3,"ODENAS                        "]
[69,0,145,"B025","D","    ","PIERREUX                  ",3,"ODENAS                        "]
[69,0,145,12,"H","RTE ","DE CREIGNE                ",1,"ODENAS                        "]
[69,0,145,40,"N","PL  ","DU HUIT MAI 1945          ",1,"ODENAS                        "]
[69,0,145,113,"T","CHE ","DU ROUX                   ",1,"ODENAS                        "]
[69,0,148,"B004","T","    ","LE BOULARD                ",3,"ORLIENAS                      "]
[69,0,148,"B043","K","    ","LA PIERRE                 ",3,"ORLIENAS                      "]
[69,0,148,"B905","X","    ","LA CROIX DU MAY           ",3,"ORLIENAS                      "]
[69,0,148,32,"S","CHE ","DE LA CANARDE             ",1,"ORLIENAS                      "]
[69,0,148,46,"G","CHE ","DU CREUX                  ",1,"ORLIENAS                      "]
[69,0,148,82,"W","CHE ","DE LA MOUILLE             ",1,"ORLIENAS                      "]
[69,0,148,112,"D","RTE ","DES SEPT CHEMINS          ",1,"ORLIENAS                      "]
[69,0,149,"B006","R","    ","MERLUS                    ",3,"OULLINS                       "]
[69,0,149,160,"B","RUE ","DU BUISSET                ",1,"OULLINS                       "]
[69,0,149,290,"T","PL  ","CLAUDE JORDERY            ",1,"OULLINS                       "]
[69,0,149,430,"V","RUE ","EUGENE VIAL               ",1,"OULLINS                       "]
[69,0,149,506,"C","RUE ","DE LA GRANDE ALLEE        ",1,"OULLINS                       "]
[69,0,149,630,"M","RUE ","LORTET                    ",1,"OULLINS                       "]
[69,0,149,690,"C","CHE ","DE MONTLOUIS              ",1,"OULLINS                       "]
[69,0,149,910,"S","RUE ","DU TAPIS VERT             ",1,"OULLINS                       "]
[69,0,151,"B010","L","    ","CHARAUDET                 ",3,"LE PERREON                    "]
[69,0,151,"B027","E","    ","LA CREUSE                 ",3,"LE PERREON                    "]
[69,0,151,"B044","Y","    ","GRIPONET                  ",3,"LE PERREON                    "]
[69,0,151,"B065","W","    ","LE SOUTENANT              ",3,"LE PERREON                    "]
[69,0,151,15,"K","RUE ","LOUVEIGNE                 ",1,"LE PERREON                    "]
[69,0,151,81,"G","IMP ","DE JALOFY                 ",1,"LE PERREON                    "]
[69,0,151,107,"K","RTE ","DU TREVE                  ",1,"LE PERREON                    "]
[69,0,152,"B006","C","    ","LA CLAVELIERE             ",3,"PIERRE BENITE                 "]
[69,0,152,"X001","Z","CHEM","DE FER DE LYON ST ETIENNE ",4,"PIERRE BENITE                 "]
[69,0,152,33,"A","ALL ","DES CARLINES              ",1,"PIERRE BENITE                 "]
[69,0,152,99,"X","IMP ","GEORGES BRASSENS          ",1,"PIERRE BENITE                 "]
[69,0,152,147,"Z","PARC","JEAN DE LA FONTAINE       ",1,"PIERRE BENITE                 "]
[69,0,152,258,"V","RUE ","DE LA PIERRE              ",1,"PIERRE BENITE                 "]
[69,0,152,335,"D","ALL ","VICTORINE BERGOUGNOUX     ",1,"PIERRE BENITE                 "]
[69,0,153,"B011","D","    ","FOND GRIMAUD              ",3,"POLEYMIEUX-AU-MONT-D OR       "]
[69,0,153,"B028","X","    ","LE REBAT                  ",3,"POLEYMIEUX-AU-MONT-D OR       "]
[69,0,153,26,"N","CHE ","DE LA CROIX RAMPAU        ",1,"POLEYMIEUX-AU-MONT-D OR       "]
[69,0,153,76,"T","CHE ","DU ROBIAT                 ",1,"POLEYMIEUX-AU-MONT-D OR       "]
[69,0,154,"B014","C","    ","COMBE AU BUT              ",3,"POLLIONNAY                    "]
[69,0,154,"B053","V","    ","LES PRESLES               ",3,"POLLIONNAY                    "]
[69,0,154,"B070","N","    ","LE VIVARAIS               ",3,"POLLIONNAY                    "]
[69,0,154,31,"P","CHE ","DES CARRIERES             ",1,"POLLIONNAY                    "]
[69,0,154,95,"J","CHE ","DES FLACHES               ",1,"POLLIONNAY                    "]
[69,0,154,163,"H","GR  ","GD RUE J PIERRE DUMORTIER ",1,"POLLIONNAY                    "]
[69,0,154,270,"Z","CHE ","DU MOULIN A VENT          ",1,"POLLIONNAY                    "]
[69,0,154,473,"V","CHE ","DU SOLEIL                 ",1,"POLLIONNAY                    "]
[69,0,155,"B001","J","    ","BEAULIEU                  ",3,"POMEYS                        "]
[69,0,155,"B018","C","    ","AU FERLAY                 ",3,"POMEYS                        "]
[69,0,155,"B035","W","    ","MOULIN SIMONNET           ",3,"POMEYS                        "]
[69,0,155,24,"C","CHE ","DE BEL HORIZON            ",1,"POMEYS                        "]
[69,0,155,68,"A","RUE ","DU COUZON                 ",1,"POMEYS                        "]
[69,0,155,134,"X","RTE ","DE GRANGE FIGAT           ",1,"POMEYS                        "]
[69,0,155,238,"K","RUE ","DU SERPOLET               ",1,"POMEYS                        "]
[69,0,156,"B010","P","    ","CHAMP DU BOIS             ",3,"POMMIERS                      "]
[69,0,156,3,"A","IMP ","AUDENIS                   ",1,"POMMIERS                      "]
[69,0,156,20,"U","IMP ","DU COTEAU                 ",1,"POMMIERS                      "]
[69,0,156,37,"M","CHE ","FERRAN                    ",1,"POMMIERS                      "]
[69,0,156,85,"P","AV  ","DES MALOUINES             ",1,"POMMIERS                      "]
[69,0,156,111,"T","VC  ","DE POMMIERS               ",1,"POMMIERS                      "]
[69,0,156,134,"T","CHE ","DE SERVEAU                ",1,"POMMIERS                      "]
[69,0,156,161,"X","CHE ","DES BUIS                  ",1,"POMMIERS                      "]
[69,0,157,"B013","N","    ","MONTEE DE VINDRY          ",3,"VINDRY-SUR-TURDINE            "]
[69,0,157,"B909","M","    ","MONTELU                   ",3,"VINDRY-SUR-TURDINE            "]
[69,0,157,"B926","F","    ","PLANCHETTE                ",3,"VINDRY-SUR-TURDINE            "]
[69,0,157,21,"R","ALL ","ANTOINE DE SAINT EXUPERY  ",1,"VINDRY-SUR-TURDINE            "]
[69,0,157,55,"C","RUE ","FRANCOIS MAURIAC          ",1,"VINDRY-SUR-TURDINE            "]
[69,0,157,90,"R","IMP ","JOLY                      ",1,"VINDRY-SUR-TURDINE            "]
[69,0,157,121,"Z","RUE ","DES POTENCES              ",1,"VINDRY-SUR-TURDINE            "]
[69,0,157,138,"T","RUE ","DU STADE                  ",1,"VINDRY-SUR-TURDINE            "]
[69,0,157,155,"L","CHE ","DE LA FORET               ",1,"VINDRY-SUR-TURDINE            "]
[69,0,157,198,"H","CHE ","DU MARAIS                 ",1,"VINDRY-SUR-TURDINE            "]
[69,0,157,215,"B","IMP ","DES PRES LES OLMES        ",1,"VINDRY-SUR-TURDINE            "]
[69,0,157,236,"Z","CHE ","DU CHALET                 ",1,"VINDRY-SUR-TURDINE            "]
[69,0,157,244,"H","CHE ","DES ETANGS                ",1,"VINDRY-SUR-TURDINE            "]
[69,0,157,271,"M","CHE ","DES REMPARTS  ST LOUP     ",1,"VINDRY-SUR-TURDINE            "]
[69,0,159,"B007","Y","    ","CHANOSET                  ",3,"PORTE DES PIERRES DOREES      "]
[69,0,159,"B046","R","    ","GRAND PASSELOUP           ",3,"PORTE DES PIERRES DOREES      "]
[69,0,159,"B063","J","    ","AU VINCENT                ",3,"PORTE DES PIERRES DOREES      "]
[69,0,159,"B084","G","    ","PIERRE BLANCHE            ",3,"PORTE DES PIERRES DOREES      "]
[69,0,159,25,"L","RTE ","DE JARNIOUX - POUILLY     ",1,"PORTE DES PIERRES DOREES      "]
[69,0,159,46,"J","CHE ","DE LA GARE                ",1,"PORTE DES PIERRES DOREES      "]
[69,0,159,63,"C","CHE ","DE LA CARRIERE            ",1,"PORTE DES PIERRES DOREES      "]
[69,0,159,102,"V","RTE ","DE TARARE                 ",1,"PORTE DES PIERRES DOREES      "]
[69,0,160,"B010","X","    ","LE BOURG                  ",3,"POULE-LES-ECHARMEAUX          "]
[69,0,160,"B027","R","    ","CORCELETTE                ",3,"POULE-LES-ECHARMEAUX          "]
[69,0,160,"B049","P","    ","HAUT DE CHOLLIERE         ",3,"POULE-LES-ECHARMEAUX          "]
[69,0,160,"B066","H","    ","LES PRES DE LA COLLONGE   ",3,"POULE-LES-ECHARMEAUX          "]
[69,0,160,"B086","E","    ","BOIS DE LA FAY            ",3,"POULE-LES-ECHARMEAUX          "]
[69,0,160,"B116","M","    ","LA MOULE                  ",3,"POULE-LES-ECHARMEAUX          "]
[69,0,160,40,"Y","CHE ","DES CEPES                 ",1,"POULE-LES-ECHARMEAUX          "]
[69,0,160,64,"Z","CHE ","DU CREUX DU LOUP          ",1,"POULE-LES-ECHARMEAUX          "]
[69,0,160,103,"S","    ","CROIX DE LA GERMOLIERE    ",1,"POULE-LES-ECHARMEAUX          "]
[69,0,160,143,"K","MTE ","DES PLATANES              ",1,"POULE-LES-ECHARMEAUX          "]
[69,0,160,186,"G","CHE ","DU RESERVOIR              ",1,"POULE-LES-ECHARMEAUX          "]
[69,0,160,235,"K","IMP ","DES VERNES                ",1,"POULE-LES-ECHARMEAUX          "]
[69,0,161,"B039","Z","    ","LE PAQUIER                ",3,"PROPIERES                     "]
[69,0,161,64,"V","ALL ","DES BOULEAUX              ",1,"PROPIERES                     "]
[69,0,161,122,"H","CHE ","DE LA CROIX DE LA RAZ     ",1,"PROPIERES                     "]
[69,0,161,320,"Y","RTE ","DE LA MOLIERE             ",1,"PROPIERES                     "]
[69,0,162,"A003","U","LOT ","DE L'ANCIEN LAVOIR        ",2,"QUINCIE EN BEAUJOLAIS         "]
[69,0,162,"B013","S","    ","CHERFEUX                  ",3,"QUINCIE EN BEAUJOLAIS         "]
[69,0,162,"B034","P","    ","GRANDES TERRES            ",3,"QUINCIE EN BEAUJOLAIS         "]
[69,0,162,"B073","G","    ","SABURIN SUD               ",3,"QUINCIE EN BEAUJOLAIS         "]
[69,0,162,"B090","A","    ","EN VERGNAT                ",3,"QUINCIE EN BEAUJOLAIS         "]
[69,0,162,34,"H","CHE ","DU CUVAGE                 ",1,"QUINCIE EN BEAUJOLAIS         "]
[69,0,162,49,"Z","IMP ","DE LA GARENNE             ",1,"QUINCIE EN BEAUJOLAIS         "]
[69,0,162,100,"E","CHE ","DES OLIVIERS              ",1,"QUINCIE EN BEAUJOLAIS         "]
[69,0,162,160,"V","CHE ","DE REVOLON                ",1,"QUINCIE EN BEAUJOLAIS         "]
[69,0,163,"B001","Z","    ","BASSES COMBES NORD        ",3,"QUINCIEUX                     "]
[69,0,163,"B022","X","    ","LES CHARAUDES             ",3,"QUINCIEUX                     "]
[69,0,163,"B039","R","    ","AU FOILLOT                ",3,"QUINCIEUX                     "]
[69,0,163,"B057","K","    ","LES GRENETTES             ",3,"QUINCIEUX                     "]
[69,0,163,"B078","H","    ","PORT MASSON               ",3,"QUINCIEUX                     "]
[69,0,163,"B095","B","    ","LA SALE                   ",3,"QUINCIEUX                     "]
[69,0,163,3,"V","CHE ","PIERRE ALEXANDRE GUILLET  ",1,"QUINCIEUX                     "]
[69,0,163,89,"N","CHE ","DE LA HALTE               ",1,"QUINCIEUX                     "]
[69,0,163,141,"V","CHE ","DE LA PLAGE               ",1,"QUINCIEUX                     "]
[69,0,163,196,"E","PL  ","DE VERDUN                 ",1,"QUINCIEUX                     "]
[69,0,163,325,"V","ALL ","SOUS LE BOURG             ",1,"QUINCIEUX                     "]
[69,0,164,"B019","P","    ","CROIX ROUGE               ",3,"RANCHAL                       "]
[69,0,164,"B044","S","    ","LA SEPE                   ",3,"RANCHAL                       "]
[69,0,164,98,"U","IMP ","DU FORNIAUD               ",1,"RANCHAL                       "]
[69,0,164,186,"P","IMP ","DU PRADON BAS             ",1,"RANCHAL                       "]
[69,0,164,248,"G","IMP ","THIONS                    ",1,"RANCHAL                       "]
[69,0,165,"B012","C","    ","CHAMBON                   ",3,"REGNIE DURETTE                "]
[69,0,165,"B033","A","    ","LE POTET                  ",3,"REGNIE DURETTE                "]
[69,0,165,"B061","F","    ","L ETANG                   ",3,"REGNIE DURETTE                "]
[69,0,165,26,"L","PL  ","DE L'EGLISE               ",1,"REGNIE DURETTE                "]
[69,0,165,226,"D","IMP ","DES EGLANTINES            ",1,"REGNIE DURETTE                "]
[69,0,165,281,"N","IMP ","DES LAURELLES             ",1,"REGNIE DURETTE                "]
[69,0,165,343,"F","IMP ","DE LA ROCHE               ",1,"REGNIE DURETTE                "]
[69,0,165,368,"H","CHE ","DE LA VERNAISE            ",1,"REGNIE DURETTE                "]
[69,0,166,110,"Y","RUE ","CHEVALIERS DE JERUSALEM   ",1,"RIVERIE                       "]
[69,0,166,600,"F","CHE ","DE LA VAZETTE             ",1,"RIVERIE                       "]
[69,0,167,"B038","X","    ","LA GARENNE                ",3,"RIVOLET                       "]
[69,0,167,"B059","V","    ","LE PINAY                  ",3,"RIVOLET                       "]
[69,0,168,5,"A","IMP ","DES AUBEPINES             ",1,"ROCHETAILLEE-SUR-SAONE        "]
[69,0,168,32,"E","CHE ","DE L EPINE                ",1,"ROCHETAILLEE-SUR-SAONE        "]
[69,0,168,166,"A","RUE ","DU RUISSEAU               ",1,"ROCHETAILLEE-SUR-SAONE        "]
[69,0,169,"B013","L","    ","LA CHAPELLE               ",3,"RONNO                         "]
[69,0,169,"B056","H","    ","ORNAISON                  ",3,"RONNO                         "]
[69,0,169,"B073","B","    ","LE REAL                   ",3,"RONNO                         "]
[69,0,169,45,"P","IMP ","DU BAS DES PRATTES        ",1,"RONNO                         "]
[69,0,169,110,"K","RTE ","DE CUBLIZE                ",1,"RONNO                         "]
[69,0,169,220,"E","CHE ","DE LA GOUTTE              ",1,"RONNO                         "]
[69,0,169,362,"J","CHE ","DE MONTARROUX             ",1,"RONNO                         "]
[69,0,170,"A001","G","    ","LOT DES HAUTES BRUYERES   ",2,"RONTALON                      "]
[69,0,170,"B017","L","    ","FONDOY                    ",3,"RONTALON                      "]
[69,0,170,"B038","J","    ","LE PARAVILLON             ",3,"RONTALON                      "]
[69,0,170,"B055","C","    ","SAINTE IGUETTE            ",3,"RONTALON                      "]
[69,0,170,"B908","E","    ","PRE NEUF                  ",3,"RONTALON                      "]
[69,0,170,24,"M","ALL ","DES GENETS                ",1,"RONTALON                      "]
[69,0,170,88,"G","CHE ","DE TIREMANTEAU            ",1,"RONTALON                      "]
[69,0,171,"B003","S","    ","BEAULIEU                  ",3,"SAIN-BEL                      "]
[69,0,171,"B020","K","    ","LE PENON                  ",3,"SAIN-BEL                      "]
[69,0,171,39,"Z","RTE ","DE BEAULIEU               ",1,"SAIN-BEL                      "]
[69,0,171,77,"R","MTE ","DU CIMETIERE              ",1,"SAIN-BEL                      "]
[69,0,171,97,"M","RUE ","JOSEPH VOLAY              ",1,"SAIN-BEL                      "]
[69,0,171,193,"S","PL  ","DES TROIS COMMUNES        ",1,"SAIN-BEL                      "]
[69,0,172,"B014","Z","    ","LES COMBES                ",3,"SALLES ARBUISSONNAS EN B      "]
[69,0,172,12,"R","RUE ","DU HUIT MAI 1945          ",1,"SALLES ARBUISSONNAS EN B      "]
[69,0,172,33,"N","RTE ","DE LA CROIX POLAGE        ",1,"SALLES ARBUISSONNAS EN B      "]
[69,0,172,50,"G","RTE ","DU MOULIN                 ",1,"SALLES ARBUISSONNAS EN B      "]
[69,0,172,67,"A","RTE ","DE VAUX                   ",1,"SALLES ARBUISSONNAS EN B      "]
[69,0,173,"B013","U","    ","FONTLAVIS                 ",3,"SARCEY                        "]
[69,0,173,170,"H","MTE ","DE L'ECOLE                ",1,"SARCEY                        "]
[69,0,173,387,"U","CHE ","DES PLACES                ",1,"SARCEY                        "]
[69,0,174,"B007","H","    ","LA CHARLES                ",3,"LES SAUVAGES                  "]
[69,0,174,"B031","J","    ","LA MONTAGNE               ",3,"LES SAUVAGES                  "]
[69,0,174,"B046","A","    ","LES TERRES                ",3,"LES SAUVAGES                  "]
[69,0,174,30,"B","RUE ","DU THEATRE                ",1,"LES SAUVAGES                  "]
[69,0,174,268,"K","IMP ","DU POUET                  ",1,"LES SAUVAGES                  "]
[69,0,175,"B004","A","    ","BAS D ARJOUX              ",3,"SAVIGNY                       "]
[69,0,175,"B021","U","    ","LE BOURG                  ",3,"SAVIGNY                       "]
[69,0,175,"B042","S","    ","COTES DE MARANGE EST      ",3,"SAVIGNY                       "]
[69,0,175,"B059","K","    ","GOUTTE BOURDILLON         ",3,"SAVIGNY                       "]
[69,0,175,"B076","D","    ","MARTORY                   ",3,"SAVIGNY                       "]
[69,0,175,"B097","B","    ","LES PINOS                 ",3,"SAVIGNY                       "]
[69,0,175,20,"L","RUE ","TERMAN                    ",1,"SAVIGNY                       "]
[69,0,175,70,"R","CHE ","DU CIMETIERE              ",1,"SAVIGNY                       "]
[69,0,175,117,"S","IMP ","DES FRENES                ",1,"SAVIGNY                       "]
[69,0,175,170,"Z","CHE ","DES MORIZES               ",1,"SAVIGNY                       "]
[69,0,175,230,"P","CHE ","DE RESAY                  ",1,"SAVIGNY                       "]
[69,0,175,259,"W","RTE ","DE SAINT ROMAIN           ",1,"SAVIGNY                       "]
[69,0,176,"B009","B","    ","BAS REVOL                 ",3,"SOUCIEU EN JARREST            "]
[69,0,176,"B047","T","    ","LA MOLIERE                ",3,"SOUCIEU EN JARREST            "]
[69,0,176,"B064","L","    ","PRAQUEMINOT               ",3,"SOUCIEU EN JARREST            "]
[69,0,176,"B085","J","    ","LES VOUTES                ",3,"SOUCIEU EN JARREST            "]
[69,0,176,30,"T","RUE ","CESAR GEOFFRAY            ",1,"SOUCIEU EN JARREST            "]
[69,0,176,47,"L","CHE ","DE LA CROUZE              ",1,"SOUCIEU EN JARREST            "]
[69,0,176,72,"N","RUE ","LOUIS BASTIEN             ",1,"SOUCIEU EN JARREST            "]
[69,0,176,127,"Y","PAS ","DES VELOUTIERS            ",1,"SOUCIEU EN JARREST            "]
[69,0,176,211,"P","IMP ","DE L'ERABLE               ",1,"SOUCIEU EN JARREST            "]
[69,0,177,"A050","E","RES ","PRE THOLLY                ",2,"SOURCIEUX-LES-MINES           "]
[69,0,177,"B017","F","    ","LA FALCONNIERE            ",3,"SOURCIEUX-LES-MINES           "]
[69,0,177,"B038","D","    ","TERRES FUCHY              ",3,"SOURCIEUX-LES-MINES           "]
[69,0,177,31,"P","IMP ","DU BESSY                  ",1,"SOURCIEUX-LES-MINES           "]
[69,0,177,235,"L","RTE ","DE LA GARENNE             ",1,"SOURCIEUX-LES-MINES           "]
[69,0,177,402,"T","CHE ","DU MOLLON                 ",1,"SOURCIEUX-LES-MINES           "]
[69,0,177,574,"E","RUE ","DU SARRAZIN               ",1,"SOURCIEUX-LES-MINES           "]
[69,0,178,"B003","L","    ","BELLEVUE                  ",3,"SOUZY                         "]
[69,0,178,"B024","J","    ","ROSSIGNOL                 ",3,"SOUZY                         "]
[69,0,178,175,"S","CHE ","DU BERNARD                ",1,"SOUZY                         "]
[69,0,178,420,"H","IMP ","LES GRILLONS              ",1,"SOUZY                         "]
[69,0,179,"A006","Y","LOT ","LE BERRY                  ",2,"BEAUVALLON                    "]
[69,0,179,"B006","K","    ","LE BREUIL                 ",3,"BEAUVALLON                    "]
[69,0,179,"B027","H","    ","LES RAPILLES              ",3,"BEAUVALLON                    "]
[69,0,179,"B909","S","    ","ETANG NEUF                ",3,"BEAUVALLON                    "]
[69,0,179,"B930","P","    ","LES VARENNES              ",3,"BEAUVALLON                    "]
[69,0,179,"B947","H","    ","ECOSSIEUX LE VIEUX        ",3,"BEAUVALLON                    "]
[69,0,179,27,"B","RUE ","DU CHATEAU                ",1,"BEAUVALLON                    "]
[69,0,179,52,"D","RUE ","DE LA JARANTONNIERE       ",1,"BEAUVALLON                    "]
[69,0,179,74,"C","CHE ","DE LA ROCHE               ",1,"BEAUVALLON                    "]
[69,0,179,198,"M","CHE ","DE VIENNE JOANNAS         ",1,"BEAUVALLON                    "]
[69,0,179,1660,"B","RUE ","DU LARZELIER              ",1,"BEAUVALLON                    "]
[69,0,179,1678,"W","CHE ","DE L'ARZELIER             ",1,"BEAUVALLON                    "]
[69,0,179,1721,"T","CHE ","DE LA GIBERTIERE          ",1,"BEAUVALLON                    "]
[69,0,179,1738,"L","RUE ","DU TOUR DE LA GIBERTIERE  ",1,"BEAUVALLON                    "]
[69,0,179,1755,"E","RUE ","DU CHAPELON               ",1,"BEAUVALLON                    "]
[69,0,179,1777,"D","SEN ","DE LA FRATERNITE          ",1,"BEAUVALLON                    "]
[69,0,179,1795,"Y","RTE ","DE LYON                   ",1,"BEAUVALLON                    "]
[69,0,179,1814,"U","CHE ","DES PLANTES               ",1,"BEAUVALLON                    "]
[69,0,180,80,"E","RUE ","DE LA CROIX STE AGATHE    ",1,"SAINT-ANDRE-LA-COTE           "]
[69,0,180,630,"C","RTE ","DE LA VILLARDIERE         ",1,"SAINT-ANDRE-LA-COTE           "]
[69,0,181,"B021","T","    ","LE RIVAT                  ",3,"SAINT-APPOLINAIRE             "]
[69,0,181,28,"U","CHE ","DU GONNET                 ",1,"SAINT-APPOLINAIRE             "]
[69,0,181,202,"H","RTE ","DE LA PEPINIERE           ",1,"SAINT-APPOLINAIRE             "]
[69,0,182,"B009","A","    ","LES BROSSES               ",3,"SAINT BONNET DES BRUYERES     "]
[69,0,182,"B048","T","    ","FLACELIERE                ",3,"SAINT BONNET DES BRUYERES     "]
[69,0,182,"B069","R","    ","AUX LOGES                 ",3,"SAINT BONNET DES BRUYERES     "]
[69,0,182,"B086","J","    ","LA PLAINE                 ",3,"SAINT BONNET DES BRUYERES     "]
[69,0,182,"B104","D","    ","SAPINS DE VERNAY          ",3,"SAINT BONNET DES BRUYERES     "]
[69,0,182,"B125","B","    ","VILLEMARTIN               ",3,"SAINT BONNET DES BRUYERES     "]
[69,0,183,"B006","T","    ","BOIS TEILLER              ",3,"SAINT-BONNET-LE-TRONCY        "]
[69,0,183,"B045","K","    ","EN POINTU                 ",3,"SAINT-BONNET-LE-TRONCY        "]
[69,0,184,"B009","S","    ","BLANCHINET                ",3,"SAINTE-CATHERINE              "]
[69,0,184,"B026","K","    ","CHARONNIERE               ",3,"SAINTE-CATHERINE              "]
[69,0,184,"B047","H","    ","GRAND BOEUF               ",3,"SAINTE-CATHERINE              "]
[69,0,184,"B064","B","    ","MOULIN VERT               ",3,"SAINTE-CATHERINE              "]
[69,0,184,"B081","V","    ","REBERTIERE                ",3,"SAINTE-CATHERINE              "]
[69,0,184,40,"U","RTE ","DU BESSY                  ",1,"SAINTE-CATHERINE              "]
[69,0,186,"B015","P","    ","LA FOUGERE                ",3,"SAINT-CLEMENT-DE-VERS         "]
[69,0,186,46,"S","CHE ","DU BAS DES FAYARDS        ",1,"SAINT-CLEMENT-DE-VERS         "]
[69,0,186,200,"J","IMP ","DE JAPPE LUNE             ",1,"SAINT-CLEMENT-DE-VERS         "]
[69,0,187,"A018","B","RES ","LES FONTAINES             ",2,"SAINT-CLEMENT-LES-PLACES      "]
[69,0,187,"B018","N","    ","CHEVALERON                ",3,"SAINT-CLEMENT-LES-PLACES      "]
[69,0,187,"B035","G","    ","ENVERS DE CHEZ GRENIER    ",3,"SAINT-CLEMENT-LES-PLACES      "]
[69,0,187,"B075","A","    ","LE ROLLAND                ",3,"SAINT-CLEMENT-LES-PLACES      "]
[69,0,187,54,"W","CHE ","DE CHARNAY                ",1,"SAINT-CLEMENT-LES-PLACES      "]
[69,0,187,135,"J","RUE ","DE LA FORGE               ",1,"SAINT-CLEMENT-LES-PLACES      "]
[69,0,187,200,"E","CHE ","DU LAVOIR                 ",1,"SAINT-CLEMENT-LES-PLACES      "]
[69,0,187,256,"R","CHE ","PIN FOURNAND              ",1,"SAINT-CLEMENT-LES-PLACES      "]
[69,0,187,361,"E","RTE ","DE SAINT LAURENT          ",1,"SAINT-CLEMENT-LES-PLACES      "]
[69,0,188,"B014","E","    ","COMBE DU VERNE            ",3,"SAINT-CLEMENT-SUR-VALSONNE    "]
[69,0,188,5,"N","RUE ","DU BEAUJOLAIS             ",1,"SAINT-CLEMENT-SUR-VALSONNE    "]
[69,0,189,"B001","L","    ","LES BALMES                ",3,"SAINTE-COLOMBE                "]
[69,0,189,27,"H","PAS ","D'ARMES                   ",1,"SAINTE-COLOMBE                "]
[69,0,189,165,"H","PL  ","DE L'EGALITE              ",1,"SAINTE-COLOMBE                "]
[69,0,189,400,"N","AV  ","RAOUL NIVAGGIOLI          ",1,"SAINTE-COLOMBE                "]
[69,0,190,"B004","K","    ","AU BERTHIER               ",3,"SAINTE-CONSORCE               "]
[69,0,190,32,"J","CHE ","DE FOURVIERE              ",1,"SAINTE-CONSORCE               "]
[69,0,190,100,"H","RUE ","DE LA ROCHE               ",1,"SAINTE-CONSORCE               "]
[69,0,191,"B006","H","    ","LE BOURG NORD             ",3,"SAINT CYR AU MONT D OR        "]
[69,0,191,"B035","P","    ","FAYOLLE                   ",3,"SAINT CYR AU MONT D OR        "]
[69,0,191,"B045","A","    ","GORGERAT                  ",3,"SAINT CYR AU MONT D OR        "]
[69,0,191,"B062","U","    ","LES ORMES NORD            ",3,"SAINT CYR AU MONT D OR        "]
[69,0,191,25,"X","PLE ","ANDRE MICHEL              ",1,"SAINT CYR AU MONT D OR        "]
[69,0,191,160,"U","CHE ","DE CRECY                  ",1,"SAINT CYR AU MONT D OR        "]
[69,0,191,260,"C","AV  ","GAMBETTA                  ",1,"SAINT CYR AU MONT D OR        "]
[69,0,191,364,"R","RUE ","JEAN BAPTISTE PERRET      ",1,"SAINT CYR AU MONT D OR        "]
[69,0,191,419,"A","CHE ","DU MONT THOU              ",1,"SAINT CYR AU MONT D OR        "]
[69,0,191,485,"X","PL  ","DE LA REPUBLIQUE          ",1,"SAINT CYR AU MONT D OR        "]
[69,0,191,554,"X","CHE ","VIAL                      ",1,"SAINT CYR AU MONT D OR        "]
[69,0,192,"B036","L","    ","TERRE DU BOIS DU MONT     ",3,"SAINT-CYR-LE-CHATOUX          "]
[69,0,193,"B008","B","    ","LE CLAPIT                 ",3,"SAINT CYR SUR LE RHONE        "]
[69,0,193,"B025","V","    ","PLANEZE                   ",3,"SAINT CYR SUR LE RHONE        "]
[69,0,193,26,"P","IMP ","DES CHANAVARIES           ",1,"SAINT CYR SUR LE RHONE        "]
[69,0,193,112,"H","RTE ","DEPARTEMENTALE 86         ",1,"SAINT CYR SUR LE RHONE        "]
[69,0,194,"B004","T","    ","LES BALMES                ",3,"SAINT-DIDIER-AU-MONT-D OR     "]
[69,0,194,"B033","Z","    ","FUCHARNIRE  OUEST         ",3,"SAINT-DIDIER-AU-MONT-D OR     "]
[69,0,194,"B067","L","    ","LA THOMASSIERE            ",3,"SAINT-DIDIER-AU-MONT-D OR     "]
[69,0,194,118,"K","RUET","A BALLET                  ",1,"SAINT-DIDIER-AU-MONT-D OR     "]
[69,0,194,170,"S","CHE ","DE LA CHAPELLE            ",1,"SAINT-DIDIER-AU-MONT-D OR     "]
[69,0,194,220,"W","CHE ","DU COLIN                  ",1,"SAINT-DIDIER-AU-MONT-D OR     "]
[69,0,194,438,"H","CHE ","DE LA FERLATIERE          ",1,"SAINT-DIDIER-AU-MONT-D OR     "]
[69,0,194,496,"W","IMP ","DE LA HAUTE ARCHINIERE    ",1,"SAINT-DIDIER-AU-MONT-D OR     "]
[69,0,194,792,"T","CHE ","DU PINET A LA MOLIERE     ",1,"SAINT-DIDIER-AU-MONT-D OR     "]
[69,0,194,910,"W","RUE ","DE LA ROCHE               ",1,"SAINT-DIDIER-AU-MONT-D OR     "]
[69,0,194,1028,"Z","CHE ","DU VALLON                 ",1,"SAINT-DIDIER-AU-MONT-D OR     "]
[69,0,196,"B003","H","    ","LA CASCADE                ",3,"SAINT-DIDIER-SUR-BEAUJEU      "]
[69,0,196,"B024","F","    ","LA RONZE                  ",3,"SAINT-DIDIER-SUR-BEAUJEU      "]
[69,0,196,32,"H","IMP ","DES CHAMPS                ",1,"SAINT-DIDIER-SUR-BEAUJEU      "]
[69,0,197,"A012","B","LOT ","LE PRE PIQUET             ",2,"SAINT ETIENNE DES OULLIERES   "]
[69,0,197,"B011","M","    ","LA CRISTALE               ",3,"SAINT ETIENNE DES OULLIERES   "]
[69,0,197,"B028","F","    ","LES PETIERES              ",3,"SAINT ETIENNE DES OULLIERES   "]
[69,0,197,32,"D","RUE ","DU CELLIER                ",1,"SAINT ETIENNE DES OULLIERES   "]
[69,0,197,50,"Y","PL  ","DE LA GARE                ",1,"SAINT ETIENNE DES OULLIERES   "]
[69,0,197,116,"V","RTE ","DE POUGELEON              ",1,"SAINT ETIENNE DES OULLIERES   "]
[69,0,198,"B022","V","    ","LA RIVIERE                ",3,"SAINT-ETIENNE-LA-VARENNE      "]
[69,0,199,10,"W","AV  ","ALBERT THOMAS             ",1,"ST FONS                       "]
[69,0,199,125,"W","ALL ","DE BEZIERS                ",1,"ST FONS                       "]
[69,0,199,205,"H","ALL ","DE CREST                  ",1,"ST FONS                       "]
[69,0,199,335,"Z","RUE ","DE FALAISE                ",1,"ST FONS                       "]
[69,0,199,413,"J","ALL ","DE LA GRANGE              ",1,"ST FONS                       "]
[69,0,199,594,"F","RUE ","DU MIDI                   ",1,"ST FONS                       "]
[69,0,199,680,"Z","RUE ","PHILIPPE DE VOGUE         ",1,"ST FONS                       "]
[69,0,199,820,"B","PL  ","ROGER SALENGRO            ",1,"ST FONS                       "]
[69,0,199,877,"N","    ","USINES DE ST FONS         ",1,"ST FONS                       "]
[69,0,200,"B012","A","    ","LA FAVROTIERE             ",3,"SAINT-FORGEUX                 "]
[69,0,200,"B029","U","    ","JALLOFY                   ",3,"SAINT-FORGEUX                 "]
[69,0,200,24,"G","CD  ","LE GRAND CHEMIN           ",1,"SAINT-FORGEUX                 "]
[69,0,200,46,"F","RUE ","DU MORTIER                ",1,"SAINT-FORGEUX                 "]
[69,0,200,170,"R","IMP ","DES ECUREUILS             ",1,"SAINT-FORGEUX                 "]
[69,0,200,252,"E","CHE ","GRANDJEAN                 ",1,"SAINT-FORGEUX                 "]
[69,0,200,320,"D","CHE ","DES MURIERS               ",1,"SAINT-FORGEUX                 "]
[69,0,200,392,"G","CHE ","DES ROSSIGNOLS            ",1,"SAINT-FORGEUX                 "]
[69,0,201,"A030","D","LOT ","LES CHENES                ",2,"SAINTE-FOY-L ARGENTIERE       "]
[69,0,201,60,"S","RTE ","DE LYON                   ",1,"SAINTE-FOY-L ARGENTIERE       "]
[69,0,201,112,"Y","IMP ","AUXOISE                   ",1,"SAINTE-FOY-L ARGENTIERE       "]
[69,0,201,130,"T","IMP ","DE PLAMBOEUF              ",1,"SAINTE-FOY-L ARGENTIERE       "]
[69,0,202,"A056","C","    ","IMP 8 RUE STE MARGUERITE  ",2,"SAINTE FOY LES LYON           "]
[69,0,202,"B014","U","    ","L HOPITAL                 ",3,"SAINTE FOY LES LYON           "]
[69,0,202,"B032","N","    ","LA COURTILLE              ",3,"SAINTE FOY LES LYON           "]
[69,0,202,150,"K","ALL ","DES CHANTERELLES          ",1,"SAINTE FOY LES LYON           "]
[69,0,202,320,"V","CHE ","DE LA COURTILLE           ",1,"SAINTE FOY LES LYON           "]
[69,0,202,440,"A","CHE ","DE LA FOURNACHE           ",1,"SAINTE FOY LES LYON           "]
[69,0,202,608,"H","ALL ","JEAN PAUL II              ",1,"SAINTE FOY LES LYON           "]
[69,0,202,703,"L","ALL ","DE MONTREGARD             ",1,"SAINTE FOY LES LYON           "]
[69,0,202,800,"S","RUE ","PIERRE VALDO              ",1,"SAINTE FOY LES LYON           "]
[69,0,202,950,"E","RUE ","STE MARGUERITE            ",1,"SAINTE FOY LES LYON           "]
[69,0,203,"B005","E","    ","CHENEVATIERE              ",3,"SAINT-GENIS-L ARGENTIERE      "]
[69,0,203,"B026","C","    ","MALACOUR                  ",3,"SAINT-GENIS-L ARGENTIERE      "]
[69,0,203,12,"F","ALL ","BELLEVUE                  ",1,"SAINT-GENIS-L ARGENTIERE      "]
[69,0,203,53,"A","CHE ","DU GRAND BOIS             ",1,"SAINT-GENIS-L ARGENTIERE      "]
[69,0,203,199,"J","CHE ","DE LA MADONE              ",1,"SAINT-GENIS-L ARGENTIERE      "]
[69,0,203,225,"M","IMP ","DES RIVIERES              ",1,"SAINT-GENIS-L ARGENTIERE      "]
[69,0,204,"B018","P","    ","CLOS DUMONTEL             ",3,"SAINT-GENIS-LAVAL             "]
[69,0,204,"B039","M","    ","PIERRE MOLLON ET LA CHARET",3,"SAINT-GENIS-LAVAL             "]
[69,0,204,"B056","F","    ","CLOS BEAUREGARD SUD       ",3,"SAINT-GENIS-LAVAL             "]
[69,0,204,27,"T","ALL ","ARTEMIS                   ",1,"SAINT-GENIS-LAVAL             "]
[69,0,204,120,"U","CHE ","DE BERNICOT               ",1,"SAINT-GENIS-LAVAL             "]
[69,0,204,176,"E","PL  ","DE CHANZIEU               ",1,"SAINT-GENIS-LAVAL             "]
[69,0,204,290,"D","RUE ","DES COLLONGES             ",1,"SAINT-GENIS-LAVAL             "]
[69,0,204,472,"B","SQ  ","DU GAILLOT                ",1,"SAINT-GENIS-LAVAL             "]
[69,0,204,554,"R","ALL ","DES JARDINS               ",1,"SAINT-GENIS-LAVAL             "]
[69,0,204,682,"E","RUE ","MARC RIBOUD               ",1,"SAINT-GENIS-LAVAL             "]
[69,0,204,767,"X","ALL ","DU MONT LORY              ",1,"SAINT-GENIS-LAVAL             "]
[69,0,204,860,"Y","AV  ","DES PEPINIERES            ",1,"SAINT-GENIS-LAVAL             "]
[69,0,204,960,"G","CHE ","DE PRESSIN                ",1,"SAINT-GENIS-LAVAL             "]
[69,0,204,1123,"J","ALL ","DES LAURIERS              ",1,"SAINT-GENIS-LAVAL             "]
[69,0,205,"B018","K","    ","LES GDES TERRES           ",3,"SAINT-GENIS-LES-OLLIERES      "]
[69,0,205,"B035","D","    ","LA TACHE                  ",3,"SAINT-GENIS-LES-OLLIERES      "]
[69,0,205,52,"R","ALL ","DES BOUVREUILS            ",1,"SAINT-GENIS-LES-OLLIERES      "]
[69,0,205,77,"T","ALL ","DES CHARMETTES            ",1,"SAINT-GENIS-LES-OLLIERES      "]
[69,0,205,131,"B","ALL ","DES FOUGERES              ",1,"SAINT-GENIS-LES-OLLIERES      "]
[69,0,205,192,"T","ALL ","DES LAVANDES              ",1,"SAINT-GENIS-LES-OLLIERES      "]
[69,0,205,409,"D","CHE ","RURAL NO 18               ",1,"SAINT-GENIS-LES-OLLIERES      "]
[69,0,205,439,"L","ALL ","DU VALLON                 ",1,"SAINT-GENIS-LES-OLLIERES      "]
[69,0,206,"B012","Z","    ","BOURCHANIN                ",3,"SAINT GEORGES DE RENEINS      "]
[69,0,206,"B029","T","    ","L ETANG                   ",3,"SAINT GEORGES DE RENEINS      "]
[69,0,206,"B050","R","    ","MARSANGUES SUD            ",3,"SAINT GEORGES DE RENEINS      "]
[69,0,206,"B067","J","    ","PUISSOUDAN                ",3,"SAINT GEORGES DE RENEINS      "]
[69,0,206,26,"H","CHE ","DE COICHAT                ",1,"SAINT GEORGES DE RENEINS      "]
[69,0,206,52,"L","RUE ","DE L'INDUSTRIE            ",1,"SAINT GEORGES DE RENEINS      "]
[69,0,206,73,"J","RUE ","DE MONTCHERVET            ",1,"SAINT GEORGES DE RENEINS      "]
[69,0,206,90,"C","CHE ","DES VERNAILLES            ",1,"SAINT GEORGES DE RENEINS      "]
[69,0,207,"B007","P","    ","LES CARRIERES             ",3,"SAINT-GERMAIN-AU-MONT-D OR    "]
[69,0,207,"B024","H","    ","LAPPENT                   ",3,"SAINT-GERMAIN-AU-MONT-D OR    "]
[69,0,207,25,"C","RUE ","GABRIEL CORDIER           ",1,"SAINT-GERMAIN-AU-MONT-D OR    "]
[69,0,207,44,"Y","RUE ","CLAUDE MASSU              ",1,"SAINT-GERMAIN-AU-MONT-D OR    "]
[69,0,207,80,"M","CHE ","DES PEGES                 ",1,"SAINT-GERMAIN-AU-MONT-D OR    "]
[69,0,207,118,"D","ALL ","DES VIOLETTES             ",1,"SAINT-GERMAIN-AU-MONT-D OR    "]
[69,0,208,"B009","M","    ","LE CHER                   ",3,"SAINT GERMAIN NUELLES         "]
[69,0,208,"B030","K","    ","ROTISSON                  ",3,"SAINT GERMAIN NUELLES         "]
[69,0,208,58,"J","CHE ","DES COLLONGES             ",1,"SAINT GERMAIN NUELLES         "]
[69,0,208,140,"Y","RUE ","JOSEPH DESSAINJEAN        ",1,"SAINT GERMAIN NUELLES         "]
[69,0,208,300,"X","CHE ","DE LA ROUETTE             ",1,"SAINT GERMAIN NUELLES         "]
[69,0,208,375,"D","RUE ","DU BEAUJOLAIS             ",1,"SAINT GERMAIN NUELLES         "]
[69,0,208,392,"X","RUE ","DES MOLONNES              ",1,"SAINT GERMAIN NUELLES         "]
[69,0,209,"B008","G","    ","BEL AIR                   ",3,"SAINT IGNY DE VERS            "]
[69,0,209,"B047","Z","    ","CREVELON                  ",3,"SAINT IGNY DE VERS            "]
[69,0,209,"B068","X","    ","LA HAYE DU PONT NORD      ",3,"SAINT IGNY DE VERS            "]
[69,0,209,"B085","R","    ","LE PAQUIS                 ",3,"SAINT IGNY DE VERS            "]
[69,0,209,"B102","J","    ","ROCHE MARTIN              ",3,"SAINT IGNY DE VERS            "]
[69,0,209,"B123","G","    ","VERS                      ",3,"SAINT IGNY DE VERS            "]
[69,0,209,39,"J","CHE ","DES BOYARDS               ",1,"SAINT IGNY DE VERS            "]
[69,0,209,116,"T","IMP ","DE L'EGLISE               ",1,"SAINT IGNY DE VERS            "]
[69,0,209,282,"Y","IMP ","DE VERS                   ",1,"SAINT IGNY DE VERS            "]
[69,0,212,13,"T","RTE ","DU CHATEAU PORRIERES      ",1,"SAINT-JEAN-DES-VIGNES         "]
[69,0,212,34,"R","CHEM","DE PORRIERES              ",1,"SAINT-JEAN-DES-VIGNES         "]
[69,0,214,"B005","G","    ","LA BOISSETTE              ",3,"SAINT JEAN LA BUSSIERE        "]
[69,0,214,"B023","B","    ","L ETANG                   ",3,"SAINT JEAN LA BUSSIERE        "]
[69,0,214,"B044","Z","    ","RAMBERT                   ",3,"SAINT JEAN LA BUSSIERE        "]
[69,0,214,118,"Y","CHE ","DE BOISSET                ",1,"SAINT JEAN LA BUSSIERE        "]
[69,0,214,184,"V","CHE ","DES CULTURES              ",1,"SAINT JEAN LA BUSSIERE        "]
[69,0,214,288,"H","CHE ","DES GRILLONS              ",1,"SAINT JEAN LA BUSSIERE        "]
[69,0,214,440,"Y","CHE ","DE MONTGIRARD             ",1,"SAINT JEAN LA BUSSIERE        "]
[69,0,214,515,"E","CHE ","RAMBERT                   ",1,"SAINT JEAN LA BUSSIERE        "]
[69,0,214,574,"U","IMP ","DU SUEL                   ",1,"SAINT JEAN LA BUSSIERE        "]
[69,0,215,10,"B","RTE ","DES AMANDIERS             ",1,"SAINT-JULIEN                  "]
[69,0,215,165,"V","MTE ","DU FOUR A CHAUX           ",1,"SAINT-JULIEN                  "]
[69,0,215,280,"V","VOIE","DU TACOT                  ",1,"SAINT-JULIEN                  "]
[69,0,216,"B015","J","    ","CRET MAGUET               ",3,"SAINT-JULIEN-SUR-BIBOST       "]
[69,0,216,"B032","C","    ","LES PERRIERES             ",3,"SAINT-JULIEN-SUR-BIBOST       "]
[69,0,216,20,"H","CHE ","DU BAJOLAIS               ",1,"SAINT-JULIEN-SUR-BIBOST       "]
[69,0,216,120,"S","CHE ","DES FARGES                ",1,"SAINT-JULIEN-SUR-BIBOST       "]
[69,0,216,252,"K","CHE ","DES TOURELLES             ",1,"SAINT-JULIEN-SUR-BIBOST       "]
[69,0,217,"B017","G","    ","LE CHALUX                 ",3,"SAINT-JUST-D AVRAY            "]
[69,0,217,"B034","A","    ","CRET CHANRION             ",3,"SAINT-JUST-D AVRAY            "]
[69,0,217,"B051","U","    ","LALOY                     ",3,"SAINT-JUST-D AVRAY            "]
[69,0,217,"B072","S","    ","LES ROCHES                ",3,"SAINT-JUST-D AVRAY            "]
[69,0,217,17,"A","IMP ","DES BROSSES               ",1,"SAINT-JUST-D AVRAY            "]
[69,0,217,226,"C","IMP ","DU CREUX                  ",1,"SAINT-JUST-D AVRAY            "]
[69,0,217,248,"B","CHE ","DU PEROU                  ",1,"SAINT-JUST-D AVRAY            "]
[69,0,217,266,"W","IMP ","DE LA SOURCE              ",1,"SAINT-JUST-D AVRAY            "]
[69,0,218,"B004","N","    ","BERTHAUDIERES             ",3,"SAINT-LAGER                   "]
[69,0,218,"B021","G","    ","LES NAZINS NORD           ",3,"SAINT-LAGER                   "]
[69,0,218,48,"E","RTE ","DES BROUILLY              ",1,"SAINT-LAGER                   "]
[69,0,218,93,"D","RUE ","DE LA FORGE               ",1,"SAINT-LAGER                   "]
[69,0,219,"B013","U","    ","CHAMPIERE                 ",3,"SAINT LAURENT D'AGNY          "]
[69,0,219,"B030","M","    ","DEBARDE                   ",3,"SAINT LAURENT D'AGNY          "]
[69,0,219,"B051","K","    ","LES HEURES                ",3,"SAINT LAURENT D'AGNY          "]
[69,0,219,"B067","C","    ","L ORME                    ",3,"SAINT LAURENT D'AGNY          "]
[69,0,219,"B090","C","    ","ST VINCENT                ",3,"SAINT LAURENT D'AGNY          "]
[69,0,219,99,"F","IMP ","DU CLAIR                  ",1,"SAINT LAURENT D'AGNY          "]
[69,0,219,490,"F","RUE ","DU PLANIL                 ",1,"SAINT LAURENT D'AGNY          "]
[69,0,219,690,"Y","PL  ","DE SOUVIGNY               ",1,"SAINT LAURENT D'AGNY          "]
[69,0,220,"A048","R","LOT ","LA SALVATIERE             ",2,"ST LAURENT-DE-CHAMOUSSET      "]
[69,0,220,"B017","U","    ","AU CHAPUY                 ",3,"ST LAURENT-DE-CHAMOUSSET      "]
[69,0,220,"B034","M","    ","AUX COLOMBS               ",3,"ST LAURENT-DE-CHAMOUSSET      "]
[69,0,220,"B051","F","    ","LES GDES TERRES           ",3,"ST LAURENT-DE-CHAMOUSSET      "]
[69,0,220,"B072","D","    ","LE NOYERAY                ",3,"ST LAURENT-DE-CHAMOUSSET      "]
[69,0,220,2,"W","CHE ","DES ARTISANS              ",1,"ST LAURENT-DE-CHAMOUSSET      "]
[69,0,220,21,"S","RUE ","DE LA GRANGE THIVAL       ",1,"ST LAURENT-DE-CHAMOUSSET      "]
[69,0,220,84,"K","RTE ","DE LA BOURDELIERE         ",1,"ST LAURENT-DE-CHAMOUSSET      "]
[69,0,220,120,"Z","CHE ","DU LAVOIR                 ",1,"ST LAURENT-DE-CHAMOUSSET      "]
[69,0,220,162,"V","IMP ","DES PINS                  ",1,"ST LAURENT-DE-CHAMOUSSET      "]
[69,0,220,193,"D","IMP ","DES SENTIERS              ",1,"ST LAURENT-DE-CHAMOUSSET      "]
[69,0,220,259,"A","CHE ","DU LAFAY                  ",1,"ST LAURENT-DE-CHAMOUSSET      "]
[69,0,225,"B008","M","    ","LE COLOMBIER              ",3,"SAINT-MARCEL-L ECLAIRE        "]
[69,0,225,"B025","F","    ","LE JANIN                  ",3,"SAINT-MARCEL-L ECLAIRE        "]
[69,0,225,8,"F","IMP ","DE LA MADONE              ",1,"SAINT-MARCEL-L ECLAIRE        "]
[69,0,225,25,"Z","RUE ","DU CRET DES ROCHES        ",1,"SAINT-MARCEL-L ECLAIRE        "]
[69,0,225,98,"D","CHE ","DU CREUX DU FRANIER       ",1,"SAINT-MARCEL-L ECLAIRE        "]
[69,0,227,"B017","N","    ","LE BIRIEUX                ",3,"SAINT MARTIN EN HAUT          "]
[69,0,227,"B034","G","    ","LA CALE                   ",3,"SAINT MARTIN EN HAUT          "]
[69,0,227,"B051","A","    ","LES CHERCHERES            ",3,"SAINT MARTIN EN HAUT          "]
[69,0,227,"B072","Y","    ","CRET BUGASI               ",3,"SAINT MARTIN EN HAUT          "]
[69,0,227,"B089","S","    ","ENVERS DU TOUR EST        ",3,"SAINT MARTIN EN HAUT          "]
[69,0,227,"B110","P","    ","GD CHP                    ",3,"SAINT MARTIN EN HAUT          "]
[69,0,227,"B149","G","    ","LE LISET                  ",3,"SAINT MARTIN EN HAUT          "]
[69,0,227,"B166","A","    ","LE MOULINET               ",3,"SAINT MARTIN EN HAUT          "]
[69,0,227,"B187","Y","    ","LES PLACES                ",3,"SAINT MARTIN EN HAUT          "]
[69,0,227,"B198","K","    ","LA POULATIERE             ",3,"SAINT MARTIN EN HAUT          "]
[69,0,227,"B222","L","    ","LE RIEUX                  ",3,"SAINT MARTIN EN HAUT          "]
[69,0,227,"B243","J","    ","THIBERT BAS               ",3,"SAINT MARTIN EN HAUT          "]
[69,0,227,42,"J","CHE ","DE LA BATIE               ",1,"SAINT MARTIN EN HAUT          "]
[69,0,227,74,"U","CHE ","DES CARELLES              ",1,"SAINT MARTIN EN HAUT          "]
[69,0,227,91,"M","CHE ","DE LA CHATILLONNIERE      ",1,"SAINT MARTIN EN HAUT          "]
[69,0,227,108,"F","CHE ","DE LA COURBIERE           ",1,"SAINT MARTIN EN HAUT          "]
[69,0,227,175,"D","CHE ","DU GAZANCHON              ",1,"SAINT MARTIN EN HAUT          "]
[69,0,227,198,"D","CHE ","DU JALLET                 ",1,"SAINT MARTIN EN HAUT          "]
[69,0,227,270,"G","RUE ","MARTINAUD                 ",1,"SAINT MARTIN EN HAUT          "]
[69,0,227,358,"C","CHE ","DU RIEUX                  ",1,"SAINT MARTIN EN HAUT          "]
[69,0,227,425,"A","RUE ","DU SIGNAL                 ",1,"SAINT MARTIN EN HAUT          "]
[69,0,227,480,"K","RTE ","D YZERON                  ",1,"SAINT MARTIN EN HAUT          "]
[69,0,228,"A118","G","RES ","MARC CHAGALL              ",2,"CHABANIERE                    "]
[69,0,228,"B017","J","    ","LA CHANDELLE              ",3,"CHABANIERE                    "]
[69,0,228,"B038","G","    ","LES HALLES                ",3,"CHABANIERE                    "]
[69,0,228,"B071","T","    ","SOUS LA CHANDELLE         ",3,"CHABANIERE                    "]
[69,0,228,"B923","U","    ","CHAMPBOST                 ",3,"CHABANIERE                    "]
[69,0,228,"B940","M","    ","COTE MAILLARD             ",3,"CHABANIERE                    "]
[69,0,228,"B957","F","    ","LES GDES TERRES           ",3,"CHABANIERE                    "]
[69,0,228,"B978","D","    ","LES PINOTES DE FLASSIEUX  ",3,"CHABANIERE                    "]
[69,0,228,"B995","X","    ","LA SAULEE                 ",3,"CHABANIERE                    "]
[69,0,228,"C017","W","    ","FOND CHARIN               ",3,"CHABANIERE                    "]
[69,0,228,60,"Z","PL  ","DU CALVAIRE               ",1,"CHABANIERE                    "]
[69,0,228,84,"A","RTE ","DE COMBE BOIRON           ",1,"CHABANIERE                    "]
[69,0,228,147,"U","RLE ","DE FONT MERLE             ",1,"CHABANIERE                    "]
[69,0,228,187,"M","IMP ","DU HAUT BARBIEUX          ",1,"CHABANIERE                    "]
[69,0,228,260,"S","CHE ","MARREL                    ",1,"CHABANIERE                    "]
[69,0,228,324,"L","IMP ","DES QUATRE VENTS          ",1,"CHABANIERE                    "]
[69,0,228,471,"W","RTE ","DES MONTS DU LYONNAIS     ",1,"CHABANIERE                    "]
[69,0,228,492,"U","CHE ","DES CHARPES               ",1,"CHABANIERE                    "]
[69,0,228,509,"M","COUR","COURSIERE DES GDS TERRES  ",1,"CHABANIERE                    "]
[69,0,228,519,"Y","CHE ","DE LA POYARDIERE          ",1,"CHABANIERE                    "]
[69,0,229,"B015","C","    ","BOIS DU CANTIN            ",3,"SAINT-NIZIER-D AZERGUES       "]
[69,0,229,"B032","W","    ","CHEZ BROGAT               ",3,"SAINT-NIZIER-D AZERGUES       "]
[69,0,229,"B071","N","    ","GRAND FOUILLON            ",3,"SAINT-NIZIER-D AZERGUES       "]
[69,0,229,"B092","L","    ","ORVAL LA VILLE            ",3,"SAINT-NIZIER-D AZERGUES       "]
[69,0,229,"B109","E","    ","LA RECULEE                ",3,"SAINT-NIZIER-D AZERGUES       "]
[69,0,229,"B130","C","    ","VIGUE                     ",3,"SAINT-NIZIER-D AZERGUES       "]
[69,0,229,19,"A","CHE ","DU CALVAIRE               ",1,"SAINT-NIZIER-D AZERGUES       "]
[69,0,229,49,"H","IMP ","DES GONES                 ",1,"SAINT-NIZIER-D AZERGUES       "]
[69,0,229,91,"D","MTE ","DE LA ROCHE               ",1,"SAINT-NIZIER-D AZERGUES       "]
[69,0,230,"B019","C","    ","CRET BUSSY                ",3,"SAINTE-PAULE                  "]
[69,0,230,"B040","A","    ","LAMBERT LE BAS            ",3,"SAINTE-PAULE                  "]
[69,0,230,"B057","U","    ","PLATAGAY                  ",3,"SAINTE-PAULE                  "]
[69,0,231,"A050","V","RES ","PLEIN SOLEIL              ",2,"SAINT-PIERRE-LA-PALUD         "]
[69,0,231,"B020","Z","    ","FLACHE CABAN              ",3,"SAINT-PIERRE-LA-PALUD         "]
[69,0,231,"B037","T","    ","LE MOULIN                 ",3,"SAINT-PIERRE-LA-PALUD         "]
[69,0,231,21,"U","IMP ","DES BRUYERES              ",1,"SAINT-PIERRE-LA-PALUD         "]
[69,0,231,71,"Y","RUE ","DU GRESIGNY               ",1,"SAINT-PIERRE-LA-PALUD         "]
[69,0,231,105,"K","RTE ","DU MARTINET               ",1,"SAINT-PIERRE-LA-PALUD         "]
[69,0,231,132,"P","RUE ","SAINTE BARBE              ",1,"SAINT-PIERRE-LA-PALUD         "]
[69,0,231,165,"A","CHE ","DU LIBERAL                ",1,"SAINT-PIERRE-LA-PALUD         "]
[69,0,231,286,"G","RUE ","DU CLUZEL                 ",1,"SAINT-PIERRE-LA-PALUD         "]
[69,0,231,435,"U","PL  ","NICOLAS                   ",1,"SAINT-PIERRE-LA-PALUD         "]
[69,0,233,"B026","X","    ","LES SEGUINES              ",3,"SAINT-ROMAIN-AU-MONT-D OR     "]
[69,0,233,120,"T","RTE ","DE COLLONGES              ",1,"SAINT-ROMAIN-AU-MONT-D OR     "]
[69,0,233,345,"M","CHE ","DU PETIT MONT CINDRE      ",1,"SAINT-ROMAIN-AU-MONT-D OR     "]
[69,0,233,500,"F","IMP ","DES 3 L                   ",1,"SAINT-ROMAIN-AU-MONT-D OR     "]
[69,0,234,"B021","M","    ","LA CHATONNIERE            ",3,"SAINT-ROMAIN-DE-POPEY         "]
[69,0,234,"B038","F","    ","LES GRANDES ROCHES EST    ",3,"SAINT-ROMAIN-DE-POPEY         "]
[69,0,234,13,"X","PL  ","DE L EGLISE               ",1,"SAINT-ROMAIN-DE-POPEY         "]
[69,0,234,34,"V","CHE ","DES CHATAIGNIERS          ",1,"SAINT-ROMAIN-DE-POPEY         "]
[69,0,234,51,"N","CHE ","DE LA MALADIERE           ",1,"SAINT-ROMAIN-DE-POPEY         "]
[69,0,234,72,"L","RTE ","DE SOLEMY                 ",1,"SAINT-ROMAIN-DE-POPEY         "]
[69,0,235,"A015","P","    ","LYCEE POLYVALENT          ",2,"SAINT ROMAIN EN GAL           "]
[69,0,235,"B017","D","    ","LE BRANDEAU               ",3,"SAINT ROMAIN EN GAL           "]
[69,0,235,"B060","A","    ","ILE MOULIN                ",3,"SAINT ROMAIN EN GAL           "]
[69,0,235,"B077","U","    ","LES PERRIERES             ",3,"SAINT ROMAIN EN GAL           "]
[69,0,235,"B094","M","    ","SALIAN                    ",3,"SAINT ROMAIN EN GAL           "]
[69,0,235,3,"G","RUE ","DU BUISSET                ",1,"SAINT ROMAIN EN GAL           "]
[69,0,235,22,"C","PAS ","DU RHONE                  ",1,"SAINT ROMAIN EN GAL           "]
[69,0,235,150,"S","CHE ","DU CAILLOU                ",1,"SAINT ROMAIN EN GAL           "]
[69,0,236,"B005","L","    ","LE BOURG                  ",3,"SAINT ROMAIN EN GIER          "]
[69,0,236,"B022","E","    ","LES ENTES                 ",3,"SAINT ROMAIN EN GIER          "]
[69,0,236,"B043","C","    ","LES PUITS                 ",3,"SAINT ROMAIN EN GIER          "]
[69,0,236,35,"M","CHE ","DE L'ANCIEN CANAL         ",1,"SAINT ROMAIN EN GIER          "]
[69,0,236,190,"F","CHE ","DES ROSEAUX               ",1,"SAINT ROMAIN EN GIER          "]
[69,0,238,"B001","Y","    ","LA BARDIERE               ",3,"SAINT SYMPHORIEN SUR COISE    "]
[69,0,238,"B041","S","    ","RATEPOYET                 ",3,"SAINT SYMPHORIEN SUR COISE    "]
[69,0,238,17,"J","RUE ","DE LA BOUTERIE            ",1,"SAINT SYMPHORIEN SUR COISE    "]
[69,0,238,108,"H","CHE ","DE CLERIMBERT             ",1,"SAINT SYMPHORIEN SUR COISE    "]
[69,0,238,190,"X","RUE ","DU 19 MARS 1962           ",1,"SAINT SYMPHORIEN SUR COISE    "]
[69,0,238,361,"H","IMP ","DE L ANCIENNE GENDARMERIE ",1,"SAINT SYMPHORIEN SUR COISE    "]
[69,0,238,442,"W","MTE ","DE GRANGE TRYE            ",1,"SAINT SYMPHORIEN SUR COISE    "]
[69,0,238,680,"E","RUE ","DES MARECHAUX             ",1,"SAINT SYMPHORIEN SUR COISE    "]
[69,0,238,972,"X","PAS ","SAINT ANTOINE             ",1,"SAINT SYMPHORIEN SUR COISE    "]
[69,0,238,1130,"U","PAS ","DES TERRASSES DE LA COISE ",1,"SAINT SYMPHORIEN SUR COISE    "]
[69,0,239,"B004","X","    ","LES BANCS                 ",3,"SAINT VERAND                  "]
[69,0,239,"B021","R","    ","COMBE TUPIN               ",3,"SAINT VERAND                  "]
[69,0,239,"B038","J","    ","EN GOUTELEUSE             ",3,"SAINT VERAND                  "]
[69,0,239,"B059","G","    ","LES ROCHES                ",3,"SAINT VERAND                  "]
[69,0,239,76,"U","RTE ","DU CHEVRIER               ",1,"SAINT VERAND                  "]
[69,0,239,127,"Z","IMP ","DE LA FEUILLATA           ",1,"SAINT VERAND                  "]
[69,0,239,155,"E","PAS ","DE L'ANCIENNE ECOLE       ",1,"SAINT VERAND                  "]
[69,0,239,200,"D","RUE ","DES PETITS LOUPS          ",1,"SAINT VERAND                  "]
[69,0,239,235,"S","IMP ","DES TILLEULS              ",1,"SAINT VERAND                  "]
[69,0,240,"B012","B","    ","LES CHAUDURES SUD         ",3,"SAINT VINCENT DE REINS        "]
[69,0,240,"B033","Z","    ","MONTOUD                   ",3,"SAINT VINCENT DE REINS        "]
[69,0,240,32,"S","RUE ","DE LA GOUTTE              ",1,"SAINT VINCENT DE REINS        "]
[69,0,240,60,"X","CHE ","DE LA RAMPE               ",1,"SAINT VINCENT DE REINS        "]
[69,0,240,270,"A","RTE ","DU JOVIN                  ",1,"SAINT VINCENT DE REINS        "]
[69,0,240,324,"J","CHE ","DE REPIERRE               ",1,"SAINT VINCENT DE REINS        "]
[69,0,241,"B010","V","    ","BUYAT                     ",3,"TALUYERS                      "]
[69,0,241,"B031","T","    ","LE PETIT BATARD           ",3,"TALUYERS                      "]
[69,0,241,44,"A","CHE ","DES ESSES                 ",1,"TALUYERS                      "]
[69,0,241,166,"H","CHE ","DE MOVERIN                ",1,"TALUYERS                      "]
[69,0,241,356,"P","CHE ","DE LA SELLE               ",1,"TALUYERS                      "]
[69,0,242,"B008","N","    ","LES COMBARDES             ",3,"TAPONAS                       "]
[69,0,242,"B031","N","    ","LA GRANDE RONCE           ",3,"TAPONAS                       "]
[69,0,242,44,"W","IMP ","DE LA FONTAINE            ",1,"TAPONAS                       "]
[69,0,242,97,"D","CHE ","SAINTE CATHERINE          ",1,"TAPONAS                       "]
[69,0,243,"B220","P","    ","LE CRET MONTCHEVRIER      ",3,"TARARE                        "]
[69,0,243,"B410","W","    ","MOUILLATOUT               ",3,"TARARE                        "]
[69,0,243,"X002","E","    ","RIVIERE LA TURDINE        ",4,"TARARE                        "]
[69,0,243,130,"K","ALL ","BEAUSEJOUR                ",1,"TARARE                        "]
[69,0,243,240,"E","CHE ","DE CAMPY                  ",1,"TARARE                        "]
[69,0,243,420,"A","RUE ","CORNIL                    ",1,"TARARE                        "]
[69,0,243,641,"R","PL  ","GEORGES ANTOINE SIMONET   ",1,"TARARE                        "]
[69,0,243,745,"D","RUE ","JEAN CHARTRE              ",1,"TARARE                        "]
[69,0,243,835,"B","AV  ","DE LA LIBERTE             ",1,"TARARE                        "]
[69,0,243,965,"T","ALL ","DES MURIERS               ",1,"TARARE                        "]
[69,0,243,1130,"X","RUE ","DU PIGEONNIER             ",1,"TARARE                        "]
[69,0,243,1292,"Y","CHE ","DE ST MARCEL              ",1,"TARARE                        "]
[69,0,244,"B009","F","    ","LES MASSUES               ",3,"TASSIN-LA-DEMI-LUNE           "]
[69,0,244,"X003","B","LIGN","DE PARAY A GIVORS         ",4,"TASSIN-LA-DEMI-LUNE           "]
[69,0,244,25,"S","ALL ","DES AMANDIERS             ",1,"TASSIN-LA-DEMI-LUNE           "]
[69,0,244,118,"T","ALL ","DES BOUVREUILS            ",1,"TASSIN-LA-DEMI-LUNE           "]
[69,0,244,234,"U","RUE ","DOCTEUR GUY LAURENT       ",1,"TASSIN-LA-DEMI-LUNE           "]
[69,0,244,332,"A","    ","GARE DE TASSIN            ",1,"TASSIN-LA-DEMI-LUNE           "]
[69,0,244,470,"A","RUE ","JOLIOT CURIE              ",1,"TASSIN-LA-DEMI-LUNE           "]
[69,0,244,810,"V","ALL ","PASTEUR                   ",1,"TASSIN-LA-DEMI-LUNE           "]
[69,0,244,970,"U","IMP ","DES ROSIERS               ",1,"TASSIN-LA-DEMI-LUNE           "]
[69,0,244,1060,"S","IMP ","TERRACOL                  ",1,"TASSIN-LA-DEMI-LUNE           "]
[69,0,244,1165,"F","RLE ","DU VIEUX MOULIN           ",1,"TASSIN-LA-DEMI-LUNE           "]
[69,0,245,"B018","L","    ","CHAVASSON                 ",3,"TERNAND                       "]
[69,0,245,"B035","E","    ","LATTELIAT                 ",3,"TERNAND                       "]
[69,0,245,33,"W","CHE ","DES BROTTEAUX             ",1,"TERNAND                       "]
[69,0,245,172,"X","RTE ","DES PALETIERES            ",1,"TERNAND                       "]
[69,0,245,268,"B","RTE ","DE LA VALLEE              ",1,"TERNAND                       "]
[69,0,246,"B019","H","    ","CHASSAGNE                 ",3,"THEIZE                        "]
[69,0,246,"B036","B","    ","LA GATIERE                ",3,"THEIZE                        "]
[69,0,246,"B053","V","    ","LA POYA                   ",3,"THEIZE                        "]
[69,0,246,22,"E","RUE ","DU CALVAIRE               ",1,"THEIZE                        "]
[69,0,246,46,"F","RTE ","DE LA CRUISILLE           ",1,"THEIZE                        "]
[69,0,246,82,"V","IMP ","DE L'HENRIETTE            ",1,"THEIZE                        "]
[69,0,246,137,"E","IMP ","DU PETIT MATIN            ",1,"THEIZE                        "]
[69,0,246,160,"E","RUE ","SAINT ANTOINE             ",1,"THEIZE                        "]
[69,0,248,"B002","F","    ","LE BOIS SEME              ",3,"THIZY LES BOURGS              "]
[69,0,248,"B041","Y","    ","LES GRANGES               ",3,"THIZY LES BOURGS              "]
[69,0,248,"B058","S","    ","LES QUATRE VENTS          ",3,"THIZY LES BOURGS              "]
[69,0,248,"B079","P","    ","LA COLLONGE    LA CHAPELLE",3,"THIZY LES BOURGS              "]
[69,0,248,"B096","H","    ","LE SUD                    ",3,"THIZY LES BOURGS              "]
[69,0,248,"B117","F","    ","COURCENAY                 ",3,"THIZY LES BOURGS              "]
[69,0,248,"B134","Z","    ","LES GAILLOTS              ",3,"THIZY LES BOURGS              "]
[69,0,248,"B173","S","    ","CHATIGNASSE               ",3,"THIZY LES BOURGS              "]
[69,0,248,"B194","P","    ","TRICHE                    ",3,"THIZY LES BOURGS              "]
[69,0,248,150,"K","IMP ","DES CERISIERS             ",1,"THIZY LES BOURGS              "]
[69,0,248,300,"Y","RUE ","EDOUARD MILLAUD           ",1,"THIZY LES BOURGS              "]
[69,0,248,500,"R","RUE ","JEAN BAPTISTE FOURNIER THI",1,"THIZY LES BOURGS              "]
[69,0,248,760,"Y","RUE ","PIERRE MICHEL             ",1,"THIZY LES BOURGS              "]
[69,0,248,977,"J","SQ  ","DE VERDUN    THIZY        ",1,"THIZY LES BOURGS              "]
[69,0,248,1046,"J","RUE ","DE L HOPITAL              ",1,"THIZY LES BOURGS              "]
[69,0,248,1063,"C","RUE ","DU PRESBYTERE             ",1,"THIZY LES BOURGS              "]
[69,0,248,1084,"A","IMP ","DES JARDINS               ",1,"THIZY LES BOURGS              "]
[69,0,248,1101,"U","RUE ","HECTOR BERLIOZ            ",1,"THIZY LES BOURGS              "]
[69,0,248,1122,"S","IMP ","CLAUDIUS CHERVIN          ",1,"THIZY LES BOURGS              "]
[69,0,248,1248,"D","CHE ","CROZET                    ",1,"THIZY LES BOURGS              "]
[69,0,248,1365,"F","CHE ","LES ROCHES                ",1,"THIZY LES BOURGS              "]
[69,0,248,1429,"A","CHE ","DE L ETANG D ALLONG       ",1,"THIZY LES BOURGS              "]
[69,0,248,1480,"F","CHE ","DU QUARTIER COLLONGES     ",1,"THIZY LES BOURGS              "]
[69,0,248,1531,"L","CHE ","DE LA LIVREE              ",1,"THIZY LES BOURGS              "]
[69,0,248,1597,"H","IMP ","LE CHOLLET                ",1,"THIZY LES BOURGS              "]
[69,0,248,1648,"N","CHE ","DU GABARON                ",1,"THIZY LES BOURGS              "]
[69,0,248,1718,"P","CHE ","DU REPLAT                 ",1,"THIZY LES BOURGS              "]
[69,0,248,1817,"X","IMP ","DES FOURCHES              ",1,"THIZY LES BOURGS              "]
[69,0,248,1893,"E","CHE ","DE LA BRESLE              ",1,"THIZY LES BOURGS              "]
[69,0,248,1956,"Y","IMP ","DE LA RIVIERE             ",1,"THIZY LES BOURGS              "]
[69,0,249,"B009","J","    ","LES BOCHETS               ",3,"THURINS                       "]
[69,0,249,"B026","C","    ","CHASSAGNE                 ",3,"THURINS                       "]
[69,0,249,"B047","A","    ","GOUTTE DE BELLEVUE        ",3,"THURINS                       "]
[69,0,249,"B086","T","    ","LA PICOLETTE              ",3,"THURINS                       "]
[69,0,249,"B107","R","    ","LE ROCHET                 ",3,"THURINS                       "]
[69,0,249,"B124","J","    ","LE VERNAY                 ",3,"THURINS                       "]
[69,0,249,68,"S","IMP ","FRANCOIS COUZON           ",1,"THURINS                       "]
[69,0,250,"B004","Z","    ","LE BOURG                  ",3,"LA TOUR DE SALVAGNY           "]
[69,0,250,"B021","T","    ","FONTBONNE                 ",3,"LA TOUR DE SALVAGNY           "]
[69,0,250,"B042","R","    ","LE PLOMB                  ",3,"LA TOUR DE SALVAGNY           "]
[69,0,250,79,"Z","ALL ","DE LA CREUZETTE           ",1,"LA TOUR DE SALVAGNY           "]
[69,0,250,173,"B","ALL ","DES GLYCINES              ",1,"LA TOUR DE SALVAGNY           "]
[69,0,250,280,"T","RUE ","DE LYON                   ",1,"LA TOUR DE SALVAGNY           "]
[69,0,250,421,"W","ALL ","DES ROSES                 ",1,"LA TOUR DE SALVAGNY           "]
[69,0,250,424,"Z","ALL ","DE SALAY                  ",1,"LA TOUR DE SALVAGNY           "]
[69,0,250,1210,"D","    ","PASSERELL DES JARDINIERS  ",1,"LA TOUR DE SALVAGNY           "]
[69,0,252,"B029","T","    ","LE MAS                    ",3,"TREVES                        "]
[69,0,252,35,"T","CHE ","DES DEUX MERS             ",1,"TREVES                        "]
[69,0,252,135,"B","CHE ","DU MOUILLON               ",1,"TREVES                        "]
[69,0,253,"B004","L","    ","LES BERCHERIES            ",3,"TUPIN ET SEMONS               "]
[69,0,253,"B025","J","    ","LE GD VILLARD             ",3,"TUPIN ET SEMONS               "]
[69,0,253,"B042","C","    ","TUPIN                     ",3,"TUPIN ET SEMONS               "]
[69,0,254,"B002","E","    ","LE BANCILLON              ",3,"VALSONNE                      "]
[69,0,254,"B023","C","    ","COMBE CHAIRAN             ",3,"VALSONNE                      "]
[69,0,254,"B040","W","    ","LA GOUTTE DU PINAY        ",3,"VALSONNE                      "]
[69,0,254,"B061","U","    ","LA PIAFFE                 ",3,"VALSONNE                      "]
[69,0,254,"B078","M","    ","LE ROSA                   ",3,"VALSONNE                      "]
[69,0,254,24,"X","IMP ","DES ECUREUILS NORD        ",1,"VALSONNE                      "]
[69,0,255,"A031","V","ZA  ","DE MAISON BLANCHE         ",2,"VAUGNERAY                     "]
[69,0,255,"B025","A","    ","COMBE D URIEUX            ",3,"VAUGNERAY                     "]
[69,0,255,"B055","H","    ","LA GUISE                  ",3,"VAUGNERAY                     "]
[69,0,255,"B072","B","    ","PIERRE RONDE              ",3,"VAUGNERAY                     "]
[69,0,255,"B089","V","    ","LES SAIGNES               ",3,"VAUGNERAY                     "]
[69,0,255,"B110","T","    ","CHARPIEUX                 ",3,"VAUGNERAY                     "]
[69,0,255,"B909","L","    ","LE MARTIN                 ",3,"VAUGNERAY                     "]
[69,0,255,16,"J","RUE ","DES CHAPONNIERES          ",1,"VAUGNERAY                     "]
[69,0,255,49,"V","RUE ","CLAUDE GROS               ",1,"VAUGNERAY                     "]
[69,0,255,67,"P","RUE ","DU PANTIN                 ",1,"VAUGNERAY                     "]
[69,0,255,210,"V","CHE ","DU SEIBEL                 ",1,"VAUGNERAY                     "]
[69,0,255,227,"N","RTE ","DE VAUGNERAY              ",1,"VAUGNERAY                     "]
[69,0,255,270,"K","RTE ","DE LA CHANA               ",1,"VAUGNERAY                     "]
[69,0,255,384,"J","CHE ","DE LA PLAINE              ",1,"VAUGNERAY                     "]
[69,0,256,"A003","K","RES ","LA BALME                  ",2,"VAULX EN VELIN                "]
[69,0,256,"B010","E","    ","LES BRUYERES              ",3,"VAULX EN VELIN                "]
[69,0,256,"B027","Y","    ","LE MACHET NORD            ",3,"VAULX EN VELIN                "]
[69,0,256,"B059","H","    ","LA COTE                   ",3,"VAULX EN VELIN                "]
[69,0,256,"B067","S","    ","LES SEPT CHEMINS          ",3,"VAULX EN VELIN                "]
[69,0,256,109,"F","RUE ","AUGUSTE RENOIR            ",1,"VAULX EN VELIN                "]
[69,0,256,171,"Y","RUE ","DE BEIT SAHOUR            ",1,"VAULX EN VELIN                "]
[69,0,256,229,"L","RUE ","CENTRALE                  ",1,"VAULX EN VELIN                "]
[69,0,256,282,"U","CHE ","DE LA COLOMBIERE          ",1,"VAULX EN VELIN                "]
[69,0,256,338,"E","IMP ","DE L EGLISE               ",1,"VAULX EN VELIN                "]
[69,0,256,395,"S","RUE ","FRANCOIS GUILLARD         ",1,"VAULX EN VELIN                "]
[69,0,256,486,"R","RUE ","GEORGES SALENDRE          ",1,"VAULX EN VELIN                "]
[69,0,256,518,"A","ALL ","DES HORTENSIAS            ",1,"VAULX EN VELIN                "]
[69,0,256,550,"K","RUE ","JEAN CAGNE                ",1,"VAULX EN VELIN                "]
[69,0,256,580,"T","CITE","JEAN RACINE               ",1,"VAULX EN VELIN                "]
[69,0,256,650,"U","IMP ","LEFEVRE                   ",1,"VAULX EN VELIN                "]
[69,0,256,700,"Y","RUE ","LOUIS VARIGNIER           ",1,"VAULX EN VELIN                "]
[69,0,256,731,"G","RUE ","MARIE CLAIRE PETIT        ",1,"VAULX EN VELIN                "]
[69,0,256,793,"Z","RUE ","PAUL VALERY               ",1,"VAULX EN VELIN                "]
[69,0,256,820,"D","RUE ","PIERRE CORNEILLE          ",1,"VAULX EN VELIN                "]
[69,0,256,906,"X","ROC ","DES VILLAGES              ",1,"VAULX EN VELIN                "]
[69,0,256,952,"X","ALL ","DES SAULES                ",1,"VAULX EN VELIN                "]
[69,0,256,1006,"F","RUE ","DES VERCHERES             ",1,"VAULX EN VELIN                "]
[69,0,256,1206,"Y","RUE ","DRISS BENZEKRI            ",1,"VAULX EN VELIN                "]
[69,0,257,"B032","Z","    ","FOND MARGAT               ",3,"VAUX EN BEAUJOLAIS            "]
[69,0,257,"B053","X","    ","MONTMAIN                  ",3,"VAUX EN BEAUJOLAIS            "]
[69,0,257,"B070","R","    ","PONTARD                   ",3,"VAUX EN BEAUJOLAIS            "]
[69,0,257,"B900","T","    ","LES EAUX DE VAUX          ",3,"VAUX EN BEAUJOLAIS            "]
[69,0,257,21,"F","RUE ","DU CHAVEL                 ",1,"VAUX EN BEAUJOLAIS            "]
[69,0,257,75,"P","PL  ","DU HAUT BOURG             ",1,"VAUX EN BEAUJOLAIS            "]
[69,0,257,168,"R","RTE ","DU PONTARD                ",1,"VAUX EN BEAUJOLAIS            "]
[69,0,257,492,"T","RUE ","DE FROMENTAL              ",1,"VAUX EN BEAUJOLAIS            "]
[69,0,257,610,"W","CHE ","DE MONTRICHARD            ",1,"VAUX EN BEAUJOLAIS            "]
[69,0,257,756,"E","CHEM","VERS LE BOIS              ",1,"VAUX EN BEAUJOLAIS            "]
[69,0,258,"B026","N","    ","CROIX BARRAUD             ",3,"VAUXRENARD                    "]
[69,0,258,"B039","C","    ","LES MELINANDS             ",3,"VAUXRENARD                    "]
[69,0,258,"B056","W","    ","SARRAZINERIE              ",3,"VAUXRENARD                    "]
[69,0,259,"A080","F","ZAC ","DE L ARSENAL              ",2,"VENISSIEUX                    "]
[69,0,259,"B070","G","    ","LA GARAINE                ",3,"VENISSIEUX                    "]
[69,0,259,"B135","C","    ","LES PUISOZ                ",3,"VENISSIEUX                    "]
[69,0,259,16,"S","RUE ","ALBERT JACQUARD           ",1,"VENISSIEUX                    "]
[69,0,259,109,"T","IMP ","AUGUSTE BLANQUI           ",1,"VENISSIEUX                    "]
[69,0,259,213,"F","ALL ","DES CERISIERS             ",1,"VENISSIEUX                    "]
[69,0,259,324,"B","RUE ","DES COMBATS DU 24 AOUT 44 ",1,"VENISSIEUX                    "]
[69,0,259,560,"H","CHE ","DE FEYZIN                 ",1,"VENISSIEUX                    "]
[69,0,259,650,"F","RUE ","GAMBETTA                  ",1,"VENISSIEUX                    "]
[69,0,259,731,"U","RUE ","DE LA GLUNIERE            ",1,"VENISSIEUX                    "]
[69,0,259,860,"J","ALL ","DES JARDINS               ",1,"VENISSIEUX                    "]
[69,0,259,944,"A","RUE ","JEAN VILAR                ",1,"VENISSIEUX                    "]
[69,0,259,1000,"L","RUE ","LAZARE HOCHE              ",1,"VENISSIEUX                    "]
[69,0,259,1092,"L","RUE ","MAX BARREL                ",1,"VENISSIEUX                    "]
[69,0,259,1230,"L","RUE ","PARMENTIER                ",1,"VENISSIEUX                    "]
[69,0,259,1312,"A","IMP ","DE LA PETITE NEVE         ",1,"VENISSIEUX                    "]
[69,0,259,1430,"D","RUE ","DU PROFESSEUR ROUX        ",1,"VENISSIEUX                    "]
[69,0,259,1565,"A","ALL ","DES SAVOIES               ",1,"VENISSIEUX                    "]
[69,0,259,1750,"B","BD  ","YVES FARGE                ",1,"VENISSIEUX                    "]
[69,0,260,"B015","T","    ","LES INFERNIERES           ",3,"VERNAISON                     "]
[69,0,260,30,"C","CHE ","DES GARENNES              ",1,"VERNAISON                     "]
[69,0,260,56,"F","RUE ","DES MESANGES              ",1,"VERNAISON                     "]
[69,0,260,94,"X","CHE ","DES RIVIERES              ",1,"VERNAISON                     "]
[69,0,260,207,"V","IMP ","DES FERRATIERES           ",1,"VERNAISON                     "]
[69,0,261,"B013","L","    ","TOURVEON                  ",3,"VERNAY                        "]
[69,0,263,"B013","C","    ","LE COTON                  ",3,"VILLECHENEVE                  "]
[69,0,263,58,"V","CHE ","DE LA CROIX JAUNE         ",1,"VILLECHENEVE                  "]
[69,0,263,217,"T","RUE ","NEUVE                     ",1,"VILLECHENEVE                  "]
[69,0,264,"B009","U","    ","PRE SELIN                 ",3,"VILLEFRANCHE                  "]
[69,0,264,130,"U","BD  ","ANTONIN LASSALLE          ",1,"VILLEFRANCHE                  "]
[69,0,264,200,"V","RUE ","DE BELLEROCHE             ",1,"VILLEFRANCHE                  "]
[69,0,264,270,"W","RUE ","CAMILLE DESMOULINS        ",1,"VILLEFRANCHE                  "]
[69,0,264,486,"F","RUE ","DANTON                    ",1,"VILLEFRANCHE                  "]
[69,0,264,570,"X","RUE ","ENNEMOND ULLARD           ",1,"VILLEFRANCHE                  "]
[69,0,264,660,"V","RUE ","FRANCIS POPY              ",1,"VILLEFRANCHE                  "]
[69,0,264,750,"T","RUE ","DU GARET                  ",1,"VILLEFRANCHE                  "]
[69,0,264,850,"B","RUE ","GUILLAUME TROLLIEUR       ",1,"VILLEFRANCHE                  "]
[69,0,264,920,"C","RUE ","JEAN BAPTISTE MARTINI     ",1,"VILLEFRANCHE                  "]
[69,0,264,1150,"C","RUE ","LOUIS BRAILLE             ",1,"VILLEFRANCHE                  "]
[69,0,264,1210,"T","RUE ","MICHEL PICARD             ",1,"VILLEFRANCHE                  "]
[69,0,264,1350,"V","RUE ","PARMENTIER                ",1,"VILLEFRANCHE                  "]
[69,0,264,1470,"A","BD  ","PIERRE PASQUIER           ",1,"VILLEFRANCHE                  "]
[69,0,264,1575,"P","IMP ","REBOTTON                  ",1,"VILLEFRANCHE                  "]
[69,0,264,1740,"U","RUE ","ST JOSEPH                 ",1,"VILLEFRANCHE                  "]
[69,0,265,"B007","M","    ","LE BAS DE CHANRION        ",3,"VILLE SUR JARNIOUX            "]
[69,0,265,"B009","P","    ","BOGAT                     ",3,"VILLE SUR JARNIOUX            "]
[69,0,265,"B046","E","    ","LE PEINEAU                ",3,"VILLE SUR JARNIOUX            "]
[69,0,265,"B063","Y","    ","PRE DU MOULIN             ",3,"VILLE SUR JARNIOUX            "]
[69,0,265,7,"F","CHE ","DU BANCILLON              ",1,"VILLE SUR JARNIOUX            "]
[69,0,265,28,"D","RTE ","DE CHATOUX                ",1,"VILLE SUR JARNIOUX            "]
[69,0,265,104,"L","CHE ","DES PIERRES PLANTEES      ",1,"VILLE SUR JARNIOUX            "]
[69,0,265,137,"X","IMP ","DU TULIPIER               ",1,"VILLE SUR JARNIOUX            "]
[69,0,266,"X009","M","    ","METRO LIGNE A             ",4,"VILLEURBANNE                  "]
[69,0,266,130,"K","IMP ","AMBLARD                   ",1,"VILLEURBANNE                  "]
[69,0,266,241,"F","PL  ","DE L'ARMEE POLONAISE EN F ",1,"VILLEURBANNE                  "]
[69,0,266,360,"K","RUE ","BAUDELAIRE                ",1,"VILLEURBANNE                  "]
[69,0,266,560,"C","RUE ","DE LA BOUBE               ",1,"VILLEURBANNE                  "]
[69,0,266,860,"D","RUE ","CHARNY                    ",1,"VILLEURBANNE                  "]
[69,0,266,1041,"A","RUE ","COMBET                    ",1,"VILLEURBANNE                  "]
[69,0,266,1225,"A","PL  ","DES DENTELIERS            ",1,"VILLEURBANNE                  "]
[69,0,266,1365,"C","RUE ","EDOUARD AYNARD            ",1,"VILLEURBANNE                  "]
[69,0,266,1500,"Z","RUE ","DE L ESPOIR               ",1,"VILLEURBANNE                  "]
[69,0,266,1713,"F","RUE ","FRANCOISE GIROUD          ",1,"VILLEURBANNE                  "]
[69,0,266,1970,"K","RUE ","HENRI BALAY               ",1,"VILLEURBANNE                  "]
[69,0,266,2130,"J","PL  ","JEAN CHOREL               ",1,"VILLEURBANNE                  "]
[69,0,266,2250,"P","RUE ","JULES KUMER               ",1,"VILLEURBANNE                  "]
[69,0,266,2380,"F","RUE ","LEON PIAT                 ",1,"VILLEURBANNE                  "]
[69,0,266,2550,"R","RUE ","LOUISE MICHEL             ",1,"VILLEURBANNE                  "]
[69,0,266,2659,"J","ALL ","MARCEL DORET              ",1,"VILLEURBANNE                  "]
[69,0,266,2850,"S","RUE ","DE MILAN                  ",1,"VILLEURBANNE                  "]
[69,0,266,3141,"H","PAS ","DES PEUPLIERS             ",1,"VILLEURBANNE                  "]
[69,0,266,3290,"V","IMP ","PONCET                    ",1,"VILLEURBANNE                  "]
[69,0,266,3450,"U","RUE ","DU QUATRE AOUT            ",1,"VILLEURBANNE                  "]
[69,0,266,3590,"W","AV  ","DE LA RIZE                ",1,"VILLEURBANNE                  "]
[69,0,266,3720,"M","RUE ","SERENITE                  ",1,"VILLEURBANNE                  "]
[69,0,266,3830,"G","IMP ","DES TILLEULS              ",1,"VILLEURBANNE                  "]
[69,0,267,"B014","L","    ","CHASSEIGNE                ",3,"VILLIE MORGON                 "]
[69,0,267,"B027","A","    ","L EVEQUE                  ",3,"VILLIE MORGON                 "]
[69,0,267,"B053","D","    ","AUX PLATS                 ",3,"VILLIE MORGON                 "]
[69,0,267,4,"U","RUE ","DE L'ALAMBIC              ",1,"VILLIE MORGON                 "]
[69,0,267,28,"V","RTE ","DE FONTRIANTE             ",1,"VILLIE MORGON                 "]
[69,0,267,45,"N","RTE ","DE FLEURIE                ",1,"VILLIE MORGON                 "]
[69,0,267,69,"P","IMP ","DE LATHEVALLE             ",1,"VILLIE MORGON                 "]
[69,0,267,148,"A","CHE ","DU TERRAIN ROUGE          ",1,"VILLIE MORGON                 "]
[69,0,268,"B007","Z","    ","COUAT                     ",3,"VOURLES                       "]
[69,0,268,18,"E","CHE ","BELLEVUE                  ",1,"VOURLES                       "]
[69,0,268,57,"X","PL  ","DEVOIRS ET DRTS DU CITOYEN",1,"VOURLES                       "]
[69,0,268,103,"X","PL  ","JEAN MARIE CHEVALIER      ",1,"VOURLES                       "]
[69,0,268,134,"F","IMP ","DE LA POSTE               ",1,"VOURLES                       "]
[69,0,269,"B023","M","    ","LE CHATAIGNIER            ",3,"YZERON                        "]
[69,0,269,"B044","K","    ","LES ESSELARDS             ",3,"YZERON                        "]
[69,0,269,"B061","D","    ","LA GRENOUILLE             ",3,"YZERON                        "]
[69,0,269,"B078","X","    ","LA PIPATIERE              ",3,"YZERON                        "]
[69,0,269,"B113","K","    ","VERRIERE                  ",3,"YZERON                        "]
[69,0,269,10,"S","CHE ","DE LA BRALLY              ",1,"YZERON                        "]
[69,0,269,206,"E","CHE ","DES ESSELARDS             ",1,"YZERON                        "]
[69,0,270,"B007","R","    ","LA BOULATIERE             ",3,"CHAPONNAY                     "]
[69,0,270,"B024","J","    ","COMBETTE                  ",3,"CHAPONNAY                     "]
[69,0,270,"B045","G","    ","PLAN GALLANT              ",3,"CHAPONNAY                     "]
[69,0,270,"B062","A","    ","A LA TERRE D AILLON       ",3,"CHAPONNAY                     "]
[69,0,270,9,"L","ALL ","DES BLES D OR             ",1,"CHAPONNAY                     "]
[69,0,270,30,"J","RTE ","DE MARENNES               ",1,"CHAPONNAY                     "]
[69,0,270,132,"V","RUE ","DES FRERES VOISIN         ",1,"CHAPONNAY                     "]
[69,0,270,245,"T","CHE ","DE LA VERRIERE            ",1,"CHAPONNAY                     "]
[69,0,271,"B006","K","    ","LES CHARPENNES            ",3,"CHASSIEU                      "]
[69,0,271,"B024","E","    ","PLAN DE GENAS             ",3,"CHASSIEU                      "]
[69,0,271,48,"Z","RUE ","DES ALOUETTES             ",1,"CHASSIEU                      "]
[69,0,271,97,"C","RUE ","DES BOUTIERES             ",1,"CHASSIEU                      "]
[69,0,271,199,"N","RUE ","FRANCOIS VILLON           ",1,"CHASSIEU                      "]
[69,0,271,220,"L","RUE ","FREDERIC CHOPIN           ",1,"CHASSIEU                      "]
[69,0,271,339,"R","IMP ","JACQUES ET GERMAINE PAQUET",1,"CHASSIEU                      "]
[69,0,271,430,"P","RUE ","LOUIS PERGAUD             ",1,"CHASSIEU                      "]
[69,0,271,498,"N","RUE ","DES MOINEAUX              ",1,"CHASSIEU                      "]
[69,0,271,635,"M","SQ  ","DES ORPAILLEURS           ",1,"CHASSIEU                      "]
[69,0,271,900,"A","IMP ","DU ROTAGNIER              ",1,"CHASSIEU                      "]
[69,0,271,984,"S","RUE ","DES TULIPES               ",1,"CHASSIEU                      "]
[69,0,272,"A021","K","LOT ","LE CHAMP D'EPI            ",2,"COMMUNAY                      "]
[69,0,272,"B002","B","    ","LE BOURG                  ",3,"COMMUNAY                      "]
[69,0,272,"B019","V","    ","CORNAVAN SUD              ",3,"COMMUNAY                      "]
[69,0,272,23,"T","CHE ","DES BRUYERES              ",1,"COMMUNAY                      "]
[69,0,272,107,"J","RTE ","NATIONALE 7               ",1,"COMMUNAY                      "]
[69,0,272,128,"G","IMP ","DU TALAMONT               ",1,"COMMUNAY                      "]
[69,0,272,181,"P","CHE ","DU LOT ET BOISSE          ",1,"COMMUNAY                      "]
[69,0,273,"B012","H","    ","EGAY                      ",3,"CORBAS                        "]
[69,0,273,"B043","S","    ","FORET DU VELIN SUD        ",3,"CORBAS                        "]
[69,0,273,"B052","B","    ","ROMANETTES NORD           ",3,"CORBAS                        "]
[69,0,273,246,"F","IMP ","DES CANUTS                ",1,"CORBAS                        "]
[69,0,273,330,"X","RUE ","CONDORCET                 ",1,"CORBAS                        "]
[69,0,273,437,"N","IMP ","DES ETOURNEAUX            ",1,"CORBAS                        "]
[69,0,273,504,"L","IMP ","DES GRANDES VERCHERES     ",1,"CORBAS                        "]
[69,0,273,551,"M","AV  ","DE L INDUSTRIE            ",1,"CORBAS                        "]
[69,0,273,606,"X","PL  ","JULES FERRY               ",1,"CORBAS                        "]
[69,0,273,701,"A","RUE ","MARIE CURIE               ",1,"CORBAS                        "]
[69,0,273,867,"F","RUE ","PIERRE MENDES FRANCE      ",1,"CORBAS                        "]
[69,0,273,925,"U","AV  ","SALVADOR ALLENDE          ",1,"CORBAS                        "]
[69,0,273,1061,"S","CHE ","DES VIGNES                ",1,"CORBAS                        "]
[69,0,275,"B002","N","    ","BEAUREGARD                ",3,"DECINES CHARPIEU              "]
[69,0,275,"B024","M","    ","LES HOUDIERES             ",3,"DECINES CHARPIEU              "]
[69,0,275,"B041","F","    ","ROUBOISSON                ",3,"DECINES CHARPIEU              "]
[69,0,275,3,"H","RUE ","AIME CESAIRE              ",1,"DECINES CHARPIEU              "]
[69,0,275,31,"N","IMP ","ALEXANDRE GODARD          ",1,"DECINES CHARPIEU              "]
[69,0,275,211,"J","AV  ","DES BRUYERES              ",1,"DECINES CHARPIEU              "]
[69,0,275,310,"S","RUE ","CLAUDE MONET              ",1,"DECINES CHARPIEU              "]
[69,0,275,400,"P","AV  ","EDOUARD HERRIOT           ",1,"DECINES CHARPIEU              "]
[69,0,275,469,"P","RUE ","FRANCOIS COUPERIN         ",1,"DECINES CHARPIEU              "]
[69,0,275,548,"A","ALL ","DES GLAIEULS              ",1,"DECINES CHARPIEU              "]
[69,0,275,675,"N","IMP ","LAURENT                   ",1,"DECINES CHARPIEU              "]
[69,0,275,725,"T","IMP ","MACHET                    ",1,"DECINES CHARPIEU              "]
[69,0,275,825,"B","RTE ","DE MEYZIEU                ",1,"DECINES CHARPIEU              "]
[69,0,275,905,"N","PL  ","N D DES BRUYERES          ",1,"DECINES CHARPIEU              "]
[69,0,275,998,"P","RUE ","PIERRE FRITE              ",1,"DECINES CHARPIEU              "]
[69,0,275,1108,"J","ALL ","RENE CASSIN               ",1,"DECINES CHARPIEU              "]
[69,0,275,1307,"A","RUE ","VICTOR CONSIDERANT        ",1,"DECINES CHARPIEU              "]
[69,0,276,"B007","P","    ","LA BOUVARDIERE            ",3,"FEYZIN                        "]
[69,0,276,"B025","J","    ","GRANDE VERCHERE           ",3,"FEYZIN                        "]
[69,0,276,"B043","D","    ","LA RADIO                  ",3,"FEYZIN                        "]
[69,0,276,40,"U","RUE ","ANDRE GELAS               ",1,"FEYZIN                        "]
[69,0,276,130,"S","RUE ","BELLEVUE                  ",1,"FEYZIN                        "]
[69,0,276,236,"G","ALL ","DES DATTIERS              ",1,"FEYZIN                        "]
[69,0,276,417,"D","ALL ","DES JONQUILLES            ",1,"FEYZIN                        "]
[69,0,276,437,"A","IMP ","DU LOUVRE                 ",1,"FEYZIN                        "]
[69,0,276,498,"S","RUE ","PERNET-DUCHER             ",1,"FEYZIN                        "]
[69,0,276,560,"J","RTE ","DE SOLAIZE                ",1,"FEYZIN                        "]
[69,0,276,700,"L","RUE ","DES VIGNETTES             ",1,"FEYZIN                        "]
[69,0,277,"B001","D","    ","LES ANDOVILLERES          ",3,"GENAS                         "]
[69,0,277,"B040","W","    ","RATABIZET                 ",3,"GENAS                         "]
[69,0,277,"X003","H","PKG ","FRANCISQUE ROIBET         ",4,"GENAS                         "]
[69,0,277,16,"N","RUE ","AMPERE                    ",1,"GENAS                         "]
[69,0,277,60,"L","RUE ","BEL AZUR                  ",1,"GENAS                         "]
[69,0,277,124,"F","ALL ","DES CEDRES                ",1,"GENAS                         "]
[69,0,277,151,"K","RPT ","COMBATTANTS D'AFRI DU NORD",1,"GENAS                         "]
[69,0,277,210,"Z","RUE ","DESCARTES                 ",1,"GENAS                         "]
[69,0,277,256,"Z","IMP ","LA FONTAINE               ",1,"GENAS                         "]
[69,0,277,387,"S","CHE ","DU GRAND MATHAN           ",1,"GENAS                         "]
[69,0,277,450,"K","IMP ","JANINE                    ",1,"GENAS                         "]
[69,0,277,520,"L","PL  ","JEAN JAURES               ",1,"GENAS                         "]
[69,0,277,566,"L","IMP ","LEON BOURGEOIS            ",1,"GENAS                         "]
[69,0,277,605,"D","RUE ","DE LA MADELON             ",1,"GENAS                         "]
[69,0,277,679,"J","RUE ","DU PANDORE                ",1,"GENAS                         "]
[69,0,277,786,"A","ALL ","DES PIVOINES              ",1,"GENAS                         "]
[69,0,277,815,"G","CHE ","DE RECONFRANCHE           ",1,"GENAS                         "]
[69,0,277,951,"E","RUE ","DE SOUS GRACET            ",1,"GENAS                         "]
[69,0,277,1000,"H","RUE ","DU VIEUX CHATEAU          ",1,"GENAS                         "]
[69,0,278,"B007","F","    ","LA CAVIN                  ",3,"GENAY                         "]
[69,0,278,"B050","C","    ","SUR LA PLACE              ",3,"GENAY                         "]
[69,0,278,"B067","W","    ","LE VERJAT                 ",3,"GENAY                         "]
[69,0,278,40,"K","RUE ","DES CERISIERS             ",1,"GENAY                         "]
[69,0,278,80,"D","RUE ","DE LA GDE VERCHERE        ",1,"GENAY                         "]
[69,0,278,180,"M","MTE ","DES CHAMPS                ",1,"GENAY                         "]
[69,0,278,300,"T","RUE ","DE PIAMOT                 ",1,"GENAY                         "]
[69,0,279,"B009","D","    ","LE BOURDEAU               ",3,"JONAGE                        "]
[69,0,279,"B027","Y","    ","LE GD GRAVIER             ",3,"JONAGE                        "]
[69,0,279,"B048","W","    ","LES BIESSES EST           ",3,"JONAGE                        "]
[69,0,279,2,"P","ALL ","ALEXANDRE DUMAS           ",1,"JONAGE                        "]
[69,0,279,146,"W","ALL ","BLAISE PASCAL             ",1,"JONAGE                        "]
[69,0,279,224,"F","ALL ","DU CLOS DES CHENES        ",1,"JONAGE                        "]
[69,0,279,357,"A","ALL ","JACQUES PREVERT           ",1,"JONAGE                        "]
[69,0,279,419,"T","RUE ","LOUISE LABE               ",1,"JONAGE                        "]
[69,0,279,600,"P","RUE ","NEUVE                     ",1,"JONAGE                        "]
[69,0,279,680,"B","RTE ","DE PUSIGNAN               ",1,"JONAGE                        "]
[69,0,279,785,"R","ALL ","DU VIEUX MOULIN           ",1,"JONAGE                        "]
[69,0,280,"B003","T","    ","BIANNE                    ",3,"JONS                          "]
[69,0,280,"X020","N","    ","CTRLE HYDROELTQ DE CUSSET ",4,"JONS                          "]
[69,0,280,130,"Z","CHE ","DE LA GASCONNIERE         ",1,"JONS                          "]
[69,0,281,"A025","A","LOT ","LE CLOS DES ROSIERS       ",2,"MARENNES                      "]
[69,0,281,"B007","T","    ","LE CHAMP                  ",3,"MARENNES                      "]
[69,0,281,"B024","L","    ","LES ENDIENNES             ",3,"MARENNES                      "]
[69,0,281,"B041","E","    ","MARAIS                    ",3,"MARENNES                      "]
[69,0,281,"B062","C","    ","ST FREJUS                 ",3,"MARENNES                      "]
[69,0,281,308,"N","CHE ","DES FAURIES               ",1,"MARENNES                      "]
[69,0,281,548,"Z","CHE ","PRES DES MURES            ",1,"MARENNES                      "]
[69,0,282,"B011","T","    ","CHASSIGNOLLE              ",3,"MEYZIEU                       "]
[69,0,282,"B028","L","    ","LES GADELLES              ",3,"MEYZIEU                       "]
[69,0,282,"B049","J","    ","LE MEUNIER                ",3,"MEYZIEU                       "]
[69,0,282,"B066","C","    ","SUR TRILLET               ",3,"MEYZIEU                       "]
[69,0,282,53,"G","RUE ","ANDRE MAUROIS             ",1,"MEYZIEU                       "]
[69,0,282,90,"X","PL  ","DE LA BASCULE             ",1,"MEYZIEU                       "]
[69,0,282,144,"F","RUE ","DU BOCAGE                 ",1,"MEYZIEU                       "]
[69,0,282,210,"C","RUE ","CAMILLE SAINT SAENS       ",1,"MEYZIEU                       "]
[69,0,282,244,"P","ALL ","DES CHARDONNERETS         ",1,"MEYZIEU                       "]
[69,0,282,320,"X","RUE ","COMMANDANT CHARCOT        ",1,"MEYZIEU                       "]
[69,0,282,370,"B","RUE ","DUGAY-TROUIN              ",1,"MEYZIEU                       "]
[69,0,282,457,"W","RUE ","DE FROMENTAUX             ",1,"MEYZIEU                       "]
[69,0,282,487,"D","RUE ","GEORGES BIZET             ",1,"MEYZIEU                       "]
[69,0,282,545,"S","CHE ","DE HALAGE                 ",1,"MEYZIEU                       "]
[69,0,282,582,"G","IMP ","DES IRIS                  ",1,"MEYZIEU                       "]
[69,0,282,625,"D","RUE ","JEAN PERRIN               ",1,"MEYZIEU                       "]
[69,0,282,656,"M","RUE ","LAENNEC                   ",1,"MEYZIEU                       "]
[69,0,282,774,"R","RUE ","MALHERBE                  ",1,"MEYZIEU                       "]
[69,0,282,843,"R","RUE ","MARYSE HILSZ              ",1,"MEYZIEU                       "]
[69,0,282,925,"E","CHE ","DU MOULIN CHEYSSIN        ",1,"MEYZIEU                       "]
[69,0,282,1009,"W","ALL ","PAUL FEVAL                ",1,"MEYZIEU                       "]
[69,0,282,1083,"B","ALL ","DES PLATANES              ",1,"MEYZIEU                       "]
[69,0,282,1110,"F","RUE ","DE LA REPUBLIQUE          ",1,"MEYZIEU                       "]
[69,0,282,1151,"A","RUE ","SAINT EYNARD              ",1,"MEYZIEU                       "]
[69,0,282,1330,"V","RUE ","DES VOSGES                ",1,"MEYZIEU                       "]
[69,0,283,"A059","D","LOT ","VICTOR HUGO               ",2,"MIONS                         "]
[69,0,283,"B016","U","    ","FEMME MORTE               ",3,"MIONS                         "]
[69,0,283,"B033","M","    ","RONCES                    ",3,"MIONS                         "]
[69,0,283,"B054","K","    ","LES EPINES                ",3,"MIONS                         "]
[69,0,283,"B072","E","    ","CHARDONNIERE NORD         ",3,"MIONS                         "]
[69,0,283,83,"K","ALL ","BEETHOVEN                 ",1,"MIONS                         "]
[69,0,283,109,"N","ALL ","DU CHARBONNIER            ",1,"MIONS                         "]
[69,0,283,130,"L","ALL ","CLEMENT ADER              ",1,"MIONS                         "]
[69,0,283,169,"D","ALL ","DES JARDINS DE DEBORAH    ",1,"MIONS                         "]
[69,0,283,250,"S","RUE ","FLOREAL                   ",1,"MIONS                         "]
[69,0,283,271,"P","PL  ","GERMAIN VIVIEN            ",1,"MIONS                         "]
[69,0,283,293,"N","ALL ","DES IRIS                  ",1,"MIONS                         "]
[69,0,283,332,"F","ALL ","DES LARMES DE JOB         ",1,"MIONS                         "]
[69,0,283,367,"U","RUE ","MAILLOL                   ",1,"MIONS                         "]
[69,0,283,389,"T","RUE ","MERMOZ                    ",1,"MIONS                         "]
[69,0,283,448,"G","IMP ","DU PAVE                   ",1,"MIONS                         "]
[69,0,283,478,"P","RUE ","PROFESSEUR ROBERT DEBRE   ",1,"MIONS                         "]
[69,0,283,527,"T","PL  ","RUDE                      ",1,"MIONS                         "]
[69,0,284,"B007","E","    ","AUX BROSSES               ",3,"MONTANAY                      "]
[69,0,284,"B028","C","    ","LAVAUNE                   ",3,"MONTANAY                      "]
[69,0,284,"B045","W","    ","VERS LA GOUTTE            ",3,"MONTANAY                      "]
[69,0,284,42,"L","CHE ","DE BELLEVUE               ",1,"MONTANAY                      "]
[69,0,284,68,"P","RUE ","DE LA CROIX DES HORMES    ",1,"MONTANAY                      "]
[69,0,284,125,"B","ALL ","DE LA GRANGE DURAND       ",1,"MONTANAY                      "]
[69,0,284,240,"B","RUE ","DU VILLARD                ",1,"MONTANAY                      "]
[69,0,285,"B016","K","    ","LES COQUELICOTS           ",3,"PUSIGNAN                      "]
[69,0,285,"B033","D","    ","PETITE ROUTE              ",3,"PUSIGNAN                      "]
[69,0,285,"X001","W","    ","AUTOROUTE A432            ",4,"PUSIGNAN                      "]
[69,0,285,46,"L","RUE ","DES BRUYERES              ",1,"PUSIGNAN                      "]
[69,0,285,180,"G","RUE ","DE L EGALITE              ",1,"PUSIGNAN                      "]
[69,0,285,327,"S","IMP ","DES TILLEULS              ",1,"PUSIGNAN                      "]
[69,0,286,"A090","Z","ZI  ","ZONE INDUSTRIELLE         ",2,"RILLIEUX LA PAPE              "]
[69,0,286,"B019","J","    ","CHANAT                    ",3,"RILLIEUX LA PAPE              "]
[69,0,286,"B036","C","    ","LE CREUX BLANC            ",3,"RILLIEUX LA PAPE              "]
[69,0,286,"B053","W","    ","LE GRAND CHAMP            ",3,"RILLIEUX LA PAPE              "]
[69,0,286,"B074","U","    ","LA POIPE                  ",3,"RILLIEUX LA PAPE              "]
[69,0,286,"B114","M","    ","LA ROUE OUEST             ",3,"RILLIEUX LA PAPE              "]
[69,0,286,"B174","C","    ","COMBE LA FOLIE            ",3,"RILLIEUX LA PAPE              "]
[69,0,286,"B192","X","    ","L INCURA                  ",3,"RILLIEUX LA PAPE              "]
[69,0,286,"B210","S","    ","TERRES DREVET             ",3,"RILLIEUX LA PAPE              "]
[69,0,286,15,"Y","AV  ","DE L AIN                  ",1,"RILLIEUX LA PAPE              "]
[69,0,286,62,"Z","RUE ","DE L'ARTIFICE             ",1,"RILLIEUX LA PAPE              "]
[69,0,286,145,"P","CHE ","DE BUSSY                  ",1,"RILLIEUX LA PAPE              "]
[69,0,286,199,"Y","    ","IMPASSE DU CHATEAU        ",1,"RILLIEUX LA PAPE              "]
[69,0,286,240,"T","RUE ","DU COTEAU                 ",1,"RILLIEUX LA PAPE              "]
[69,0,286,290,"X","AV  ","DE L EUROPE               ",1,"RILLIEUX LA PAPE              "]
[69,0,286,333,"U","RUE ","DES FRERES LUMIERE        ",1,"RILLIEUX LA PAPE              "]
[69,0,286,383,"Y","CHE ","DU GRAND BIEUX            ",1,"RILLIEUX LA PAPE              "]
[69,0,286,421,"P","SQ  ","DES JASMINS               ",1,"RILLIEUX LA PAPE              "]
[69,0,286,488,"M","ALL ","MARCEL PAGNOL             ",1,"RILLIEUX LA PAPE              "]
[69,0,286,545,"Z","RUE ","DU MONT VERDUN            ",1,"RILLIEUX LA PAPE              "]
[69,0,286,587,"V","SQ  ","DES PAPOUS                ",1,"RILLIEUX LA PAPE              "]
[69,0,286,610,"V","RUE ","PIERRE DE RONSARD         ",1,"RILLIEUX LA PAPE              "]
[69,0,286,638,"A","IMP ","DES ROSIERS               ",1,"RILLIEUX LA PAPE              "]
[69,0,286,678,"U","RUE ","STENDHAL                  ",1,"RILLIEUX LA PAPE              "]
[69,0,287,"B005","P","    ","LES BROSSES               ",3,"SAINT-BONNET-DE-MURE          "]
[69,0,287,"B027","N","    ","LES LUCIOLES              ",3,"SAINT-BONNET-DE-MURE          "]
[69,0,287,"B044","G","    ","LE PT CHAPULAY            ",3,"SAINT-BONNET-DE-MURE          "]
[69,0,287,229,"B","RUE ","DES ALPES                 ",1,"SAINT-BONNET-DE-MURE          "]
[69,0,287,316,"W","ALL ","DES CAPUCINES             ",1,"SAINT-BONNET-DE-MURE          "]
[69,0,287,374,"J","IMP ","DE LA COMETE              ",1,"SAINT-BONNET-DE-MURE          "]
[69,0,287,467,"K","RUE ","DE LA FORESTIERE          ",1,"SAINT-BONNET-DE-MURE          "]
[69,0,287,578,"F","RUE ","LAVOISIER                 ",1,"SAINT-BONNET-DE-MURE          "]
[69,0,287,652,"L","RTE ","DE MEYZIEU                ",1,"SAINT-BONNET-DE-MURE          "]
[69,0,287,760,"D","CHE ","DU PETIT CHAPULAY         ",1,"SAINT-BONNET-DE-MURE          "]
[69,0,287,821,"V","PL  ","DES QUATRE VENTS          ",1,"SAINT-BONNET-DE-MURE          "]
[69,0,287,918,"A","ALL ","DES TULIPES               ",1,"SAINT-BONNET-DE-MURE          "]
[69,0,288,"B005","K","    ","LA BLACHE                 ",3,"SAINT-LAURENT-DE-MURE         "]
[69,0,288,"B044","C","    ","RAMPAUD                   ",3,"SAINT-LAURENT-DE-MURE         "]
[69,0,288,169,"G","PL  ","DE L'ANCIEN LAVOIR        ",1,"SAINT-LAURENT-DE-MURE         "]
[69,0,288,228,"W","AV  ","DES CATELINES             ",1,"SAINT-LAURENT-DE-MURE         "]
[69,0,288,299,"Y","RUE ","DE LA CROIX BLANCHE       ",1,"SAINT-LAURENT-DE-MURE         "]
[69,0,288,356,"K","RUE ","GEORGES POLOSSAT          ",1,"SAINT-LAURENT-DE-MURE         "]
[69,0,288,413,"X","AV  ","JEAN MOULIN               ",1,"SAINT-LAURENT-DE-MURE         "]
[69,0,288,464,"C","RUE ","DES MARRONNIERS           ",1,"SAINT-LAURENT-DE-MURE         "]
[69,0,288,571,"U","IMP ","JOANNY GUICHERD           ",1,"SAINT-LAURENT-DE-MURE         "]
[69,0,288,605,"F","IMP ","DU VIEUX CHATEAU          ",1,"SAINT-LAURENT-DE-MURE         "]
[69,0,289,"B005","F","    ","BARBANA                   ",3,"SAINT-PIERRE-DE-CHANDIEU      "]
[69,0,289,"B022","Z","    ","CHATEAU DE RAJAT          ",3,"SAINT-PIERRE-DE-CHANDIEU      "]
[69,0,289,"B050","E","    ","LA GDE QUEUE              ",3,"SAINT-PIERRE-DE-CHANDIEU      "]
[69,0,289,"B061","S","    ","MARGUIN                   ",3,"SAINT-PIERRE-DE-CHANDIEU      "]
[69,0,289,"B100","J","    ","VILLENEUVE                ",3,"SAINT-PIERRE-DE-CHANDIEU      "]
[69,0,289,49,"X","CHE ","DU CHAMP LAURENT          ",1,"SAINT-PIERRE-DE-CHANDIEU      "]
[69,0,289,66,"R","RUE ","DE FRINDEAU               ",1,"SAINT-PIERRE-DE-CHANDIEU      "]
[69,0,289,88,"P","RUE ","JOSEPH RONIN              ",1,"SAINT-PIERRE-DE-CHANDIEU      "]
[69,0,289,125,"E","ALL ","DES OLAGNIERS             ",1,"SAINT-PIERRE-DE-CHANDIEU      "]
[69,0,289,172,"F","CHE ","SOUS-VIGNERE              ",1,"SAINT-PIERRE-DE-CHANDIEU      "]
[69,0,289,457,"R","IMP ","LE CHAMP CLOS             ",1,"SAINT-PIERRE-DE-CHANDIEU      "]
[69,0,290,"A165","N","    ","GPE BELLEVUE TOUR P       ",2,"ST PRIEST                     "]
[69,0,290,"B007","D","    ","LES BRIGOUDES             ",3,"ST PRIEST                     "]
[69,0,290,"B028","B","    ","LE FORT                   ",3,"ST PRIEST                     "]
[69,0,290,"B045","V","    ","MANISSIEUX OUEST          ",3,"ST PRIEST                     "]
[69,0,290,"B066","T","    ","PLAINE DE MANISSIEUX NORD ",3,"ST PRIEST                     "]
[69,0,290,"B083","L","    ","LE VILLAGE                ",3,"ST PRIEST                     "]
[69,0,290,"B240","G","    ","LES TACHES OUEST          ",3,"ST PRIEST                     "]
[69,0,290,"X999","J","    ","LIMITE ADMINISTRATIVE     ",4,"ST PRIEST                     "]
[69,0,290,80,"B","IMP ","ARAGO                     ",1,"ST PRIEST                     "]
[69,0,290,116,"R","RUE ","DU BASILIC                ",1,"ST PRIEST                     "]
[69,0,290,187,"T","CHE ","DES BOUCHETS              ",1,"ST PRIEST                     "]
[69,0,290,247,"H","IMP ","DU CAVALIER               ",1,"ST PRIEST                     "]
[69,0,290,360,"F","RUE ","CONDORCET                 ",1,"ST PRIEST                     "]
[69,0,290,470,"A","RUE ","DESCARTES                 ",1,"ST PRIEST                     "]
[69,0,290,540,"B","PL  ","EMILE ZOLA                ",1,"ST PRIEST                     "]
[69,0,290,568,"G","ALL ","DU FORT                   ",1,"ST PRIEST                     "]
[69,0,290,619,"M","ALL ","DE LA GARE DU TACOT       ",1,"ST PRIEST                     "]
[69,0,290,680,"D","    ","ROUTE DE GRENOBLE         ",1,"ST PRIEST                     "]
[69,0,290,780,"M","RUE ","DU HUIT MAI 1945          ",1,"ST PRIEST                     "]
[69,0,290,810,"V","AV  ","JEAN JAURES               ",1,"ST PRIEST                     "]
[69,0,290,849,"M","RUE ","DES JOCKEYS               ",1,"ST PRIEST                     "]
[69,0,290,924,"U","RUE ","DE LOMBARDIE              ",1,"ST PRIEST                     "]
[69,0,290,958,"F","CHE ","DES LUEPES                ",1,"ST PRIEST                     "]
[69,0,290,1024,"C","RUE ","MARTIN LUTHER KING        ",1,"ST PRIEST                     "]
[69,0,290,1118,"E","ALL ","DU PARC DU CHATEAU        ",1,"ST PRIEST                     "]
[69,0,290,1175,"S","RUE ","DES PETROLES              ",1,"ST PRIEST                     "]
[69,0,290,1198,"S","CHE ","DE PORTE-JOIE             ",1,"ST PRIEST                     "]
[69,0,290,1273,"Y","RUE ","DES REINES MARGUERITES    ",1,"ST PRIEST                     "]
[69,0,290,1360,"T","RTE ","ST SYMPHORIEN D OZON      ",1,"ST PRIEST                     "]
[69,0,290,1383,"T","VC  ","TREIZIEME RUE             ",1,"ST PRIEST                     "]
[69,0,291,"A053","M","LOT ","TRANCHISSAT               ",2,"SAINT-SYMPHORIEN-D OZON       "]
[69,0,291,"B020","N","    ","GILABERT                  ",3,"SAINT-SYMPHORIEN-D OZON       "]
[69,0,291,"B037","G","    ","PENSION                   ",3,"SAINT-SYMPHORIEN-D OZON       "]
[69,0,291,"B058","E","    ","TRANCHISSAT               ",3,"SAINT-SYMPHORIEN-D OZON       "]
[69,0,291,253,"K","RUE ","DES BLEUETS               ",1,"SAINT-SYMPHORIEN-D OZON       "]
[69,0,291,311,"Y","ALL ","DES COQUELICOTS           ",1,"SAINT-SYMPHORIEN-D OZON       "]
[69,0,291,375,"T","CHE ","DE LA FONTAINE            ",1,"SAINT-SYMPHORIEN-D OZON       "]
[69,0,291,506,"K","ALL ","LOUISE MICHEL             ",1,"SAINT-SYMPHORIEN-D OZON       "]
[69,0,291,601,"N","ALL ","PAUL VERLAINE             ",1,"SAINT-SYMPHORIEN-D OZON       "]
[69,0,291,671,"P","CHE ","DE ROCHER                 ",1,"SAINT-SYMPHORIEN-D OZON       "]
[69,0,291,721,"U","ALL ","DES TOURNESOLS            ",1,"SAINT-SYMPHORIEN-D OZON       "]
[69,0,292,"B011","Z","    ","LE RAVIN                  ",3,"SATHONAY-CAMP                 "]
[69,0,292,160,"E","ALL ","CARNOT                    ",1,"SATHONAY-CAMP                 "]
[69,0,293,"A015","M","LOT ","LE CLOS DE RIVERY         ",2,"SATHONAY-VILLAGE              "]
[69,0,293,"B015","Z","    ","MOULIN MOREAU             ",3,"SATHONAY-VILLAGE              "]
[69,0,293,5,"G","CHE ","DU CIMETIERE              ",1,"SATHONAY-VILLAGE              "]
[69,0,293,36,"R","CHE ","DU RIVAUX                 ",1,"SATHONAY-VILLAGE              "]
[69,0,293,85,"U","MTE ","DES VOSIERES              ",1,"SATHONAY-VILLAGE              "]
[69,0,293,136,"Z","ALL ","DE LA FERME               ",1,"SATHONAY-VILLAGE              "]
[69,0,294,"B001","E","    ","BAS ECHOS                 ",3,"SEREZIN-DU-RHONE              "]
[69,0,294,36,"L","ALL ","DES CHARMILLES            ",1,"SEREZIN-DU-RHONE              "]
[69,0,294,95,"A","RUE ","MAURICE PETIT             ",1,"SEREZIN-DU-RHONE              "]
[69,0,294,166,"C","RUE ","DES VERGERS               ",1,"SEREZIN-DU-RHONE              "]
[69,0,295,"B007","G","    ","CHATENAY                  ",3,"SIMANDRES                     "]
[69,0,295,"B029","F","    ","PRE NEUF                  ",3,"SIMANDRES                     "]
[69,0,295,19,"N","ALL ","DE COMBE LOUVAT           ",1,"SIMANDRES                     "]
[69,0,296,"B003","Y","    ","LE BROTTEAU               ",3,"SOLAIZE                       "]
[69,0,296,"B024","W","    ","NORMES                    ",3,"SOLAIZE                       "]
[69,0,296,"B041","P","    ","ST ANNIN                  ",3,"SOLAIZE                       "]
[69,0,296,82,"C","RUE ","DU CHENEVIS               ",1,"SOLAIZE                       "]
[69,0,296,180,"J","RUE ","DU HUIT MAI 1945          ",1,"SOLAIZE                       "]
[69,0,296,300,"P","CHE ","DU PUET                   ",1,"SOLAIZE                       "]
[69,0,297,"A010","P","ZAC ","DE CHASSAGNE              ",2,"TERNAY                        "]
[69,0,297,"B036","E","    ","RAVAREIL                  ",3,"TERNAY                        "]
[69,0,297,2,"L","CHE ","D ALIX                    ",1,"TERNAY                        "]
[69,0,297,24,"K","RUE ","DES CITES                 ",1,"TERNAY                        "]
[69,0,297,56,"V","RUE ","DES EMERAUDES             ",1,"TERNAY                        "]
[69,0,297,107,"A","AV  ","DE LA HAUTE COMBE         ",1,"TERNAY                        "]
[69,0,297,136,"G","CHE ","DES MARINIERS             ",1,"TERNAY                        "]
[69,0,297,270,"C","RUE ","DES SPORTS                ",1,"TERNAY                        "]
[69,0,297,337,"A","IMP ","DES AGATES                ",1,"TERNAY                        "]
[69,0,297,854,"M","IMP ","DE CHANTEGRIVE            ",1,"TERNAY                        "]
[69,0,298,"B016","D","    ","CUFFRAY                   ",3,"TOUSSIEU                      "]
[69,0,298,"B033","X","    ","LE VILLAGE                ",3,"TOUSSIEU                      "]
[69,0,298,50,"J","VC  ","MONT DES CROZES           ",1,"TOUSSIEU                      "]
[69,0,298,100,"N","IMP ","DES LILAS                 ",1,"TOUSSIEU                      "]
[69,0,299,"B008","R","    ","LES BROSSES DE COLOMBIER  ",3,"COLOMBIER-SAUGNIEU            "]
[69,0,299,"B025","J","    ","EVESSAY DE SAUGNIEU       ",3,"COLOMBIER-SAUGNIEU            "]
[69,0,299,"B046","G","    ","PLESSIAT                  ",3,"COLOMBIER-SAUGNIEU            "]
[69,0,299,"B063","A","    ","LA SERVE                  ",3,"COLOMBIER-SAUGNIEU            "]
[69,0,299,7,"H","CHE ","DE LA BARRIERE            ",1,"COLOMBIER-SAUGNIEU            "]
[69,0,299,34,"M","RTE ","DU DAUPHINE               ",1,"COLOMBIER-SAUGNIEU            "]
[69,0,299,88,"W","RTE ","DE LYON                   ",1,"COLOMBIER-SAUGNIEU            "]
[69,0,299,109,"U","IMP ","DU PETIT PRINCE           ",1,"COLOMBIER-SAUGNIEU            "]
[69,0,299,131,"T","RUE ","DES RIVOISIERES           ",1,"COLOMBIER-SAUGNIEU            "]
[69,0,299,153,"S","CHE ","DE VAUCOLON               ",1,"COLOMBIER-SAUGNIEU            "]
[69,0,299,245,"S","RUE ","D'AUTRICHE                ",1,"COLOMBIER-SAUGNIEU            "]
[69,0,299,420,"G","CHE ","DES CHARRETIERES          ",1,"COLOMBIER-SAUGNIEU            "]
[69,0,299,1180,"H","IMP ","DE MONTELIN               ",1,"COLOMBIER-SAUGNIEU            "]
[69,0,299,1500,"F","CHE ","DU PILORI                 ",1,"COLOMBIER-SAUGNIEU            "]
[69,0,299,1761,"P","RUE ","DES SUREAUX               ",1,"COLOMBIER-SAUGNIEU            "]
[69,0,381,700,"E","RUE ","DU BAT D ARGENT           ",1,"LYON 1ER                      "]
[69,0,381,1240,"S","PL  ","DES CAPUCINS              ",1,"LYON 1ER                      "]
[69,0,381,1990,"G","RUE ","DE CRIMEE                 ",1,"LYON 1ER                      "]
[69,0,381,3370,"G","RUE ","GROGNARD                  ",1,"LYON 1ER                      "]
[69,0,381,4390,"R","RUE ","LUCIEN SPORTISSE          ",1,"LYON 1ER                      "]
[69,0,381,5035,"S","RUE ","NEYRET                    ",1,"LYON 1ER                      "]
[69,0,381,5592,"X","IMP ","DE LA PLATIERE            ",1,"LYON 1ER                      "]
[69,0,381,6050,"V","RUE ","RIVET                     ",1,"LYON 1ER                      "]
[69,0,381,6680,"E","PL  ","SATHONAY                  ",1,"LYON 1ER                      "]
[69,0,382,60,"E","RUE ","ADELAIDE PERRIN           ",1,"LYON 2EME                     "]
[69,0,382,535,"W","RUE ","AUGUSTE COMTE             ",1,"LYON 2EME                     "]
[69,0,382,1180,"X","PL  ","CAMILLE GEORGES           ",1,"LYON 2EME                     "]
[69,0,382,1550,"Z","PL  ","CHEVALIER DE ST GEORGES   ",1,"LYON 2EME                     "]
[69,0,382,2515,"Y","RUE ","D'ENGHIEN                 ",1,"LYON 2EME                     "]
[69,0,382,3150,"N","RUE ","GENERAL PLESSIER          ",1,"LYON 2EME                     "]
[69,0,382,3670,"D","RUE ","JARENTE                   ",1,"LYON 2EME                     "]
[69,0,382,5355,"K","QUAI","PERRACHE                  ",1,"LYON 2EME                     "]
[69,0,382,6265,"Z","RUE ","ST-BONAVENTURE            ",1,"LYON 2EME                     "]
[69,0,382,6920,"L","RUE ","DES TEMPLIERS             ",1,"LYON 2EME                     "]
[69,0,383,"X002","W","    ","LE RHONE                  ",4,"LYON 3EME                     "]
[69,0,383,330,"U","PL  ","ANTOINE GALLAY            ",1,"LYON 3EME                     "]
[69,0,383,910,"Z","PAS ","BIETRIX                   ",1,"LYON 3EME                     "]
[69,0,383,1975,"G","RUE ","DE CREQUI                 ",1,"LYON 3EME                     "]
[69,0,383,2365,"F","RUE ","DUGUESCLIN                ",1,"LYON 3EME                     "]
[69,0,383,2630,"U","CRS ","EUGENIE                   ",1,"LYON 3EME                     "]
[69,0,383,2990,"K","RUE ","GANDOLIERE                ",1,"LYON 3EME                     "]
[69,0,383,3654,"G","PARC","JACOB KAPLAN              ",1,"LYON 3EME                     "]
[69,0,383,3987,"U","RUE ","JULES JUSSERAND           ",1,"LYON 3EME                     "]
[69,0,383,4705,"Z","RUE ","MAZENOD                   ",1,"LYON 3EME                     "]
[69,0,383,5005,"A","ESP ","NELSON MANDELA            ",1,"LYON 3EME                     "]
[69,0,383,5470,"F","RUE ","PIERRE BOURDAN            ",1,"LYON 3EME                     "]
[69,0,383,5965,"U","PL  ","DE LA RECONNAISSANCE      ",1,"LYON 3EME                     "]
[69,0,383,6230,"G","RUE ","ST-AMOUR                  ",1,"LYON 3EME                     "]
[69,0,383,6640,"C","RUE ","STE-MARIE                 ",1,"LYON 3EME                     "]
[69,0,383,7380,"G","PL  ","VICTOR BASCH              ",1,"LYON 3EME                     "]
[69,0,384,1030,"A","RUE ","BONY                      ",1,"LYON 4EME                     "]
[69,0,384,1930,"D","RUE ","DE LA CORNICHE            ",1,"LYON 4EME                     "]
[69,0,384,2411,"B","IMP ","DUPEYROUX                 ",1,"LYON 4EME                     "]
[69,0,384,3280,"W","IMP ","GORD                      ",1,"LYON 4EME                     "]
[69,0,384,3890,"J","PL  ","JOANNES AMBRE             ",1,"LYON 4EME                     "]
[69,0,384,5063,"J","SQ  ","NINON VALLIN              ",1,"LYON 4EME                     "]
[69,0,384,7395,"U","RUE ","VICTOR FORT               ",1,"LYON 4EME                     "]
[69,0,385,410,"X","RUE ","APPIAN                    ",1,"LYON 5EME                     "]
[69,0,385,850,"A","PL  ","BENEDICT TESSIER          ",1,"LYON 5EME                     "]
[69,0,385,1427,"C","PONT","DU CHANGE                 ",1,"LYON 5EME                     "]
[69,0,385,2115,"A","AV  ","DEBROUSSE                 ",1,"LYON 5EME                     "]
[69,0,385,2665,"Y","RUE ","DE LA FAVORITE            ",1,"LYON 5EME                     "]
[69,0,385,3112,"J","AV  ","GENERAL DWIGHT EISENHOWER ",1,"LYON 5EME                     "]
[69,0,385,4795,"N","PL  ","DES MINIMES               ",1,"LYON 5EME                     "]
[69,0,385,5340,"F","RUE ","DES PEPINIERES            ",1,"LYON 5EME                     "]
[69,0,385,5970,"R","IMP ","DE LA REINE               ",1,"LYON 5EME                     "]
[69,0,385,6425,"K","RUE ","SAINT JEAN                ",1,"LYON 5EME                     "]
[69,0,385,7074,"R","IMP ","DE TOURVIELLE             ",1,"LYON 5EME                     "]
[69,0,386,"X999","S","    ","LIMITE ADMINISTRATIVE     ",4,"LYON 6EME                     "]
[69,0,386,2365,"T","RUE ","DUGUESCLIN                ",1,"LYON 6EME                     "]
[69,0,386,3300,"J","AV  ","DE GRANDE BRETAGNE        ",1,"LYON 6EME                     "]
[69,0,386,4095,"Y","CRS ","LAFAYETTE                 ",1,"LYON 6EME                     "]
[69,0,386,4920,"V","RUE ","MORELLET                  ",1,"LYON 6EME                     "]
[69,0,386,6043,"R","PONT","RAYMOND POINCARE          ",1,"LYON 6EME                     "]
[69,0,387,75,"Z","RUE ","D AGUESSEAU               ",1,"LYON 7EME                     "]
[69,0,387,155,"L","RUE ","ALEXANDER FLEMING         ",1,"LYON 7EME                     "]
[69,0,387,1375,"M","RUE ","CHALLEMEL LACOUR          ",1,"LYON 7EME                     "]
[69,0,387,1975,"P","RUE ","CREQUI                    ",1,"LYON 7EME                     "]
[69,0,387,2608,"C","ALL ","EUGENIE NIBOYET           ",1,"LYON 7EME                     "]
[69,0,387,3192,"M","RUE ","GEORGE SAND               ",1,"LYON 7EME                     "]
[69,0,387,3575,"D","IMP ","HORAND                    ",1,"LYON 7EME                     "]
[69,0,387,3820,"V","RUE ","JEAN PIERRE CHEVROT       ",1,"LYON 7EME                     "]
[69,0,387,5130,"U","PL  ","OLLIER                    ",1,"LYON 7EME                     "]
[69,0,387,5587,"R","PORT","HERRIOT RUE D ARLES       ",1,"LYON 7EME                     "]
[69,0,387,5820,"U","RUE ","PROFESSEUR ZIMMERMANN     ",1,"LYON 7EME                     "]
[69,0,387,6450,"D","PL  ","ST LOUIS                  ",1,"LYON 7EME                     "]
[69,0,387,7050,"F","CHE ","DE LA TOUR                ",1,"LYON 7EME                     "]
[69,0,387,7440,"E","RTE ","DE VIENNE                 ",1,"LYON 7EME                     "]
[69,0,388,900,"S","AV  ","BERTHELOT                 ",1,"LYON 8EME                     "]
[69,0,388,1375,"H","RUE ","CHALLEMEL LACOUR          ",1,"LYON 8EME                     "]
[69,0,388,1865,"R","    ","PASSAGE COMTOIS           ",1,"LYON 8EME                     "]
[69,0,388,1875,"B","RUE ","DE LA CONCORDE            ",1,"LYON 8EME                     "]
[69,0,388,1995,"G","RUE ","CROIX BARRET              ",1,"LYON 8EME                     "]
[69,0,388,2000,"M","RUE ","EDOUARD ROCHET            ",1,"LYON 8EME                     "]
[69,0,388,2050,"S","RUE ","DE CHAMPAGNEUX            ",1,"LYON 8EME                     "]
[69,0,388,2105,"B","AV  ","DE PRESSENSE              ",1,"LYON 8EME                     "]
[69,0,388,2150,"A","RUE ","DENIS                     ",1,"LYON 8EME                     "]
[69,0,388,2195,"Z","RUE ","DOC ARMAND GELIBERT       ",1,"LYON 8EME                     "]
[69,0,388,2205,"K","RUE ","DOCTEUR BONHOMME          ",1,"LYON 8EME                     "]
[69,0,388,2260,"V","RUE ","DOC VICTOR DESPEIGNES     ",1,"LYON 8EME                     "]
[69,0,388,2450,"B","AV  ","EDMOND MICHELET           ",1,"LYON 8EME                     "]
[69,0,388,2470,"Y","RUE ","EDOUARD NIEUPORT          ",1,"LYON 8EME                     "]
[69,0,388,2480,"J","RUE ","DE L ' EGALITE            ",1,"LYON 8EME                     "]
[69,0,388,2500,"F","RUE ","EMILE COMBES              ",1,"LYON 8EME                     "]
[69,0,388,2530,"N","RUE ","EPARGNE                   ",1,"LYON 8EME                     "]
[69,0,388,2575,"M","BD  ","DES ETATS-UNIS            ",1,"LYON 8EME                     "]
[69,0,388,2580,"T","RUE ","DE L'ETERNITE             ",1,"LYON 8EME                     "]
[69,0,388,2590,"D","BD  ","DE L'EUROPE               ",1,"LYON 8EME                     "]
[69,0,388,2740,"S","IMP ","FERRET                    ",1,"LYON 8EME                     "]
[69,0,388,2765,"U","RUE ","FEUILLAT                  ",1,"LYON 8EME                     "]
[69,0,388,2795,"B","RUE ","FLORENT                   ",1,"LYON 8EME                     "]
[69,0,388,2802,"J","RUE ","A FONLIN                  ",1,"LYON 8EME                     "]
[69,0,388,2868,"F","RUE ","DE LA FRATERNITE          ",1,"LYON 8EME                     "]
[69,0,388,2910,"B","AV  ","DES FRERES LUMIERE        ",1,"LYON 8EME                     "]
[69,0,388,2920,"M","PL  ","DES FRERES VOISIN         ",1,"LYON 8EME                     "]
[69,0,388,2930,"Y","RUE ","FRIDA KAHLO               ",1,"LYON 8EME                     "]
[69,0,388,2945,"P","RUE ","GABRIEL SARRAZIN          ",1,"LYON 8EME                     "]
[69,0,388,2995,"U","IMP ","GANTZ                     ",1,"LYON 8EME                     "]
[69,0,388,3040,"T","RUE ","GARON DURET               ",1,"LYON 8EME                     "]
[69,0,388,3055,"J","RUE ","GASTON BRISSAC            ",1,"LYON 8EME                     "]
[69,0,388,3060,"P","RUE ","GASTON COTTE              ",1,"LYON 8EME                     "]
[69,0,388,3071,"B","RUE ","A GELIBERT                ",1,"LYON 8EME                     "]
[69,0,388,3090,"X","    ","PLACE GENERAL ANDRE       ",1,"LYON 8EME                     "]
[69,0,388,3095,"C","    ","RUE GENERAL ANDRE         ",1,"LYON 8EME                     "]
[69,0,388,3125,"K","AV  ","GENERAL FRERE             ",1,"LYON 8EME                     "]
[69,0,388,3140,"B","RUE ","GENERAL GOURAUD           ",1,"LYON 8EME                     "]
[69,0,388,3190,"F","RUE ","GENTON                    ",1,"LYON 8EME                     "]
[69,0,388,3390,"Y","RUE ","GUILLAUME PARADIN         ",1,"LYON 8EME                     "]
[69,0,388,3420,"F","ALL ","HANNAH ARENDT             ",1,"LYON 8EME                     "]
[69,0,388,3480,"W","RUE ","HENRI BARBUSSE            ",1,"LYON 8EME                     "]
[69,0,388,3520,"P","RUE ","HENRI PENSIER             ",1,"LYON 8EME                     "]
[69,0,388,3535,"F","RUE ","DES HERIDEAUX             ",1,"LYON 8EME                     "]
[69,0,388,3580,"E","RUE ","HUGUES GUERIN             ",1,"LYON 8EME                     "]
[69,0,388,3590,"R","PL  ","DU HUIT MAI 1945          ",1,"LYON 8EME                     "]
[69,0,388,3653,"J","RUE ","JACQUELINE AURIOL         ",1,"LYON 8EME                     "]
[69,0,388,3675,"H","RUE ","DES JASMINS               ",1,"LYON 8EME                     "]
[69,0,388,3695,"E","SQ  ","JEAN BARGOIN              ",1,"LYON 8EME                     "]
[69,0,388,3710,"W","RUE ","JEAN CHEVAILLER           ",1,"LYON 8EME                     "]
[69,0,388,3725,"M","RUE ","JEAN DESPARMET            ",1,"LYON 8EME                     "]
[69,0,388,3730,"T","SQ  ","JEAN DE TORCY             ",1,"LYON 8EME                     "]
[69,0,388,3740,"D","IMP ","JEAN JAURES               ",1,"LYON 8EME                     "]
[69,0,388,3755,"V","IMP ","JEAN LADOUS               ",1,"LYON 8EME                     "]
[69,0,388,3795,"N","AV  ","JEAN MERMOZ               ",1,"LYON 8EME                     "]
[69,0,388,3810,"E","RUE ","JEAN PERREAL              ",1,"LYON 8EME                     "]
[69,0,388,3835,"G","RUE ","JEAN SARRAZIN             ",1,"LYON 8EME                     "]
[69,0,388,3843,"R","BD  ","JEAN VINGT TROIS          ",1,"LYON 8EME                     "]
[69,0,388,3905,"H","RUE ","JOSEPH CHALIER            ",1,"LYON 8EME                     "]
[69,0,388,3910,"N","RUE ","JOSEPH CHAPELLE           ",1,"LYON 8EME                     "]
[69,0,388,3918,"X","PL  ","PROFESSEUR J RENAUT       ",1,"LYON 8EME                     "]
[69,0,388,3919,"Y","RUE ","PROF JOSEPH RENAUT        ",1,"LYON 8EME                     "]
[69,0,388,3935,"R","IMP ","JOUHET                    ",1,"LYON 8EME                     "]
[69,0,388,3950,"G","RUE ","JULES CAMBON              ",1,"LYON 8EME                     "]
[69,0,388,3975,"J","RUE ","JULES FROMENT             ",1,"LYON 8EME                     "]
[69,0,388,4000,"L","RUE ","JULES VALENSAUT           ",1,"LYON 8EME                     "]
[69,0,388,4005,"S","PL  ","JULIE DAUBIE              ",1,"LYON 8EME                     "]
[69,0,388,4008,"V","PL  ","JULIEN DURET              ",1,"LYON 8EME                     "]
[69,0,388,4014,"B","PROM","JULIETTE GUILLOT          ",1,"LYON 8EME                     "]
[69,0,388,4090,"J","RUE ","LAENNEC                   ",1,"LYON 8EME                     "]
[69,0,388,4095,"P","SQ  ","DE LA LAICITE             ",1,"LYON 8EME                     "]
[69,0,388,4101,"W","RUE ","LAPRADE                   ",1,"LYON 8EME                     "]
[69,0,388,4165,"R","BD  ","LAURENT BONNEVAY          ",1,"LYON 8EME                     "]
[69,0,388,4170,"W","RUE ","LAURENT CARLE             ",1,"LYON 8EME                     "]
[69,0,388,4180,"G","PROM","LEA ET NAPOLEON BULLUKIAN ",1,"LYON 8EME                     "]
[69,0,388,4186,"N","PARC","LEON PFEFFER              ",1,"LYON 8EME                     "]
[69,0,388,4190,"T","RUE ","LEO TROUILHET             ",1,"LYON 8EME                     "]
[69,0,388,4245,"C","RUE ","DES LILAS                 ",1,"LYON 8EME                     "]
[69,0,388,4250,"H","SQ  ","JARDIN LILY EIGELDINGER   ",1,"LYON 8EME                     "]
[69,0,388,4270,"E","RUE ","LONGEFER                  ",1,"LYON 8EME                     "]
[69,0,388,4315,"D","RUE ","LOUIS CEZARD              ",1,"LYON 8EME                     "]
[69,0,388,4322,"L","RUE ","LOUIS CHAPUY              ",1,"LYON 8EME                     "]
[69,0,388,4340,"F","RUE ","LOUIS HUGOUNENQ           ",1,"LYON 8EME                     "]
[69,0,388,4343,"J","RUE ","LOUIS JOUVET              ",1,"LYON 8EME                     "]
[69,0,388,4344,"K","PL  ","LOUIS LEBRET              ",1,"LYON 8EME                     "]
[69,0,388,4345,"L","IMP ","LUCIEN LADOUS             ",1,"LYON 8EME                     "]
[69,0,389,7495,"F","AV  ","DU 25E RGT TIR SENEGALAIS ",-414,"LYON 9EME                     "]
[69,0,389,7495,"F","AV  ","DU 25E RGT TIR SENEGALAIS ",-413,"LYON 9EME                     "]
[69,0,389,7495,"F","AV  ","DU 25E RGT TIR SENEGALAIS ",-412,"LYON 9EME                     "]
[69,0,389,7495,"F","AV  ","DU 25E RGT TIR SENEGALAIS ",-411,"LYON 9EME                     "]
[69,0,389,7495,"F","AV  ","DU 25E RGT TIR SENEGALAIS ",-410,"LYON 9EME                     "]
[69,0,389,7495,"F","AV  ","DU 25E RGT TIR SENEGALAIS ",-409,"LYON 9EME                     "]
[69,0,389,7495,"F","AV  ","DU 25E RGT TIR SENEGALAIS ",-408,"LYON 9EME                     "]
[69,0,389,7495,"F","AV  ","DU 25E RGT TIR SENEGALAIS ",-407,"LYON 9EME                     "]
[69,0,389,7495,"F","AV  ","DU 25E RGT TIR SENEGALAIS ",-406,"LYON 9EME                     "]
[69,0,389,7495,"F","AV  ","DU 25E RGT TIR SENEGALAIS ",-405,"LYON 9EME                     "]
[69,0,389,7495,"F","AV  ","DU 25E RGT TIR SENEGALAIS ",-404,"LYON 9EME                     "]
[69,0,389,7495,"F","AV  ","DU 25E RGT TIR SENEGALAIS ",-403,"LYON 9EME                     "]
[69,0,389,7495,"F","AV  ","DU 25E RGT TIR SENEGALAIS ",-402,"LYON 9EME                     "]
[69,0,389,7495,"F","AV  ","DU 25E RGT TIR SENEGALAIS ",-401,"LYON 9EME                     "]
[69,0,389,7495,"F","AV  ","DU 25E RGT TIR SENEGALAIS ",-400,"LYON 9EME                     "]
[69,0,389,7495,"F","AV  ","DU 25E RGT TIR SENEGALAIS ",-399,"LYON 9EME                     "]
[69,0,389,7495,"F","AV  ","DU 25E RGT TIR SENEGALAIS ",-398,"LYON 9EME                     "]
[69,0,389,7495,"F","AV  ","DU 25E RGT TIR SENEGALAIS ",-397,"LYON 9EME                     "]
[69,0,389,7495,"F","AV  ","DU 25E RGT TIR SENEGALAIS ",-396,"LYON 9EME                     "]
[69,0,389,7495,"F","AV  ","DU 25E RGT TIR SENEGALAIS ",-395,"LYON 9EME                     "]
[69,0,389,7495,"F","AV  ","DU 25E RGT TIR SENEGALAIS ",-394,"LYON 9EME                     "]
[69,0,389,7495,"F","AV  ","DU 25E RGT TIR SENEGALAIS ",-393,"LYON 9EME                     "]
[69,0,389,7495,"F","AV  ","DU 25E RGT TIR SENEGALAIS ",-392,"LYON 9EME                     "]
[69,0,389,7495,"F","AV  ","DU 25E RGT TIR SENEGALAIS ",-391,"LYON 9EME                     "]
[69,0,389,7495,"F","AV  ","DU 25E RGT TIR SENEGALAIS ",-390,"LYON 9EME                     "]
[69,0,389,7495,"F","AV  ","DU 25E RGT TIR SENEGALAIS ",-389,"LYON 9EME                     "]
[69,0,389,7495,"F","AV  ","DU 25E RGT TIR SENEGALAIS ",-388,"LYON 9EME                     "]
[69,0,389,7495,"F","AV  ","DU 25E RGT TIR SENEGALAIS ",-387,"LYON 9EME                     "]
[69,0,389,7495,"F","AV  ","DU 25E RGT TIR SENEGALAIS ",-386,"LYON 9EME                     "]
[69,0,389,7495,"F","AV  ","DU 25E RGT TIR SENEGALAIS ",-385,"LYON 9EME                     "]
[69,0,389,7495,"F","AV  ","DU 25E RGT TIR SENEGALAIS ",-384,"LYON 9EME                     "]
[69,0,389,7495,"F","AV  ","DU 25E RGT TIR SENEGALAIS ",-383,"LYON 9EME                     "]
[69,0,389,7495,"F","AV  ","DU 25E RGT TIR SENEGALAIS ",-382,"LYON 9EME                     "]
[69,0,389,7495,"F","AV  ","DU 25E RGT TIR SENEGALAIS ",-381,"LYON 9EME                     "]
[69,0,389,7495,"F","AV  ","DU 25E RGT TIR SENEGALAIS ",-380,"LYON 9EME                     "]
[69,0,389,7495,"F","AV  ","DU 25E RGT TIR SENEGALAIS ",-379,"LYON 9EME                     "]
[69,0,389,7495,"F","AV  ","DU 25E RGT TIR SENEGALAIS ",-378,"LYON 9EME                     "]
[69,0,389,7495,"F","AV  ","DU 25E RGT TIR SENEGALAIS ",-377,"LYON 9EME                     "]
[69,0,389,7495,"F","AV  ","DU 25E RGT TIR SENEGALAIS ",-376,"LYON 9EME                     "]
[69,0,389,7495,"F","AV  ","DU 25E RGT TIR SENEGALAIS ",-375,"LYON 9EME                     "]
[69,0,389,7495,"F","AV  ","DU 25E RGT TIR SENEGALAIS ",-374,"LYON 9EME                     "]
[69,0,389,7495,"F","AV  ","DU 25E RGT TIR SENEGALAIS ",-373,"LYON 9EME                     "]
[69,0,389,7495,"F","AV  ","DU 25E RGT TIR SENEGALAIS ",-372,"LYON 9EME                     "]
[69,0,389,7495,"F","AV  ","DU 25E RGT TIR SENEGALAIS ",-371,"LYON 9EME                     "]
[69,0,389,7495,"F","AV  ","DU 25E RGT TIR SENEGALAIS ",-370,"LYON 9EME                     "]
[69,0,389,7495,"F","AV  ","DU 25E RGT TIR SENEGALAIS ",-369,"LYON 9EME                     "]
[69,0,389,7495,"F","AV  ","DU 25E RGT TIR SENEGALAIS ",-368,"LYON 9EME                     "]
[69,0,389,7495,"F","AV  ","DU 25E RGT TIR SENEGALAIS ",-367,"LYON 9EME                     "]
[69,0,389,7495,"F","AV  ","DU 25E RGT TIR SENEGALAIS ",-366,"LYON 9EME                     "]
[69,0,389,7495,"F","AV  ","DU 25E RGT TIR SENEGALAIS ",-365,"LYON 9EME                     "]
[69,0,389,7495,"F","AV  ","DU 25E RGT TIR SENEGALAIS ",-364,"LYON 9EME                     "]
[69,0,389,7495,"F","AV  ","DU 25E RGT TIR SENEGALAIS ",-363,"LYON 9EME                     "]
[69,0,389,7495,"F","AV  ","DU 25E RGT TIR SENEGALAIS ",-362,"LYON 9EME                     "]
[69,0,389,7495,"F","AV  ","DU 25E RGT TIR SENEGALAIS ",-361,"LYON 9EME                     "]
[69,0,389,7495,"F","AV  ","DU 25E RGT TIR SENEGALAIS ",-360,"LYON 9EME                     "]
[69,0,389,7495,"F","AV  ","DU 25E RGT TIR SENEGALAIS ",-359,"LYON 9EME                     "]
[69,0,389,7495,"F","AV  ","DU 25E RGT TIR SENEGALAIS ",-358,"LYON 9EME                     "]
[69,0,389,7495,"F","AV  ","DU 25E RGT TIR SENEGALAIS ",-357,"LYON 9EME                     "]
[69,0,389,7495,"F","AV  ","DU 25E RGT TIR SENEGALAIS ",-356,"LYON 9EME                     "]
[69,0,389,7495,"F","AV  ","DU 25E RGT TIR SENEGALAIS ",-355,"LYON 9EME                     "]
[69,0,389,7495,"F","AV  ","DU 25E RGT TIR SENEGALAIS ",-354,"LYON 9EME                     "]
[69,0,389,7495,"F","AV  ","DU 25E RGT TIR SENEGALAIS ",-353,"LYON 9EME                     "]
[69,0,389,7495,"F","AV  ","DU 25E RGT TIR SENEGALAIS ",-352,"LYON 9EME                     "]
[69,0,389,7495,"F","AV  ","DU 25E RGT TIR SENEGALAIS ",-351,"LYON 9EME                     "]
[69,0,389,7495,"F","AV  ","DU 25E RGT TIR SENEGALAIS ",-350,"LYON 9EME                     "]
[69,0,389,7495,"F","AV  ","DU 25E RGT TIR SENEGALAIS ",-349,"LYON 9EME                     "]
[69,0,389,7495,"F","AV  ","DU 25E RGT TIR SENEGALAIS ",-348,"LYON 9EME                     "]
[69,0,389,7495,"F","AV  ","DU 25E RGT TIR SENEGALAIS ",-347,"LYON 9EME                     "]
[69,0,389,7495,"F","AV  ","DU 25E RGT TIR SENEGALAIS ",-346,"LYON 9EME                     "]
[69,0,389,7495,"F","AV  ","DU 25E RGT TIR SENEGALAIS ",-345,"LYON 9EME                     "]
[69,0,389,7495,"F","AV  ","DU 25E RGT TIR SENEGALAIS ",-344,"LYON 9EME                     "]
[69,0,389,7495,"F","AV  ","DU 25E RGT TIR SENEGALAIS ",-343,"LYON 9EME                     "]
[69,0,389,7495,"F","AV  ","DU 25E RGT TIR SENEGALAIS ",-342,"LYON 9EME                     "]
[69,0,389,7495,"F","AV  ","DU 25E RGT TIR SENEGALAIS ",-341,"LYON 9EME                     "]
[69,0,389,7495,"F","AV  ","DU 25E RGT TIR SENEGALAIS ",-340,"LYON 9EME                     "]
[69,0,389,7495,"F","AV  ","DU 25E RGT TIR SENEGALAIS ",-339,"LYON 9EME                     "]
[69,0,389,7495,"F","AV  ","DU 25E RGT TIR SENEGALAIS ",-338,"LYON 9EME                     "]
[69,0,389,7495,"F","AV  ","DU 25E RGT TIR SENEGALAIS ",-337,"LYON 9EME                     "]
[69,0,389,7495,"F","AV  ","DU 25E RGT TIR SENEGALAIS ",-336,"LYON 9EME                     "]
[69,0,389,7495,"F","AV  ","DU 25E RGT TIR SENEGALAIS ",-335,"LYON 9EME                     "]
[69,0,389,7495,"F","AV  ","DU 25E RGT TIR SENEGALAIS ",-334,"LYON 9EME                     "]
[69,0,389,7495,"F","AV  ","DU 25E RGT TIR SENEGALAIS ",-333,"LYON 9EME                     "]
[69,0,389,7495,"F","AV  ","DU 25E RGT TIR SENEGALAIS ",-332,"LYON 9EME                     "]
[69,0,389,7495,"F","AV  ","DU 25E RGT TIR SENEGALAIS ",-331,"LYON 9EME                     "]
[69,0,389,7495,"F","AV  ","DU 25E RGT TIR SENEGALAIS ",-330,"LYON 9EME                     "]
[69,0,389,7495,"F","AV  ","DU 25E RGT TIR SENEGALAIS ",-329,"LYON 9EME                     "]
[69,0,389,7495,"F","AV  ","DU 25E RGT TIR SENEGALAIS ",-328,"LYON 9EME                     "]
[69,0,389,7495,"F","AV  ","DU 25E RGT TIR SENEGALAIS ",-327,"LYON 9EME                     "]
[69,0,389,7495,"F","AV  ","DU 25E RGT TIR SENEGALAIS ",-326,"LYON 9EME                     "]
[69,0,389,7495,"F","AV  ","DU 25E RGT TIR SENEGALAIS ",-325,"LYON 9EME                     "]
[69,0,389,7495,"F","AV  ","DU 25E RGT TIR SENEGALAIS ",-324,"LYON 9EME                     "]
[69,0,389,7495,"F","AV  ","DU 25E RGT TIR SENEGALAIS ",-323,"LYON 9EME                     "]
[69,0,389,7495,"F","AV  ","DU 25E RGT TIR SENEGALAIS ",-322,"LYON 9EME                     "]
[69,0,389,7495,"F","AV  ","DU 25E RGT TIR SENEGALAIS ",-321,"LYON 9EME                     "]
[69,0,389,7495,"F","AV  ","DU 25E RGT TIR SENEGALAIS ",-320,"LYON 9EME                     "]
[69,0,389,7495,"F","AV  ","DU 25E RGT TIR SENEGALAIS ",-319,"LYON 9EME                     "]
[69,0,389,7495,"F","AV  ","DU 25E RGT TIR SENEGALAIS ",-318,"LYON 9EME                     "]
[69,0,389,7495,"F","AV  ","DU 25E RGT TIR SENEGALAIS ",-317,"LYON 9EME                     "]
[69,0,389,7495,"F","AV  ","DU 25E RGT TIR SENEGALAIS ",-316,"LYON 9EME                     "]
[69,0,389,7495,"F","AV  ","DU 25E RGT TIR SENEGALAIS ",-315,"LYON 9EME                     "]
[69,0,389,7495,"F","AV  ","DU 25E RGT TIR SENEGALAIS ",-314,"LYON 9EME                     "]
[69,0,389,7495,"F","AV  ","DU 25E RGT TIR SENEGALAIS ",-313,"LYON 9EME                     "]
[69,0,389,7495,"F","AV  ","DU 25E RGT TIR SENEGALAIS ",-312,"LYON 9EME                     "]
[69,0,389,7495,"F","AV  ","DU 25E RGT TIR SENEGALAIS ",-311,"LYON 9EME                     "]
[69,0,389,7495,"F","AV  ","DU 25E RGT TIR SENEGALAIS ",-310,"LYON 9EME                     "]
[69,0,389,7495,"F","AV  ","DU 25E RGT TIR SENEGALAIS ",-309,"LYON 9EME                     "]
[69,0,389,7495,"F","AV  ","DU 25E RGT TIR SENEGALAIS ",-308,"LYON 9EME                     "]
[69,0,389,7495,"F","AV  ","DU 25E RGT TIR SENEGALAIS ",-307,"LYON 9EME                     "]
[69,0,389,7495,"F","AV  ","DU 25E RGT TIR SENEGALAIS ",-306,"LYON 9EME                     "]
[69,0,389,7495,"F","AV  ","DU 25E RGT TIR SENEGALAIS ",-305,"LYON 9EME                     "]
[69,0,389,7495,"F","AV  ","DU 25E RGT TIR SENEGALAIS ",-304,"LYON 9EME                     "]
[69,0,389,7495,"F","AV  ","DU 25E RGT TIR SENEGALAIS ",-303,"LYON 9EME                     "]
[69,0,389,7495,"F","AV  ","DU 25E RGT TIR SENEGALAIS ",-302,"LYON 9EME                     "]
[69,0,389,7495,"F","AV  ","DU 25E RGT TIR SENEGALAIS ",-301,"LYON 9EME                     "]
[69,0,389,7495,"F","AV  ","DU 25E RGT TIR SENEGALAIS ",-300,"LYON 9EME                     "]
[69,0,389,7495,"F","AV  ","DU 25E RGT TIR SENEGALAIS ",-299,"LYON 9EME                     "]
[69,0,389,7495,"F","AV  ","DU 25E RGT TIR SENEGALAIS ",-298,"LYON 9EME                     "]
[69,0,389,7495,"F","AV  ","DU 25E RGT TIR SENEGALAIS ",-297,"LYON 9EME                     "]
[69,0,389,7495,"F","AV  ","DU 25E RGT TIR SENEGALAIS ",-296,"LYON 9EME                     "]
[69,0,389,7495,"F","AV  ","DU 25E RGT TIR SENEGALAIS ",-295,"LYON 9EME                     "]
[69,0,389,7495,"F","AV  ","DU 25E RGT TIR SENEGALAIS ",-294,"LYON 9EME                     "]
[69,0,389,7495,"F","AV  ","DU 25E RGT TIR SENEGALAIS ",-293,"LYON 9EME                     "]
[69,0,389,7495,"F","AV  ","DU 25E RGT TIR SENEGALAIS ",-292,"LYON 9EME                     "]
[69,0,389,7495,"F","AV  ","DU 25E RGT TIR SENEGALAIS ",-291,"LYON 9EME                     "]
[69,0,389,7495,"F","AV  ","DU 25E RGT TIR SENEGALAIS ",-290,"LYON 9EME                     "]
[69,0,389,7495,"F","AV  ","DU 25E RGT TIR SENEGALAIS ",-289,"LYON 9EME                     "]
[69,0,389,7495,"F","AV  ","DU 25E RGT TIR SENEGALAIS ",-288,"LYON 9EME                     "]
[69,0,389,7495,"F","AV  ","DU 25E RGT TIR SENEGALAIS ",-287,"LYON 9EME                     "]
[69,0,389,7495,"F","AV  ","DU 25E RGT TIR SENEGALAIS ",-286,"LYON 9EME                     "]
[69,0,389,7495,"F","AV  ","DU 25E RGT TIR SENEGALAIS ",-285,"LYON 9EME                     "]
[69,0,389,7495,"F","AV  ","DU 25E RGT TIR SENEGALAIS ",-284,"LYON 9EME                     "]
[69,0,389,7495,"F","AV  ","DU 25E RGT TIR SENEGALAIS ",-283,"LYON 9EME                     "]
[69,0,389,7495,"F","AV  ","DU 25E RGT TIR SENEGALAIS ",-282,"LYON 9EME                     "]
[69,0,389,7495,"F","AV  ","DU 25E RGT TIR SENEGALAIS ",-281,"LYON 9EME                     "]
[69,0,389,7495,"F","AV  ","DU 25E RGT TIR SENEGALAIS ",-280,"LYON 9EME                     "]
[69,0,389,7495,"F","AV  ","DU 25E RGT TIR SENEGALAIS ",-279,"LYON 9EME                     "]
[69,0,389,7495,"F","AV  ","DU 25E RGT TIR SENEGALAIS ",-278,"LYON 9EME                     "]
[69,0,389,7495,"F","AV  ","DU 25E RGT TIR SENEGALAIS ",-277,"LYON 9EME                     "]
[69,0,389,7495,"F","AV  ","DU 25E RGT TIR SENEGALAIS ",-276,"LYON 9EME                     "]
[69,0,389,7495,"F","AV  ","DU 25E RGT TIR SENEGALAIS ",-275,"LYON 9EME                     "]
[69,0,389,7495,"F","AV  ","DU 25E RGT TIR SENEGALAIS ",-274,"LYON 9EME                     "]
[69,0,389,7495,"F","AV  ","DU 25E RGT TIR SENEGALAIS ",-273,"LYON 9EME                     "]
[69,0,389,7495,"F","AV  ","DU 25E RGT TIR SENEGALAIS ",-272,"LYON 9EME                     "]
[69,0,389,7495,"F","AV  ","DU 25E RGT TIR SENEGALAIS ",-271,"LYON 9EME                     "]
[69,0,389,7495,"F","AV  ","DU 25E RGT TIR SENEGALAIS ",-270,"LYON 9EME                     "]
[69,0,389,7495,"F","AV  ","DU 25E RGT TIR SENEGALAIS ",-269,"LYON 9EME                     "]
[69,0,389,7495,"F","AV  ","DU 25E RGT TIR SENEGALAIS ",-268,"LYON 9EME                     "]
[69,0,389,7495,"F","AV  ","DU 25E RGT TIR SENEGALAIS ",-267,"LYON 9EME                     "]
[69,0,389,7495,"F","AV  ","DU 25E RGT TIR SENEGALAIS ",-266,"LYON 9EME                     "]
[69,0,389,7495,"F","AV  ","DU 25E RGT TIR SENEGALAIS ",-265,"LYON 9EME                     "]
[69,0,389,7495,"F","AV  ","DU 25E RGT TIR SENEGALAIS ",-264,"LYON 9EME                     "]
[69,0,389,7495,"F","AV  ","DU 25E RGT TIR SENEGALAIS ",-263,"LYON 9EME                     "]
[69,0,389,7495,"F","AV  ","DU 25E RGT TIR SENEGALAIS ",-262,"LYON 9EME                     "]
[69,0,389,7495,"F","AV  ","DU 25E RGT TIR SENEGALAIS ",-261,"LYON 9EME                     "]
[69,0,389,7495,"F","AV  ","DU 25E RGT TIR SENEGALAIS ",-260,"LYON 9EME                     "]
[69,0,389,7495,"F","AV  ","DU 25E RGT TIR SENEGALAIS ",-259,"LYON 9EME                     "]
[69,0,389,7495,"F","AV  ","DU 25E RGT TIR SENEGALAIS ",-258,"LYON 9EME                     "]
[69,0,389,7495,"F","AV  ","DU 25E RGT TIR SENEGALAIS ",-257,"LYON 9EME                     "]
[69,0,389,7495,"F","AV  ","DU 25E RGT TIR SENEGALAIS ",-256,"LYON 9EME                     "]
[69,0,389,7495,"F","AV  ","DU 25E RGT TIR SENEGALAIS ",-255,"LYON 9EME                     "]
[69,0,389,7495,"F","AV  ","DU 25E RGT TIR SENEGALAIS ",-254,"LYON 9EME                     "]
[69,0,389,7495,"F","AV  ","DU 25E RGT TIR SENEGALAIS ",-253,"LYON 9EME                     "]
[69,0,389,7495,"F","AV  ","DU 25E RGT TIR SENEGALAIS ",-252,"LYON 9EME                     "]
[69,0,389,7495,"F","AV  ","DU 25E RGT TIR SENEGALAIS ",-251,"LYON 9EME                     "]
[69,0,389,7495,"F","AV  ","DU 25E RGT TIR SENEGALAIS ",-250,"LYON 9EME                     "]
[69,0,389,7495,"F","AV  ","DU 25E RGT TIR SENEGALAIS ",-249,"LYON 9EME                     "]
[69,0,389,7495,"F","AV  ","DU 25E RGT TIR SENEGALAIS ",-248,"LYON 9EME                     "]
[69,0,389,7495,"F","AV  ","DU 25E RGT TIR SENEGALAIS ",-247,"LYON 9EME                     "]
[69,0,389,7495,"F","AV  ","DU 25E RGT TIR SENEGALAIS ",-246,"LYON 9EME                     "]
[69,0,389,7495,"F","AV  ","DU 25E RGT TIR SENEGALAIS ",-245,"LYON 9EME                     "]
[69,0,389,7495,"F","AV  ","DU 25E RGT TIR SENEGALAIS ",-244,"LYON 9EME                     "]
[69,0,389,7495,"F","AV  ","DU 25E RGT TIR SENEGALAIS ",-243,"LYON 9EME                     "]
[69,0,389,7495,"F","AV  ","DU 25E RGT TIR SENEGALAIS ",-242,"LYON 9EME                     "]
[69,0,389,7495,"F","AV  ","DU 25E RGT TIR SENEGALAIS ",-241,"LYON 9EME                     "]
[69,0,389,7495,"F","AV  ","DU 25E RGT TIR SENEGALAIS ",-240,"LYON 9EME                     "]
[69,0,389,7495,"F","AV  ","DU 25E RGT TIR SENEGALAIS ",-239,"LYON 9EME                     "]
[69,0,389,7495,"F","AV  ","DU 25E RGT TIR SENEGALAIS ",-238,"LYON 9EME                     "]
[69,0,389,7495,"F","AV  ","DU 25E RGT TIR SENEGALAIS ",-237,"LYON 9EME                     "]
[69,0,389,7495,"F","AV  ","DU 25E RGT TIR SENEGALAIS ",-236,"LYON 9EME                     "]
[69,0,389,7495,"F","AV  ","DU 25E RGT TIR SENEGALAIS ",-235,"LYON 9EME                     "]
[69,0,389,7495,"F","AV  ","DU 25E RGT TIR SENEGALAIS ",-234,"LYON 9EME                     "]
[69,0,389,7495,"F","AV  ","DU 25E RGT TIR SENEGALAIS ",-233,"LYON 9EME                     "]
[69,0,389,7495,"F","AV  ","DU 25E RGT TIR SENEGALAIS ",-232,"LYON 9EME                     "]
[69,0,389,7495,"F","AV  ","DU 25E RGT TIR SENEGALAIS ",-231,"LYON 9EME                     "]
[69,0,389,7495,"F","AV  ","DU 25E RGT TIR SENEGALAIS ",-230,"LYON 9EME                     "]
[69,0,389,7495,"F","AV  ","DU 25E RGT TIR SENEGALAIS ",-229,"LYON 9EME                     "]
[69,0,389,7495,"F","AV  ","DU 25E RGT TIR SENEGALAIS ",-228,"LYON 9EME                     "]
[69,0,389,7495,"F","AV  ","DU 25E RGT TIR SENEGALAIS ",-227,"LYON 9EME                     "]
[69,0,389,7495,"F","AV  ","DU 25E RGT TIR SENEGALAIS ",-226,"LYON 9EME                     "]
[69,0,389,7495,"F","AV  ","DU 25E RGT TIR SENEGALAIS ",-225,"LYON 9EME                     "]
[69,0,389,7495,"F","AV  ","DU 25E RGT TIR SENEGALAIS ",-224,"LYON 9EME                     "]
[69,0,389,7495,"F","AV  ","DU 25E RGT TIR SENEGALAIS ",-223,"LYON 9EME                     "]
[69,0,389,7495,"F","AV  ","DU 25E RGT TIR SENEGALAIS ",-222,"LYON 9EME                     "]
[69,0,389,7495,"F","AV  ","DU 25E RGT TIR SENEGALAIS ",-221,"LYON 9EME                     "]
[69,0,389,7495,"F","AV  ","DU 25E RGT TIR SENEGALAIS ",-220,"LYON 9EME                     "]
[69,0,389,7495,"F","AV  ","DU 25E RGT TIR SENEGALAIS ",-219,"LYON 9EME                     "]
[69,0,389,7495,"F","AV  ","DU 25E RGT TIR SENEGALAIS ",-218,"LYON 9EME                     "]
[69,0,389,7495,"F","AV  ","DU 25E RGT TIR SENEGALAIS ",-217,"LYON 9EME                     "]
[69,0,389,7495,"F","AV  ","DU 25E RGT TIR SENEGALAIS ",-216,"LYON 9EME                     "]
[69,0,389,7495,"F","AV  ","DU 25E RGT TIR SENEGALAIS ",-215,"LYON 9EME                     "]
[69,0,389,7495,"F","AV  ","DU 25E RGT TIR SENEGALAIS ",-214,"LYON 9EME                     "]
[69,0,389,7495,"F","AV  ","DU 25E RGT TIR SENEGALAIS ",-213,"LYON 9EME                     "]
[69,0,389,7495,"F","AV  ","DU 25E RGT TIR SENEGALAIS ",-212,"LYON 9EME                     "]
[69,0,389,7495,"F","AV  ","DU 25E RGT TIR SENEGALAIS ",-211,"LYON 9EME                     "]
[69,0,389,7495,"F","AV  ","DU 25E RGT TIR SENEGALAIS ",-210,"LYON 9EME                     "]
[69,0,389,7495,"F","AV  ","DU 25E RGT TIR SENEGALAIS ",-209,"LYON 9EME                     "]
[69,0,389,7495,"F","AV  ","DU 25E RGT TIR SENEGALAIS ",-208,"LYON 9EME                     "]
[69,0,389,7495,"F","AV  ","DU 25E RGT TIR SENEGALAIS ",-207,"LYON 9EME                     "]
[69,0,389,7495,"F","AV  ","DU 25E RGT TIR SENEGALAIS ",-206,"LYON 9EME                     "]
[69,0,389,7495,"F","AV  ","DU 25E RGT TIR SENEGALAIS ",-205,"LYON 9EME                     "]
[69,0,389,7495,"F","AV  ","DU 25E RGT TIR SENEGALAIS ",-204,"LYON 9EME                     "]
[69,0,389,7495,"F","AV  ","DU 25E RGT TIR SENEGALAIS ",-203,"LYON 9EME                     "]
[69,0,389,7495,"F","AV  ","DU 25E RGT TIR SENEGALAIS ",-202,"LYON 9EME                     "]
[69,0,389,7495,"F","AV  ","DU 25E RGT TIR SENEGALAIS ",-201,"LYON 9EME                     "]
[69,0,389,7495,"F","AV  ","DU 25E RGT TIR SENEGALAIS ",-200,"LYON 9EME                     "]
[69,0,389,7495,"F","AV  ","DU 25E RGT TIR SENEGALAIS ",-199,"LYON 9EME                     "]
[69,0,389,7495,"F","AV  ","DU 25E RGT TIR SENEGALAIS ",-198,"LYON 9EME                     "]
[69,0,389,7495,"F","AV  ","DU 25E RGT TIR SENEGALAIS ",-197,"LYON 9EME                     "]
[69,0,389,7495,"F","AV  ","DU 25E RGT TIR SENEGALAIS ",-196,"LYON 9EME                     "]
[69,0,389,7495,"F","AV  ","DU 25E RGT TIR SENEGALAIS ",-195,"LYON 9EME                     "]
[69,0,389,7495,"F","AV  ","DU 25E RGT TIR SENEGALAIS ",-194,"LYON 9EME                     "]
[69,0,389,7495,"F","AV  ","DU 25E RGT TIR SENEGALAIS ",-193,"LYON 9EME                     "]
[69,0,389,7495,"F","AV  ","DU 25E RGT TIR SENEGALAIS ",-192,"LYON 9EME                     "]
[69,0,389,7495,"F","AV  ","DU 25E RGT TIR SENEGALAIS ",-191,"LYON 9EME                     "]
[69,0,389,7495,"F","AV  ","DU 25E RGT TIR SENEGALAIS ",-190,"LYON 9EME                     "]
[69,0,389,7495,"F","AV  ","DU 25E RGT TIR SENEGALAIS ",-189,"LYON 9EME                     "]
[69,0,389,7495,"F","AV  ","DU 25E RGT TIR SENEGALAIS ",-188,"LYON 9EME                     "]
[69,0,389,7495,"F","AV  ","DU 25E RGT TIR SENEGALAIS ",-187,"LYON 9EME                     "]
[69,0,389,7495,"F","AV  ","DU 25E RGT TIR SENEGALAIS ",-186,"LYON 9EME                     "]
[69,0,389,7495,"F","AV  ","DU 25E RGT TIR SENEGALAIS ",-185,"LYON 9EME                     "]
[69,0,389,7495,"F","AV  ","DU 25E RGT TIR SENEGALAIS ",-184,"LYON 9EME                     "]
[69,0,389,7495,"F","AV  ","DU 25E RGT TIR SENEGALAIS ",-183,"LYON 9EME                     "]
[69,0,389,7495,"F","AV  ","DU 25E RGT TIR SENEGALAIS ",-182,"LYON 9EME                     "]
[69,0,389,7495,"F","AV  ","DU 25E RGT TIR SENEGALAIS ",-181,"LYON 9EME                     "]
[69,0,389,7495,"F","AV  ","DU 25E RGT TIR SENEGALAIS ",-180,"LYON 9EME                     "]
[69,0,389,7495,"F","AV  ","DU 25E RGT TIR SENEGALAIS ",-179,"LYON 9EME                     "]
[69,0,389,7495,"F","AV  ","DU 25E RGT TIR SENEGALAIS ",-178,"LYON 9EME                     "]
[69,0,389,7495,"F","AV  ","DU 25E RGT TIR SENEGALAIS ",-177,"LYON 9EME                     "]
[69,0,389,7495,"F","AV  ","DU 25E RGT TIR SENEGALAIS ",-176,"LYON 9EME                     "]
[69,0,389,7495,"F","AV  ","DU 25E RGT TIR SENEGALAIS ",-175,"LYON 9EME                     "]
[69,0,389,7495,"F","AV  ","DU 25E RGT TIR SENEGALAIS ",-174,"LYON 9EME                     "]
[69,0,389,7495,"F","AV  ","DU 25E RGT TIR SENEGALAIS ",-173,"LYON 9EME                     "]
[69,0,389,7495,"F","AV  ","DU 25E RGT TIR SENEGALAIS ",-172,"LYON 9EME                     "]
[69,0,389,7495,"F","AV  ","DU 25E RGT TIR SENEGALAIS ",-171,"LYON 9EME                     "]
[69,0,389,7495,"F","AV  ","DU 25E RGT TIR SENEGALAIS ",-170,"LYON 9EME                     "]
[69,0,389,7495,"F","AV  ","DU 25E RGT TIR SENEGALAIS ",-169,"LYON 9EME                     "]
[69,0,389,7495,"F","AV  ","DU 25E RGT TIR SENEGALAIS ",-168,"LYON 9EME                     "]
[69,0,389,7495,"F","AV  ","DU 25E RGT TIR SENEGALAIS ",-167,"LYON 9EME                     "]
[69,0,389,7495,"F","AV  ","DU 25E RGT TIR SENEGALAIS ",-166,"LYON 9EME                     "]
[69,0,389,7495,"F","AV  ","DU 25E RGT TIR SENEGALAIS ",-165,"LYON 9EME                     "]
[69,0,389,7495,"F","AV  ","DU 25E RGT TIR SENEGALAIS ",-164,"LYON 9EME                     "]
[69,0,389,7495,"F","AV  ","DU 25E RGT TIR SENEGALAIS ",-163,"LYON 9EME                     "]
[69,0,389,7495,"F","AV  ","DU 25E RGT TIR SENEGALAIS ",-162,"LYON 9EME                     "]
[69,0,389,7495,"F","AV  ","DU 25E RGT TIR SENEGALAIS ",-161,"LYON 9EME                     "]
[69,0,389,7495,"F","AV  ","DU 25E RGT TIR SENEGALAIS ",-160,"LYON 9EME                     "]
[69,0,389,7495,"F","AV  ","DU 25E RGT TIR SENEGALAIS ",-159,"LYON 9EME                     "]
[69,0,389,7495,"F","AV  ","DU 25E RGT TIR SENEGALAIS ",-158,"LYON 9EME                     "]
[69,0,389,7495,"F","AV  ","DU 25E RGT TIR SENEGALAIS ",-157,"LYON 9EME                     "]
[69,0,389,7495,"F","AV  ","DU 25E RGT TIR SENEGALAIS ",-156,"LYON 9EME                     "]
[69,0,389,7495,"F","AV  ","DU 25E RGT TIR SENEGALAIS ",-155,"LYON 9EME                     "]
[69,0,389,7495,"F","AV  ","DU 25E RGT TIR SENEGALAIS ",-154,"LYON 9EME                     "]
[69,0,389,7495,"F","AV  ","DU 25E RGT TIR SENEGALAIS ",-153,"LYON 9EME                     "]
[69,0,389,7495,"F","AV  ","DU 25E RGT TIR SENEGALAIS ",-152,"LYON 9EME                     "]
[69,0,389,7495,"F","AV  ","DU 25E RGT TIR SENEGALAIS ",-151,"LYON 9EME                     "]
[69,0,389,7495,"F","AV  ","DU 25E RGT TIR SENEGALAIS ",-150,"LYON 9EME                     "]
[69,0,389,7495,"F","AV  ","DU 25E RGT TIR SENEGALAIS ",-149,"LYON 9EME                     "]
[69,0,389,7495,"F","AV  ","DU 25E RGT TIR SENEGALAIS ",-148,"LYON 9EME                     "]
[69,0,389,7495,"F","AV  ","DU 25E RGT TIR SENEGALAIS ",-147,"LYON 9EME                     "]
[69,0,389,7495,"F","AV  ","DU 25E RGT TIR SENEGALAIS ",-146,"LYON 9EME                     "]
[69,0,389,7495,"F","AV  ","DU 25E RGT TIR SENEGALAIS ",-145,"LYON 9EME                     "]
[69,0,389,7495,"F","AV  ","DU 25E RGT TIR SENEGALAIS ",-144,"LYON 9EME                     "]
[69,0,389,7495,"F","AV  ","DU 25E RGT TIR SENEGALAIS ",-143,"LYON 9EME                     "]
[69,0,389,7495,"F","AV  ","DU 25E RGT TIR SENEGALAIS ",-142,"LYON 9EME                     "]
[69,0,389,7495,"F","AV  ","DU 25E RGT TIR SENEGALAIS ",-141,"LYON 9EME                     "]
[69,0,389,7495,"F","AV  ","DU 25E RGT TIR SENEGALAIS ",-140,"LYON 9EME                     "]
[69,0,389,7495,"F","AV  ","DU 25E RGT TIR SENEGALAIS ",-139,"LYON 9EME                     "]
[69,0,389,7495,"F","AV  ","DU 25E RGT TIR SENEGALAIS ",-138,"LYON 9EME                     "]
[69,0,389,7495,"F","AV  ","DU 25E RGT TIR SENEGALAIS ",-137,"LYON 9EME                     "]
[69,0,389,7495,"F","AV  ","DU 25E RGT TIR SENEGALAIS ",-136,"LYON 9EME                     "]
[69,0,389,7495,"F","AV  ","DU 25E RGT TIR SENEGALAIS ",-135,"LYON 9EME                     "]
[69,0,389,7495,"F","AV  ","DU 25E RGT TIR SENEGALAIS ",-134,"LYON 9EME                     "]
[69,0,389,7495,"F","AV  ","DU 25E RGT TIR SENEGALAIS ",-133,"LYON 9EME                     "]
[69,0,389,7495,"F","AV  ","DU 25E RGT TIR SENEGALAIS ",-132,"LYON 9EME                     "]
[69,0,389,7495,"F","AV  ","DU 25E RGT TIR SENEGALAIS ",-131,"LYON 9EME                     "]
[69,0,389,7495,"F","AV  ","DU 25E RGT TIR SENEGALAIS ",-130,"LYON 9EME                     "]
[69,0,389,7495,"F","AV  ","DU 25E RGT TIR SENEGALAIS ",-129,"LYON 9EME                     "]
[69,0,389,7495,"F","AV  ","DU 25E RGT TIR SENEGALAIS ",-128,"LYON 9EME                     "]
[69,0,389,7495,"F","AV  ","DU 25E RGT TIR SENEGALAIS ",-127,"LYON 9EME                     "]
[69,0,389,7495,"F","AV  ","DU 25E RGT TIR SENEGALAIS ",-126,"LYON 9EME                     "]
[69,0,389,7495,"F","AV  ","DU 25E RGT TIR SENEGALAIS ",-125,"LYON 9EME                     "]
[69,0,389,7495,"F","AV  ","DU 25E RGT TIR SENEGALAIS ",-124,"LYON 9EME                     "]
[69,0,389,7495,"F","AV  ","DU 25E RGT TIR SENEGALAIS ",-123,"LYON 9EME                     "]
[69,0,389,7495,"F","AV  ","DU 25E RGT TIR SENEGALAIS ",-122,"LYON 9EME                     "]
[69,0,389,7495,"F","AV  ","DU 25E RGT TIR SENEGALAIS ",-121,"LYON 9EME                     "]
[69,0,389,7495,"F","AV  ","DU 25E RGT TIR SENEGALAIS ",-120,"LYON 9EME                     "]
[69,0,389,7495,"F","AV  ","DU 25E RGT TIR SENEGALAIS ",-119,"LYON 9EME                     "]
[69,0,389,7495,"F","AV  ","DU 25E RGT TIR SENEGALAIS ",-118,"LYON 9EME                     "]
[69,0,389,7495,"F","AV  ","DU 25E RGT TIR SENEGALAIS ",-117,"LYON 9EME                     "]
[69,0,389,7495,"F","AV  ","DU 25E RGT TIR SENEGALAIS ",-116,"LYON 9EME                     "]
[69,0,389,7495,"F","AV  ","DU 25E RGT TIR SENEGALAIS ",-115,"LYON 9EME                     "]
[69,0,389,7495,"F","AV  ","DU 25E RGT TIR SENEGALAIS ",-114,"LYON 9EME                     "]
[69,0,389,7495,"F","AV  ","DU 25E RGT TIR SENEGALAIS ",-113,"LYON 9EME                     "]
[69,0,389,7495,"F","AV  ","DU 25E RGT TIR SENEGALAIS ",-112,"LYON 9EME                     "]
[69,0,389,7495,"F","AV  ","DU 25E RGT TIR SENEGALAIS ",-111,"LYON 9EME                     "]
[69,0,389,7495,"F","AV  ","DU 25E RGT TIR SENEGALAIS ",-110,"LYON 9EME                     "]
[69,0,389,7495,"F","AV  ","DU 25E RGT TIR SENEGALAIS ",-109,"LYON 9EME                     "]
[69,0,389,7495,"F","AV  ","DU 25E RGT TIR SENEGALAIS ",-108,"LYON 9EME                     "]
[69,0,389,7495,"F","AV  ","DU 25E RGT TIR SENEGALAIS ",-107,"LYON 9EME                     "]
[69,0,389,7495,"F","AV  ","DU 25E RGT TIR SENEGALAIS ",-106,"LYON 9EME                     "]
[69,0,389,7495,"F","AV  ","DU 25E RGT TIR SENEGALAIS ",-105,"LYON 9EME                     "]
[69,0,389,7495,"F","AV  ","DU 25E RGT TIR SENEGALAIS ",-104,"LYON 9EME                     "]
[69,0,389,7495,"F","AV  ","DU 25E RGT TIR SENEGALAIS ",-103,"LYON 9EME                     "]
[69,0,389,7495,"F","AV  ","DU 25E RGT TIR SENEGALAIS ",-102,"LYON 9EME                     "]
[69,0,389,7495,"F","AV  ","DU 25E RGT TIR SENEGALAIS ",-101,"LYON 9EME                     "]
[69,0,389,7495,"F","AV  ","DU 25E RGT TIR SENEGALAIS ",-100,"LYON 9EME                     "]
[69,0,389,7495,"F","AV  ","DU 25E RGT TIR SENEGALAIS ",-99,"LYON 9EME                     "]
[69,0,389,7495,"F","AV  ","DU 25E RGT TIR SENEGALAIS ",-98,"LYON 9EME                     "]
[69,0,389,7495,"F","AV  ","DU 25E RGT TIR SENEGALAIS ",-97,"LYON 9EME                     "]
[69,0,389,7495,"F","AV  ","DU 25E RGT TIR SENEGALAIS ",-96,"LYON 9EME                     "]
[69,0,389,7495,"F","AV  ","DU 25E RGT TIR SENEGALAIS ",-95,"LYON 9EME                     "]
[69,0,389,7495,"F","AV  ","DU 25E RGT TIR SENEGALAIS ",-94,"LYON 9EME                     "]
[69,0,389,7495,"F","AV  ","DU 25E RGT TIR SENEGALAIS ",-93,"LYON 9EME                     "]
[69,0,389,7495,"F","AV  ","DU 25E RGT TIR SENEGALAIS ",-92,"LYON 9EME                     "]
[69,0,389,7495,"F","AV  ","DU 25E RGT TIR SENEGALAIS ",-91,"LYON 9EME                     "]
[69,0,389,7495,"F","AV  ","DU 25E RGT TIR SENEGALAIS ",-90,"LYON 9EME                     "]
[69,0,389,7495,"F","AV  ","DU 25E RGT TIR SENEGALAIS ",-89,"LYON 9EME                     "]
[69,0,389,7495,"F","AV  ","DU 25E RGT TIR SENEGALAIS ",-88,"LYON 9EME                     "]
[69,0,389,7495,"F","AV  ","DU 25E RGT TIR SENEGALAIS ",-87,"LYON 9EME                     "]
[69,0,389,7495,"F","AV  ","DU 25E RGT TIR SENEGALAIS ",-86,"LYON 9EME                     "]
[69,0,389,7495,"F","AV  ","DU 25E RGT TIR SENEGALAIS ",-85,"LYON 9EME                     "]
[69,0,389,7495,"F","AV  ","DU 25E RGT TIR SENEGALAIS ",-84,"LYON 9EME                     "]
[69,0,389,7495,"F","AV  ","DU 25E RGT TIR SENEGALAIS ",-83,"LYON 9EME                     "]
[69,0,389,7495,"F","AV  ","DU 25E RGT TIR SENEGALAIS ",-82,"LYON 9EME                     "]
[69,0,389,7495,"F","AV  ","DU 25E RGT TIR SENEGALAIS ",-81,"LYON 9EME                     "]
[69,0,389,7495,"F","AV  ","DU 25E RGT TIR SENEGALAIS ",-80,"LYON 9EME                     "]
[69,0,389,7495,"F","AV  ","DU 25E RGT TIR SENEGALAIS ",-79,"LYON 9EME                     "]
[69,0,389,7495,"F","AV  ","DU 25E RGT TIR SENEGALAIS ",-78,"LYON 9EME                     "]
[69,0,389,7495,"F","AV  ","DU 25E RGT TIR SENEGALAIS ",-77,"LYON 9EME                     "]
[69,0,389,7495,"F","AV  ","DU 25E RGT TIR SENEGALAIS ",-76,"LYON 9EME                     "]
[69,0,389,7495,"F","AV  ","DU 25E RGT TIR SENEGALAIS ",-75,"LYON 9EME                     "]
[69,0,389,7495,"F","AV  ","DU 25E RGT TIR SENEGALAIS ",-74,"LYON 9EME                     "]
[69,0,389,7495,"F","AV  ","DU 25E RGT TIR SENEGALAIS ",-73,"LYON 9EME                     "]
[69,0,389,7495,"F","AV  ","DU 25E RGT TIR SENEGALAIS ",-72,"LYON 9EME                     "]
[69,0,389,7495,"F","AV  ","DU 25E RGT TIR SENEGALAIS ",-71,"LYON 9EME                     "]
[69,0,389,7495,"F","AV  ","DU 25E RGT TIR SENEGALAIS ",-70,"LYON 9EME                     "]
[69,0,389,7495,"F","AV  ","DU 25E RGT TIR SENEGALAIS ",-69,"LYON 9EME                     "]
[69,0,389,7495,"F","AV  ","DU 25E RGT TIR SENEGALAIS ",-68,"LYON 9EME                     "]
[69,0,389,7495,"F","AV  ","DU 25E RGT TIR SENEGALAIS ",-67,"LYON 9EME                     "]
[69,0,389,7495,"F","AV  ","DU 25E RGT TIR SENEGALAIS ",-66,"LYON 9EME                     "]
[69,0,389,7495,"F","AV  ","DU 25E RGT TIR SENEGALAIS ",-65,"LYON 9EME                     "]
[69,0,389,7495,"F","AV  ","DU 25E RGT TIR SENEGALAIS ",-64,"LYON 9EME                     "]
[69,0,389,7495,"F","AV  ","DU 25E RGT TIR SENEGALAIS ",-63,"LYON 9EME                     "]
[69,0,389,7495,"F","AV  ","DU 25E RGT TIR SENEGALAIS ",-62,"LYON 9EME                     "]
[69,0,389,7495,"F","AV  ","DU 25E RGT TIR SENEGALAIS ",-61,"LYON 9EME                     "]
[69,0,389,7495,"F","AV  ","DU 25E RGT TIR SENEGALAIS ",-60,"LYON 9EME                     "]
[69,0,389,7495,"F","AV  ","DU 25E RGT TIR SENEGALAIS ",-59,"LYON 9EME                     "]
[69,0,389,7495,"F","AV  ","DU 25E RGT TIR SENEGALAIS ",-58,"LYON 9EME                     "]
[69,0,389,7495,"F","AV  ","DU 25E RGT TIR SENEGALAIS ",-57,"LYON 9EME                     "]
[69,0,389,7495,"F","AV  ","DU 25E RGT TIR SENEGALAIS ",-56,"LYON 9EME                     "]
[69,0,389,7495,"F","AV  ","DU 25E RGT TIR SENEGALAIS ",-55,"LYON 9EME                     "]
[69,0,389,7495,"F","AV  ","DU 25E RGT TIR SENEGALAIS ",-54,"LYON 9EME                     "]
[69,0,389,7495,"F","AV  ","DU 25E RGT TIR SENEGALAIS ",-53,"LYON 9EME                     "]
[69,0,389,7495,"F","AV  ","DU 25E RGT TIR SENEGALAIS ",-52,"LYON 9EME                     "]
[69,0,389,7495,"F","AV  ","DU 25E RGT TIR SENEGALAIS ",-51,"LYON 9EME                     "]
[69,0,389,7495,"F","AV  ","DU 25E RGT TIR SENEGALAIS ",-50,"LYON 9EME                     "]
[69,0,389,7495,"F","AV  ","DU 25E RGT TIR SENEGALAIS ",-49,"LYON 9EME                     "]
[69,0,389,7495,"F","AV  ","DU 25E RGT TIR SENEGALAIS ",-48,"LYON 9EME                     "]
[69,0,389,7495,"F","AV  ","DU 25E RGT TIR SENEGALAIS ",-47,"LYON 9EME                     "]
[69,0,389,7495,"F","AV  ","DU 25E RGT TIR SENEGALAIS ",-46,"LYON 9EME                     "]
[69,0,389,7495,"F","AV  ","DU 25E RGT TIR SENEGALAIS ",-45,"LYON 9EME                     "]
[69,0,389,7495,"F","AV  ","DU 25E RGT TIR SENEGALAIS ",-44,"LYON 9EME                     "]
[69,0,389,7495,"F","AV  ","DU 25E RGT TIR SENEGALAIS ",-43,"LYON 9EME                     "]
[69,0,389,7495,"F","AV  ","DU 25E RGT TIR SENEGALAIS ",-42,"LYON 9EME                     "]
[69,0,389,7495,"F","AV  ","DU 25E RGT TIR SENEGALAIS ",-41,"LYON 9EME                     "]
[69,0,389,7495,"F","AV  ","DU 25E RGT TIR SENEGALAIS ",-40,"LYON 9EME                     "]
[69,0,389,7495,"F","AV  ","DU 25E RGT TIR SENEGALAIS ",-39,"LYON 9EME                     "]
[69,0,389,7495,"F","AV  ","DU 25E RGT TIR SENEGALAIS ",-38,"LYON 9EME                     "]
[69,0,389,7495,"F","AV  ","DU 25E RGT TIR SENEGALAIS ",-37,"LYON 9EME                     "]
[69,0,389,7495,"F","AV  ","DU 25E RGT TIR SENEGALAIS ",-36,"LYON 9EME                     "]
[69,0,389,7495,"F","AV  ","DU 25E RGT TIR SENEGALAIS ",-35,"LYON 9EME                     "]
[69,0,389,7495,"F","AV  ","DU 25E RGT TIR SENEGALAIS ",-34,"LYON 9EME                     "]
[69,0,389,7495,"F","AV  ","DU 25E RGT TIR SENEGALAIS ",-33,"LYON 9EME                     "]
[69,0,389,7495,"F","AV  ","DU 25E RGT TIR SENEGALAIS ",-32,"LYON 9EME                     "]
[69,0,389,7495,"F","AV  ","DU 25E RGT TIR SENEGALAIS ",-31,"LYON 9EME                     "]
[69,0,389,7495,"F","AV  ","DU 25E RGT TIR SENEGALAIS ",-30,"LYON 9EME                     "]
[69,0,389,7495,"F","AV  ","DU 25E RGT TIR SENEGALAIS ",-29,"LYON 9EME                     "]
[69,0,389,7495,"F","AV  ","DU 25E RGT TIR SENEGALAIS ",-28,"LYON 9EME                     "]
[69,0,389,7495,"F","AV  ","DU 25E RGT TIR SENEGALAIS ",-27,"LYON 9EME                     "]
[69,0,389,7495,"F","AV  ","DU 25E RGT TIR SENEGALAIS ",-26,"LYON 9EME                     "]
[69,0,389,7495,"F","AV  ","DU 25E RGT TIR SENEGALAIS ",-25,"LYON 9EME                     "]
[69,0,389,7495,"F","AV  ","DU 25E RGT TIR SENEGALAIS ",-24,"LYON 9EME                     "]
[69,0,389,7495,"F","AV  ","DU 25E RGT TIR SENEGALAIS ",-23,"LYON 9EME                     "]
[69,0,389,7495,"F","AV  ","DU 25E RGT TIR SENEGALAIS ",-22,"LYON 9EME                     "]
[69,0,389,7495,"F","AV  ","DU 25E RGT TIR SENEGALAIS ",-21,"LYON 9EME                     "]
[69,0,389,7495,"F","AV  ","DU 25E RGT TIR SENEGALAIS ",-20,"LYON 9EME                     "]
[69,0,389,7495,"F","AV  ","DU 25E RGT TIR SENEGALAIS ",-19,"LYON 9EME                     "]
[69,0,389,7495,"F","AV  ","DU 25E RGT TIR SENEGALAIS ",-18,"LYON 9EME                     "]
[69,0,389,7495,"F","AV  ","DU 25E RGT TIR SENEGALAIS ",-17,"LYON 9EME                     "]
[69,0,389,7495,"F","AV  ","DU 25E RGT TIR SENEGALAIS ",-16,"LYON 9EME                     "]
[69,0,389,7495,"F","AV  ","DU 25E RGT TIR SENEGALAIS ",-15,"LYON 9EME                     "]
[69,0,389,7495,"F","AV  ","DU 25E RGT TIR SENEGALAIS ",-14,"LYON 9EME                     "]
[69,0,389,7495,"F","AV  ","DU 25E RGT TIR SENEGALAIS ",-13,"LYON 9EME                     "]
[69,0,389,7495,"F","AV  ","DU 25E RGT TIR SENEGALAIS ",-12,"LYON 9EME                     "]
[69,0,389,7495,"F","AV  ","DU 25E RGT TIR SENEGALAIS ",-11,"LYON 9EME                     "]
[69,0,389,7495,"F","AV  ","DU 25E RGT TIR SENEGALAIS ",-10,"LYON 9EME                     "]
[69,0,389,7495,"F","AV  ","DU 25E RGT TIR SENEGALAIS ",-9,"LYON 9EME                     "]
[69,0,389,7495,"F","AV  ","DU 25E RGT TIR SENEGALAIS ",-8,"LYON 9EME                     "]
[69,0,389,7495,"F","AV  ","DU 25E RGT TIR SENEGALAIS ",-7,"LYON 9EME                     "]
[69,0,389,7495,"F","AV  ","DU 25E RGT TIR SENEGALAIS ",-6,"LYON 9EME                     "]
[69,0,389,7495,"F","AV  ","DU 25E RGT TIR SENEGALAIS ",-5,"LYON 9EME                     "]
[69,0,389,7495,"F","AV  ","DU 25E RGT TIR SENEGALAIS ",-4,"LYON 9EME                     "]
[69,0,389,7495,"F","AV  ","DU 25E RGT TIR SENEGALAIS ",-3,"LYON 9EME                     "]
[69,0,389,7495,"F","AV  ","DU 25E RGT TIR SENEGALAIS ",-2,"LYON 9EME                     "]
[69,0,389,7495,"F","AV  ","DU 25E RGT TIR SENEGALAIS ",-1,"LYON 9EME                     "]
[69,0,389,7495,"F","AV  ","DU 25E RGT TIR SENEGALAIS ",0,"LYON 9EME                     "]
[69,0,389,7495,"F","AV  ","DU 25E RGT TIR SENEGALAIS ",1,"LYON 9EME                     "]